Workbook

Sheet Calculation
A1: Dam Breach Analysis DB-IWHR V2.0 | L1: Issued 2018.6
A2: Copy Right：Chen ZuYu（Email：chenzuyu@cashq.ac.cn）
A3: Disclaimer: The author assumes No responsibility and makes no guarantees, expressed or implied, on the quality, reliability, or any other characteristic of this software
A4: Project Name | C4: Serial Numbe | E4: Calculated by | G4: Checked by | I4: Date | K4: Company
A6: z0 | B6: 115.79 | C6: Elevations of channel bed,m
A7: Qin | B7: 5000 | C7: Inflow flow,m3/s | G7: H0 | H7: 117.94 | I7: Elevations of reservoir water level, beginning, m
A8: Hr | B8: 93.75 | C8: Elevations of dead Water,m | G8: B0 | H8: 30 | I8: Channel Width, beginning, m | O8: Velocity Criteria
G9: Bend | H9: =H8+(B6-H12)*2 -> 74.08 | I9: Channel Width, ending , m | O9: DB-Excel 2014 角度版
G10: C | H10: 30 | I10: 粘聚力 | J10: m1 | K10: =mminter(K12, H10, H11) -> 0.27082 | L10: Lateral enlargement coefficient | N10: 5 | O10: Meyer Peter & Muller
A11: p1 | B11: 1.986572892 | C11: W~H curve coefficient | G11: fi | H11: 25 | I11: 摩擦角 | J11: m2 | K11: =mm2inter(K12, H11) -> 0.02407467548 | L11: Lateral enlargement coefficient | O11: Englund_Hense
A12: p2 | B12: -30.67899572 | C12: W~H curve coefficient | G12: zend | H12: 93.75 | I12: Elevation ending, m | J12: γ | K12: 16 | L12: Bulk Density | O12: DB-Excel 2014 论文版
A13: p3 | B13: 187.1696608 | C13: W~H curve coefficient | G13: β1 | H13: 144 | I13: Row number for balance check | O13: Du Boys
A14: Note: obtained by water storage capacity curve worksheet | O14: Einstein-Brown
G15: D50 | H15: 0.005 | I15: Average particle size, m | O15: 指数模型
G16: ρs | H16: 2650 | I16: Material density, kg/m3 | O16: Lateral enlargement for the hyperbolic model
A17: mq | B17: 0.36 | C17: Broad-crested weir flow coefficient | G17: υ | H17: 0.43 | I17: Void ratio
A18: mb | B18: 0.9 | C18: Lateral shrinkage coefficient | G18: Gs | H18: 2.65 | I18: Specific gravity
A19: m | B19: 0.8 | C19: Ratio of tailwater | G19: L | H19: 36 | I19: Erosion length, m
G20: n | H20: 0.025 | I20: Roughness of river
A22: Vc | B22: 2.4 | C22: Incipient velocity,m/s
A23: a | B23: 1 | C23: Erosion coefficient
A24: b | B24: 0.0003 | C24: Erosion coefficient
A25: τc | B25: 15 | C25: Incipient shear stress
B30: Qp | C30: =MAX(G56:G329) -> 79280.95568 | D30: m3/s | E30: Magnitude
B31: tp | C31: =INDEX(AJ62:AJ2080,MATCH(MAX(G62:G2080),G62:G2080,0)) -> 4.733676646 | D31: h | E31: Time
B32: Balance | C32: =err(B8,B11,B12) -> 0.03852311242 | E32: Balance
O46: =TAN((175 - 90) * 3.141592 / 180) -> 11.43001167
C47: Figure 1 | I47: Figure 2
K50: Tc | L50: =B25 -> 15
B51: Z0 | C51: =B6 -> 115.79 | E51: Hr | F51: =B8 -> 93.75 | G51: Ho | H51: 742.5 | K51: Vc | L51: =B22 -> 2.4 | O51: mq | P51: =B17 -> 0.36 | R51: c2 | S51: =1-27.8*(P53-0.67)^3 -> 0.9389234 | T51: =(S54*S53*C55)^2 -> 2.834173567 | W51: Methods | X51: 9
B52: B | C52: =I9 -> Channel Width, ending , m | E52: a1*2 | F52: =B11*2 -> 3.973145783 | G52: H1 | H52: 704.5 | K52: a2 | L52: =B23 -> 1 | O52: mb | P52: =B18 -> 0.9 | R52: c1 | S52: =P51*P52*4.427 -> 1.434348
B53: Qin | C53: =B7 -> 5000 | E53: b1 | F53: =B12 -> -30.67899572 | K53: b2 | L53: =B24 -> 0.0003 | M53: =1/L53 -> 3333.333333 | O53: m | P53: =B19 -> 0.8 | R53: c2*mq*mb | S53: =P51*P52*S51 -> 0.3042111816 | T53: Balance Check | U53: Row number | V53: Elevation, begin | W53: Elevatiob end | X53: loss of storage | Y53: inflow | Z53: Outflow | AA53: Error
B54: g | C54: 9.8 | E54: c1 | F54: =B13 -> 187.1696608 | K54: zc | L54: =0 -> 0 | O54: s/dz | P54: =B26 -> 0 | R54: m-1 | S54: =1/P53 -> 1.25 | U54: 207 | V54: =B61-B8 -> 24.19 | W54: 4.39601758 | X54: =B11*(V54^2-W54^2)+B12*(V54-W54) -> 516.8052811 | Y54: 3.254594753 | Z54: 192.1516207 | AA54: =(Z54-X54-Y54)/Z54 -> -1.706507881
B55: Sqrt(2g) | C55: =SQRT(2*C54) -> 4.427188724 | E55: Dq | F55: =(H51-Calculation!F51)^2*0.063+Calculation!F53*(H51-Calculation!F51)+44 -> 6656.224963 | G55: =($H$52-Calculation!$F$51)^2*0.063+Calculation!$F$53*($H$52-Calculation!$F$51)+44 -> 4806.7838 | H55: =F55-G55 -> 1849.441163 | K55: n | L55: =H20 -> 0.025 | R55: mmqmb | S55: =S53*S54 -> 0.380263977
U56: -7.9
A57: Symbols | B57: H | C57: z' | D57: Vo | E57: B | F57: B平均 | G57: Q | H57: dV | I57: h | J57: Qin | K57: Index | L57: V1 | M57: Va1 | N57: s1 | O57: E1 | P57: Tau1 | Q57: A1 | R57: D1 | S57: A/DE_1 | T57: dz1 | U57: V2 | V57: Va2 | W57: s2 | X57: A2 | Y57: Tau2 | Z57: D2 | AA57: A/DE_2 | AB57: dz2 | AC57: dz | AD57: dv/dz | AE57: d2z/dz2 | AF57: H1 | AG57: z1 | AH57: V1 | AI57: dt | AJ57: T | AK57: SumQout | AL57: SumQin
A58: Unit | B58: m | C58: m | D58: m/s | E58: m | F58: m | G58: m3 | H58: m/s | I58: m | L58: m/s | M58: m/s | AH58: m/s | AI58: s | AJ58: h | AK58: 106m | AL58: 106m
A59: The formula | D59: eq. (22) | G59: eq.(21) | N59: eq.(24) | AC59: eq.(21) | AI59: eq.(21)
A60: Initial value | L60: =(1-$P$54)*O61*R61+C53 -> 74046.78528 | M60: =M61*(B61-C61+N61/2)/$S$54 -> 4.100813798 | N60: =L60/M60 -> 18056.60752 | P60: =((1-$P$54)*O61*R61+C53)/(M61*(B61-C61+N61/2)/$S$54) -> 18056.60752 | R60: =IF(H60>0, rate1(1,$L$52,$L$51,$L$54,L60,$L$53,$L$50,P60),"") ->  | Z60: =IF(H60>0, rate1(1,$L$52,$L$51,$L$54,U60,$L$53,$L$50,Y60),"") -> 
B61: =H7 -> 117.94 | C61: =B6 -> 115.79 | D61: =$L$51 -> 2.4 | E61: =H8 -> 30 | F61: =E61 -> 30 | G61: =F61*$S$53*$C$55*(B61-C61+N61)^1.5 -> 118.7354714 | H61: 0.08 | I61: =(B61-C61)*B$19 -> 1.72 | J61: =$B$7 -> 5000 | K61: 1 | L61: =D61+H61*K61 -> 2.48 | M61: =(D61+L61)/2 -> 2.44 | N61: =2*($P$53*M61/$S$52/$S$51)^2-(B61-C61)*2 -> -0.09834651839 | O61: =wh(B61,$F$51,$F$52,$F$53) -> 65.43140078 | P61: =$C$54*$L$55*$L$55*M61*M61/(($B$19*(B61-C61))^0.333)*1000 -> 30.44070966 | Q61: =M61/$S$54*(B61-C61+N61/2)*E61-J61 -> -4876.975586 | R61: =IF(H61>0, rate1(1,$L$52,$L$51,$L$54,L61,$L$53,$L$50,P61),"") -> 1055.254579 | S61: =Q61/O61/R61 -> -0.07063291312 | T61: =N61/(1-S61) -> -0.09185829912 | U61: =L61-K61*H61 -> 2.4 | V61: =(D61+U61)/2 -> 2.4 | W61: =2*($P$53*V61/$S$52/$S$51)^2-(B61-C61)*2 -> -0.2349764757 | X61: =V61/$S$54*(B61-C61+W61/2)*F61-J61 -> -4882.927323 | Y61: =$C$54*$L$55*$L$55*V61*V61/(($B$19*(B61-C61))^0.333)*1000 -> 29.45083439 | Z61: =IF(H61>0, rate1(1,$L$52,$L$51,$L$54,U61,$L$53,$L$50,Y61),"") -> 1008.062927 | AA61: =X61/O61/Z61 -> -0.07402976984 | AB61: -1e-05 | AC61: =delta_z(N61,S61,H61,AE61,AB61) -> -1e-05 | AD61: =H61/AC61*K61 -> -8000 | AE61: =AD61 -> -8000 | AF61: =B61-(AC61-N61) -> 117.8416635 | AG61: =C61-AC61 -> 115.79001 | AH61: =$S$54*$S$53*$C$55*SQRT(AF61-AG61) -> 2.411377628 | AI61: =AC61/R61*1000000 -> -0.009476386266 | AJ61: =AI61/3600 -> -2.632329518e-06
B62: =AF61 -> 117.8416635 | C62: =AG61 -> 115.79001 | D62: =AH61 -> 2.411377628 | E62: =IF(H62>0,IF(AND(C62<$B$6,C62>$H$12),bb2wang($B$6,$H$12,C62,$H$8,$H$9,I62,$H$10,$H$11,$K$10,$K$11,$H$13),E61),"") -> 30 | F62: =(E62+E61)/2 -> 30 | G62: =F62*$S$53*$C$55*(B62-C62+N62)^1.5 -> 130.8805577 | H62: =dv(S61) -> 0.08 | I62: =(B62-C62)*B$19 -> 1.641322785 | J62: =$B$7 -> 5000 | K62: =INT(IF((1-S61-0.015)>0,1,-1)) -> 1 | L62: =D62+K62*H62 -> 2.491377628 | M62: =(D62+L62)/2 -> 2.451377628 | N62: =2*($P$53*M62/$S$52/$S$51)^2-(B62-C62)*2 -> 0.1376221807 | O62: =IF(wh(B61,$F$51,$F$52,$F$53)>0,wh(B61,$F$51,$F$52,$F$53),O61) -> 65.43140078 | P62: =$C$54*$L$55*$L$55*M62*M62/(($B$19*(B62-C62))^0.333)*1000 -> 31.20807121 | Q62: =M62/$S$54*(B62-C62+N62/2)*E62-J62 -> -4875.246574 | R62: =IF(H62>0, rate1(1,$L$52,$L$51,$L$54,L62,$L$53,$L$50,P62),"") -> 1090.540418 | S62: =Q62/O62/R62 -> -0.06832326336 | T62: =N62/(1-S62) -> 0.1288207281 | U62: =L62-K62*H62 -> 2.411377628 | V62: =(D62+U62)/2 -> 2.411377628 | W62: =2*($P$53*V62/$S$52/$S$51)^2-(B62-C62)*2 -> 0.000349857681 | X62: =V62/$S$54*(B62-C62+W62/2)*F62-J62 -> -4881.254405 | Y62: =$C$54*$L$55*$L$55*V62*V62/(($B$19*(B62-C62))^0.333)*1000 -> 30.19791417 | Z62: =IF(H62>0, rate1(1,$L$52,$L$51,$L$54,U62,$L$53,$L$50,Y62),"") -> 1043.857648 | AA62: =X62/O62/Z62 -> -0.07146673599 | AB62: =W62/(1-AA62) -> 0.0003265222048 | AC62: =delta_z(N62,S62,H62,AE61,AB62) -> 0.1288207281 | AD62: =H62/AC62*K62 -> 0.6210180703 | AE62: =(AD62-AD61)/(AC62+AC61)*2 -> 124222.8987 | AF62: =B62-(AC62-N62) -> 117.8504649 | AG62: =C62-AC62 -> 115.6611893 | AH62: =$S$54*$S$53*$C$55*SQRT(AF62-AG62) -> 2.49094103 | AI62: =AC62/R62*1000000 -> 118.125588 | AJ62: =AJ61+AI62/3600 -> 0.03281003101 | AK62: =AK61+AI61*G61/1000000 -> -1.12518319e-06 | AL62: =AL61+AI61*J61/1000000 -> -4.738193133e-05
B63: =IF(H63>0, AF62,"") -> 117.8504649 | C63: =IF(H63>0, AG62,"") -> 115.6611893 | D63: =IF(H63>0, AH62,"") -> 2.49094103 | E63: =IF(H63>0,IF(AND(C63<$B$6,C63>$H$12),bb2wang($B$6,$H$12,C63,$H$8,$H$9,I63,$H$10,$H$11,$K$10,$K$11,$H$13),E62),"") -> 35.16303137 | F63: =IF(H63>0, (E63+E62)/2,"") -> 32.58151568 | G63: =IF(H63>0, F63*$S$53*$C$55*(B63-C63+N63)^1.5,"") -> 156.2080503 | H63: =dv(S62) -> 0.08 | I63: =IF(H63>0, (B63-C63)*B$19,"") -> 1.75142053 | J63: 5000 | K63: =IF(H63>0, IF((1-S62-0.015)>0,1,-1),"") -> 1 | L63: =IF(H63>0, D63+K63*H63,"") -> 2.57094103 | M63: =IF(H63>0, (D63+L63)/2,"") -> 2.53094103 | N63: =IF(H63>0, 2*($P$53*M63/$S$52/$S$51)^2-(B63-C63)*2,"") -> 0.1421376917 | O63: 65.04069546 | P63: =IF(H63>0, $C$54*$L$55*$L$55*M63*M63/(($B$19*(B63-C63))^0.333)*1000,"") -> 32.55525717 | Q63: =IF(H63>0, M63/$S$54*(B63-C63+N63/2)*E63-J63,"") -> -4839.071502 | R63: =IF(H63>0, rate1(1,$L$52,$L$51,$L$54,L63,$L$53,$L$50,P63),"") -> 1149.914418 | S63: =IF(H63>0, Q63/O63/R63,"") -> -0.06470105225 | T63: =IF(H63>0, N63/(1-S63),"") -> 0.1335000951 | U63: 2.49094103 | V63: =IF(H63>0, (D63+U63)/2,"") -> 2.49094103 | W63: =IF(H63>0, 2*($P$53*V63/$S$52/$S$51)^2-(B63-C63)*2,"") -> 0.0003733256679 | X63: =IF(H63>0, V63/$S$54*(B63-C63+W63/2)*F63-J63,"") -> -4857.844982 | Y63: =IF(H63>0, $C$54*$L$55*$L$55*V63*V63/(($B$19*(B63-C63))^0.333)*1000,"") -> 31.53435629 | Z63: =IF(H63>0, rate1(1,$L$52,$L$51,$L$54,U63,$L$53,$L$50,Y63),"") -> 1105.215048 | AA63: =IF(H63>0, X63/O63/Z63,"") -> -0.06757898837 | AB63: =IF(H63>0, W63/(1-AA63),"") -> 0.00034969372 | AC63: =IF(H63>0, delta_z(N63,S63,H63,AE62,AB63),"") -> 0.1335000951 | AD63: =IF(H63>0, H63/AC63*K63,"") -> 0.5992505096 | AE63: =IF(H63>0, (AD63-AD62)/(AC63+AC62)*2,"") -> -0.1659613628 | AF63: =IF(H63>0, B63-(AC63-N63),"") -> 117.8591025 | AG63: =IF(H63>0, C63-AC63,"") -> 115.5276892 | AH63: =IF(H63>0, $S$54*$S$53*$C$55*SQRT(AF63-AG63),"") -> 2.570531093 | AI63: =IF(H63>0, AC63/R63*1000000,"") -> 116.095679 | AJ63: =IF(H63>0, AJ62+AI63/3600,"") -> 0.06505883072 | AK63: =IF(H63>0, AK62+AI62*G62/1000000,"") -> 0.01545921766 | AL63: =IF(H63>0, AL62+AI62*J62/1000000,"") -> 0.5905805581
B64: =IF(H64>0, AF63,"") -> 117.8591025 | C64: =IF(H64>0, AG63,"") -> 115.5276892 | D64: =IF(H64>0, AH63,"") -> 2.570531093 | E64: =IF(H64>0,IF(AND(C64<$B$6,C64>$H$12),bb2wang($B$6,$H$12,C64,$H$8,$H$9,I64,$H$10,$H$11,$K$10,$K$11,$H$13),E63),"") -> 35.84141324 | F64: =IF(H64>0, (E64+E63)/2,"") -> 35.5022223 | G64: =IF(H64>0, F64*$S$53*$C$55*(B64-C64+N64)^1.5,"") -> 186.5214555 | H64: =dv(S63) -> 0.08 | I64: =IF(H64>0, (B64-C64)*B$19,"") -> 1.865130683 | J64: 5000 | K64: =IF(H64>0, IF((1-S63-0.015)>0,1,-1),"") -> 1 | L64: =IF(H64>0, D64+K64*H64,"") -> 2.650531093 | M64: =IF(H64>0, (D64+L64)/2,"") -> 2.610531093 | N64: =IF(H64>0, 2*($P$53*M64/$S$52/$S$51)^2-(B64-C64)*2,"") -> 0.146655478 | O64: 65.07566491 | P64: =IF(H64>0, $C$54*$L$55*$L$55*M64*M64/(($B$19*(B64-C64))^0.333)*1000,"") -> 33.91701691 | Q64: =IF(H64>0, M64/$S$54*(B64-C64+N64/2)*E64-J64,"") -> -4820.000082 | R64: =IF(H64>0, rate1(1,$L$52,$L$51,$L$54,L64,$L$53,$L$50,P64),"") -> 1206.819145 | S64: =IF(H64>0, Q64/O64/R64,"") -> -0.06137425593 | T64: =IF(H64>0, N64/(1-S64),"") -> 0.138175085 | U64: 2.570531093 | V64: =IF(H64>0, (D64+U64)/2,"") -> 2.570531093 | W64: =IF(H64>0, 2*($P$53*V64/$S$52/$S$51)^2-(B64-C64)*2,"") -> 0.0003975636611 | X64: =IF(H64>0, V64/$S$54*(B64-C64+W64/2)*F64-J64,"") -> -4829.77447 | Y64: =IF(H64>0, $C$54*$L$55*$L$55*V64*V64/(($B$19*(B64-C64))^0.333)*1000,"") -> 32.88558942 | Z64: =IF(H64>0, rate1(1,$L$52,$L$51,$L$54,U64,$L$53,$L$50,Y64),"") -> 1163.996199 | AA64: =IF(H64>0, X64/O64/Z64,"") -> -0.06376122837 | AB64: =IF(H64>0, W64/(1-AA64),"") -> 0.0003737339269 | AC64: =IF(H64>0, delta_z(N64,S64,H64,AE63,AB64),"") -> 0.138175085 | AD64: =IF(H64>0, H64/AC64*K64,"") -> 0.5789755801 | AE64: =IF(H64>0, (AD64-AD63)/(AC64+AC63)*2,"") -> -0.149258607 | AF64: =IF(H64>0, B64-(AC64-N64),"") -> 117.8675829 | AG64: =IF(H64>0, C64-AC64,"") -> 115.3895141 | AH64: =IF(H64>0, $S$54*$S$53*$C$55*SQRT(AF64-AG64),"") -> 2.650146634 | AI64: =IF(H64>0, AC64/R64*1000000,"") -> 114.4952709 | AJ64: =IF(H64>0, AJ63+AI64/3600,"") -> 0.09686307264 | AK64: =IF(H64>0, AK63+AI63*G63/1000000,"") -> 0.03359429732 | AL64: =IF(H64>0, AL63+AI63*J63/1000000,"") -> 1.171058953
B65: 117.8675829 | C65: 115.3895141 | D65: 2.650146634 | E65: =IF(H65>0,IF(AND(C65<$B$6,C65>$H$12),bb2wang($B$6,$H$12,C65,$H$8,$H$9,I65,$H$10,$H$11,$K$10,$K$11,$H$13),E64),"") -> 36.55443703 | F65: 36.19792513 | G65: 207.8419934 | H65: 0.08 | I65: 1.982455066 | J65: 5000 | K65: 1 | L65: 2.730146634 | M65: 2.690146634 | N65: 0.1511754732 | O65: 65.10998334 | P65: 35.29305743 | Q65: -4799.105277 | R65: =IF(H65>0, rate1(1,$L$52,$L$51,$L$54,L65,$L$53,$L$50,P65),"") -> 1261.384997 | S65: -0.05843392133 | T65: 0.1428293917 | U65: 2.650146634 | V65: 2.650146634 | W65: 0.0004225720487 | X65: -4809.807248 | Y65: 34.25130991 | Z65: =IF(H65>0, rate1(1,$L$52,$L$51,$L$54,U65,$L$53,$L$50,Y65),"") -> 1220.337899 | AA65: -0.060534086 | AB65: 0.0003984521142 | AC65: 0.1428293917 | AD65: 0.5601088056 | AE65: -0.1342809536 | AF65: 117.875929 | AG65: 115.2466847 | AH65: 2.729786569 | AI65: 113.2321948 | AJ65: 0.1283164601 | AK65: 0.0549501219 | AL65: 1.743535308
B66: 117.875929 | C66: 115.2466847 | D66: 2.729786569 | E66: =IF(H66>0,IF(AND(C66<$B$6,C66>$H$12),bb2wang($B$6,$H$12,C66,$H$8,$H$9,I66,$H$10,$H$11,$K$10,$K$11,$H$13),E65),"") -> 37.30324627 | F66: 36.92884165 | G66: 231.1495796 | H66: 0.08 | I66: 2.103395444 | J66: 5000 | K66: 1 | L66: 2.809786569 | M66: 2.769786569 | N66: 0.1556976163 | O66: 65.14367718 | P66: 36.68310033 | Q66: -4776.238114 | R66: =IF(H66>0, rate1(1,$L$52,$L$51,$L$54,L66,$L$53,$L$50,P66),"") -> 1313.734757 | S66: -0.05580922739 | T66: 0.1474675654 | U66: 2.729786569 | V66: 2.729786569 | W66: 0.0004483512073 | X66: -4787.943136 | Y66: 35.63122954 | Z66: =IF(H66>0, rate1(1,$L$52,$L$51,$L$54,U66,$L$53,$L$50,Y66),"") -> 1274.368983 | AA66: -0.05767419235 | AB66: 0.0004239029472 | AC66: 0.1474675654 | AD66: 0.5424921728 | AE66: -0.1213697374 | AF66: 117.8841591 | AG66: 115.0992171 | AH66: 2.809449907 | AI66: 112.2506386 | AJ66: 0.159497193 | AK66: 0.07848452698 | AL66: 2.309696282
B67: 117.8841591 | C67: 115.0992171 | D67: 2.809449907 | E67: =IF(H67>0,IF(AND(C67<$B$6,C67>$H$12),bb2wang($B$6,$H$12,C67,$H$8,$H$9,I67,$H$10,$H$11,$K$10,$K$11,$H$13),E66),"") -> 38.08903897 | F67: 37.69614262 | G67: 256.604516 | H67: 0.08 | I67: 2.227953537 | J67: 5000 | K67: 1 | L67: 2.889449907 | M67: 2.849449907 | N67: 0.160221852 | O67: 65.17683738 | P67: 38.08688064 | Q67: -4751.238214 | R67: =IF(H67>0, rate1(1,$L$52,$L$51,$L$54,L67,$L$53,$L$50,P67),"") -> 1363.983994 | S67: -0.05344465134 | T67: 0.1520932797 | U67: 2.809449907 | V67: 2.809449907 | W67: 0.0004749015032 | X67: -4764.027517 | Y67: 37.02507422 | Z67: =IF(H67>0, rate1(1,$L$52,$L$51,$L$54,U67,$L$53,$L$50,Y67),"") -> 1326.21073 | AA67: -0.05511482605 | AB67: 0.0004500946167 | AC67: 0.1520932797 | AD67: 0.5259929971 | AE67: -0.1101557567 | AF67: 117.8922876 | AG67: 114.9471239 | AH67: 2.889135739 | AI67: 111.5066455 | AJ67: 0.1904712612 | AK67: 0.1044312149 | AL67: 2.870949475
B68: 117.8922876 | C68: 114.9471239 | D68: 2.889135739 | E68: =IF(H68>0,IF(AND(C68<$B$6,C68>$H$12),bb2wang($B$6,$H$12,C68,$H$8,$H$9,I68,$H$10,$H$11,$K$10,$K$11,$H$13),E67),"") -> 38.91306702 | F68: 38.501053 | G68: 284.3792771 | H68: 0.08 | I68: 2.356131019 | J68: 5000 | K68: 1 | L68: 2.969135739 | M68: 2.929135739 | N68: 0.164748129 | O68: 65.20953657 | P68: 39.50414586 | Q68: -4723.932981 | R68: =IF(H68>0, rate1(1,$L$52,$L$51,$L$54,L68,$L$53,$L$50,P68),"") -> 1412.241462 | S68: -0.05129601833 | T68: 0.1567095529 | U68: 2.889135739 | V68: 2.889135739 | W68: 0.0005022232932 | X68: -4737.893966 | Y68: 38.432583 | Z68: =IF(H68>0, rate1(1,$L$52,$L$51,$L$54,U68,$L$53,$L$50,Y68),"") -> 1375.97726 | AA68: -0.05280353122 | AB68: 0.0004770342028 | AC68: 0.1567095529 | AD68: 0.5104985529 | AE68: -0.1003516972 | AF68: 117.9003262 | AG68: 114.7904143 | AH68: 2.968843228 | AI68: 110.9651268 | AJ68: 0.2212949076 | AK68: 0.1330443237 | AL68: 3.428482702
B69: 117.9003262 | C69: 114.7904143 | D69: 2.968843228 | E69: =IF(H69>0,IF(AND(C69<$B$6,C69>$H$12),bb2wang($B$6,$H$12,C69,$H$8,$H$9,I69,$H$10,$H$11,$K$10,$K$11,$H$13),E68),"") -> 39.77663628 | F69: 39.34485165 | G69: 314.6593601 | H69: 0.08 | I69: 2.487929522 | J69: 5000 | K69: 1 | L69: 3.048843228 | M69: 3.008843228 | N69: 0.1692764007 | O69: 65.24183257 | P69: 40.93465499 | Q69: -4694.136746 | R69: =IF(H69>0, rate1(1,$L$52,$L$51,$L$54,L69,$L$53,$L$50,P69),"") -> 1458.609486 | S69: -0.04932766432 | T69: 0.1613189154 | U69: 2.968843228 | V69: 2.968843228 | W69: 0.0005303169254 | X69: -4709.363418 | Y69: 39.85350702 | Z69: =IF(H69>0, rate1(1,$L$52,$L$51,$L$54,U69,$L$53,$L$50,Y69),"") -> 1423.775941 | AA69: -0.05069841761 | AB69: 0.0005047280138 | AC69: 0.1613189154 | AD69: 0.495912087 | AE69: -0.09173056709 | AF69: 117.9082837 | AG69: 114.6290954 | AH69: 3.048571602 | AI69: 110.5977419 | AJ69: 0.2520165025 | AK69: 0.1646005063 | AL69: 3.983308336
B70: 117.9082837 | C70: 114.6290954 | D70: 3.048571602 | E70: =IF(H70>0,IF(AND(C70<$B$6,C70>$H$12),bb2wang($B$6,$H$12,C70,$H$8,$H$9,I70,$H$10,$H$11,$K$10,$K$11,$H$13),E69),"") -> 40.68110701 | F70: 40.22887165 | G70: 347.6441859 | H70: 0.08 | I70: 2.623350643 | J70: 5000 | K70: 1 | L70: 3.128571602 | M70: 3.088571602 | N70: 0.1738066237 | O70: 65.27377101 | P70: 42.37817779 | Q70: -4661.649864 | R70: =IF(H70>0, rate1(1,$L$52,$L$51,$L$54,L70,$L$53,$L$50,P70),"") -> 1503.184338 | S70: -0.04751040199 | T70: 0.1659235301 | U70: 3.048571602 | V70: 3.048571602 | W70: 0.00055918274 | X70: -4678.243283 | Y70: 41.28760871 | Z70: =IF(H70>0, rate1(1,$L$52,$L$51,$L$54,U70,$L$53,$L$50,Y70),"") -> 1469.70778 | AA70: -0.04876554767 | AB70: 0.0005331818358 | AC70: 0.1659235301 | AD70: 0.4821498191 | AE70: -0.08411053094 | AF70: 117.9161668 | AG70: 114.4631719 | AH70: 3.128320148 | AI70: 110.381359 | AJ70: 0.2826779911 | AK70: 0.1994011209 | AL70: 4.536297045
B71: 117.9161668 | C71: 114.4631719 | D71: 3.128320148 | E71: =IF(H71>0,IF(AND(C71<$B$6,C71>$H$12),bb2wang($B$6,$H$12,C71,$H$8,$H$9,I71,$H$10,$H$11,$K$10,$K$11,$H$13),E70),"") -> 41.62789475 | F71: 41.15450088 | G71: 383.5480552 | H71: 0.08 | I71: 2.762395941 | J71: 5000 | K71: 1 | L71: 3.208320148 | M71: 3.168320148 | N71: 0.1783387581 | O71: 65.30538726 | P71: 43.83449399 | Q71: -4626.257749 | R71: =IF(H71>0, rate1(1,$L$52,$L$51,$L$54,L71,$L$53,$L$50,P71),"") -> 1546.056604 | S71: -0.04582003603 | T71: 0.1705252834 | U71: 3.128320148 | V71: 3.128320148 | W71: 0.0005888210697 | X71: -4644.326519 | Y71: 42.73466096 | Z71: =IF(H71>0, rate1(1,$L$52,$L$51,$L$54,U71,$L$53,$L$50,Y71),"") -> 1513.867795 | AA71: -0.04697705484 | AB71: 0.0005624011214 | AC71: 0.1705252834 | AD71: 0.4691386426 | AE71: -0.07734416639 | AF71: 117.9239803 | AG71: 114.2926466 | AH71: 3.208088207 | AI71: 110.2969212 | AJ71: 0.3133160248 | AK71: 0.2377745586 | AL71: 5.08820384
B72: 117.9239803 | C72: 114.2926466 | D72: 3.208088207 | E72: =IF(H72>0,IF(AND(C72<$B$6,C72>$H$12),bb2wang($B$6,$H$12,C72,$H$8,$H$9,I72,$H$10,$H$11,$K$10,$K$11,$H$13),E71),"") -> 42.61847145 | F72: 42.1231831 | G72: 422.6011604 | H72: 0.08 | I72: 2.905066948 | J72: 5000 | K72: 1 | L72: 3.288088207 | M72: 3.248088207 | N72: 0.182872767 | O72: 65.33670794 | P72: 45.30339261 | Q72: -4587.729856 | R72: =IF(H72>0, rate1(1,$L$52,$L$51,$L$54,L72,$L$53,$L$50,P72),"") -> 1587.311528 | S72: -0.04423626167 | T72: 0.1751258539 | U72: 3.208088207 | V72: 3.208088207 | W72: 0.0006192322404 | X72: -4607.390634 | Y72: 44.19444641 | Z72: =IF(H72>0, rate1(1,$L$52,$L$51,$L$54,U72,$L$53,$L$50,Y72),"") -> 1556.345384 | AA72: -0.04530976451 | AB72: 0.0005923911375 | AC72: 0.1751258539 | AD72: 0.4568143323 | AE72: -0.07131068848 | AF72: 117.9317272 | AG72: 114.1175207 | AH72: 3.287875166 | AI72: 110.328597 | AJ72: 0.3439628573 | AK72: 0.2800787283 | AL72: 5.639688447
B73: 117.9317272 | C73: 114.1175207 | D73: 3.287875166 | E73: =IF(H73>0,IF(AND(C73<$B$6,C73>$H$12),bb2wang($B$6,$H$12,C73,$H$8,$H$9,I73,$H$10,$H$11,$K$10,$K$11,$H$13),E72),"") -> 43.65436687 | F73: 43.13641916 | G73: 465.0506587 | H73: 0.08 | I73: 3.051365162 | J73: 5000 | K73: 1 | L73: 3.367875166 | M73: 3.327875166 | N73: 0.1874086161 | O73: 65.36775201 | P73: 46.78467141 | Q73: -4545.818599 | R73: =IF(H73>0, rate1(1,$L$52,$L$51,$L$54,L73,$L$53,$L$50,P73),"") -> 1627.029346 | S73: -0.04274183516 | T73: 0.1797267643 | U73: 3.287875166 | V73: 3.287875166 | W73: 0.0006504165719 | X73: -4567.196642 | Y73: 45.66675681 | Z73: =IF(H73>0, rate1(1,$L$52,$L$51,$L$54,U73,$L$53,$L$50,Y73),"") -> 1597.224667 | AA73: -0.04374416712 | AB73: 0.0006231570842 | AC73: 0.1797267643 | AD73: 0.4451201261 | AE73: -0.06591021532 | AF73: 117.939409 | AG73: 113.937794 | AH73: 3.367680456 | AI73: 110.4631362 | AJ73: 0.3746470618 | AK73: 0.3267037214 | AL73: 6.191331431
B74: 117.939409 | C74: 113.937794 | D74: 3.367680456 | E74: =IF(H74>0,IF(AND(C74<$B$6,C74>$H$12),bb2wang($B$6,$H$12,C74,$H$8,$H$9,I74,$H$10,$H$11,$K$10,$K$11,$H$13),E73),"") -> 44.73717022 | F74: 44.19576854 | G74: 511.1618099 | H74: 0.08 | I74: 3.201292054 | J74: 5000 | K74: 1 | L74: 3.447680456 | M74: 3.407680456 | N74: 0.1919462736 | O74: 65.39853163 | P74: 48.27813625 | Q74: -4500.258206 | R74: =IF(H74>0, rate1(1,$L$52,$L$51,$L$54,L74,$L$53,$L$50,P74),"") -> 1665.285596 | S74: -0.04132194064 | T74: 0.1843294241 | U74: 3.367680456 | V74: 3.367680456 | W74: 0.0006823743778 | X74: -4523.487946 | Y74: 47.15139241 | Z74: =IF(H74>0, rate1(1,$L$52,$L$51,$L$54,U74,$L$53,$L$50,Y74),"") -> 1636.584819 | AA74: -0.04226364227 | AB74: 0.000654704194 | AC74: 0.1843294241 | AD74: 0.4340055875 | AE74: -0.06105946777 | AF74: 117.9470259 | AG74: 113.7534645 | AH74: 3.447503547 | AI74: 110.6893764 | AJ74: 0.4053941108 | AK74: 0.3780746756 | AL74: 6.743647113
B75: 117.9470259 | C75: 113.7534645 | D75: 3.447503547 | E75: =IF(H75>0,IF(AND(C75<$B$6,C75>$H$12),bb2wang($B$6,$H$12,C75,$H$8,$H$9,I75,$H$10,$H$11,$K$10,$K$11,$H$13),E74),"") -> 45.86853202 | F75: 45.30285112 | G75: 561.2191816 | H75: 0.08 | I75: 3.354849073 | J75: 5000 | K75: 1 | L75: 3.527503547 | M75: 3.487503547 | N75: 0.19648571 | O75: 65.42905274 | P75: 49.78360066 | Q75: -4450.763506 | R75: =IF(H75>0, rate1(1,$L$52,$L$51,$L$54,L75,$L$53,$L$50,P75),"") -> 1702.151414 | S75: -0.0399637005 | T75: 0.1889351618 | U75: 3.447503547 | V75: 3.447503547 | W75: 0.0007151059666 | X75: -4475.98916 | Y75: 48.64816145 | Z75: =IF(H75>0, rate1(1,$L$52,$L$51,$L$54,U75,$L$53,$L$50,Y75),"") -> 1674.500375 | AA75: -0.04085386449 | AB75: 0.0006870378168 | AC75: 0.1889351618 | AD75: 0.4234256835 | AE75: -0.0566884963 | AF75: 117.9545764 | AG75: 113.5645294 | AH75: 3.527343946 | AI75: 110.9978585 | AJ75: 0.4362268493 | AK75: 0.4346548576 | AL75: 7.297093994
B76: 117.9545764 | C76: 113.5645294 | D76: 3.527343946 | E76: =IF(H76>0,IF(AND(C76<$B$6,C76>$H$12),bb2wang($B$6,$H$12,C76,$H$8,$H$9,I76,$H$10,$H$11,$K$10,$K$11,$H$13),E75),"") -> 47.05016616 | F76: 46.45934909 | G76: 615.5279265 | H76: 0.08 | I76: 3.512037641 | J76: 5000 | K76: 1 | L76: 3.607343946 | M76: 3.567343946 | N76: 0.2010268976 | O76: 65.4593156 | P76: 51.30088531 | Q76: -4397.02864 | R76: =IF(H76>0, rate1(1,$L$52,$L$51,$L$54,L76,$L$53,$L$50,P76),"") -> 1737.693815 | S76: -0.03865579228 | T76: 0.1935452525 | U76: 3.527343946 | V76: 3.527343946 | W76: 0.0007486116417 | X76: -4424.404859 | Y76: 50.15687964 | Z76: =IF(H76>0, rate1(1,$L$52,$L$51,$L$54,U76,$L$53,$L$50,Y76),"") -> 1711.04153 | AA76: -0.03950234244 | AB76: 0.0007201634966 | AC76: 0.1935452525 | AD76: 0.4133400275 | AE76: -0.05273815638 | AF76: 117.9620581 | AG76: 113.3709841 | AH76: 3.607201191 | AI76: 111.3805268 | AJ76: 0.4671658845 | AK76: 0.4969489849 | AL76: 7.852083287
B77: 117.9620581 | C77: 113.3709841 | D77: 3.607201191 | E77: =IF(H77>0,IF(AND(C77<$B$6,C77>$H$12),bb2wang($B$6,$H$12,C77,$H$8,$H$9,I77,$H$10,$H$11,$K$10,$K$11,$H$13),E76),"") -> 48.2838521 | F77: 47.66700913 | G77: 674.4151371 | H77: 0.08 | I77: 3.672859159 | J77: 5000 | K77: 1 | L77: 3.687201191 | M77: 3.647201191 | N77: 0.2055698107 | O77: 65.48931502 | P77: 52.82981762 | Q77: -4338.725699 | R77: =IF(H77>0, rate1(1,$L$52,$L$51,$L$54,L77,$L$53,$L$50,P77),"") -> 1771.975951 | S77: -0.03738814539 | T77: 0.1981609406 | U77: 3.607201191 | V77: 3.607201191 | W77: 0.0007828917015 | X77: -4368.418252 | Y77: 51.67736972 | Z77: =IF(H77>0, rate1(1,$L$52,$L$51,$L$54,U77,$L$53,$L$50,Y77),"") -> 1746.274409 | AA77: -0.03819805726 | AB77: 0.0007540870415 | AC77: 0.1981609406 | AD77: 0.403712254 | AE77: -0.0491581379 | AF77: 117.9694669 | AG77: 113.1728232 | AH77: 3.687074851 | AI77: 111.830491 | AJ77: 0.4982299098 | AK77: 0.5655068096 | AL77: 8.408985921
B78: 117.9694669 | C78: 113.1728232 | D78: 3.687074851 | E78: =IF(H78>0,IF(AND(C78<$B$6,C78>$H$12),bb2wang($B$6,$H$12,C78,$H$8,$H$9,I78,$H$10,$H$11,$K$10,$K$11,$H$13),E77),"") -> 49.5714374 | F78: 48.92764475 | G78: 738.2312814 | H78: 0.08 | I78: 3.837315008 | J78: 5000 | K78: 1 | L78: 3.767074851 | M78: 3.727074851 | N78: 0.2101144253 | O78: 65.51904069 | P78: 54.37023135 | Q78: -4275.503274 | R78: =IF(H78>0, rate1(1,$L$52,$L$51,$L$54,L78,$L$53,$L$50,P78),"") -> 1805.05736 | S78: -0.03615169848 | T78: 0.2027834588 | U78: 3.687074851 | V78: 3.687074851 | W78: 0.0008179464405 | X78: -4307.689778 | Y78: 53.20946104 | Z78: =IF(H78>0, rate1(1,$L$52,$L$51,$L$54,U78,$L$53,$L$50,Y78),"") -> 1780.261328 | AA78: -0.03693117554 | AB78: 0.0007888145904 | AC78: 0.2027834588 | AD78: 0.3945094954 | AE78: -0.04590541045 | AF78: 117.9767979 | AG78: 112.9700397 | AH78: 3.766964521 | AI78: 112.3418365 | AJ78: 0.5294359755 | AK78: 0.6409269855 | AL78: 8.968138376
B79: 117.9767979 | C79: 112.9700397 | D79: 3.766964521 | E79: =IF(H79>0,IF(AND(C79<$B$6,C79>$H$12),bb2wang($B$6,$H$12,C79,$H$8,$H$9,I79,$H$10,$H$11,$K$10,$K$11,$H$13),E78),"") -> 50.91484029 | F79: 50.24313884 | G79: 807.3517253 | H79: 0.08 | I79: 4.005406548 | J79: 5000 | K79: 1 | L79: 3.846964521 | M79: 3.806964521 | N79: 0.2146607187 | O79: 65.54847721 | P79: 55.92196625 | Q79: -4206.984921 | R79: =IF(H79>0, rate1(1,$L$52,$L$51,$L$54,L79,$L$53,$L$50,P79),"") -> 1836.994193 | S79: -0.03493820309 | T79: 0.2074140447 | U79: 3.766964521 | V79: 3.766964521 | W79: 0.0008537761487 | X79: -4241.855613 | Y79: 54.75298916 | Z79: =IF(H79>0, rate1(1,$L$52,$L$51,$L$54,U79,$L$53,$L$50,Y79),"") -> 1813.06104 | AA79: -0.03569281896 | AB79: 0.0008243526778 | AC79: 0.2074140447 | AD79: 0.3857019428 | AE79: -0.0429429849 | AF79: 117.9840446 | AG79: 112.7626257 | AH79: 3.846869824 | AI79: 112.9094721 | AJ79: 0.5607997177 | AK79: 0.7238612434 | AL79: 9.529847558
B80: 117.9840446 | C80: 112.7626257 | D80: 3.846869824 | E80: =IF(H80>0,IF(AND(C80<$B$6,C80>$H$12),bb2wang($B$6,$H$12,C80,$H$8,$H$9,I80,$H$10,$H$11,$K$10,$K$11,$H$13),E79),"") -> 52.31605256 | F80: 51.61544642 | G80: 882.1783472 | H80: 0.08 | I80: 4.177135123 | J80: 5000 | K80: 1 | L80: 3.926869824 | M80: 3.886869824 | N80: 0.21920867 | O80: 65.57760421 | P80: 57.48486769 | Q80: -4132.767538 | R80: =IF(H80>0, rate1(1,$L$52,$L$51,$L$54,L80,$L$53,$L$50,P80),"") -> 1867.839433 | S80: -0.03374006318 | T80: 0.2120539561 | U80: 3.846869824 | V80: 3.846869824 | W80: 0.0008903811124 | X80: -4170.526091 | Y80: 56.30779554 | Z80: =IF(H80>0, rate1(1,$L$52,$L$51,$L$54,U80,$L$53,$L$50,Y80),"") -> 1844.728957 | AA80: -0.03447487747 | AB80: 0.0008607082993 | AC80: 0.2120539561 | AD80: 0.3772624735 | AE80: -0.04023891806 | AF80: 117.9911993 | AG80: 112.5505717 | AH80: 3.926790402 | AI80: 113.529007 | AJ80: 0.592335553 | AK80: 0.8150189006 | AL80: 10.09439492
B81: 117.9911993 | C81: 112.5505717 | D81: 3.926790402 | E81: =IF(H81>0,IF(AND(C81<$B$6,C81>$H$12),bb2wang($B$6,$H$12,C81,$H$8,$H$9,I81,$H$10,$H$11,$K$10,$K$11,$H$13),E80),"") -> 53.77714266 | F81: 53.04659761 | G81: 963.1412515 | H81: 0.08 | I81: 4.352502059 | J81: 5000 | K81: 1 | L81: 4.006790402 | M81: 3.966790402 | N81: 0.2237582592 | O81: 65.6063963 | P81: 59.0587864 | Q81: -4052.41963 | R81: =IF(H81>0, rate1(1,$L$52,$L$51,$L$54,L81,$L$53,$L$50,P81),"") -> 1897.643091 | S81: -0.03255020243 | T81: 0.2167044844 | U81: 3.926790402 | V81: 3.926790402 | W81: 0.0009277616144 | X81: -4093.284026 | Y81: 57.87372716 | Z81: =IF(H81>0, rate1(1,$L$52,$L$51,$L$54,U81,$L$53,$L$50,Y81),"") -> 1875.317365 | AA81: -0.03326985611 | AB81: 0.0008978889773 | AC81: 0.2167044844 | AD81: 0.3691663337 | AE81: -0.03776550642 | AF81: 117.9982531 | AG81: 112.3338672 | AH81: 4.006725921 | AI81: 114.1966503 | AJ81: 0.6240568447 | AK81: 0.9151717323 | AL81: 10.66203995
B82: 117.9982531 | C82: 112.3338672 | D82: 4.006725921 | E82: =IF(H82>0,IF(AND(C82<$B$6,C82>$H$12),bb2wang($B$6,$H$12,C82,$H$8,$H$9,I82,$H$10,$H$11,$K$10,$K$11,$H$13),E81),"") -> 55.30025891 | F82: 54.53870078 | G82: 1050.700586 | H82: 0.08 | I82: 4.531508666 | J82: 5000 | K82: 1 | L82: 4.086725921 | M82: 4.046725921 | N82: 0.2283094678 | O82: 65.63482302 | P82: 60.64357815 | Q82: -3965.47948 | R82: =IF(H82>0, rate1(1,$L$52,$L$51,$L$54,L82,$L$53,$L$50,P82),"") -> 1926.452398 | S82: -0.03136195347 | T82: 0.2213669673 | U82: 4.006725921 | V82: 4.006725921 | W82: 0.0009659179338 | X82: -4009.682928 | Y82: 59.45063625 | Z82: =IF(H82>0, rate1(1,$L$52,$L$51,$L$54,U82,$L$53,$L$50,Y82),"") -> 1904.875623 | AA82: -0.03207074797 | AB82: 0.00093590283 | AC82: 0.2213669673 | AD82: 0.3613908659 | AE82: -0.03549862814 | AF82: 118.0051956 | AG82: 112.1125003 | AH82: 4.086676065 | AI82: 114.9091291 | AJ82: 0.6559760473 | AK82: 1.025159237 | AL82: 11.23302321
B83: 118.0051956 | C83: 112.1125003 | D83: 4.086676065 | E83: =IF(H83>0,IF(AND(C83<$B$6,C83>$H$12),bb2wang($B$6,$H$12,C83,$H$8,$H$9,I83,$H$10,$H$11,$K$10,$K$11,$H$13),E82),"") -> 56.88763312 | F83: 56.09394602 | G83: 1145.348472 | H83: 0.08 | I83: 4.714156241 | J83: 5000 | K83: 1 | L83: 4.166676065 | M83: 4.126676065 | N83: 0.2328622783 | O83: 65.6628487 | P83: 62.23910351 | Q83: -3871.453201 | R83: =IF(H83>0, rate1(1,$L$52,$L$51,$L$54,L83,$L$53,$L$50,P83),"") -> 1954.311977 | S83: -0.03016896423 | T83: 0.2260428011 | U83: 4.086676065 | V83: 4.086676065 | W83: 0.001004850347 | X83: -3919.245118 | Y83: 61.03838002 | Z83: =IF(H83>0, rate1(1,$L$52,$L$51,$L$54,U83,$L$53,$L$50,Y83),"") -> 1933.450347 | AA83: -0.03087092783 | AB83: 0.0009747586432 | AC83: 0.2260428011 | AD83: 0.3539152745 | AE83: -0.03341720252 | AF83: 118.012015 | AG83: 111.8864575 | AH83: 4.166640538 | AI83: 115.6636216 | AJ83: 0.6881048311 | AK83: 1.145894326 | AL83: 11.80756885
B84: 118.012015 | C84: 111.8864575 | D84: 4.166640538 | E84: =IF(H84>0,IF(AND(C84<$B$6,C84>$H$12),bb2wang($B$6,$H$12,C84,$H$8,$H$9,I84,$H$10,$H$11,$K$10,$K$11,$H$13),E83),"") -> 58.54158434 | F84: 57.71460873 | G84: 1247.611052 | H84: 0.08 | I84: 4.900446063 | J84: 5000 | K84: 1 | L84: 4.246640538 | M84: 4.206640538 | N84: 0.2374166741 | O84: 65.69043227 | P84: 63.84522754 | Q84: -3769.812667 | R84: =IF(H84>0, rate1(1,$L$52,$L$51,$L$54,L84,$L$53,$L$50,P84),"") -> 1981.264011 | S84: -0.02896511778 | T84: 0.2307334524 | U84: 4.166640538 | V84: 4.166640538 | W84: 0.001044559127 | X84: -3821.459717 | Y84: 62.63682037 | Z84: =IF(H84>0, rate1(1,$L$52,$L$51,$L$54,U84,$L$53,$L$50,Y84),"") -> 1961.085585 | AA84: -0.02966406191 | AB84: 0.001014465946 | AC84: 0.2307334524 | AD84: 0.346720422 | AE84: -0.03150274315 | AF84: 118.0186983 | AG84: 111.655724 | AH84: 4.24661906 | AI84: 116.4577013 | AJ84: 0.7204541925 | AK84: 1.278369479 | AL84: 12.38588696
B85: 118.0186983 | C85: 111.655724 | D85: 4.24661906 | E85: =IF(H85>0,IF(AND(C85<$B$6,C85>$H$12),bb2wang($B$6,$H$12,C85,$H$8,$H$9,I85,$H$10,$H$11,$K$10,$K$11,$H$13),E84),"") -> 60.26452291 | F85: 59.40305363 | G85: 1358.05067 | H85: 0.08 | I85: 5.090379403 | J85: 5000 | K85: 1 | L85: 4.32661906 | M85: 4.28661906 | N85: 0.2419726396 | O85: 65.71752704 | P85: 65.46181967 | Q85: -3659.993312 | R85: =IF(H85>0, rate1(1,$L$52,$L$51,$L$54,L85,$L$53,$L$50,P85),"") -> 2007.348391 | S85: -0.02774446311 | T85: 0.2354404702 | U85: 4.24661906 | V85: 4.24661906 | W85: 0.001085044544 | X85: -3715.780514 | Y85: 64.24582366 | Z85: =IF(H85>0, rate1(1,$L$52,$L$51,$L$54,U85,$L$53,$L$50,Y85),"") -> 1987.822975 | AA85: -0.02844403042 | AB85: 0.001055035094 | AC85: 0.2354404702 | AD85: 0.339788652 | AE85: -0.02973898639 | AF85: 118.0252304 | AG85: 111.4202835 | AH85: 4.326611364 | AI85: 117.2892913 | AJ85: 0.7530345512 | AK85: 1.423663394 | AL85: 12.96817547
B86: 118.0252304 | C86: 111.4202835 | D86: 4.326611364 | E86: =IF(H86>0,IF(AND(C86<$B$6,C86>$H$12),bb2wang($B$6,$H$12,C86,$H$8,$H$9,I86,$H$10,$H$11,$K$10,$K$11,$H$13),E85),"") -> 62.05895485 | F86: 61.16173888 | G86: 1477.268183 | H86: 0.08 | I86: 5.283957514 | J86: 5000 | K86: 1 | L86: 4.406611364 | M86: 4.366611364 | N86: 0.2465301603 | O86: 65.74408046 | P86: 67.08875335 | Q86: -3541.391801 | R86: =IF(H86>0, rate1(1,$L$52,$L$51,$L$54,L86,$L$53,$L$50,P86),"") -> 2032.602862 | S86: -0.02650115422 | T86: 0.2401654974 | U86: 4.326611364 | V86: 4.326611364 | W86: 0.001126306866 | X86: -3601.623698 | Y86: 65.86526049 | Z86: =IF(H86>0, rate1(1,$L$52,$L$51,$L$54,U86,$L$53,$L$50,Y86),"") -> 2013.701899 | AA86: -0.0272048603 | AB86: 0.001096477353 | AC86: 0.2401654974 | AD86: 0.3331036342 | AE86: -0.02811158084 | AF86: 118.0315951 | AG86: 111.180118 | AH86: 4.406617201 | AI86: 118.1566266 | AJ86: 0.7858558364 | AK86: 1.582948194 | AL86: 13.55462192
B87: 118.0315951 | C87: 111.180118 | D87: 4.406617201 | E87: =IF(H87>0,IF(AND(C87<$B$6,C87>$H$12),bb2wang($B$6,$H$12,C87,$H$8,$H$9,I87,$H$10,$H$11,$K$10,$K$11,$H$13),E86),"") -> 63.92748653 | F87: 62.99322069 | G87: 1605.905422 | H87: 0.08 | I87: 5.481181643 | J87: 5000 | K87: 1 | L87: 4.486617201 | M87: 4.446617201 | N87: 0.2510892221 | O87: 65.77003372 | P87: 68.72590598 | Q87: -3413.363534 | R87: =IF(H87>0, rate1(1,$L$52,$L$51,$L$54,L87,$L$53,$L$50,P87),"") -> 2057.063152 | S87: -0.02522939609 | T87: 0.2449102836 | U87: 4.406617201 | V87: 4.406617201 | W87: 0.001168346358 | X87: -3478.36545 | Y87: 67.4950055 | Z87: =IF(H87>0, rate1(1,$L$52,$L$51,$L$54,U87,$L$53,$L$50,Y87),"") -> 2038.759622 | AA87: -0.0259406659 | AB87: 0.001138804998 | AC87: 0.2449102836 | AD87: 0.3266502281 | AE87: -0.02660782658 | AF87: 118.037774 | AG87: 110.9352078 | AH87: 4.486636334 | AI87: 119.058223 | AJ87: 0.818927565 | AK87: 1.75749722 | AL87: 14.14540506
B88: 118.037774 | C88: 110.9352078 | D88: 4.486636334 | E88: =IF(H88>0,IF(AND(C88<$B$6,C88>$H$12),bb2wang($B$6,$H$12,C88,$H$8,$H$9,I88,$H$10,$H$11,$K$10,$K$11,$H$13),E87),"") -> 65.87282967 | F88: 64.9001581 | G88: 1744.64781 | H88: 0.08 | I88: 5.68205302 | J88: 5000 | K88: 1 | L88: 4.566636334 | M88: 4.526636334 | N88: 0.2556498121 | O88: 65.79532145 | P88: 70.37315863 | Q88: -3275.220006 | R88: =IF(H88>0, rate1(1,$L$52,$L$51,$L$54,L88,$L$53,$L$50,P88),"") -> 2080.763103 | S88: -0.02392339588 | T88: 0.2496766976 | U88: 4.486636334 | V88: 4.486636334 | W88: 0.001211163283 | X88: -3345.339372 | Y88: 69.13493715 | Z88: =IF(H88>0, rate1(1,$L$52,$L$51,$L$54,U88,$L$53,$L$50,Y88),"") -> 2063.031423 | AA88: -0.02464559605 | AB88: 0.001182031414 | AC88: 0.2496766976 | AD88: 0.3204143629 | AE88: -0.02521645503 | AF88: 118.0437471 | AG88: 110.6855311 | AH88: 4.566668538 | AI88: 119.9928513 | AJ88: 0.8522589126 | AK88: 1.948693465 | AL88: 14.74069617
B89: 118.0437471 | C89: 110.6855311 | D89: 4.566668538 | E89: =IF(H89>0,IF(AND(C89<$B$6,C89>$H$12),bb2wang($B$6,$H$12,C89,$H$8,$H$9,I89,$H$10,$H$11,$K$10,$K$11,$H$13),E88),"") -> 67.89780678 | F89: 66.88531822 | G89: 1894.227154 | H89: 0.08 | I89: 5.88657287 | J89: 5000 | K89: 1 | L89: 4.646668538 | M89: 4.606668538 | N89: 0.2602119177 | O89: 65.81987128 | P89: 72.03039591 | Q89: -3126.225988 | R89: =IF(H89>0, rate1(1,$L$52,$L$51,$L$54,L89,$L$53,$L$50,P89),"") -> 2103.734776 | S89: -0.02257731822 | T89: 0.2544667411 | U89: 4.566668538 | V89: 4.566668538 | W89: 0.001254757901 | X89: -3201.833759 | Y89: 70.78493754 | Z89: =IF(H89>0, rate1(1,$L$52,$L$51,$L$54,U89,$L$53,$L$50,Y89),"") -> 2086.550715 | AA89: -0.023313786 | AB89: 0.001226171208 | AC89: 0.2544667411 | AD89: 0.3143829313 | AE89: -0.02392744247 | AF89: 118.0494923 | AG89: 110.4310643 | AH89: 4.646713599 | AI89: 120.9595164 | AJ89: 0.8858587783 | AK89: 2.158038731 | AL89: 15.34066043
B90: 118.0494923 | C90: 110.4310643 | D90: 4.646713599 | E90: =IF(H90>0,IF(AND(C90<$B$6,C90>$H$12),bb2wang($B$6,$H$12,C90,$H$8,$H$9,I90,$H$10,$H$11,$K$10,$K$11,$H$13),E89),"") -> 70.00535698 | F90: 68.95158188 | G90: 2055.42461 | H90: 0.08 | I90: 6.094742404 | J90: 5000 | K90: 1 | L90: 4.726713599 | M90: 4.686713599 | N90: 0.2647755272 | O90: 65.84360333 | P90: 73.6975058 | Q90: -2965.596517 | R90: =IF(H90>0, rate1(1,$L$52,$L$51,$L$54,L90,$L$53,$L$50,P90),"") -> 2126.00857 | S90: -0.02118524361 | T90: 0.2592825629 | U90: 4.646713599 | V90: 4.646713599 | W90: 0.001299130471 | X90: -3047.088684 | Y90: 72.44489227 | Z90: =IF(H90>0, rate1(1,$L$52,$L$51,$L$54,U90,$L$53,$L$50,Y90),"") -> 2109.349163 | AA90: -0.02193931327 | AB90: 0.001271240332 | AC90: 0.2592825629 | AD90: 0.308543695 | AE90: -0.02273185131 | AF90: 118.0549853 | AG90: 110.1717818 | AH90: 4.726771316 | AI90: 121.9574402 | AJ90: 0.919735845 | AK90: 2.387163531 | AL90: 15.94545801
B91: 118.0549853 | C91: 110.1717818 | D91: 4.726771316 | E91: =IF(H91>0,IF(AND(C91<$B$6,C91>$H$12),bb2wang($B$6,$H$12,C91,$H$8,$H$9,I91,$H$10,$H$11,$K$10,$K$11,$H$13),E90),"") -> 72.19854224 | F91: 71.10194961 | G91: 2229.073854 | H91: 0.08 | I91: 6.306562826 | J91: 5000 | K91: 1 | L91: 4.806771316 | M91: 4.766771316 | N91: 0.2693406294 | O91: 65.86642975 | P91: 75.37437947 | Q91: -2792.493699 | R91: =IF(H91>0, rate1(1,$L$52,$L$51,$L$54,L91,$L$53,$L$50,P91),"") -> 2147.613313 | S91: -0.0197411292 | T91: 0.2641264745 | U91: 4.726771316 | V91: 4.726771316 | W91: 0.00134428125 | X91: -2880.2929 | Y91: 74.11469026 | Z91: =IF(H91>0, rate1(1,$L$52,$L$51,$L$54,U91,$L$53,$L$50,Y91),"") -> 2131.456789 | AA91: -0.02051615624 | AB91: 0.001317256216 | AC91: 0.2641264745 | AD91: 0.3028851998 | AE91: -0.02162169458 | AF91: 118.0601994 | AG91: 109.9076553 | AH91: 4.806841496 | AI91: 122.9860482 | AJ91: 0.9538986362 | AK91: 2.637837855 | AL91: 16.55524521
B92: 118.0601994 | C92: 109.9076553 | D92: 4.806841496 | E92: =IF(H92>0,IF(AND(C92<$B$6,C92>$H$12),bb2wang($B$6,$H$12,C92,$H$8,$H$9,I92,$H$10,$H$11,$K$10,$K$11,$H$13),E91),"") -> 74.48055417 | F92: 73.33954821 | G92: 2416.064463 | H92: 0.08 | I92: 6.522035329 | J92: 5000 | K92: 1 | L92: 4.886841496 | M92: 4.846841496 | N92: 0.2739072137 | O92: 65.8882541 | P92: 77.06091119 | Q92: -2606.02328 | R92: =IF(H92>0, rate1(1,$L$52,$L$51,$L$54,L92,$L$53,$L$50,P92),"") -> 2168.576364 | S92: -0.01823877103 | T92: 0.2690009666 | U92: 4.806841496 | V92: 4.806841496 | W92: 0.001390210491 | X92: -2700.58052 | Y92: 75.79422356 | Z92: =IF(H92>0, rate1(1,$L$52,$L$51,$L$54,U92,$L$53,$L$50,Y92),"") -> 2152.902068 | AA92: -0.01903815489 | AB92: 0.001364237919 | AC92: 0.2690009666 | AD92: 0.2973967008 | AE92: -0.0205898197 | AF92: 118.0651057 | AG92: 109.6386543 | AH92: 4.886923956 | AI92: 124.0449592 | AJ92: 0.9883555693 | AK92: 2.91198284 | AL92: 17.17017545
B93: 118.0651057 | C93: 109.6386543 | D93: 4.886923956 | E93: =IF(H93>0,IF(AND(C93<$B$6,C93>$H$12),bb2wang($B$6,$H$12,C93,$H$8,$H$9,I93,$H$10,$H$11,$K$10,$K$11,$H$13),E92),"") -> 76.85472136 | F93: 75.66763777 | G93: 2617.345521 | H93: 0.08 | I93: 6.7411611 | J93: 5000 | K93: 1 | L93: 4.966923956 | M93: 4.926923956 | N93: 0.27847527 | O93: 65.9089707 | P93: 78.75699815 | Q93: -2405.230997 | R93: =IF(H93>0, rate1(1,$L$52,$L$51,$L$54,L93,$L$53,$L$50,P93),"") -> 2188.923695 | S93: -0.01667176731 | T93: 0.2739087275 | U93: 4.886923956 | V93: 4.886923956 | W93: 0.001436918448 | X93: -2507.027483 | Y93: 77.4833873 | Z93: =IF(H93>0, rate1(1,$L$52,$L$51,$L$54,U93,$L$53,$L$50,Y93),"") -> 2173.712023 | AA93: -0.01749897288 | AB93: 0.001412206289 | AC93: 0.2739087275 | AD93: 0.2920680942 | AE93: -0.01962980857 | AF93: 118.0696722 | AG93: 109.3647456 | AH93: 4.967018522 | AI93: 125.1339771 | AJ93: 1.023115007 | AK93: 3.211683457 | AL93: 17.79040025
B94: 118.0696722 | C94: 109.3647456 | D94: 4.967018522 | E94: =IF(H94>0,IF(AND(C94<$B$6,C94>$H$12),bb2wang($B$6,$H$12,C94,$H$8,$H$9,I94,$H$10,$H$11,$K$10,$K$11,$H$13),E93),"") -> 79.32451726 | F94: 78.08961931 | G94: 2833.929483 | H94: =dv(S93) -> 0.08 | I94: 6.963941316 | J94: 5000 | K94: 1 | L94: 5.047018522 | M94: 5.007018522 | N94: 0.2830447888 | O94: 65.92846393 | P94: 80.46254033 | Q94: -2189.098658 | R94: =IF(H94>0, rate1(1,$L$52,$L$51,$L$54,L94,$L$53,$L$50,P94),"") -> 2208.679975 | S94: -0.01503348206 | T94: 0.2788526623 | U94: 4.967018522 | V94: 4.967018522 | W94: 0.001484405372 | X94: -2298.647772 | Y94: 79.18207945 | Z94: =IF(H94>0, rate1(1,$L$52,$L$51,$L$54,U94,$L$53,$L$50,Y94),"") -> 2193.912313 | AA94: -0.01589206034 | AB94: 0.001461184145 | AC94: 0.2788526623 | AD94: 0.2868898555 | AE94: -0.01873589136 | AF94: 118.0738644 | AG94: 109.0858929 | AH94: 5.047125029 | AI94: 126.2530858 | AJ94: 1.058185309 | AK94: 3.539202312 | AL94: 18.41607013
B95: 118.0738644 | C95: 109.0858929 | D95: 5.047125029 | E95: =IF(H95>0,IF(AND(C95<$B$6,C95>$H$12),bb2wang($B$6,$H$12,C95,$H$8,$H$9,I95,$H$10,$H$11,$K$10,$K$11,$H$13),E94),"") -> 81.8935688 | F95: 80.60904303 | G95: 3066.896307 | H95: 0.08 | I95: 7.190377147 | J95: 5000 | K95: 1 | L95: 5.127125029 | M95: 5.087125029 | N95: 0.287615761 | O95: 65.94660747 | P95: 82.17744041 | Q95: -1956.539963 | R95: =IF(H95>0, rate1(1,$L$52,$L$51,$L$54,L95,$L$53,$L$50,P95),"") -> 2227.868646 | S95: -0.01331700867 | T95: 0.2838359157 | U95: 5.047125029 | V95: 5.047125029 | W95: 0.001532671512 | X95: -2074.389361 | Y95: 80.89020081 | Z95: =IF(H95>0, rate1(1,$L$52,$L$51,$L$54,U95,$L$53,$L$50,Y95),"") -> 2213.527311 | AA95: -0.01421061694 | AB95: 0.001511196477 | AC95: 0.2838359157 | AD95: 0.2818529847 | AE95: -0.0179028719 | AF95: 118.0776442 | AG95: 108.802057 | AH95: 5.127243319 | AI95: 127.4024464 | AJ95: 1.093574877 | AK95: 3.896994654 | AL95: 19.04733556
B96: 118.0776442 | C96: 108.802057 | D96: 5.127243319 | E96: =IF(H96>0,IF(AND(C96<$B$6,C96>$H$12),bb2wang($B$6,$H$12,C96,$H$8,$H$9,I96,$H$10,$H$11,$K$10,$K$11,$H$13),E95),"") -> 84.5656657 | F96: 83.22961725 | G96: 3317.397874 | H96: 0.08 | I96: 7.420469756 | J96: 5000 | K96: 1 | L96: 5.207243319 | M96: 5.167243319 | N96: 0.2921881779 | O96: 65.9632634 | P96: 83.90160366 | Q96: -1706.396009 | R96: =IF(H96>0, rate1(1,$L$52,$L$51,$L$54,L96,$L$53,$L$50,P96),"") -> 2246.511994 | S96: -0.01151513282 | T96: 0.2888618948 | U96: 5.127243319 | V96: 5.127243319 | W96: 0.001581717115 | X96: -1833.129883 | Y96: 82.60765477 | Z96: =IF(H96>0, rate1(1,$L$52,$L$51,$L$54,U96,$L$53,$L$50,Y96),"") -> 2232.580178 | AA96: -0.01244755458 | AB96: 0.001562270666 | AC96: 0.2888618948 | AD96: 0.2769489553 | AE96: -0.01712606297 | AF96: 118.0809705 | AG96: 108.5131951 | AH96: 5.20737324 | AI96: 128.582396 | AJ96: 1.12929221 | AK96: 4.287724746 | AL96: 19.68434779
B97: 118.0809705 | C97: 108.5131951 | D97: 5.20737324 | E97: =IF(H97>0,IF(AND(C97<$B$6,C97>$H$12),bb2wang($B$6,$H$12,C97,$H$8,$H$9,I97,$H$10,$H$11,$K$10,$K$11,$H$13),E96),"") -> 87.34477067 | F97: 85.95521818 | G97: 3586.662743 | H97: 0.08 | I97: 7.654220298 | J97: 5000 | K97: 1 | L97: 5.28737324 | M97: 5.24737324 | N97: 0.2967620312 | O97: 65.97828128 | P97: 85.63493778 | Q97: -1437.430475 | R97: =IF(H97>0, rate1(1,$L$52,$L$51,$L$54,L97,$L$53,$L$50,P97),"") -> 2264.631219 | S97: -0.009620294344 | T97: 0.2939342967 | U97: 5.20737324 | V97: 5.20737324 | W97: 0.001631542429 | X97: -1573.671971 | Y97: 84.3343473 | Z97: =IF(H97>0, rate1(1,$L$52,$L$51,$L$54,U97,$L$53,$L$50,Y97),"") -> 2251.09294 | AA97: -0.01059545925 | AB97: 0.00161443673 | AC97: 0.2939342967 | AD97: 0.2721696682 | AE97: -0.01640122995 | AF97: 118.0837982 | AG97: 108.2192608 | AH97: 5.287514649 | AI97: 129.793449 | AJ97: 1.165345945 | AK97: 4.714283713 | AL97: 20.32725977
B98: 118.0837982 | C98: 108.2192608 | D98: 5.287514649 | E98: =IF(H98>0,IF(AND(C98<$B$6,C98>$H$12),bb2wang($B$6,$H$12,C98,$H$8,$H$9,I98,$H$10,$H$11,$K$10,$K$11,$H$13),E97),"") -> 90.2350304 | F98: 88.78990053 | G98: 3876.001246 | H98: 0.08 | I98: 7.891629923 | J98: 5000 | K98: 1 | L98: 5.367514649 | M98: 5.327514649 | N98: 0.301337313 | O98: 65.99149709 | P98: 87.37735287 | Q98: -1148.324441 | R98: =IF(H98>0, rate1(1,$L$52,$L$51,$L$54,L98,$L$53,$L$50,P98),"") -> 2282.246493 | S98: -0.007624547581 | T98: 0.2990571377 | U98: 5.287514649 | V98: 5.287514649 | W98: 0.001682147698 | X98: -1294.738265 | Y98: 86.0701868 | Z98: =IF(H98>0, rate1(1,$L$52,$L$51,$L$54,U98,$L$53,$L$50,Y98),"") -> 2269.086544 | AA98: -0.008646551694 | AB98: 0.001667727605 | AC98: 0.2990571377 | AD98: 0.2675074089 | AE98: -0.01572454172 | AF98: 118.0860784 | AG98: 107.9202037 | AH98: 5.367667409 | AI98: 131.0363006 | AJ98: 1.201744918 | AK98: 5.179809041 | AL98: 20.97622702
B99: 118.0860784 | C99: 107.9202037 | D99: 5.367667409 | E99: =IF(H99>0,IF(AND(C99<$B$6,C99>$H$12),bb2wang($B$6,$H$12,C99,$H$8,$H$9,I99,$H$10,$H$11,$K$10,$K$11,$H$13),E98),"") -> 93.24078774 | F99: 91.73790907 | G99: 4186.810972 | H99: 0.08 | I99: 8.132699774 | J99: 5000 | K99: 1 | L99: 5.447667409 | M99: 5.407667409 | N99: 0.3059140159 | O99: 66.00273209 | P99: 89.12876127 | Q99: -837.6708138 | R99: =IF(H99>0, rate1(1,$L$52,$L$51,$L$54,L99,$L$53,$L$50,P99),"") -> 2299.37702 | S99: -0.005519519656 | T99: 0.304234786 | U99: 5.367667409 | V99: 5.367667409 | W99: 0.001733533165 | X99: -994.9660382 | Y99: 87.81508399 | Z99: =IF(H99>0, rate1(1,$L$52,$L$51,$L$54,U99,$L$53,$L$50,Y99),"") -> 2286.580928 | AA99: -0.006592646163 | AB99: 0.001722179446 | AC99: 0.304234786 | AD99: 0.2629548088 | AE99: -0.01509252774 | AF99: 118.0877576 | AG99: 107.6159689 | AH99: 5.447831388 | AI99: 132.311832 | AJ99: 1.238498205 | AK99: 5.687705906 | AL99: 21.63140852
B100: 118.0877576 | C100: 107.6159689 | D100: 5.447831388 | E100: =IF(H100>0,IF(AND(C100<$B$6,C100>$H$12),bb2wang($B$6,$H$12,C100,$H$8,$H$9,I100,$H$10,$H$11,$K$10,$K$11,$H$13),E99),"") -> 96.36659488 | F100: 94.80369131 | G100: 4520.582682 | H100: 0.08 | I100: 8.377430987 | J100: 5000 | K100: 1 | L100: 5.527831388 | M100: 5.487831388 | N100: 0.3104921327 | O100: 66.01179156 | P100: 90.88907754 | Q100: -503.9683226 | R100: =IF(H100>0, rate1(1,$L$52,$L$51,$L$54,L100,$L$53,$L$50,P100),"") -> 2316.041092 | S100: -0.003296366251 | T100: 0.3094719996 | U100: 5.447831388 | V100: 5.447831388 | W100: 0.001785699074 | X100: -672.9014017 | Y100: 89.56895187 | Z100: =IF(H100>0, rate1(1,$L$52,$L$51,$L$54,U100,$L$53,$L$50,Y100),"") -> 2303.595076 | AA100: -0.004425106951 | AB100: 0.001777831977 | AC100: 0.3094719996 | AD100: 0.2585048085 | AE100: -0.01450204043 | AF100: 118.0887778 | AG100: 107.3064969 | AH100: 5.52800646 | AI100: 133.6211178 | AJ100: 1.275615182 | AK100: 6.241670536 | AL100: 22.29296768
B101: 118.0887778 | C101: 107.3064969 | D101: 5.52800646 | E101: =IF(H101>0,IF(AND(C101<$B$6,C101>$H$12),bb2wang($B$6,$H$12,C101,$H$8,$H$9,I101,$H$10,$H$11,$K$10,$K$11,$H$13),E100),"") -> 99.61722785 | F101: 97.99191136 | G101: 4878.906673 | H101: 0.08 | I101: 8.625824693 | J101: 5000 | K101: 1 | L101: 5.60800646 | M101: 5.56800646 | N101: 0.3150716564 | O101: 66.01846338 | P101: 92.65821831 | Q101: -145.6150286 | R101: =IF(H101>0, rate1(1,$L$52,$L$51,$L$54,L101,$L$53,$L$50,P101),"") -> 2332.256139 | S101: -0.0009457242896 | T101: 0.314773967 | U101: 5.52800646 | V101: 5.52800646 | W101: 0.001838645665 | X101: -326.9930644 | Y101: 91.33170556 | Z101: =IF(H101>0, rate1(1,$L$52,$L$51,$L$54,U101,$L$53,$L$50,Y101),"") -> 2320.147069 | AA101: -0.002134802068 | AB101: 0.001834728882 | AC101: 0.314773967 | AD101: 0.2541506236 | AE101: -0.01395022217 | AF101: 118.0890755 | AG101: 106.9917229 | AH101: 5.608192506 | AI101: 134.9654362 | AJ101: 1.313105581 | AK101: 6.845715846 | AL101: 22.96107327
B102: 118.0890755 | C102: 106.9917229 | D102: 5.608192506 | E102: =IF(H102>0,IF(AND(C102<$B$6,C102>$H$12),bb2wang($B$6,$H$12,C102,$H$8,$H$9,I102,$H$10,$H$11,$K$10,$K$11,$H$13),E101),"") -> 102.9977025 | F102: 101.3074652 | G102: 5263.479677 | H102: 0.08 | I102: 8.877882018 | J102: 5000 | K102: 1 | L102: 5.688192506 | M102: 5.648192506 | N102: 0.3196525806 | O102: 66.02251652 | P102: 94.43610222 | Q102: 239.0986891 | R102: =IF(H102>0, rate1(1,$L$52,$L$51,$L$54,L102,$L$53,$L$50,P102),"") -> 2348.038776 | S102: 0.001542339057 | T102: 0.3201463549 | U102: 5.608192506 | V102: 5.608192506 | W102: 0.001892373178 | X102: 44.41441882 | Y102: 93.10326227 | Z102: =IF(H102>0, rate1(1,$L$52,$L$51,$L$54,U102,$L$53,$L$50,Y102),"") -> 2336.254138 | AA102: 0.0002879465146 | AB102: 0.001892918237 | AC102: 0.3201463549 | AD102: 0.2498857125 | AE102: -0.01343447633 | AF102: 118.0885817 | AG102: 106.6715766 | AH102: 5.68838941 | AI102: 136.3462811 | AJ102: 1.350979548 | AK102: 7.504199614 | AL102: 23.63590045
B103: 118.0885817 | C103: 106.6715766 | D103: 5.68838941 | E103: =IF(H103>0,IF(AND(C103<$B$6,C103>$H$12),bb2wang($B$6,$H$12,C103,$H$8,$H$9,I103,$H$10,$H$11,$K$10,$K$11,$H$13),E102),"") -> 106.5132922 | F103: 104.7554974 | G103: 5676.112313 | H103: 0.08 | I103: 9.133604082 | J103: 5000 | K103: 1 | L103: 5.76838941 | M103: 5.72838941 | N103: 0.324234899 | O103: 66.02369928 | P103: 96.22264987 | Q103: 651.9977364 | R103: =IF(H103>0, rate1(1,$L$52,$L$51,$L$54,L103,$L$53,$L$50,P103),"") -> 2363.404849 | S103: 0.004178381708 | T103: 0.3255953607 | U103: 5.68838941 | V103: 5.68838941 | W103: 0.001946881852 | X103: 443.0879538 | Y103: 94.88354119 | Z103: =IF(H103>0, rate1(1,$L$52,$L$51,$L$54,U103,$L$53,$L$50,Y103),"") -> 2351.932711 | AA103: 0.002853416687 | AB103: 0.001952453014 | AC103: 0.3255953607 | AD103: 0.2457037466 | AE103: -0.01295244172 | AF103: 118.0872212 | AG103: 106.3459812 | AH103: 5.768597062 | AI103: 137.7653773 | AJ103: 1.389247708 | AK103: 8.221855493 | AL103: 24.31763186
B104: 118.0872212 | C104: 106.3459812 | D104: 5.768597062 | E104: =IF(H104>0,IF(AND(C104<$B$6,C104>$H$12),bb2wang($B$6,$H$12,C104,$H$8,$H$9,I104,$H$10,$H$11,$K$10,$K$11,$H$13),E103),"") -> 110.169547 | F104: 108.3414196 | G104: 6118.737176 | H104: 0.08 | I104: 9.392992002 | J104: 5000 | K104: 1 | L104: 5.848597062 | M104: 5.808597062 | N104: 0.3288186056 | O104: 66.02173745 | P104: 98.01778372 | Q104: 1095.030559 | R104: =IF(H104>0, rate1(1,$L$52,$L$51,$L$54,L104,$L$53,$L$50,P104),"") -> 2378.36948 | S104: 0.006973647108 | T104: 0.3311277739 | U104: 5.768597062 | V104: 5.768597062 | W104: 0.002002171924 | X104: 870.9138333 | Y104: 96.67246346 | Z104: =IF(H104>0, rate1(1,$L$52,$L$51,$L$54,U104,$L$53,$L$50,Y104),"") -> 2367.198458 | AA104: 0.005572544822 | AB104: 0.002013391639 | AC104: 0.3311277739 | AD104: 0.2415985801 | AE104: -0.01250197007 | AF104: 118.084912 | AG104: 106.0148534 | AH104: 5.848815355 | AI104: 139.2246986 | AJ104: 1.427921235 | AK104: 9.003827247 | AL104: 25.00645874
B105: 118.084912 | C105: 106.0148534 | D105: 5.848815355 | E105: =IF(H105>0,IF(AND(C105<$B$6,C105>$H$12),bb2wang($B$6,$H$12,C105,$H$8,$H$9,I105,$H$10,$H$11,$K$10,$K$11,$H$13),E104),"") -> 113.9723154 | F105: 112.0709312 | G105: 6593.417641 | H105: 0.08 | I105: 9.656046886 | J105: 5000 | K105: 1 | L105: 5.928815355 | M105: 5.888815355 | N105: 0.3334036947 | O105: 66.01633213 | P105: 99.82142803 | Q105: 1570.278122 | R105: =IF(H105>0, rate1(1,$L$52,$L$51,$L$54,L105,$L$53,$L$50,P105),"") -> 2392.947099 | S105: 0.009940130611 | T105: 0.3367510441 | U105: 5.848815355 | V105: 5.848815355 | W105: 0.002058243632 | X105: 1329.906352 | Y105: 98.46995203 | Z105: =IF(H105>0, rate1(1,$L$52,$L$51,$L$54,U105,$L$53,$L$50,Y105),"") -> 2382.066331 | AA105: 0.008456990027 | AB105: 0.002075798641 | AC105: 0.3367510441 | AD105: 0.2375642226 | AE105: -0.01208110626 | AF105: 118.0815647 | AG105: 105.6781024 | AH105: 5.929044189 | AI105: 140.7264892 | AJ105: 1.467011927 | AK105: 9.855706586 | AL105: 25.70258224
B106: 118.0815647 | C106: 105.6781024 | D106: 5.929044189 | E106: =IF(H106>0,IF(AND(C106<$B$6,C106>$H$12),bb2wang($B$6,$H$12,C106,$H$8,$H$9,I106,$H$10,$H$11,$K$10,$K$11,$H$13),E105),"") -> 117.9277679 | F106: 115.9500417 | G106: 7102.357437 | H106: 0.08 | I106: 9.922769842 | J106: 5000 | K106: 1 | L106: 6.009044189 | M106: 5.969044189 | N106: 0.3379901608 | O106: 66.00715747 | P106: 101.6335088 | Q106: 2079.963711 | R106: =IF(H106>0, rate1(1,$L$52,$L$51,$L$54,L106,$L$53,$L$50,P106),"") -> 2407.151489 | S106: 0.01309065281 | T106: 0.3424733606 | U106: 5.929044189 | V106: 5.929044189 | W106: 0.002115097211 | X106: 1822.217194 | Y106: 100.2759317 | Z106: =IF(H106>0, rate1(1,$L$52,$L$51,$L$54,U106,$L$53,$L$50,Y106),"") -> 2396.550603 | AA106: 0.01151920497 | AB106: 0.002139745377 | AC106: 0.3424733606 | AD106: 0.2335948111 | AE106: -0.01168807078 | AF106: 118.0770815 | AG106: 105.335629 | AH106: 6.009283466 | AI106: 142.2732895 | AJ106: 1.506532285 | AK106: 10.7835751 | AL106: 26.40621468
B107: 118.0770815 | C107: 105.335629 | D107: 6.009283466 | E107: =IF(H107>0,IF(AND(C107<$B$6,C107>$H$12),bb2wang($B$6,$H$12,C107,$H$8,$H$9,I107,$H$10,$H$11,$K$10,$K$11,$H$13),E106),"") -> 122.0424241 | F107: 119.985096 | G107: 7647.911114 | H107: 0.08 | I107: 10.19316197 | J107: 5000 | K107: 1 | L107: 6.089283466 | M107: 6.049283466 | N107: 0.3425779985 | O107: 65.99385797 | P107: 103.4539536 | Q107: 2626.463636 | R107: =IF(H107>0, rate1(1,$L$52,$L$51,$L$54,L107,$L$53,$L$50,P107),"") -> 2420.995815 | S107: 0.01643894096 | T107: 0.3483037432 | U107: 6.009283466 | V107: 6.009283466 | W107: 0.002172732896 | X107: 2350.145678 | Y107: 102.0903288 | Z107: =IF(H107>0, rate1(1,$L$52,$L$51,$L$54,U107,$L$53,$L$50,Y107),"") -> 2410.664905 | AA107: 0.01477251435 | AB107: 0.002205310883 | AC107: 0.3483037432 | AD107: 0.229684583 | AE107: -0.01132124432 | AF107: 118.0713558 | AG107: 104.9873253 | AH107: 6.089533093 | AI107: 143.8679658 | AJ107: 1.546495609 | AK107: 11.79405086 | AL107: 27.11758113
B108: 118.0713558 | C108: 104.9873253 | D108: 6.089533093 | E108: =IF(H108>0,IF(AND(C108<$B$6,C108>$H$12),bb2wang($B$6,$H$12,C108,$H$8,$H$9,I108,$H$10,$H$11,$K$10,$K$11,$H$13),E107),"") -> 126.3231818 | F108: 124.1828029 | G108: 8232.595506 | H108: 0.08 | I108: 10.46722437 | J108: 5000 | K108: 1 | L108: 6.169533093 | M108: 6.129533093 | N108: 0.3471672029 | O108: 65.97604556 | P108: 105.2826919 | Q108: 3212.318974 | R108: =IF(H108>0, rate1(1,$L$52,$L$51,$L$54,L108,$L$53,$L$50,P108),"") -> 2434.492662 | S108: 0.01999971982 | T108: 0.3542521466 | U108: 6.089533093 | V108: 6.089533093 | W108: 0.002231150921 | X108: 2916.149984 | Y108: 103.9130715 | Z108: =IF(H108>0, rate1(1,$L$52,$L$51,$L$54,U108,$L$53,$L$50,Y108),"") -> 2424.42226 | AA108: 0.01823120241 | AB108: 0.002272582839 | AC108: 0.3542521466 | AD108: 0.2258278482 | AE108: -0.01097915421 | AF108: 118.0642708 | AG108: 104.6330731 | AH108: 6.169792978 | AI108: 145.5137459 | AJ108: 1.586916094 | AK108: 12.89434027 | AL108: 27.83692096
B109: 118.0642708 | C109: 104.6330731 | D109: 6.169792978 | E109: =IF(H109>0,IF(AND(C109<$B$6,C109>$H$12),bb2wang($B$6,$H$12,C109,$H$8,$H$9,I109,$H$10,$H$11,$K$10,$K$11,$H$13),E108),"") -> 130.7773507 | F109: 128.5502662 | G109: 8859.102304 | H109: 0.08 | I109: 10.74495813 | J109: 5000 | K109: 1 | L109: 6.249792978 | M109: 6.209792978 | N109: 0.3517577691 | O109: 65.95329634 | P109: 107.1196544 | Q109: 3840.248475 | R109: =IF(H109>0, rate1(1,$L$52,$L$51,$L$54,L109,$L$53,$L$50,P109),"") -> 2447.654059 | S109: 0.02378881355 | T109: 0.3603295824 | U109: 6.169792978 | V109: 6.169792978 | W109: 0.002290351519 | X109: 3522.859465 | Y109: 105.7440896 | Z109: =IF(H109>0, rate1(1,$L$52,$L$51,$L$54,U109,$L$53,$L$50,Y109),"") -> 2437.835116 | AA109: 0.02191061075 | AB109: 0.002341658691 | AC109: 0.3603295824 | AD109: 0.2220189624 | AE109: -0.01066046244 | AF109: 118.055699 | AG109: 104.2727436 | AH109: 6.250063037 | AI109: 147.2142606 | AJ109: 1.627808944 | AK109: 14.09229608 | AL109: 28.56448969
B110: 118.055699 | C110: 104.2727436 | D110: 6.250063037 | E110: =IF(H110>0,IF(AND(C110<$B$6,C110>$H$12),bb2wang($B$6,$H$12,C110,$H$8,$H$9,I110,$H$10,$H$11,$K$10,$K$11,$H$13),E109),"") -> 135.4126895 | F110: 133.0950201 | G110: 9530.311913 | H110: 0.08 | I110: 11.02636435 | J110: 5000 | K110: 1 | L110: 6.330063037 | M110: 6.290063037 | N110: 0.3563496925 | O110: 65.92514683 | P110: 108.9647734 | Q110: 4513.162788 | R110: =IF(H110>0, rate1(1,$L$52,$L$51,$L$54,L110,$L$53,$L$50,P110),"") -> 2460.491513 | S110: 0.02782326047 | T110: 0.3665482602 | U110: 6.250063037 | V110: 6.250063037 | W110: 0.002350334922 | X110: 4173.088213 | Y110: 107.5833143 | Z110: =IF(H110>0, rate1(1,$L$52,$L$51,$L$54,U110,$L$53,$L$50,Y110),"") -> 2450.915375 | AA110: 0.02582724862 | AB110: 0.002412646955 | AC110: 0.3665482602 | AD110: 0.2182522977 | AE110: -0.01036395525 | AF110: 118.0455004 | AG110: 103.9061953 | AH110: 6.330343186 | AI110: 148.9735926 | AJ110: 1.669190497 | AK110: 15.39648228 | AL110: 29.30056099
B111: 118.0455004 | C111: 103.9061953 | D111: 6.330343186 | E111: =IF(H111>0,IF(AND(C111<$B$6,C111>$H$12),bb2wang($B$6,$H$12,C111,$H$8,$H$9,I111,$H$10,$H$11,$K$10,$K$11,$H$13),E110),"") -> 140.2374481 | F111: 137.8250688 | G111: 10249.30875 | H111: 0.08 | I111: 11.3114441 | J111: 5000 | K111: 1 | L111: 6.410343186 | M111: 6.370343186 | N111: 0.3609429685 | O111: 65.89108976 | P111: 110.8179827 | Q111: 5234.180206 | R111: =IF(H111>0, rate1(1,$L$52,$L$51,$L$54,L111,$L$53,$L$50,P111),"") -> 2473.016036 | S111: 0.03212144306 | T111: 0.3729217534 | U111: 6.330343186 | V111: 6.330343186 | W111: 0.002411101361 | X111: 4869.850036 | Y111: 109.4306783 | Z111: =IF(H111>0, rate1(1,$L$52,$L$51,$L$54,U111,$L$53,$L$50,Y111),"") -> 2463.674423 | AA111: 0.02999891741 | AB111: 0.002485668732 | AC111: 0.3729217534 | AD111: 0.2145222135 | AE111: -0.010088534 | AF111: 118.0335216 | AG111: 103.5332735 | AH111: 6.410633344 | AI111: 150.7963345 | AJ111: 1.711078368 | AK111: 16.81624708 | AL111: 30.04542895
B112: 118.0335216 | C112: 103.5332735 | D112: 6.410633344 | E112: =IF(H112>0,IF(AND(C112<$B$6,C112>$H$12),bb2wang($B$6,$H$12,C112,$H$8,$H$9,I112,$H$10,$H$11,$K$10,$K$11,$H$13),E111),"") -> 145.2604156 | F112: 142.7489319 | G112: 11019.3982 | H112: 0.08 | I112: 11.60019848 | J112: 5000 | K112: 1 | L112: 6.490633344 | M112: 6.450633344 | N112: 0.365537593 | O112: 65.85056937 | P112: 112.6792175 | Q112: 6006.644129 | R112: =IF(H112>0, rate1(1,$L$52,$L$51,$L$54,L112,$L$53,$L$50,P112),"") -> 2485.238167 | S112: 0.03670323576 | T112: 0.3794651934 | U112: 6.410633344 | V112: 6.410633344 | W112: 0.002472651068 | X112: 5616.375052 | Y112: 111.2861158 | Z112: =IF(H112>0, rate1(1,$L$52,$L$51,$L$54,U112,$L$53,$L$50,Y112),"") -> 2476.123155 | AA112: 0.03444485222 | AB112: 0.002560859495 | AC112: 0.3794651934 | AD112: 0.2108230251 | AE112: -0.009833207273 | AF112: 118.019594 | AG112: 103.1538084 | AH112: 6.490933435 | AI112: 152.6876573 | AJ112: 1.753491606 | AK112: 18.36180527 | AL112: 30.79941063
B113: 118.019594 | C113: 103.1538084 | D113: 6.490933435 | E113: =IF(H113>0,IF(AND(C113<$B$6,C113>$H$12),bb2wang($B$6,$H$12,C113,$H$8,$H$9,I113,$H$10,$H$11,$K$10,$K$11,$H$13),E112),"") -> 150.4909739 | F113: 147.8756948 | G113: 11844.12549 | H113: 0.08 | I113: 11.89262855 | J113: 5000 | K113: 1 | L113: 6.570933435 | M113: 6.530933435 | N113: 0.3701335617 | O113: 65.80297591 | P113: 114.5484144 | Q113: 6834.142536 | R113: =IF(H113>0, rate1(1,$L$52,$L$51,$L$54,L113,$L$53,$L$50,P113),"") -> 2497.167999 | S113: 0.04159017395 | T113: 0.3861954997 | U113: 6.490933435 | V113: 6.490933435 | W113: 0.002534984272 | X113: 6416.128154 | Y113: 113.1495623 | Z113: =IF(H113>0, rate1(1,$L$52,$L$51,$L$54,U113,$L$53,$L$50,Y113),"") -> 2488.272 | AA113: 0.03918588346 | AB113: 0.002638371177 | AC113: 0.3861954997 | AD113: 0.20714897 | AE113: -0.009597084186 | AF113: 118.0035321 | AG113: 102.7676129 | AH113: 6.571243384 | AI113: 154.6533913 | AJ113: 1.796450882 | AK113: 20.04433137 | AL113: 31.56284891
B114: 118.0035321 | C114: 102.7676129 | D114: 6.571243384 | E114: =IF(H114>0,IF(AND(C114<$B$6,C114>$H$12),bb2wang($B$6,$H$12,C114,$H$8,$H$9,I114,$H$10,$H$11,$K$10,$K$11,$H$13),E113),"") -> 155.9391601 | F114: 153.215067 | G114: 12727.29672 | H114: 0.08 | I114: 12.1887354 | J114: 5000 | K114: 1 | L114: 6.651243384 | M114: 6.611243384 | N114: 0.3747308708 | O114: 65.74763952 | P114: 116.4255112 | Q114: 7720.529752 | R114: =IF(H114>0, rate1(1,$L$52,$L$51,$L$54,L114,$L$53,$L$50,P114),"") -> 2508.815199 | S114: 0.04680564814 | T114: 0.3931316526 | U114: 6.571243384 | V114: 6.571243384 | W114: 0.002598101202 | X114: 7272.829613 | Y114: 115.0209548 | Z114: =IF(H114>0, rate1(1,$L$52,$L$51,$L$54,U114,$L$53,$L$50,Y114),"") -> 2500.130947 | AA114: 0.04424462228 | AB114: 0.002718374662 | AC114: 0.3931316526 | AD114: 0.2034941717 | AE114: -0.009379368712 | AF114: 117.9851313 | AG114: 102.3744812 | AH114: 6.65156312 | AI114: 156.7001239 | AJ114: 1.839978694 | AK114: 21.87606554 | AL114: 32.33611587
B115: 117.9851313 | C115: 102.3744812 | D115: 6.65156312 | E115: =IF(H115>0,IF(AND(C115<$B$6,C115>$H$12),bb2wang($B$6,$H$12,C115,$H$8,$H$9,I115,$H$10,$H$11,$K$10,$K$11,$H$13),E114),"") -> 161.615737 | F115: 158.7774486 | G115: 13673.00251 | H115: 0.08 | I115: 12.4885201 | J115: 5000 | K115: 1 | L115: 6.73156312 | M115: 6.69156312 | N115: 0.3793295163 | O115: 65.6838231 | P115: 118.3104471 | Q115: 8669.950906 | R115: =IF(H115>0, rate1(1,$L$52,$L$51,$L$54,L115,$L$53,$L$50,P115),"") -> 2520.189034 | S115: 0.05237512808 | T115: 0.4002950192 | U115: 6.65156312 | V115: 6.65156312 | W115: 0.002662002087 | X115: 8190.478183 | Y115: 116.9002314 | Z115: =IF(H115>0, rate1(1,$L$52,$L$51,$L$54,U115,$L$53,$L$50,Y115),"") -> 2511.709565 | AA115: 0.04964567451 | AB115: 0.002801062736 | AC115: 0.4002950192 | AD115: 0.1998525991 | AE115: -0.009179355087 | AF115: 117.9641658 | AG115: 101.9741862 | AH115: 6.731892574 | AI115: 158.8353151 | AJ115: 1.884099615 | AK115: 23.87043452 | AL115: 33.11961649
B116: 117.9641658 | C116: 101.9741862 | D116: 6.731892574 | E116: =IF(H116>0,IF(AND(C116<$B$6,C116>$H$12),bb2wang($B$6,$H$12,C116,$H$8,$H$9,I116,$H$10,$H$11,$K$10,$K$11,$H$13),E115),"") -> 167.5322749 | F116: 164.5740059 | G116: 14685.64457 | H116: 0.08 | I116: 12.79198371 | J116: 5000 | K116: 1 | L116: 6.811892574 | M116: 6.771892574 | N116: 0.3839294947 | O116: 65.61071411 | P116: 120.2031623 | Q116: 9686.869534 | R116: =IF(H116>0, rate1(1,$L$52,$L$51,$L$54,L116,$L$53,$L$50,P116),"") -> 2531.298385 | S116: 0.05832642309 | T116: 0.4077097459 | U116: 6.731892574 | V116: 6.731892574 | W116: 0.002726687155 | X116: 9173.377112 | Y116: 118.7873317 | Z116: =IF(H116>0, rate1(1,$L$52,$L$51,$L$54,U116,$L$53,$L$50,Y116),"") -> 2523.017025 | AA116: 0.05541588862 | AB116: 0.002886653631 | AC116: 0.4077097459 | AD116: 0.1962180223 | AE116: -0.008996424211 | AF116: 117.9403856 | AG116: 101.5664764 | AH116: 6.812231679 | AI116: 161.0674381 | AJ116: 1.92884057 | AK116: 26.04219018 | AL116: 33.91379306
B117: 117.9403856 | C117: 101.5664764 | D117: 6.812231679 | E117: =IF(H117>0,IF(AND(C117<$B$6,C117>$H$12),bb2wang($B$6,$H$12,C117,$H$8,$H$9,I117,$H$10,$H$11,$K$10,$K$11,$H$13),E116),"") -> 173.7012459 | F117: 170.6167604 | G117: 15769.96582 | H117: 0.08 | I117: 13.09912731 | J117: 5000 | K117: 1 | L117: 6.892231679 | M117: 6.852231679 | N117: 0.3885308025 | O117: 65.52741511 | P117: 122.1035984 | Q117: 10776.09888 | R117: =IF(H117>0, rate1(1,$L$52,$L$51,$L$54,L117,$L$53,$L$50,P117),"") -> 2542.151771 | S117: 0.06468998585 | T117: 0.4154032316 | U117: 6.812231679 | V117: 6.812231679 | W117: 0.002792156633 | X117: 10226.16358 | Y117: 120.6821963 | Z117: =IF(H117>0, rate1(1,$L$52,$L$51,$L$54,U117,$L$53,$L$50,Y117),"") -> 2534.06212 | AA117: 0.06158464498 | AB117: 0.002975395296 | AC117: 0.4154032316 | AD117: 0.1925839616 | AE117: -0.008830041081 | AF117: 117.9135131 | AG117: 101.1510732 | AH117: 6.892580372 | AI117: 163.4061492 | AJ117: 1.974231167 | AK117: 28.40756933 | AL117: 34.71913025
B118: 117.9135131 | C118: 101.1510732 | D118: 6.892580372 | E118: =IF(H118>0,IF(AND(C118<$B$6,C118>$H$12),bb2wang($B$6,$H$12,C118,$H$8,$H$9,I118,$H$10,$H$11,$K$10,$K$11,$H$13),E117),"") -> 180.1361337 | F118: 176.9186898 | G118: 16931.08458 | H118: 0.08 | I118: 13.40995195 | J118: 5000 | K118: 1 | L118: 6.972580372 | M118: 6.932580372 | N118: 0.3931334361 | O118: 65.43293271 | P118: 124.0116982 | Q118: 11942.83759 | R118: =IF(H118>0, rate1(1,$L$52,$L$51,$L$54,L118,$L$53,$L$50,P118),"") -> 2552.757363 | S118: 0.07149926923 | T118: 0.4234067062 | U118: 6.892580372 | V118: 6.892580372 | W118: 0.002858410748 | X118: 11353.84218 | Y118: 122.5847671 | Z118: =IF(H118>0, rate1(1,$L$52,$L$51,$L$54,U118,$L$53,$L$50,Y118),"") -> 2544.853281 | AA118: 0.06818419514 | AB118: 0.003067570579 | AC118: 0.4234067062 | AD118: 0.1889436299 | AE118: -0.008679753267 | AF118: 117.8832399 | AG118: 100.7276665 | AH118: 6.97293859 | AI118: 165.8624953 | AJ118: 2.020304082 | AK118: 30.98447871 | AL118: 35.536161
B119: 117.8832399 | C119: 100.7276665 | D119: 6.97293859 | E119: =IF(H119>0,IF(AND(C119<$B$6,C119>$H$12),bb2wang($B$6,$H$12,C119,$H$8,$H$9,I119,$H$10,$H$11,$K$10,$K$11,$H$13),E118),"") -> 186.8515622 | F119: 183.4938479 | G119: 18174.53379 | H119: 0.08 | I119: 13.7244587 | J119: 5000 | K119: 1 | L119: 7.05293859 | M119: 7.01293859 | N119: 0.3977373924 | O119: 65.32616463 | P119: 125.9274054 | Q119: 13192.71064 | R119: =IF(H119>0, rate1(1,$L$52,$L$51,$L$54,L119,$L$53,$L$50,P119),"") -> 2563.123004 | S119: 0.07879114791 | T119: 0.4317559384 | U119: 6.97293859 | V119: 6.97293859 | W119: 0.002925449726 | X119: 12561.82319 | Y119: 124.494987 | Z119: =IF(H119>0, rate1(1,$L$52,$L$51,$L$54,U119,$L$53,$L$50,Y119),"") -> 2555.398601 | AA119: 0.07525006209 | AB119: 0.003163503566 | AC119: 0.4317559384 | AD119: 0.1852898661 | AE119: -0.008545190492 | AF119: 117.8492213 | AG119: 100.2959106 | AH119: 7.053306273 | AI119: 168.4491684 | AJ119: 2.067095518 | AK119: 33.79271065 | AL119: 36.36547348
B120: 117.8492213 | C120: 100.2959106 | D120: 7.053306273 | E120: =IF(H120>0,IF(AND(C120<$B$6,C120>$H$12),bb2wang($B$6,$H$12,C120,$H$8,$H$9,I120,$H$10,$H$11,$K$10,$K$11,$H$13),E119),"") -> 193.8634469 | F120: 190.3575045 | G120: 19506.30601 | H120: 0.08 | I120: 14.04264861 | J120: 5000 | K120: 1 | L120: 7.133306273 | M120: 7.093306273 | N120: 0.4023426681 | O120: 65.20588451 | P120: 127.8506648 | Q120: 14531.81659 | R120: =IF(H120>0, rate1(1,$L$52,$L$51,$L$54,L120,$L$53,$L$50,P120),"") -> 2573.256222 | S120: 0.08660641985 | T120: 0.440492113 | U120: 7.053306273 | V120: 7.053306273 | W120: 0.002993273792 | X120: 13855.96665 | Y120: 126.4128001 | Z120: =IF(H120>0, rate1(1,$L$52,$L$51,$L$54,U120,$L$53,$L$50,Y120),"") -> 2565.705843 | AA120: 0.08282151595 | AB120: 0.003263567391 | AC120: 0.440492113 | AD120: 0.1816150565 | AE120: -0.008426065414 | AF120: 117.8110719 | AG120: 99.85541845 | AH120: 7.133683364 | AI120: 171.1808211 | AJ120: 2.114645746 | AK120: 36.85419575 | AL120: 37.20771932
B121: 117.8110719 | C121: 99.85541845 | D121: 7.133683364 | E121: =IF(H121>0,IF(AND(C121<$B$6,C121>$H$12),bb2wang($B$6,$H$12,C121,$H$8,$H$9,I121,$H$10,$H$11,$K$10,$K$11,$H$13),E120),"") -> 201.1891737 | F121: 197.5263103 | G121: 20932.90566 | H121: 0.08 | I121: 14.36452274 | J121: 5000 | K121: 1 | L121: 7.213683364 | M121: 7.173683364 | N121: 0.4069492604 | O121: 65.07072387 | P121: 129.7814226 | Q121: 15966.78244 | R121: =IF(H121>0, rate1(1,$L$52,$L$51,$L$54,L121,$L$53,$L$50,P121),"") -> 2583.164247 | S121: 0.09499040706 | T121: 0.4496629246 | U121: 7.133683364 | V121: 7.133683364 | W121: 0.003061883172 | X121: 15242.63335 | Y121: 128.3381518 | Z121: =IF(H121>0, rate1(1,$L$52,$L$51,$L$54,U121,$L$53,$L$50,Y121),"") -> 2575.782464 | AA121: 0.09094214279 | AB121: 0.003368193947 | AC121: 0.4496629246 | AD121: 0.1779110432 | AE121: -0.008322175738 | AF121: 117.7683582 | AG121: 99.40575553 | AH121: 7.214069806 | AI121: 174.0744613 | AJ121: 2.162999763 | AK121: 40.19330123 | AL121: 38.06362342
B122: 117.7683582 | C122: 99.40575553 | D122: 7.214069806 | E122: =IF(H122>0,IF(AND(C122<$B$6,C122>$H$12),bb2wang($B$6,$H$12,C122,$H$8,$H$9,I122,$H$10,$H$11,$K$10,$K$11,$H$13),E121),"") -> 208.8478137 | F122: 205.0184937 | G122: 22461.40994 | H122: 0.08 | I122: 14.69008215 | J122: 5000 | K122: 1 | L122: 7.294069806 | M122: 7.254069806 | N122: 0.4115571661 | O122: 64.91915056 | P122: 131.7196255 | Q122: 17504.82789 | R122: =IF(H122>0, rate1(1,$L$52,$L$51,$L$54,L122,$L$53,$L$50,P122),"") -> 2592.854025 | S122: 0.1039936806 | T122: 0.4593239548 | U122: 7.214069806 | V122: 7.214069806 | W122: 0.00313127809 | X122: 16728.74437 | Y122: 130.2709881 | Z122: =IF(H122>0, rate1(1,$L$52,$L$51,$L$54,U122,$L$53,$L$50,Y122),"") -> 2585.635621 | AA122: 0.09966053036 | AB122: 0.003477886059 | AC122: 0.4593239548 | AD122: 0.1741690133 | AE122: -0.008233407842 | AF122: 117.7205914 | AG122: 98.94643157 | AH122: 7.294465547 | AI122: 177.1499476 | AJ122: 2.212208082 | AK122: 43.83718551 | AL122: 38.93399573
B123: 117.7205914 | C123: 98.94643157 | D123: 7.294465547 | E123: =IF(H123>0,IF(AND(C123<$B$6,C123>$H$12),bb2wang($B$6,$H$12,C123,$H$8,$H$9,I123,$H$10,$H$11,$K$10,$K$11,$H$13),E122),"") -> 216.8603804 | F123: 212.854097 | G123: 23904.92625 | H123: 0.06 | I123: 15.01932789 | J123: 5000 | K123: 1 | L123: 7.354465547 | M123: =IF(H123>0, (D123+L123)/2,"") -> 7.324465547 | N123: 0.3127134317 | O123: 64.74944295 | P123: 133.3009848 | Q123: 19055.17982 | R123: =IF(H123>0, rate1(1,$L$52,$L$51,$L$54,L123,$L$53,$L$50,P123),"") -> 2600.576313 | S123: 0.1131637713 | T123: 0.3526168886 | U123: 7.294465547 | V123: 7.294465547 | W123: 0.003201458769 | X123: 18321.85104 | Y123: 132.2112562 | Z123: =IF(H123>0, rate1(1,$L$52,$L$51,$L$54,U123,$L$53,$L$50,Y123),"") -> 2595.272195 | AA123: 0.109031101 | AB123: 0.00359323291 | AC123: 0.3526168886 | AD123: 0.1701563423 | AE123: -0.009884146264 | AF123: 117.680688 | AG123: 98.59381468 | AH123: 7.354965109 | AI123: 135.5918251 | AJ123: 2.249872477 | AK123: 47.8162231 | AL123: 39.81974547
B124: 117.680688 | C124: 98.59381468 | D124: 7.354965109 | E124: =IF(H124>0,IF(AND(C124<$B$6,C124>$H$12),bb2wang($B$6,$H$12,C124,$H$8,$H$9,I124,$H$10,$H$11,$K$10,$K$11,$H$13),E123),"") -> 223.1398944 | F124: 220.0001374 | G124: 25322.27308 | H124: 0.06 | I124: 15.26949863 | J124: 5000 | K124: 1 | L124: 7.414965109 | M124: 7.384965109 | N124: 0.3153285502 | O124: 64.55965853 | P124: 134.7687927 | Q124: 20370.156 | R124: =IF(H124>0, rate1(1,$L$52,$L$51,$L$54,L124,$L$53,$L$50,P124),"") -> 2607.60134 | S124: 0.121001829 | T124: 0.3587362984 | U124: 7.354965109 | V124: 7.354965109 | W124: 0.003254784147 | X124: 19709.58057 | Y124: 133.6760721 | Z124: =IF(H124>0, rate1(1,$L$52,$L$51,$L$54,U124,$L$53,$L$50,Y124),"") -> 2602.384411 | AA124: 0.1173126132 | AB124: 0.003687357716 | AC124: 0.3587362984 | AD124: 0.1672537746 | AE124: -0.008160693589 | AF124: 117.6372802 | AG124: 98.23507838 | AH124: 7.415470828 | AI124: 137.5732912 | AJ124: 2.288087281 | AK124: 51.05753568 | AL124: 40.49770459
B125: 117.6372802 | C125: 98.23507838 | D125: 7.415470828 | E125: =IF(H125>0,IF(AND(C125<$B$6,C125>$H$12),bb2wang($B$6,$H$12,C125,$H$8,$H$9,I125,$H$10,$H$11,$K$10,$K$11,$H$13),E124),"") -> 229.6447642 | F125: 226.3923293 | G125: 26701.15898 | H125: 0.06 | I125: 15.52176147 | J125: 5000 | K125: 1 | L125: 7.475470828 | M125: 7.445470828 | N125: 0.3179443754 | O125: 64.40111628 | P125: 136.2407642 | Q125: 21756.76586 | R125: =IF(H125>0, rate1(1,$L$52,$L$51,$L$54,L125,$L$53,$L$50,P125),"") -> 2614.512309 | S125: 0.1292142027 | T125: 0.3651235199 | U125: 7.415470828 | V125: 7.415470828 | W125: 0.003308555466 | X125: 21060.24361 | Y125: 135.1450676 | Z125: =IF(H125>0, rate1(1,$L$52,$L$51,$L$54,U125,$L$53,$L$50,Y125),"") -> 2609.380579 | AA125: 0.1253235157 | AB125: 0.003782604798 | AC125: 0.3651235199 | AD125: 0.1643279513 | AE125: -0.008083949979 | AF125: 117.5901011 | AG125: 97.86995486 | AH125: 7.475982687 | AI125: 139.6526299 | AJ125: 2.326879678 | AK125: 54.54120413 | AL125: 41.18557105
B126: 117.5901011 | C126: 97.86995486 | D126: 7.475982687 | E126: =IF(H126>0,IF(AND(C126<$B$6,C126>$H$12),bb2wang($B$6,$H$12,C126,$H$8,$H$9,I126,$H$10,$H$11,$K$10,$K$11,$H$13),E125),"") -> 236.3866102 | F126: 233.0156872 | G126: 28155.1555 | H126: =dv(S125) -> 0.06 | I126: 15.77611697 | J126: =$B$7 -> 5000 | K126: 1 | L126: 7.535982687 | M126: 7.505982687 | N126: 0.3205609066 | O126: =IF(wh(B125,$F$51,$F$52,$F$53)>0,wh(B125,$F$51,$F$52,$F$53),O125) -> 64.22865097 | P126: 137.7168786 | Q126: 23219.29237 | R126: =IF(H126>0, rate1(1,$L$52,$L$51,$L$54,L126,$L$53,$L$50,P126),"") -> 2621.3118 | S126: 0.1379118223 | T126: 0.3718423648 | U126: =L126-K126*H126 -> 7.475982687 | V126: 7.475982687 | W126: 0.003362772849 | X126: 22484.67411 | Y126: 136.6182216 | Z126: =IF(H126>0, rate1(1,$L$52,$L$51,$L$54,U126,$L$53,$L$50,Y126),"") -> 2616.263336 | AA126: 0.1338062323 | AB126: 0.003882240873 | AC126: 0.3718423648 | AD126: 0.1613586984 | AE126: -0.008058047091 | AF126: 117.5388196 | AG126: 97.4981125 | AH126: 7.536500673 | AI126: 141.8535425 | AJ126: 2.36628344 | AK126: 58.2700912 | AL126: 41.8838342
B127: 117.5388196 | C127: 97.4981125 | D127: 7.536500673 | E127: =IF(H127>0,IF(AND(C127<$B$6,C127>$H$12),bb2wang($B$6,$H$12,C127,$H$8,$H$9,I127,$H$10,$H$11,$K$10,$K$11,$H$13),E126),"") -> 243.3784766 | F127: 239.8825434 | G127: 29688.81173 | H127: 0.06 | I127: 16.0325657 | J127: 5000 | K127: 1 | L127: 7.596500673 | M127: 7.566500673 | N127: 0.3231781435 | O127: 64.04120135 | P127: 139.1971152 | Q127: 24762.40105 | R127: =IF(H127>0, rate1(1,$L$52,$L$51,$L$54,L127,$L$53,$L$50,P127),"") -> 2628.002318 | S127: 0.1471321356 | T127: 0.378931083 | U127: 7.536500673 | V127: 7.536500673 | W127: 0.003417436415 | X127: 23987.34522 | Y127: 138.0955135 | Z127: =IF(H127>0, rate1(1,$L$52,$L$51,$L$54,U127,$L$53,$L$50,Y127),"") -> 2623.035243 | AA127: 0.1427968375 | AB127: 0.00398672866 | AC127: 0.378931083 | AD127: 0.1583401381 | AE127: -0.008041201651 | AF127: 117.4830667 | AG127: 97.11918142 | AH127: 7.597024769 | AI127: 144.1897826 | AJ127: 2.406336157 | AK127: 62.26399975 | AL127: 42.59310191
B128: =IF(H128>0, AF127,"") -> 117.4830667 | C128: =IF(H128>0, AG127,"") -> 97.11918142 | D128: =IF(H128>0, AH127,"") -> 7.597024769 | E128: =IF(H128>0,IF(AND(C128<$B$6,C128>$H$12),bb2wang($B$6,$H$12,C128,$H$8,$H$9,I128,$H$10,$H$11,$K$10,$K$11,$H$13),E127),"") -> 250.6346728 | F128: =IF(H128>0, (E128+E127)/2,"") -> 247.0065747 | G128: =IF(H128>0, F128*$S$53*$C$55*(B128-C128+N128)^1.5,"") -> 31307.07004 | H128: 0.06 | I128: =IF(H128>0, (B128-C128)*B$19,"") -> 16.29110821 | J128: 5000 | K128: =IF(H128>0, IF((1-S127-0.015)>0,1,-1),"") -> 1 | L128: =IF(H128>0, D128+K128*H128,"") -> 7.657024769 | M128: =IF(H128>0, (D128+L128)/2,"") -> 7.627024769 | N128: =IF(H128>0, 2*($P$53*M128/$S$52/$S$51)^2-(B128-C128)*2,"") -> 0.3257960854 | O128: 63.83745264 | P128: =IF(H128>0, $C$54*$L$55*$L$55*M128*M128/(($B$19*(B128-C128))^0.333)*1000,"") -> 140.6814537 | Q128: =IF(H128>0, M128/$S$54*(B128-C128+N128/2)*E128-J128,"") -> 26391.14757 | R128: =IF(H128>0, rate1(1,$L$52,$L$51,$L$54,L128,$L$53,$L$50,P128),"") -> 2634.586297 | S128: =IF(H128>0, Q128/O128/R128,"") -> 0.1569171088 | T128: =IF(H128>0, N128/(1-S128),"") -> 0.3864342271 | U128: 7.597024769 | V128: =IF(H128>0, (D128+U128)/2,"") -> 7.597024769 | W128: =IF(H128>0, 2*($P$53*V128/$S$52/$S$51)^2-(B128-C128)*2,"") -> 0.003472546285 | X128: =IF(H128>0, V128/$S$54*(B128-C128+W128/2)*F128-J128,"") -> 25573.11652 | Y128: =IF(H128>0, $C$54*$L$55*$L$55*V128*V128/(($B$19*(B128-C128))^0.333)*1000,"") -> 139.5769225 | Z128: =IF(H128>0, rate1(1,$L$52,$L$51,$L$54,U128,$L$53,$L$50,Y128),"") -> 2629.698788 | AA128: =IF(H128>0, X128/O128/Z128,"") -> 0.1523358438 | AB128: =IF(H128>0, W128/(1-AA128),"") -> 0.004096606255 | AC128: =IF(H128>0, delta_z(N128,S128,H128,AE127,AB128),"") -> 0.3864342271 | AD128: =IF(H128>0, H128/AC128*K128,"") -> 0.1552657498 | AE128: =IF(H128>0, (AD128-AD127)/(AC128+AC127)*2,"") -> -0.008033780129 | AF128: =IF(H128>0, B128-(AC128-N128),"") -> 117.4224285 | AG128: =IF(H128>0, C128-AC128,"") -> 96.73274719 | AH128: =IF(H128>0, $S$54*$S$53*$C$55*SQRT(AF128-AG128),"") -> 7.657554962 | AI128: =IF(H128>0, AC128/R128*1000000,"") -> 146.6773844 | AJ128: =IF(H128>0, AJ127+AI128/3600,"") -> 2.447079875 | AK128: =IF(H128>0, AK127+AI127*G127/1000000,"") -> 66.54482306 | AL128: =IF(H128>0, AL127+AI127*J127/1000000,"") -> 43.31405082
B129: 117.4224285 | C129: 96.73274719 | D129: 7.657554962 | E129: =IF(H129>0,IF(AND(C129<$B$6,C129>$H$12),bb2wang($B$6,$H$12,C129,$H$8,$H$9,I129,$H$10,$H$11,$K$10,$K$11,$H$13),E128),"") -> 258.1709677 | F129: 254.4028203 | G129: 33015.29557 | H129: 0.06 | I129: 16.55174508 | J129: 5000 | K129: 1 | L129: 7.717554962 | M129: 7.687554962 | N129: 0.3284147319 | O129: 63.61593809 | P129: 142.1698741 | Q129: 28111.0288 | R129: =IF(H129>0, rate1(1,$L$52,$L$51,$L$54,L129,$L$53,$L$50,P129),"") -> 2641.066102 | S129: 0.1673137116 | T129: 0.3944039147 | U129: 7.657554962 | V129: 7.657554962 | W129: 0.003528102578 | X129: 27247.26307 | Y129: 141.0624286 | Z129: =IF(H129>0, rate1(1,$L$52,$L$51,$L$54,U129,$L$53,$L$50,Y129),"") -> 2636.256386 | AA129: 0.1624685499 | AB129: 0.004212501605 | AC129: 0.3944039147 | AD129: 0.1521283075 | AE129: -0.008036088742 | AF129: 117.3564394 | AG129: 96.33834327 | AH129: 7.718091237 | AI129: 149.3351168 | AJ129: 2.488561852 | AK129: 71.1368622 | AL129: 44.04743775
B130: 117.3564394 | C130: 96.33834327 | D130: 7.718091237 | E130: =IF(H130>0,IF(AND(C130<$B$6,C130>$H$12),bb2wang($B$6,$H$12,C130,$H$8,$H$9,I130,$H$10,$H$11,$K$10,$K$11,$H$13),E129),"") -> 266.0048229 | F130: 262.0878953 | G130: 34819.33316 | H130: 0.06 | I130: 16.81447687 | J130: 5000 | K130: 1 | L130: 7.778091237 | M130: 7.748091237 | N130: 0.3310340824 | O130: 63.37501391 | P130: 143.6623566 | Q130: 29928.04358 | R130: =IF(H130>0, rate1(1,$L$52,$L$51,$L$54,L130,$L$53,$L$50,P130),"") -> 2647.444029 | S130: 0.1783747891 | T130: 0.402901564 | U130: 7.718091237 | V130: 7.718091237 | W130: 0.003584105416 | X130: 29015.53131 | Y130: 142.5520117 | Z130: =IF(H130>0, rate1(1,$L$52,$L$51,$L$54,U130,$L$53,$L$50,Y130),"") -> 2642.710386 | AA130: 0.1732458692 | AB130: 0.004335152716 | AC130: 0.402901564 | AD130: 0.1489197496 | AE130: -0.008048503374 | AF130: 117.2845719 | AG130: 95.93544171 | AH130: 7.778633581 | AI130: 152.1851112 | AJ130: 2.530835494 | AK130: 76.06720522 | AL130: 44.79411333
B131: 117.2845719 | C131: 95.93544171 | D131: 7.778633581 | E131: =IF(H131>0,IF(AND(C131<$B$6,C131>$H$12),bb2wang($B$6,$H$12,C131,$H$8,$H$9,I131,$H$10,$H$11,$K$10,$K$11,$H$13),E130),"") -> 274.1556789 | F131: 270.0802509 | G131: 36725.5756 | H131: 0.06 | I131: 17.07930413 | J131: 5000 | K131: 1 | L131: 7.838633581 | M131: 7.808633581 | N131: 0.3336541367 | O131: 63.11282927 | P131: 145.1588818 | Q131: 31848.76609 | R131: =IF(H131>0, rate1(1,$L$52,$L$51,$L$54,L131,$L$53,$L$50,P131),"") -> 2653.722313 | S131: 0.1901601388 | T131: 0.4120001406 | U131: 7.778633581 | V131: 7.778633581 | W131: 0.003640554917 | X131: 30884.20607 | Y131: 144.0456521 | Z131: =IF(H131>0, rate1(1,$L$52,$L$51,$L$54,U131,$L$53,$L$50,Y131),"") -> 2649.06307 | AA131: 0.1847253482 | AB131: 0.004465433715 | AC131: 0.4120001406 | AD131: 0.1456310183 | AE131: -0.008071479691 | AF131: 117.2062259 | AG131: 95.52344157 | AH131: 7.839181981 | AI131: 155.2536746 | AJ131: 2.573961514 | AK131: 81.36618931 | AL131: 45.55503889
B132: 117.2062259 | C132: 95.52344157 | D132: 7.839181981 | E132: =IF(H132>0,IF(AND(C132<$B$6,C132>$H$12),bb2wang($B$6,$H$12,C132,$H$8,$H$9,I132,$H$10,$H$11,$K$10,$K$11,$H$13),E131),"") -> 282.6453069 | F132: 278.4004929 | G132: 38741.0464 | H132: 0.06 | I132: 17.34622744 | J132: 5000 | K132: 1 | L132: 7.899181981 | M132: 7.869181981 | N132: 0.3362748941 | O132: 62.82728928 | P132: 146.6594303 | Q132: 33880.4351 | R132: =IF(H132>0, rate1(1,$L$52,$L$51,$L$54,L132,$L$53,$L$50,P132),"") -> 2659.903125 | S132: 0.2027378502 | T132: 0.421787105 | U132: 7.839181981 | V132: 7.839181981 | W132: 0.003697451203 | X132: 32860.19183 | Y132: 145.5433305 | Z132: =IF(H132>0, rate1(1,$L$52,$L$51,$L$54,U132,$L$53,$L$50,Y132),"") -> 2655.316656 | AA132: 0.1969724344 | AB132: 0.004604388892 | AC132: 0.421787105 | AD132: 0.1422518595 | AE132: -0.008105565969 | AF132: 117.1207137 | AG132: 95.10165446 | AH132: 7.899736422 | AI132: 158.5723559 | AJ132: 2.618009391 | AK132: 87.06796988 | AL132: 46.33130726
B133: 117.1207137 | C133: 95.10165446 | D133: 7.899736422 | E133: =IF(H133>0,IF(AND(C133<$B$6,C133>$H$12),bb2wang($B$6,$H$12,C133,$H$8,$H$9,I133,$H$10,$H$11,$K$10,$K$11,$H$13),E132),"") -> 291.4982498 | F133: 287.0717784 | G133: 40873.50122 | H133: 0.06 | I133: 17.61524736 | J133: 5000 | K133: 1 | L133: 7.959736422 | M133: 7.929736422 | N133: 0.3388963542 | O133: 62.51600919 | P133: 148.1639831 | Q133: 36031.06396 | R133: =IF(H133>0, rate1(1,$L$52,$L$51,$L$54,L133,$L$53,$L$50,P133),"") -> 2665.988577 | S133: 0.216185995 | T133: 0.4323683324 | U133: 7.899736422 | V133: 7.899736422 | W133: 0.003754794392 | X133: 34951.1122 | Y133: 147.0450275 | Z133: =IF(H133>0, rate1(1,$L$52,$L$51,$L$54,U133,$L$53,$L$50,Y133),"") -> 2661.473299 | AA133: 0.2100620698 | AB133: 0.004753277756 | AC133: 0.4323683324 | AD133: 0.1387705701 | AE133: -0.008151418842 | AF133: 117.0272417 | AG133: 94.66928613 | AH133: 7.960296894 | AI133: 162.1793642 | AJ133: 2.663059214 | AK133: 93.21122888 | AL133: 47.12416904
B134: 117.0272417 | C134: 94.66928613 | D134: 7.960296894 | E134: =IF(H134>0,IF(AND(C134<$B$6,C134>$H$12),bb2wang($B$6,$H$12,C134,$H$8,$H$9,I134,$H$10,$H$11,$K$10,$K$11,$H$13),E133),"") -> 300.7423774 | F134: 296.1203136 | G134: 43131.5536 | H134: 0.06 | I134: 17.88636444 | J134: 5000 | K134: 1 | L134: 8.020296894 | M134: 7.990296894 | N134: 0.3415185167 | O134: 62.17625671 | P134: 149.6725215 | Q134: 38309.57774 | R134: =IF(H134>0, rate1(1,$L$52,$L$51,$L$54,L134,$L$53,$L$50,P134),"") -> 2671.98072 | S134: 0.2305947805 | T134: 0.4438734078 | U134: 7.960296894 | V134: 7.960296894 | W134: 0.003812584606 | X134: 37165.43346 | Y134: 148.5507243 | Z134: =IF(H134>0, rate1(1,$L$52,$L$51,$L$54,U134,$L$53,$L$50,Y134),"") -> 2667.535098 | AA134: 0.2240807183 | AB134: 0.004913635601 | AC134: 0.4438734078 | AD134: 0.1351736755 | AE134: -0.008209822613 | AF134: 116.9248868 | AG134: 94.22541272 | AH134: 8.020863382 | AI134: 166.121486 | AJ134: 2.709204072 | AK134: 99.84006732 | AL134: 47.93506586
B135: 116.9248868 | C135: 94.22541272 | D135: 8.020863382 | E135: =IF(H135>0,IF(AND(C135<$B$6,C135>$H$12),bb2wang($B$6,$H$12,C135,$H$8,$H$9,I135,$H$10,$H$11,$K$10,$K$11,$H$13),E134),"") -> 310.4095987 | F135: 305.5759881 | G135: 45524.83307 | H135: 0.06 | I135: 18.15957925 | J135: 5000 | K135: 1 | L135: 8.080863382 | M135: 8.050863382 | N135: 0.3441413812 | O135: 61.80487891 | P135: 151.1850269 | Q135: 40725.98657 | R135: =IF(H135>0, rate1(1,$L$52,$L$51,$L$54,L135,$L$53,$L$50,P135),"") -> 2677.881553 | S135: 0.246069332 | T135: 0.4564629027 | U135: 8.020863382 | V135: 8.020863382 | W135: 0.003870821963 | X135: 39512.61956 | Y135: 150.0604021 | Z135: =IF(H135>0, rate1(1,$L$52,$L$51,$L$54,U135,$L$53,$L$50,Y135),"") -> 2673.50409 | AA135: 0.2391289794 | AB135: 0.005087356277 | AC135: 0.4564629027 | AD135: 0.1314455121 | AE135: -0.008281712937 | AF135: 116.8125653 | AG135: 93.76894982 | AH135: 8.081435874 | AI135: 170.4567188 | AJ135: 2.75655316 | AK135: 107.0051451 | AL135: 48.76567329
B136: 116.8125653 | C136: 93.76894982 | D136: 8.081435874 | E136: =IF(H136>0,IF(AND(C136<$B$6,C136>$H$12),bb2wang($B$6,$H$12,C136,$H$8,$H$9,I136,$H$10,$H$11,$K$10,$K$11,$H$13),E135),"") -> 320.5367871 | F136: 315.4731929 | G136: 48064.1866 | H136: 0.06 | I136: 18.43489236 | J136: 5000 | K136: 1 | L136: 8.141435874 | M136: 8.111435874 | N136: 0.3467649471 | O136: 61.39820801 | P136: 152.7014812 | Q136: 43291.60816 | R136: =IF(H136>0, rate1(1,$L$52,$L$51,$L$54,L136,$L$53,$L$50,P136),"") -> 2683.693016 | S136: 0.2627333401 | T136: 0.4703385708 | U136: 8.081435874 | V136: 8.081435874 | W136: 0.003929506583 | X136: 42003.32988 | Y136: 151.5740425 | Z136: =IF(H136>0, rate1(1,$L$52,$L$51,$L$54,U136,$L$53,$L$50,Y136),"") -> 2679.382258 | AA136: 0.2553250043 | AB136: 0.005276807474 | AC136: 0.4703385708 | AD136: 0.1275676794 | AE136: -0.008368205763 | AF136: 116.6889916 | AG136: 93.29861125 | AH136: 8.14201436 | AI136: 175.2579628 | AJ136: 2.805235928 | AK136: 114.7651588 | AL136: 49.61795688
B137: 116.6889916 | C137: 93.29861125 | D137: 8.14201436 | E137: =IF(H137>0,IF(AND(C137<$B$6,C137>$H$12),bb2wang($B$6,$H$12,C137,$H$8,$H$9,I137,$H$10,$H$11,$K$10,$K$11,$H$13),E136),"") -> 320.5367871 | F137: 320.5367871 | G137: 49570.68119 | H137: 0.04 | I137: 18.71230432 | J137: 5000 | K137: 1 | L137: 8.18201436 | M137: 8.16201436 | N137: 0.2341145424 | O137: 60.95193823 | P137: 153.844658 | Q137: 44200.61304 | R137: =IF(H137>0, rate1(1,$L$52,$L$51,$L$54,L137,$L$53,$L$50,P137),"") -> 2688.006307 | S137: 0.2697804588 | T137: 0.3206084324 | U137: 8.14201436 | V137: 8.14201436 | W137: 0.003988638586 | X137: 43839.81864 | Y137: 153.0916273 | Z137: =IF(H137>0, rate1(1,$L$52,$L$51,$L$54,U137,$L$53,$L$50,Y137),"") -> 2685.171533 | AA137: 0.26786082 | AB137: 0.005447923968 | AC137: 0.3206084324 | AD137: 0.1247627821 | AE137: -0.007092503578 | AF137: 116.6024978 | AG137: 92.97800282 | AH137: 8.182659658 | AI137: 119.2736905 | AJ137: 2.838367508 | AK137: 123.1887902 | AL137: 50.4942467
B138: 116.6024978 | C138: 92.97800282 | D138: 8.182659658 | E138: =IF(H138>0,IF(AND(C138<$B$6,C138>$H$12),bb2wang($B$6,$H$12,C138,$H$8,$H$9,I138,$H$10,$H$11,$K$10,$K$11,$H$13),E137),"") -> 320.5367871 | F138: 320.5367871 | G138: 50313.11414 | H138: 0.04 | I138: 18.89959595 | J138: 5000 | K138: 1 | L138: 8.222659658 | M138: 8.202659658 | N138: 0.2353018542 | O138: 60.46096221 | P138: 154.8662523 | Q138: 44939.30886 | R138: =IF(H138>0, rate1(1,$L$52,$L$51,$L$54,L138,$L$53,$L$50,P138),"") -> 2691.812681 | S138: 0.2761254901 | T138: 0.3250589032 | U138: 8.182659658 | V138: 8.182659658 | W138: 0.004028560908 | X138: 44574.90771 | Y138: 154.1119728 | Z138: =IF(H138>0, rate1(1,$L$52,$L$51,$L$54,U138,$L$53,$L$50,Y138),"") -> 2689.006656 | AA138: 0.2741722657 | AB138: 0.005550298945 | AC138: 0.3250589032 | AD138: 0.1230546206 | AE138: -0.005291150592 | AF138: 116.5127407 | AG138: 92.65294392 | AH138: 8.223308664 | AI138: 120.7583668 | AJ138: 2.871911499 | AK138: 129.1012683 | AL138: 51.09061515
B139: 116.5127407 | C139: 92.65294392 | D139: 8.223308664 | E139: =IF(H139>0,IF(AND(C139<$B$6,C139>$H$12),bb2wang($B$6,$H$12,C139,$H$8,$H$9,I139,$H$10,$H$11,$K$10,$K$11,$H$13),E138),"") -> 320.5367871 | F139: 320.5367871 | G139: 51062.99207 | H139: 0.04 | I139: 19.08783743 | J139: 5000 | K139: 1 | L139: 8.263308664 | M139: 8.243308664 | N139: 0.2364894732 | O139: 60.11730937 | P139: 155.8896301 | Q139: 45685.43013 | R139: =IF(H139>0, rate1(1,$L$52,$L$51,$L$54,L139,$L$53,$L$50,P139),"") -> 2695.580945 | S139: 0.2819199473 | T139: 0.3293358064 | U139: 8.223308664 | V139: 8.223308664 | W139: 0.004068685696 | X139: 45317.40395 | Y139: 155.1341057 | Z139: =IF(H139>0, rate1(1,$L$52,$L$51,$L$54,U139,$L$53,$L$50,Y139),"") -> 2692.803262 | AA139: 0.2799373604 | AB139: 0.005650460769 | AC139: 0.3293358064 | AD139: 0.1214565778 | AE139: -0.004884033278 | AF139: 116.4198944 | AG139: 92.32360811 | AH139: 8.263961374 | AI139: 122.1761888 | AJ139: 2.905849329 | AK139: 135.1769978 | AL139: 51.69440698
B140: 116.4198944 | C140: 92.32360811 | D140: 8.263961374 | E140: =IF(H140>0,IF(AND(C140<$B$6,C140>$H$12),bb2wang($B$6,$H$12,C140,$H$8,$H$9,I140,$H$10,$H$11,$K$10,$K$11,$H$13),E139),"") -> 320.5367871 | F140: 320.5367871 | G140: 51820.35345 | H140: 0.04 | I140: 19.27702901 | J140: 5000 | K140: 1 | L140: 8.303961374 | M140: 8.283961374 | N140: 0.2376773993 | O140: 59.76069153 | P140: 156.9147864 | Q140: 46439.0153 | R140: =IF(H140>0, rate1(1,$L$52,$L$51,$L$54,L140,$L$53,$L$50,P140),"") -> 2699.311631 | S140: 0.287881901 | T140: 0.3337612113 | U140: 8.263961374 | V140: 8.263961374 | W140: 0.004109013003 | X140: 46067.34583 | Y140: 156.1580211 | Z140: =IF(H140>0, rate1(1,$L$52,$L$51,$L$54,U140,$L$53,$L$50,Y140),"") -> 2696.561893 | AA140: 0.2858690799 | AB140: 0.005753865135 | AC140: 0.3337612113 | AD140: 0.1198461614 | AE140: -0.004857257287 | AF140: 116.3238106 | AG140: 91.9898469 | AH140: 8.304617788 | AI140: 123.6467873 | AJ140: 2.940195659 | AK140: 141.4156795 | AL140: 52.30528793
B141: 116.3238106 | C141: 91.9898469 | D141: 8.304617788 | E141: =IF(H141>0,IF(AND(C141<$B$6,C141>$H$12),bb2wang($B$6,$H$12,C141,$H$8,$H$9,I141,$H$10,$H$11,$K$10,$K$11,$H$13),E140),"") -> 320.5367871 | F141: 320.5367871 | G141: 52585.23675 | H141: 0.04 | I141: 19.46717093 | J141: 5000 | K141: 1 | L141: 8.344617788 | M141: 8.324617788 | N141: 0.2388656325 | O141: 59.39179952 | P141: 157.9417159 | Q141: 47200.10283 | R141: =IF(H141>0, rate1(1,$L$52,$L$51,$L$54,L141,$L$53,$L$50,P141),"") -> 2703.005266 | S141: 0.2940150549 | T141: 0.3383438048 | U141: 8.304617788 | V141: 8.304617788 | W141: 0.00414954288 | X141: 46824.77178 | Y141: 157.1837136 | Z141: =IF(H141>0, rate1(1,$L$52,$L$51,$L$54,U141,$L$53,$L$50,Y141),"") -> 2700.283079 | AA141: 0.2919711162 | AB141: 0.005860697176 | AC141: 0.3383438048 | AD141: 0.118222942 | AE141: -0.004830255437 | AF141: 116.2243324 | AG141: 91.65150309 | AH141: 8.345277902 | AI141: 125.1731948 | AJ141: 2.974965991 | AK141: 147.8230998 | AL141: 52.92352187
B142: 116.2243324 | C142: 91.65150309 | D142: 8.345277902 | E142: =IF(H142>0,IF(AND(C142<$B$6,C142>$H$12),bb2wang($B$6,$H$12,C142,$H$8,$H$9,I142,$H$10,$H$11,$K$10,$K$11,$H$13),E141),"") -> 320.5367871 | F142: 320.5367871 | G142: 53357.68047 | H142: 0.04 | I142: 19.65826344 | J142: 5000 | K142: 1 | L142: 8.385277902 | M142: 8.365277902 | N142: 0.2400541728 | O142: 59.01004452 | P142: 158.9704136 | Q142: 47968.7312 | R142: =IF(H142>0, rate1(1,$L$52,$L$51,$L$54,L142,$L$53,$L$50,P142),"") -> 2706.662363 | S142: 0.3003296465 | T142: 0.3430961046 | U142: 8.345277902 | V142: 8.345277902 | W142: 0.00419027538 | X142: 47589.7203 | Y142: 158.2111782 | Z142: =IF(H142>0, rate1(1,$L$52,$L$51,$L$54,U142,$L$53,$L$50,Y142),"") -> 2703.967344 | AA142: 0.2982536503 | AB142: 0.005971210797 | AC142: 0.3430961046 | AD142: 0.1165854099 | AE142: -0.00480609369 | AF142: 116.1212905 | AG142: 91.30840699 | AH142: 8.385941715 | AI142: 126.7598461 | AJ142: 3.010177059 | AK142: 154.4053618 | AL142: 53.54938784
B143: 116.1212905 | C143: 91.30840699 | D143: 8.385941715 | E143: =IF(H143>0,IF(AND(C143<$B$6,C143>$H$12),bb2wang($B$6,$H$12,C143,$H$8,$H$9,I143,$H$10,$H$11,$K$10,$K$11,$H$13),E142),"") -> 320.5367871 | F143: 320.5367871 | G143: 54137.72312 | H143: 0.04 | I143: 19.85030677 | J143: 5000 | K143: 1 | L143: 8.425941715 | M143: 8.405941715 | N143: 0.2412430201 | O143: 58.61480324 | P143: 160.0008746 | Q143: 48744.93893 | R143: =IF(H143>0, rate1(1,$L$52,$L$51,$L$54,L143,$L$53,$L$50,P143),"") -> 2710.283429 | S143: 0.3068368455 | T143: 0.3480320882 | U143: 8.385941715 | V143: 8.385941715 | W143: 0.004231210556 | X143: 48362.22987 | Y143: 159.24041 | Z143: =IF(H143>0, rate1(1,$L$52,$L$51,$L$54,U143,$L$53,$L$50,Y143),"") -> 2707.6152 | AA143: 0.30472779 | AB143: 0.006085689166 | AC143: 0.3480320882 | AD143: 0.1149319311 | AE143: -0.004784868603 | AF143: 116.0145014 | AG143: 90.9603749 | AH143: 8.426609226 | AI143: 128.4116947 | AJ143: 3.045846975 | AK143: 161.1689732 | AL143: 54.18318707
B144: 116.0145014 | C144: 90.9603749 | D144: 8.426609226 | E144: =IF(H144>0,IF(AND(C144<$B$6,C144>$H$12),bb2wang($B$6,$H$12,C144,$H$8,$H$9,I144,$H$10,$H$11,$K$10,$K$11,$H$13),E143),"") -> 320.5367871 | F144: 320.5367871 | G144: 54925.40323 | H144: 0.04 | I144: 20.04330119 | J144: 5000 | K144: 1 | L144: 8.466609226 | M144: 8.446609226 | N144: 0.2424321746 | O144: 58.20540263 | P144: 161.0330938 | Q144: 49528.76452 | R144: =IF(H144>0, rate1(1,$L$52,$L$51,$L$54,L144,$L$53,$L$50,P144),"") -> 2713.868961 | S144: 0.31354893 | T144: 0.353167451 | U144: 8.426609226 | V144: 8.426609226 | W144: 0.00427234846 | X144: 49142.33903 | Y144: 160.2714038 | Z144: =IF(H144>0, rate1(1,$L$52,$L$51,$L$54,U144,$L$53,$L$50,Y144),"") -> 2711.227151 | AA144: 0.3114057454 | AB144: 0.006204449763 | AC144: 0.353167451 | AD144: 0.1132607206 | AE144: -0.0047667188 | AF144: 115.9037661 | AG144: 90.60720745 | AH144: 8.467280431 | AI144: 130.1343049 | AJ144: 3.081995393 | AK144: 168.12089 | AL144: 54.82524554
B145: 115.9037661 | C145: 90.60720745 | D145: 8.467280431 | E145: =IF(H145>0,IF(AND(C145<$B$6,C145>$H$12),bb2wang($B$6,$H$12,C145,$H$8,$H$9,I145,$H$10,$H$11,$K$10,$K$11,$H$13),E144),"") -> 320.5367871 | F145: 320.5367871 | G145: 55720.75935 | H145: 0.04 | I145: 20.23724693 | J145: 5000 | K145: 1 | L145: 8.507280431 | M145: 8.487280431 | N145: 0.2436216362 | O145: 57.78111409 | P145: 162.0670663 | Q145: 50320.24653 | R145: =IF(H145>0, rate1(1,$L$52,$L$51,$L$54,L145,$L$53,$L$50,P145),"") -> 2717.419448 | S145: 0.3204794375 | T145: 0.3585198883 | U145: 8.467280431 | V145: 8.467280431 | W145: 0.004313689144 | X145: 49930.0863 | Y145: 161.3041547 | Z145: =IF(H145>0, rate1(1,$L$52,$L$51,$L$54,U145,$L$53,$L$50,Y145),"") -> 2714.803692 | AA145: 0.3183009789 | AB145: 0.006327849991 | AC145: 0.3585198883 | AD145: 0.1115698217 | AE145: -0.00475180288 | AF145: 115.7888679 | AG145: 90.24868756 | AH145: 8.50795533 | AI145: 131.9339525 | AJ145: 3.118643713 | AK145: 175.2685691 | AL145: 55.47591707
B146: 115.7888679 | C146: 90.24868756 | D146: 8.50795533 | E146: =IF(H146>0,IF(AND(C146<$B$6,C146>$H$12),bb2wang($B$6,$H$12,C146,$H$8,$H$9,I146,$H$10,$H$11,$K$10,$K$11,$H$13),E145),"") -> 320.5367871 | F146: 320.5367871 | G146: 56523.83007 | H146: 0.04 | I146: 20.43214424 | J146: 5000 | K146: 1 | L146: 8.54795533 | M146: 8.52795533 | N146: 0.2448114049 | O146: 57.34114669 | P146: 163.1027873 | Q146: 51119.42351 | R146: =IF(H146>0, rate1(1,$L$52,$L$51,$L$54,L146,$L$53,$L$50,P146),"") -> 2720.935368 | S146: 0.3276433427 | T146: 0.3641094384 | U146: 8.50795533 | V146: 8.50795533 | W146: 0.004355232661 | X146: 50725.51024 | Y146: 162.3386579 | Z146: =IF(H146>0, rate1(1,$L$52,$L$51,$L$54,U146,$L$53,$L$50,Y146),"") -> 2718.345308 | AA146: 0.3254283819 | AB146: 0.006456293956 | AC146: 0.3641094384 | AD146: 0.1098570808 | AE146: -0.004740302568 | AF146: 115.6695698 | AG146: 89.88457812 | AH146: 8.548633921 | AI146: 133.8177462 | AJ146: 3.155815309 | AK146: 182.6200292 | AL146: 56.13558683
B147: 115.6695698 | C147: 89.88457812 | D147: 8.548633921 | E147: =IF(H147>0,IF(AND(C147<$B$6,C147>$H$12),bb2wang($B$6,$H$12,C147,$H$8,$H$9,I147,$H$10,$H$11,$K$10,$K$11,$H$13),E146),"") -> 320.5367871 | F147: 320.5367871 | G147: 57334.65397 | H147: 0.04 | I147: 20.62799336 | J147: 5000 | K147: 1 | L147: 8.588633921 | M147: 8.568633921 | N147: 0.2460014806 | O147: 56.88463919 | P147: 164.1402518 | Q147: 51926.33405 | R147: =IF(H147>0, rate1(1,$L$52,$L$51,$L$54,L147,$L$53,$L$50,P147),"") -> 2724.417193 | S147: 0.3350572678 | T147: 0.3699588983 | U147: 8.548633921 | V147: 8.548633921 | W147: 0.004396979063 | X147: 51528.64943 | Y147: 163.3749084 | Z147: =IF(H147>0, rate1(1,$L$52,$L$51,$L$54,U147,$L$53,$L$50,Y147),"") -> 2721.852478 | AA147: 0.3328044838 | AB147: 0.006590240726 | AC147: 0.3699588983 | AD147: 0.1081201187 | AE147: -0.004732426218 | AF147: 115.5456124 | AG147: 89.51461922 | AH147: 8.589316202 | AI147: 135.7937761 | AJ147: 3.193535802 | AK147: 190.1839207 | AL147: 56.80467556
B148: 115.5456124 | C148: 89.51461922 | D148: 8.589316202 | E148: =IF(H148>0,IF(AND(C148<$B$6,C148>$H$12),bb2wang($B$6,$H$12,C148,$H$8,$H$9,I148,$H$10,$H$11,$K$10,$K$11,$H$13),E147),"") -> 320.5367871 | F148: 320.5367871 | G148: 58153.26966 | H148: 0.04 | I148: 20.82479455 | J148: 5000 | K148: 1 | L148: 8.629316202 | M148: 8.609316202 | N148: 0.2471918635 | O148: 56.41065071 | P148: 165.1794551 | Q148: 52741.01675 | R148: =IF(H148>0, rate1(1,$L$52,$L$51,$L$54,L148,$L$53,$L$50,P148),"") -> 2727.865387 | S148: 0.3427397323 | T148: 0.3760943353 | U148: 8.589316202 | V148: 8.589316202 | W148: 0.004438928402 | X148: 52339.54246 | Y148: 164.4129013 | Z148: =IF(H148>0, rate1(1,$L$52,$L$51,$L$54,U148,$L$53,$L$50,Y148),"") -> 2725.32567 | AA148: 0.3404477008 | AB148: 0.00673021443 | AC148: 0.3760943353 | AD148: 0.1063562948 | AE148: -0.004728412987 | AF148: 115.4167099 | AG148: 89.13852489 | AH148: 8.63000217 | AI148: 137.8712957 | AJ148: 3.231833384 | AK148: 197.9696099 | AL148: 57.48364444
B149: 115.4167099 | C149: 89.13852489 | D149: 8.63000217 | E149: =IF(H149>0,IF(AND(C149<$B$6,C149>$H$12),bb2wang($B$6,$H$12,C149,$H$8,$H$9,I149,$H$10,$H$11,$K$10,$K$11,$H$13),E148),"") -> 320.5367871 | F149: 320.5367871 | G149: 58979.71578 | H149: 0.04 | I149: 21.02254804 | J149: 5000 | K149: 1 | L149: 8.67000217 | M149: 8.65000217 | N149: 0.2483825534 | O149: 55.91814982 | P149: 166.2203924 | Q149: 53563.51021 | R149: =IF(H149>0, rate1(1,$L$52,$L$51,$L$54,L149,$L$53,$L$50,P149),"") -> 2731.280404 | S149: 0.3507114525 | T149: 0.3825457178 | U149: 8.63000217 | V149: 8.63000217 | W149: 0.00448108073 | X149: 53158.22795 | Y149: 165.452632 | Z149: =IF(H149>0, rate1(1,$L$52,$L$51,$L$54,U149,$L$53,$L$50,Y149),"") -> 2728.765346 | AA149: 0.348378633 | AB149: 0.006876816749 | AC149: 0.3825457178 | AD149: 0.1045626657 | AE149: -0.004728537866 | AF149: 115.2825468 | AG149: 88.75597917 | AH149: 8.670691825 | AI149: 140.0609462 | AJ149: 3.270739203 | AK149: 205.9872765 | AL149: 58.17300092
B150: 115.2825468 | C150: 88.75597917 | D150: 8.670691825 | E150: =IF(H150>0,IF(AND(C150<$B$6,C150>$H$12),bb2wang($B$6,$H$12,C150,$H$8,$H$9,I150,$H$10,$H$11,$K$10,$K$11,$H$13),E149),"") -> 320.5367871 | F150: 320.5367871 | G150: 59814.03097 | H150: 0.04 | I150: 21.22125408 | J150: 5000 | K150: 1 | L150: 8.710691825 | M150: 8.690691825 | N150: 0.2495735505 | O150: 55.40600151 | P150: 167.2630589 | Q150: 54393.85309 | R150: =IF(H150>0, rate1(1,$L$52,$L$51,$L$54,L150,$L$53,$L$50,P150),"") -> 2734.662692 | S150: 0.3589957017 | T150: 0.389347702 | U150: 8.670691825 | V150: 8.670691825 | W150: 0.004523436101 | X150: 53984.74453 | Y150: 166.4940955 | Z150: =IF(H150>0, rate1(1,$L$52,$L$51,$L$54,U150,$L$53,$L$50,Y150),"") -> 2732.171959 | AA150: 0.3566204234 | AB150: 0.007030742451 | AC150: 0.389347702 | AD150: 0.1027359345 | AE150: -0.004733117734 | AF150: 115.1427726 | AG150: 88.36663147 | AH150: 8.711385165 | AI150: 142.375037 | AJ150: 3.310287824 | AK150: 214.2480313 | AL150: 58.87330565
B151: 115.1427726 | C151: 88.36663147 | D151: 8.711385165 | E151: =IF(H151>0,IF(AND(C151<$B$6,C151>$H$12),bb2wang($B$6,$H$12,C151,$H$8,$H$9,I151,$H$10,$H$11,$K$10,$K$11,$H$13),E150),"") -> 320.5367871 | F151: 320.5367871 | G151: 60656.2539 | H151: 0.04 | I151: 21.42091292 | J151: 5000 | K151: 1 | L151: 8.751385165 | M151: 8.731385165 | N151: 0.2507648547 | O151: 54.87295169 | P151: 168.30745 | Q151: 55232.08404 | R151: =IF(H151>0, rate1(1,$L$52,$L$51,$L$54,L151,$L$53,$L$50,P151),"") -> 2738.012691 | S151: 0.367618748 | T151: 0.3965406215 | U151: 8.711385165 | V151: 8.711385165 | W151: 0.004565994567 | X151: 54819.13085 | Y151: 167.5372873 | Z151: =IF(H151>0, rate1(1,$L$52,$L$51,$L$54,U151,$L$53,$L$50,Y151),"") -> 2735.545954 | AA151: 0.3651991925 | AB151: 0.007192798926 | AC151: 0.3965406215 | AD151: 0.1008723894 | AE151: -0.004742518722 | AF151: 114.9969969 | AG151: 87.97009085 | AH151: 8.752082187 | AI151: 144.8278976 | AJ151: 3.350517796 | AK151: 222.7640562 | AL151: 59.58518084
B152: 114.9969969 | C152: 87.97009085 | D152: 8.752082187 | E152: =IF(H152>0,IF(AND(C152<$B$6,C152>$H$12),bb2wang($B$6,$H$12,C152,$H$8,$H$9,I152,$H$10,$H$11,$K$10,$K$11,$H$13),E151),"") -> 320.5367871 | F152: 320.5367871 | G152: 61506.42326 | H152: 0.04 | I152: 21.62152481 | J152: 5000 | K152: 1 | L152: 8.792082187 | M152: 8.772082187 | N152: 0.251956466 | O152: 54.31760861 | P152: 169.353561 | Q152: 56078.24174 | R152: =IF(H152>0, rate1(1,$L$52,$L$51,$L$54,L152,$L$53,$L$50,P152),"") -> 2741.330831 | S152: 0.3766103893 | T152: 0.4041717438 | U152: 8.752082187 | V152: 8.752082187 | W152: 0.004608756179 | X152: 55661.42559 | Y152: 168.5822025 | Z152: =IF(H152>0, rate1(1,$L$52,$L$51,$L$54,U152,$L$53,$L$50,Y152),"") -> 2738.887769 | AA152: 0.3741445704 | AB152: 0.007363930967 | AC152: 0.4041717438 | AD152: 0.09896782894 | AE152: -0.004757165187 | AF152: 114.8447816 | AG152: 87.5659191 | AH152: 8.792782891 | AI152: 147.4363252 | AJ152: 3.391472331 | AK152: 231.5487739 | AL152: 60.30932032
B153: 114.8447816 | C153: 87.5659191 | D153: 8.792782891 | E153: =IF(H153>0,IF(AND(C153<$B$6,C153>$H$12),bb2wang($B$6,$H$12,C153,$H$8,$H$9,I153,$H$10,$H$11,$K$10,$K$11,$H$13),E152),"") -> 320.5367871 | F153: 320.5367871 | G153: 62364.57776 | H153: 0.04 | I153: 21.82308998 | J153: 5000 | K153: 1 | L153: 8.832782891 | M153: 8.812782891 | N153: 0.2531483844 | O153: 53.73842024 | P153: 170.4013873 | Q153: 56932.36488 | R153: =IF(H153>0, rate1(1,$L$52,$L$51,$L$54,L153,$L$53,$L$50,P153),"") -> 2744.617538 | S153: 0.3860046129 | T153: 0.4122968832 | U153: 8.792782891 | V153: 8.792782891 | W153: 0.00465172099 | X153: 56511.66744 | Y153: 169.6288366 | Z153: =IF(H153>0, rate1(1,$L$52,$L$51,$L$54,U153,$L$53,$L$50,Y153),"") -> 2742.197835 | AA153: 0.3834903527 | AB153: 0.007545252553 | AC153: 0.4122968832 | AD153: 0.0970174688 | AE153: -0.004777550736 | AF153: 114.6856331 | AG153: 87.15362222 | AH153: 8.833487274 | AI153: 150.2201591 | AJ153: 3.433200153 | AK153: 240.6170549 | AL153: 61.04650195
B154: 114.6856331 | C154: 87.15362222 | D154: 8.833487274 | E154: =IF(H154>0,IF(AND(C154<$B$6,C154>$H$12),bb2wang($B$6,$H$12,C154,$H$8,$H$9,I154,$H$10,$H$11,$K$10,$K$11,$H$13),E153),"") -> 320.5367871 | F154: 320.5367871 | G154: 63230.75613 | H154: 0.04 | I154: 22.02560869 | J154: 5000 | K154: 1 | L154: 8.873487274 | M154: 8.853487274 | N154: 0.2543406099 | O154: 53.13364675 | P154: 171.4509243 | Q154: 57794.49219 | R154: =IF(H154>0, rate1(1,$L$52,$L$51,$L$54,L154,$L$53,$L$50,P154),"") -> 2747.87323 | S154: 0.3958404165 | T154: 0.4209824968 | U154: 8.833487274 | V154: 8.833487274 | W154: 0.004694889053 | X154: 57369.89511 | Y154: 170.677185 | Z154: =IF(H154>0, rate1(1,$L$52,$L$51,$L$54,U154,$L$53,$L$50,Y154),"") -> 2745.476572 | AA154: 0.3932753168 | AB154: 0.007738088104 | AC154: 0.4209824968 | AD154: 0.0950158268 | AE154: -0.004804251843 | AF154: 114.5189912 | AG154: 86.73263972 | AH154: 8.874195336 | AI154: 153.2030271 | AJ154: 3.475756549 | AK154: 249.9854717 | AL154: 61.79760275
B155: 114.5189912 | C155: 86.73263972 | D155: 8.874195336 | E155: =IF(H155>0,IF(AND(C155<$B$6,C155>$H$12),bb2wang($B$6,$H$12,C155,$H$8,$H$9,I155,$H$10,$H$11,$K$10,$K$11,$H$13),E154),"") -> 320.5367871 | F155: 320.5367871 | G155: 64104.9971 | H155: 0.04 | I155: 22.22908117 | J155: 5000 | K155: 1 | L155: 8.914195336 | M155: 8.894195336 | N155: 0.2555331426 | O155: 52.50132656 | P155: 172.5021674 | Q155: 58664.66238 | R155: =IF(H155>0, rate1(1,$L$52,$L$51,$L$54,L155,$L$53,$L$50,P155),"") -> 2751.098316 | S155: 0.4061628405 | T155: 0.4303084415 | U155: 8.874195336 | V155: 8.874195336 | W155: 0.00473826042 | X155: 58236.14733 | Y155: 171.727243 | Z155: =IF(H155>0, rate1(1,$L$52,$L$51,$L$54,U155,$L$53,$L$50,Y155),"") -> 2748.724398 | AA155: 0.4035442483 | AB155: 0.007944026706 | AC155: 0.4303084415 | AD155: 0.09295657753 | AE155: -0.004837944776 | AF155: 114.3442159 | AG155: 86.30233128 | AH155: 8.914907074 | AI155: 156.4133274 | AJ155: 3.519204695 | AK155: 259.672615 | AL155: 62.56361788
B156: 114.3442159 | C156: 86.30233128 | D156: 8.914907074 | E156: =IF(H156>0,IF(AND(C156<$B$6,C156>$H$12),bb2wang($B$6,$H$12,C156,$H$8,$H$9,I156,$H$10,$H$11,$K$10,$K$11,$H$13),E155),"") -> 320.5367871 | F156: 320.5367871 | G156: 64987.33946 | H156: 0.04 | I156: 22.43350769 | J156: 5000 | K156: 1 | L156: 8.954907074 | M156: 8.934907074 | N156: 0.2567259824 | O156: 51.83923405 | P156: 173.5551122 | Q156: 59542.91423 | R156: =IF(H156>0, rate1(1,$L$52,$L$51,$L$54,L156,$L$53,$L$50,P156),"") -> 2754.2932 | S156: 0.4170242796 | T156: 0.4403716543 | U156: 8.914907074 | V156: 8.914907074 | W156: 0.004781835143 | X156: 59110.46285 | Y156: 172.7790062 | Z156: =IF(H156>0, rate1(1,$L$52,$L$51,$L$54,U156,$L$53,$L$50,Y156),"") -> 2751.941722 | AA156: 0.4143492446 | AB156: 0.008164994409 | AC156: 0.4403716543 | AD156: 0.09083236764 | AE156: -0.004879426776 | AF156: 114.1605702 | AG156: 85.86195963 | AH156: 8.955622487 | AI156: 159.8855395 | AJ156: 3.563617345 | AK156: 269.6994909 | AL156: 63.34568452
B157: 114.1605702 | C157: 85.86195963 | D157: 8.955622487 | E157: =IF(H157>0,IF(AND(C157<$B$6,C157>$H$12),bb2wang($B$6,$H$12,C157,$H$8,$H$9,I157,$H$10,$H$11,$K$10,$K$11,$H$13),E156),"") -> 320.5367871 | F157: 320.5367871 | G157: 65877.82198 | H157: 0.04 | I157: 22.63888847 | J157: 5000 | K157: 1 | L157: 8.995622487 | M157: 8.975622487 | N157: 0.2579191294 | O157: 51.14482631 | P157: 174.6097541 | Q157: 60429.2865 | R157: =IF(H157>0, rate1(1,$L$52,$L$51,$L$54,L157,$L$53,$L$50,P157),"") -> 2757.458278 | S157: 0.4284861694 | T157: 0.4512911421 | U157: 8.955622487 | V157: 8.955622487 | W157: 0.004825613275 | X157: 59992.88044 | Y157: 173.83247 | Z157: =IF(H157>0, rate1(1,$L$52,$L$51,$L$54,U157,$L$53,$L$50,Y157),"") -> 2755.128943 | AA157: 0.4257513924 | AB157: 0.008403352157 | AC157: 0.4512911421 | AD157: 0.08863457814 | AE157: -0.004929642712 | AF157: 113.9671982 | AG157: 85.41066849 | AH157: 8.996341574 | AI157: 163.662002 | AJ157: 3.609079012 | AK157: 280.0900267 | AL157: 64.14511221
B158: 113.9671982 | C158: 85.41066849 | D158: 8.996341574 | E158: =IF(H158>0,IF(AND(C158<$B$6,C158>$H$12),bb2wang($B$6,$H$12,C158,$H$8,$H$9,I158,$H$10,$H$11,$K$10,$K$11,$H$13),E157),"") -> 320.5367871 | F158: 320.5367871 | G158: 66776.48347 | H158: =dv(S157) -> 0.04 | I158: 22.84522378 | J158: 5000 | K158: 1 | L158: 9.036341574 | M158: 9.016341574 | N158: 0.2591125835 | O158: 50.41517529 | P158: 175.6660887 | Q158: 61323.81799 | R158: =IF(H158>0, rate1(1,$L$52,$L$51,$L$54,L158,$L$53,$L$50,P158),"") -> 2760.593941 | S158: 0.4406211849 | T158: 0.4632148671 | U158: 8.996341574 | V158: 8.996341574 | W158: 0.004869594869 | X158: 60883.43888 | Y158: 174.8876299 | Z158: =IF(H158>0, rate1(1,$L$52,$L$51,$L$54,U158,$L$53,$L$50,Y158),"") -> 2758.286458 | AA158: 0.4378229531 | AB158: 0.008662030753 | AC158: 0.4632148671 | AD158: 0.0863530142 | AE158: -0.004989718847 | AF158: 113.7630959 | AG158: 84.94745362 | AH158: 9.037064332 | AI158: 167.7953647 | AJ158: 3.655688836 | AK158: 290.8717229 | AL158: 64.96342222
B159: 113.7630959 | C159: 84.94745362 | D159: 9.037064332 | E159: =IF(H159>0,IF(AND(C159<$B$6,C159>$H$12),bb2wang($B$6,$H$12,C159,$H$8,$H$9,I159,$H$10,$H$11,$K$10,$K$11,$H$13),E158),"") -> 320.5367871 | F159: 320.5367871 | G159: 67683.36275 | H159: 0.04 | I159: 23.05251384 | J159: 5000 | K159: 1 | L159: 9.077064332 | M159: 9.057064332 | N159: 0.2603063448 | O159: 49.64688009 | P159: 176.7241116 | Q159: 62226.54751 | R159: =IF(H159>0, rate1(1,$L$52,$L$51,$L$54,L159,$L$53,$L$50,P159),"") -> 2763.700571 | S159: 0.4535161486 | T159: 0.4763294361 | U159: 9.037064332 | V159: 9.037064332 | W159: 0.004913779975 | X159: 61782.17699 | Y159: 175.9444815 | Z159: =IF(H159>0, rate1(1,$L$52,$L$51,$L$54,U159,$L$53,$L$50,Y159),"") -> 2761.414655 | AA159: 0.450650254 | AB159: 0.008944720574 | AC159: 0.4763294361 | AD159: 0.08397549462 | AE159: -0.005061005799 | AF159: 113.5470728 | AG159: 84.47112418 | AH159: 9.077790761 | AI159: 172.3520417 | AJ159: 3.703564403 | AK159: 302.0765073 | AL159: 65.80239905
B160: 113.5470728 | C160: 84.47112418 | D160: 9.077790761 | E160: =IF(H160>0,IF(AND(C160<$B$6,C160>$H$12),bb2wang($B$6,$H$12,C160,$H$8,$H$9,I160,$H$10,$H$11,$K$10,$K$11,$H$13),E159),"") -> 320.5367871 | F160: 320.5367871 | G160: 68598.49867 | H160: 0.04 | I160: 23.26075892 | J160: 5000 | K160: 1 | L160: 9.117790761 | M160: 9.097790761 | N160: 0.2615004133 | O160: 48.83595196 | P160: 177.7838184 | Q160: 63137.51389 | R160: =IF(H160>0, rate1(1,$L$52,$L$51,$L$54,L160,$L$53,$L$50,P160),"") -> 2766.778546 | S160: 0.4672759399 | T160: 0.4908740432 | U160: 9.077790761 | V160: 9.077790761 | W160: 0.004958168647 | X160: 62689.13359 | Y160: 177.0030205 | Z160: =IF(H160>0, rate1(1,$L$52,$L$51,$L$54,U160,$L$53,$L$50,Y160),"") -> 2764.513915 | AA160: 0.4643375756 | AB160: 0.009256144208 | AC160: 0.4908740432 | AD160: 0.08148729915 | AE160: -0.005145133407 | AF160: 113.3176992 | AG160: 83.98025014 | AH160: 9.118520859 | AI160: 177.4171785 | AJ160: 3.752846953 | AK160: 313.7418731 | AL160: 66.66415926
B161: 113.3176992 | C161: 83.98025014 | D161: 9.118520859 | E161: =IF(H161>0,IF(AND(C161<$B$6,C161>$H$12),bb2wang($B$6,$H$12,C161,$H$8,$H$9,I161,$H$10,$H$11,$K$10,$K$11,$H$13),E160),"") -> 320.5367871 | F161: 320.5367871 | G161: 69521.93008 | H161: 0.04 | I161: 23.46995925 | J161: 5000 | K161: 1 | L161: 9.158520859 | M161: 9.138520859 | N161: 0.262694789 | O161: 47.97766073 | P161: 178.8452048 | Q161: 64056.75598 | R161: =IF(H161>0, rate1(1,$L$52,$L$51,$L$54,L161,$L$53,$L$50,P161),"") -> 2769.828237 | S161: 0.4820288517 | T161: 0.5071610452 | U161: 9.118520859 | V161: 9.118520859 | W161: 0.005002760938 | X161: 63604.34754 | Y161: 178.0632423 | Z161: =IF(H161>0, rate1(1,$L$52,$L$51,$L$54,U161,$L$53,$L$50,Y161),"") -> 2767.584614 | AA161: 0.4790124765 | AB161: 0.00960245824 | AC161: 0.5071610452 | AD161: 0.07887041085 | AE161: -0.005244080761 | AF161: 113.0732329 | AG161: 83.47308909 | AH161: 9.159254625 | AI161: 183.1019839 | AJ161: 3.803708615 | AK161: 325.9124252 | AL161: 67.55124515
B162: 113.0732329 | C162: 83.47308909 | D162: 9.159254625 | E162: =IF(H162>0,IF(AND(C162<$B$6,C162>$H$12),bb2wang($B$6,$H$12,C162,$H$8,$H$9,I162,$H$10,$H$11,$K$10,$K$11,$H$13),E161),"") -> 320.5367871 | F162: 320.5367871 | G162: 70453.69588 | H162: 0.04 | I162: 23.68011508 | J162: 5000 | K162: 1 | L162: 9.199254625 | M162: 9.179254625 | N162: 0.2638894718 | O162: 47.06632586 | P162: 179.9082664 | Q162: 64984.31266 | R162: =IF(H162>0, rate1(1,$L$52,$L$51,$L$54,L162,$L$53,$L$50,P162),"") -> 2772.850008 | S162: 0.4979340835 | T162: 0.5256072224 | U162: 9.159254625 | V162: 9.159254625 | W162: 0.005047556899 | X162: 64527.85769 | Y162: 179.1251428 | Z162: =IF(H162>0, rate1(1,$L$52,$L$51,$L$54,U162,$L$53,$L$50,Y162),"") -> 2770.627122 | AA162: 0.4948332435 | AB162: 0.009991862755 | AC162: 0.5256072224 | AD162: 0.07610245502 | AE162: -0.005360265052 | AF162: 112.8115152 | AG162: 82.94748187 | AH162: 9.199992057 | AI162: 189.5548699 | AJ162: 3.856362745 | AK162: 338.6420285 | AL162: 68.46675507
B163: 112.8115152 | C163: 82.94748187 | D163: 9.199992057 | E163: =IF(H163>0,IF(AND(C163<$B$6,C163>$H$12),bb2wang($B$6,$H$12,C163,$H$8,$H$9,I163,$H$10,$H$11,$K$10,$K$11,$H$13),E162),"") -> 320.5367871 | F163: 320.5367871 | G163: 71393.83496 | H163: 0.04 | I163: 23.89122666 | J163: 5000 | K163: 1 | L163: 9.239992057 | M163: 9.219992057 | N163: 0.2650844619 | O163: 46.09502578 | P163: 180.9729991 | Q163: 65920.22281 | R163: =IF(H163>0, rate1(1,$L$52,$L$51,$L$54,L163,$L$53,$L$50,P163),"") -> 2775.844217 | S163: 0.5151924796 | T163: 0.5467829 | U163: 9.199992057 | V163: 9.199992057 | W163: 0.005092556583 | X163: 65459.70293 | Y163: 180.1887176 | Z163: =IF(H163>0, rate1(1,$L$52,$L$51,$L$54,U163,$L$53,$L$50,Y163),"") -> 2773.6418 | AA163: 0.5119995675 | AB163: 0.01043555752 | AC163: 0.5467829 | AD163: 0.07315517731 | AE163: -0.005496652108 | AF163: 112.5298168 | AG163: 82.40069897 | AH163: 9.240733154 | AI163: 196.9789575 | AJ163: 3.911079123 | AK163: 351.9968696 | AL163: 69.41452942
B164: 112.5298168 | C164: 82.40069897 | D164: 9.240733154 | E164: =IF(H164>0,IF(AND(C164<$B$6,C164>$H$12),bb2wang($B$6,$H$12,C164,$H$8,$H$9,I164,$H$10,$H$11,$K$10,$K$11,$H$13),E163),"") -> 320.5367871 | F164: 320.5367871 | G164: 71876.48869 | H164: 0.02 | I164: 24.10329423 | J164: 5000 | K164: 1 | L164: 9.260733154 | M164: 9.250733154 | N164: 0.1356381863 | O164: 45.055183 | P164: 181.6464682 | Q164: 66631.97264 | R164: =IF(H164>0, rate1(1,$L$52,$L$51,$L$54,L164,$L$53,$L$50,P164),"") -> 2777.721665 | S164: 0.5324136563 | T164: 0.2900815821 | U164: 9.240733154 | V164: 9.240733154 | W164: 0.005137760043 | X164: 66399.92216 | Y164: 181.2539625 | Z164: =IF(H164>0, rate1(1,$L$52,$L$51,$L$54,U164,$L$53,$L$50,Y164),"") -> 2776.629007 | AA164: 0.5307682744 | AB164: 0.01094930237 | AC164: 0.2900815821 | AD164: 0.06894612149 | AE164: -0.01005910971 | AF164: 112.3753734 | AG164: 82.11061739 | AH164: 9.261510211 | AI164: 104.4314791 | AJ164: 3.940087867 | AK164: 366.0599528 | AL164: 70.39942421
B165: 112.3753734 | C165: 82.11061739 | D165: 9.261510211 | E165: =IF(H165>0,IF(AND(C165<$B$6,C165>$H$12),bb2wang($B$6,$H$12,C165,$H$8,$H$9,I165,$H$10,$H$11,$K$10,$K$11,$H$13),E164),"") -> 320.5367871 | F165: 320.5367871 | G165: 72361.35484 | H165: 0.02 | I165: 24.21180478 | J165: 5000 | K165: 1 | L165: 9.281510211 | M165: 9.271510211 | N165: 0.1359545772 | O165: 43.93595404 | P165: 182.1906182 | Q165: 67115.71163 | R165: =IF(H165>0, rate1(1,$L$52,$L$51,$L$54,L165,$L$53,$L$50,P165),"") -> 2779.229396 | S165: 0.5496417876 | T165: 0.3018809771 | U165: 9.261510211 | V165: 9.261510211 | W165: 0.005160889709 | X165: 66882.61705 | Y165: 181.7978184 | Z165: =IF(H165>0, rate1(1,$L$52,$L$51,$L$54,U165,$L$53,$L$50,Y165),"") -> 2778.141849 | AA165: 0.5479472862 | AB165: 0.01141656615 | AC165: 0.3018809771 | AD165: 0.06625127622 | AE165: -0.009104782838 | AF165: 112.209447 | AG165: 81.80873641 | AH165: 9.282289064 | AI165: 108.6203886 | AJ165: 3.970260197 | AK165: 373.5661208 | AL165: 70.9215816
B166: 112.209447 | C166: 81.80873641 | D166: 9.282289064 | E166: =IF(H166>0,IF(AND(C166<$B$6,C166>$H$12),bb2wang($B$6,$H$12,C166,$H$8,$H$9,I166,$H$10,$H$11,$K$10,$K$11,$H$13),E165),"") -> 320.5367871 | F166: 320.5367871 | G166: 72848.43883 | H166: 0.02 | I166: 24.32056844 | J166: 5000 | K166: 1 | L166: 9.302289064 | M166: 9.292289064 | N166: 0.1362710474 | O166: 43.32232792 | P166: 182.7352226 | Q166: 67601.66565 | R166: =IF(H166>0, rate1(1,$L$52,$L$51,$L$54,L166,$L$53,$L$50,P166),"") -> 2780.730214 | S166: 0.5611600635 | T166: 0.3105256291 | U166: 9.282289064 | V166: 9.282289064 | W166: 0.005184073329 | X166: 67367.52454 | Y166: 182.3421291 | Z166: =IF(H166>0, rate1(1,$L$52,$L$51,$L$54,U166,$L$53,$L$50,Y166),"") -> 2779.647747 | AA166: 0.5594342363 | AB166: 0.0117668547 | AC166: 0.3105256291 | AD166: 0.06440692209 | AE166: -0.006023299246 | AF166: 112.0351924 | AG166: 81.49821078 | AH166: 9.303069712 | AI166: 111.6705344 | AJ166: 4.00127979 | AK166: 381.4260393 | AL166: 71.46468354
B167: 112.0351924 | C167: 81.49821078 | D167: 9.303069712 | E167: =IF(H167>0,IF(AND(C167<$B$6,C167>$H$12),bb2wang($B$6,$H$12,C167,$H$8,$H$9,I167,$H$10,$H$11,$K$10,$K$11,$H$13),E166),"") -> 320.5367871 | F167: 320.5367871 | G167: 73337.7461 | H167: 0.02 | I167: 24.42958528 | J167: 5000 | K167: 1 | L167: 9.323069712 | M167: 9.313069712 | N167: 0.1365875968 | O167: 42.66307814 | P167: 183.2802807 | Q167: 68089.84014 | R167: =IF(H167>0, rate1(1,$L$52,$L$51,$L$54,L167,$L$53,$L$50,P167),"") -> 2782.224165 | S167: 0.5736381276 | T167: 0.3203560301 | U167: 9.303069712 | V167: 9.303069712 | W167: 0.005207310914 | X167: 67854.65006 | Y167: 182.886894 | Z167: =IF(H167>0, rate1(1,$L$52,$L$51,$L$54,U167,$L$53,$L$50,Y167),"") -> 2781.146744 | AA167: 0.571878177 | AB167: 0.01216315225 | AC167: 0.3203560301 | AD167: 0.06243054014 | AE167: -0.006265460154 | AF167: 111.8514239 | AG167: 81.17785475 | AH167: 9.323852156 | AI167: 115.1438601 | AJ167: 4.033264195 | AK167: 389.5610634 | AL167: 72.02303622
B168: 111.8514239 | C168: 81.17785475 | D168: 9.323852156 | E168: =IF(H168>0,IF(AND(C168<$B$6,C168>$H$12),bb2wang($B$6,$H$12,C168,$H$8,$H$9,I168,$H$10,$H$11,$K$10,$K$11,$H$13),E167),"") -> 320.5367871 | F168: 320.5367871 | G168: 73829.28209 | H168: 0.02 | I168: 24.53885535 | J168: 5000 | K168: 1 | L168: 9.343852156 | M168: 9.333852156 | N168: 0.1369042256 | O168: 41.97073928 | P168: 183.8257921 | Q168: 68580.24054 | R168: =IF(H168>0, rate1(1,$L$52,$L$51,$L$54,L168,$L$53,$L$50,P168),"") -> 2783.711292 | S168: 0.586986609 | T168: 0.3314764814 | U168: 9.323852156 | V168: 9.323852156 | W168: 0.005230602479 | X168: 68343.99905 | Y168: 183.4321126 | Z168: =IF(H168>0, rate1(1,$L$52,$L$51,$L$54,U168,$L$53,$L$50,Y168),"") -> 2782.638884 | AA168: 0.5851900304 | AB168: 0.0126096354 | AC168: 0.3314764814 | AD168: 0.06033610564 | AE168: -0.00642629653 | AF168: 111.6568517 | AG168: 80.84637827 | AH168: 9.344636395 | AI168: 119.0771767 | AJ168: 4.066341189 | AK168: 398.0054546 | AL168: 72.59875552
B169: 111.6568517 | C169: 80.84637827 | D169: 9.344636395 | E169: =IF(H169>0,IF(AND(C169<$B$6,C169>$H$12),bb2wang($B$6,$H$12,C169,$H$8,$H$9,I169,$H$10,$H$11,$K$10,$K$11,$H$13),E168),"") -> 320.5367871 | F169: 320.5367871 | G169: 74323.05224 | H169: 0.02 | I169: 24.64837874 | J169: 5000 | K169: 1 | L169: 9.364636395 | M169: 9.354636395 | N169: 0.1372209338 | O169: 41.24060051 | P169: 184.3717563 | Q169: 69072.87228 | R169: =IF(H169>0, rate1(1,$L$52,$L$51,$L$54,L169,$L$53,$L$50,P169),"") -> 2785.19164 | S169: 0.6013501898 | T169: 0.3442142207 | U169: 9.344636395 | V169: 9.344636395 | W169: 0.005253948036 | X169: 68835.57695 | Y169: 183.9777844 | Z169: =IF(H169>0, rate1(1,$L$52,$L$51,$L$54,U169,$L$53,$L$50,Y169),"") -> 2784.124212 | AA169: 0.599514055 | AB169: 0.01311893239 | AC169: 0.3442142207 | AD169: 0.05810335191 | AE169: -0.006608804066 | AF169: 111.4498584 | AG169: 80.50216405 | AH169: 9.36542243 | AI169: 123.5872662 | AJ169: 4.100670985 | AK169: 406.7968371 | AL169: 73.1941414
B170: 111.4498584 | C170: 80.50216405 | D170: 9.36542243 | E170: =IF(H170>0,IF(AND(C170<$B$6,C170>$H$12),bb2wang($B$6,$H$12,C170,$H$8,$H$9,I170,$H$10,$H$11,$K$10,$K$11,$H$13),E169),"") -> 320.5367871 | F170: 320.5367871 | G170: 74819.06199 | H170: 0.02 | I170: 24.75815548 | J170: 5000 | K170: 1 | L170: 9.38542243 | M170: 9.37542243 | N170: 0.1375377213 | O170: 40.46753657 | P170: 184.9181729 | Q170: 69567.7408 | R170: =IF(H170>0, rate1(1,$L$52,$L$51,$L$54,L170,$L$53,$L$50,P170),"") -> 2786.665251 | S170: 0.6169022156 | T170: 0.3590146611 | U170: 9.36542243 | V170: 9.36542243 | W170: 0.005277347601 | X170: 69329.3892 | Y170: 184.5239089 | Z170: =IF(H170>0, rate1(1,$L$52,$L$51,$L$54,U170,$L$53,$L$50,Y170),"") -> 2785.602772 | AA170: 0.6150230889 | AB170: 0.01370821846 | AC170: 0.3590146611 | AD170: 0.05570803136 | AE170: -0.006812349767 | AF170: 111.2283815 | AG170: 80.14314939 | AH170: 9.386210262 | AI170: 128.8330778 | AJ170: 4.136457951 | AK170: 415.9822199 | AL170: 73.81207773
B171: 111.2283815 | C171: 80.14314939 | D171: 9.386210262 | E171: =IF(H171>0,IF(AND(C171<$B$6,C171>$H$12),bb2wang($B$6,$H$12,C171,$H$8,$H$9,I171,$H$10,$H$11,$K$10,$K$11,$H$13),E170),"") -> 320.5367871 | F171: 320.5367871 | G171: 75317.31681 | H171: 0.02 | I171: 24.86818566 | J171: 5000 | K171: 1 | L171: 9.406210262 | M171: 9.396210262 | N171: 0.1378545881 | O171: 39.64512206 | P171: 185.4650413 | Q171: 70064.85157 | R171: =IF(H171>0, rate1(1,$L$52,$L$51,$L$54,L171,$L$53,$L$50,P171),"") -> 2788.132169 | S171: 0.6338654635 | T171: 0.376513479 | U171: 9.386210262 | V171: 9.386210262 | W171: 0.005300801185 | X171: 69825.44124 | Y171: 185.0704857 | Z171: =IF(H171>0, rate1(1,$L$52,$L$51,$L$54,U171,$L$53,$L$50,Y171),"") -> 2787.074607 | AA171: 0.6319392566 | AB171: 0.01440197381 | AC171: 0.376513479 | AD171: 0.05311894823 | AE171: -0.00704006545 | AF171: 110.9897226 | AG171: 79.76663591 | AH171: 9.406999889 | AI171: 135.0414744 | AJ171: 4.173969472 | AK171: 425.6213899 | AL171: 74.45624312
B172: 110.9897226 | C172: 79.76663591 | D172: 9.406999889 | E172: =IF(H172>0,IF(AND(C172<$B$6,C172>$H$12),bb2wang($B$6,$H$12,C172,$H$8,$H$9,I172,$H$10,$H$11,$K$10,$K$11,$H$13),E171),"") -> 320.5367871 | F172: 320.5367871 | G172: 75817.82212 | H172: 0.02 | I172: 24.97846933 | J172: 5000 | K172: 1 | L172: 9.426999889 | M172: 9.416999889 | N172: 0.1381715344 | O172: 38.76516189 | P172: 186.012361 | Q172: 70564.21002 | R172: =IF(H172>0, rate1(1,$L$52,$L$51,$L$54,L172,$L$53,$L$50,P172),"") -> 2789.592436 | S172: 0.6525324669 | T172: 0.3976530789 | U172: 9.406999889 | V172: 9.406999889 | W172: 0.005324308803 | X172: 70323.73854 | Y172: 185.6175142 | Z172: =IF(H172>0, rate1(1,$L$52,$L$51,$L$54,U172,$L$53,$L$50,Y172),"") -> 2788.539759 | AA172: 0.6505542335 | AB172: 0.01523643814 | AC172: 0.3976530789 | AD172: 0.05029509656 | AE172: -0.007295204494 | AF172: 110.730241 | AG172: 79.36898283 | AH172: 9.427791312 | AI172: 142.5488088 | AJ172: 4.213566363 | AK172: 435.7923515 | AL172: 75.13145049
B173: 110.730241 | C173: 79.36898283 | D173: 9.427791312 | E173: =IF(H173>0,IF(AND(C173<$B$6,C173>$H$12),bb2wang($B$6,$H$12,C173,$H$8,$H$9,I173,$H$10,$H$11,$K$10,$K$11,$H$13),E172),"") -> 320.5367871 | F173: 320.5367871 | G173: 76320.5834 | H173: 0.02 | I173: 25.08900656 | J173: 5000 | K173: 1 | L173: 9.447791312 | M173: 9.437791312 | N173: 0.13848856 | O173: 37.81693533 | P173: 186.5601315 | Q173: 71065.8216 | R173: =IF(H173>0, rate1(1,$L$52,$L$51,$L$54,L173,$L$53,$L$50,P173),"") -> 2791.046095 | S173: 0.6732981813 | T173: 0.4238989564 | U173: 9.427791312 | V173: 9.427791312 | W173: 0.005347870469 | X173: 70824.28653 | Y173: 186.1649939 | Z173: =IF(H173>0, rate1(1,$L$52,$L$51,$L$54,U173,$L$53,$L$50,Y173),"") -> 2789.998272 | AA173: 0.6712618152 | AB173: 0.01626787126 | AC173: 0.4238989564 | AD173: 0.04718105506 | AE173: -0.00758087464 | AF173: 110.4448306 | AG173: 78.94508388 | AH173: 9.448584531 | AI173: 151.8781639 | AJ173: 4.255754742 | AK173: 446.6000917 | AL173: 75.84419454
B174: 110.4448306 | C174: 78.94508388 | D174: 9.448584531 | E174: =IF(H174>0,IF(AND(C174<$B$6,C174>$H$12),bb2wang($B$6,$H$12,C174,$H$8,$H$9,I174,$H$10,$H$11,$K$10,$K$11,$H$13),E173),"") -> 320.5367871 | F174: 320.5367871 | G174: 76825.60609 | H174: 0.02 | I174: 25.19979741 | J174: 5000 | K174: 1 | L174: 9.468584531 | M174: 9.458584531 | N174: 0.138805665 | O174: 36.78597732 | P174: 187.1083524 | Q174: 71569.69178 | R174: =IF(H174>0, rate1(1,$L$52,$L$51,$L$54,L174,$L$53,$L$50,P174),"") -> 2792.493188 | S174: 0.6967143019 | T174: 0.4576729661 | U174: 9.448584531 | V174: 9.448584531 | W174: 0.005371486195 | X174: 71327.09068 | Y174: 186.7129244 | Z174: =IF(H174>0, rate1(1,$L$52,$L$51,$L$54,U174,$L$53,$L$50,Y174),"") -> 2791.450188 | AA174: 0.6946120753 | AB174: 0.0175890589 | AC174: 0.4576729661 | AD174: 0.04369932567 | AE174: -0.007898911698 | AF174: 110.1259633 | AG174: 78.48741091 | AH174: 9.469379546 | AI174: 163.8940314 | AJ174: 4.301280862 | AK174: 458.1915218 | AL174: 76.60358536
B175: 110.1259633 | C175: 78.48741091 | D175: 9.469379546 | E175: =IF(H175>0,IF(AND(C175<$B$6,C175>$H$12),bb2wang($B$6,$H$12,C175,$H$8,$H$9,I175,$H$10,$H$11,$K$10,$K$11,$H$13),E174),"") -> 320.5367871 | F175: 320.5367871 | G175: 77332.89566 | H175: 0.02 | I175: 25.31084194 | J175: 5000 | K175: 1 | L175: 9.489379546 | M175: 9.479379546 | N175: 0.1391228495 | O175: 35.65200021 | P175: 187.6570231 | Q175: 72075.826 | R175: =IF(H175>0, rate1(1,$L$52,$L$51,$L$54,L175,$L$53,$L$50,P175),"") -> 2793.933757 | S175: 0.7235851125 | T175: 0.5033117094 | U175: 9.469379546 | V175: 9.469379546 | W175: 0.005395155995 | X175: 71832.15643 | Y175: 187.2613052 | Z175: =IF(H175>0, rate1(1,$L$52,$L$51,$L$54,U175,$L$53,$L$50,Y175),"") -> 2792.895548 | AA175: 0.7214069303 | AB175: 0.0193657222 | AC175: 0.5033117094 | AD175: 0.03973680649 | AE175: -0.008246789541 | AF175: 109.7617745 | AG175: 77.9840992 | AH175: 9.490176357 | AI175: 180.1444677 | AJ175: 4.351320992 | AK175: 470.7827801 | AL175: 77.42305551
B176: 109.7617745 | C176: 77.9840992 | D176: 9.490176357 | E176: =IF(H176>0,IF(AND(C176<$B$6,C176>$H$12),bb2wang($B$6,$H$12,C176,$H$8,$H$9,I176,$H$10,$H$11,$K$10,$K$11,$H$13),E175),"") -> 320.5367871 | F176: 320.5367871 | G176: 77842.45756 | H176: 0.02 | I176: 25.42214022 | J176: 5000 | K176: 1 | L176: 9.510176357 | M176: 9.500176357 | N176: 0.1394401134 | O176: 34.38509394 | P176: 188.2061433 | Q176: 72584.22973 | R176: =IF(H176>0, rate1(1,$L$52,$L$51,$L$54,L176,$L$53,$L$50,P176),"") -> 2795.367842 | S176: 0.7551497668 | T176: 0.5694914462 | U176: 9.490176357 | V176: 9.490176357 | W176: 0.005418879883 | X176: 72339.48924 | Y176: 187.8101357 | Z176: =IF(H176>0, rate1(1,$L$52,$L$51,$L$54,U176,$L$53,$L$50,Y176),"") -> 2794.334394 | AA176: 0.752881883 | AB176: 0.0219282987 | AC176: 0.5694914462 | AD176: 0.03511905251 | AE176: -0.008608762865 | AF176: 109.3317231 | AG176: 77.41460775 | AH176: 9.510974964 | AI176: 203.7268361 | AJ176: 4.40791178 | AK176: 484.7138734 | AL176: 78.32377785
B177: 109.3317231 | C177: 77.41460775 | D177: 9.510974964 | E177: =IF(H177>0,IF(AND(C177<$B$6,C177>$H$12),bb2wang($B$6,$H$12,C177,$H$8,$H$9,I177,$H$10,$H$11,$K$10,$K$11,$H$13),E176),"") -> 320.5367871 | F177: 320.5367871 | G177: 78354.29725 | H177: 0.02 | I177: 25.53369231 | J177: 5000 | K177: 1 | L177: 9.530974964 | M177: 9.520974964 | N177: 0.1397574568 | O177: 32.93811851 | P177: 188.7557124 | Q177: 73094.90843 | R177: =IF(H177>0, rate1(1,$L$52,$L$51,$L$54,L177,$L$53,$L$50,P177),"") -> 2796.795484 | S177: 0.7934647337 | T177: 0.6766759946 | U177: 9.510974964 | V177: 9.510974964 | W177: 0.005442657872 | X177: 72849.09459 | Y177: 188.3594156 | Z177: =IF(H177>0, rate1(1,$L$52,$L$51,$L$54,U177,$L$53,$L$50,Y177),"") -> 2795.766768 | AA177: 0.7910873364 | AB177: 0.0260523119 | AC177: 0.6766759946 | AD177: 0.02955624281 | AE177: -0.008927868785 | AF177: 108.7948046 | AG177: 76.73793176 | AH177: 9.531775367 | AI177: 241.946899 | AJ177: 4.475119252 | AK177: 500.572471 | AL177: 79.34241203
B178: 108.7948046 | C178: 76.73793176 | D178: 9.531775367 | E178: =IF(H178>0,IF(AND(C178<$B$6,C178>$H$12),bb2wang($B$6,$H$12,C178,$H$8,$H$9,I178,$H$10,$H$11,$K$10,$K$11,$H$13),E177),"") -> 320.5367871 | F178: 320.5367871 | G178: 78868.42021 | H178: 0.02 | I178: 25.64549827 | J178: 5000 | K178: 1 | L178: 9.551775367 | M178: 9.541775367 | N178: 0.1400748796 | O178: 31.22946187 | P178: 189.3057299 | Q178: 73607.86756 | R178: =IF(H178>0, rate1(1,$L$52,$L$51,$L$54,L178,$L$53,$L$50,P178),"") -> 2798.216726 | S178: 0.8423224724 | T178: 0.8883629882 | U178: 9.531775367 | V178: 9.531775367 | W178: 0.005466489977 | X178: 73360.97793 | Y178: 188.9091443 | Z178: =IF(H178>0, rate1(1,$L$52,$L$51,$L$54,U178,$L$53,$L$50,Y178),"") -> 2797.19271 | AA178: 0.8398045506 | AB178: 0.03412387802 | AC178: 0.8883629882 | AD178: 0.02251331974 | AE178: -0.00900031647 | AF178: 108.0465165 | AG178: 75.84956877 | AH178: 9.552577567 | AI178: 317.4746902 | AJ178: 4.563306665 | AK178: 519.5300502 | AL178: 80.55214653
B179: 108.0465165 | C179: 75.84956877 | D179: 9.552577567 | E179: =IF(H179>0,IF(AND(C179<$B$6,C179>$H$12),bb2wang($B$6,$H$12,C179,$H$8,$H$9,I179,$H$10,$H$11,$K$10,$K$11,$H$13),E178),"") -> 320.5367871 | F179: 320.5367871 | G179: 79136.5187 | H179: 0.01 | I179: 25.75755818 | J179: 5000 | K179: 1 | L179: 9.562577567 | M179: 9.557577567 | N179: 0.07292373573 | O179: 29.09620624 | P179: 189.6577064 | Q179: 73999.06379 | R179: =IF(H179>0, rate1(1,$L$52,$L$51,$L$54,L179,$L$53,$L$50,P179),"") -> 2799.122286 | S179: 0.9085900714 | T179: 0.7977660286 | U179: 9.552577567 | V179: 9.552577567 | W179: 0.005490376209 | X179: 73875.14472 | Y179: 189.4593213 | Z179: =IF(H179>0, rate1(1,$L$52,$L$51,$L$54,U179,$L$53,$L$50,Y179),"") -> 2798.612261 | AA179: 0.9072338497 | AB179: 0.05918512507 | AC179: 0.7977660286 | AD179: 0.01253500355 | AE179: -0.01183576831 | AF179: 107.3216742 | AG179: 75.05180274 | AH179: 9.563389394 | AI179: 285.0057793 | AJ179: 4.642474938 | AK179: 544.5687775 | AL179: 82.13951998
B180: 107.3216742 | C180: 75.05180274 | D180: 9.563389394 | E180: =IF(H180>0,IF(AND(C180<$B$6,C180>$H$12),bb2wang($B$6,$H$12,C180,$H$8,$H$9,I180,$H$10,$H$11,$K$10,$K$11,$H$13),E179),"") -> 320.5367871 | F180: 320.5367871 | G180: 79280.95568 | H180: 0.005 | I180: 25.81589717 | J180: 5000 | K180: 1 | L180: 9.568389394 | M180: 9.565889394 | N180: 0.03925323177 | O180: 26.1231485 | P180: 189.8446479 | Q180: 74205.34967 | R180: =IF(H180>0, rate1(1,$L$52,$L$51,$L$54,L180,$L$53,$L$50,P180),"") -> 2799.602002 | S180: 1.014643322 | T180: -2.680623423 | U180: 9.563389394 | V180: 9.563389394 | W180: 0.005502811511 | X180: 74143.26606 | Y180: 189.7454309 | Z180: =IF(H180>0, rate1(1,$L$52,$L$51,$L$54,U180,$L$53,$L$50,Y180),"") -> 2799.347506 | AA180: 1.013886591 | AB180: -0.3962679767 | AC180: 0.9191825531 | AD180: 0.005439615866 | AE180: -0.008265113771 | AF180: 106.4417449 | AG180: 74.13262019 | AH180: 9.569204103 | AI180: 328.3261523 | AJ180: 4.733676646 | AK180: 567.1231427 | AL180: 83.56454888
B181: 106.4417449 | C181: 74.13262019 | D181: 9.569204103 | E181: =IF(H181>0,IF(AND(C181<$B$6,C181>$H$12),bb2wang($B$6,$H$12,C181,$H$8,$H$9,I181,$H$10,$H$11,$K$10,$K$11,$H$13),E180),"") -> 320.5367871 | F181: 320.5367871 | G181: 79176.98794 | H181: 0.005 | I181: 25.84729975 | J181: 5000 | K181: -1 | L181: 9.564204103 | M181: 9.566704103 | N181: -0.0282526116 | O181: 23.2432444 | P181: 189.8001369 | Q181: 74225.58872 | R181: =IF(H181>0, rate1(1,$L$52,$L$51,$L$54,L181,$L$53,$L$50,P181),"") -> 2799.487859 | S181: 1.14071805 | T181: 0.2007746094 | U181: 9.569204103 | V181: 9.569204103 | W181: 0.005509505158 | X181: 74287.71536 | Y181: 189.8993481 | Z181: =IF(H181>0, rate1(1,$L$52,$L$51,$L$54,U181,$L$53,$L$50,Y181),"") -> 2799.742207 | AA181: 1.141569111 | AB181: -0.03891742418 | AC181: 0.2007746094 | AD181: -0.02490354739 | AE181: -0.05418629259 | AF181: 106.2127177 | AG181: 73.93184558 | AH181: 9.565019308 | AI181: 71.71833548 | AJ181: 4.753598406 | AK181: 593.1531538 | AL181: 85.20617964
B182: 106.2127177 | C182: 73.93184558 | D182: 9.565019308 | E182: =IF(H182>0,IF(AND(C182<$B$6,C182>$H$12),bb2wang($B$6,$H$12,C182,$H$8,$H$9,I182,$H$10,$H$11,$K$10,$K$11,$H$13),E181),"") -> 320.5367871 | F182: 320.5367871 | G182: 78701.26941 | H182: 0.02 | I182: 25.82469766 | J182: 5000 | K182: -1 | L182: 9.545019308 | M182: 9.555019308 | N182: -0.1294317827 | O182: 19.74715693 | P182: 189.3919406 | Q182: 73935.64418 | R182: =IF(H182>0, rate1(1,$L$52,$L$51,$L$54,L182,$L$53,$L$50,P182),"") -> 2798.438811 | S182: 1.337930235 | T182: 0.3830133238 | U182: 9.565019308 | V182: 9.565019308 | W182: 0.005504687388 | X182: 74183.73876 | Y182: 189.7885721 | Z182: =IF(H182>0, rate1(1,$L$52,$L$51,$L$54,U182,$L$53,$L$50,Y182),"") -> 2799.458195 | AA182: 1.341930901 | AB182: -0.01609882983 | AC182: 0.3830133238 | AD182: -0.0522175046 | AE182: -0.09357492904 | AF182: 105.7002726 | AG182: 73.54883226 | AH182: 9.545824335 | AI182: 136.8667852 | AJ182: 4.791616958 | AK182: 598.8315956 | AL182: 85.56477131
B183: 105.7002726 | C183: 73.54883226 | D183: 9.545824335 | E183: =IF(H183>0,IF(AND(C183<$B$6,C183>$H$12),bb2wang($B$6,$H$12,C183,$H$8,$H$9,I183,$H$10,$H$11,$K$10,$K$11,$H$13),E182),"") -> 320.5367871 | F183: 320.5367871 | G183: 78227.41938 | H183: 0.02 | I183: 25.72115224 | J183: 5000 | K183: -1 | L183: 9.525824335 | M183: 9.535824335 | N183: -0.1291829234 | O183: 18.83719839 | P183: 188.8843028 | Q183: 73460.88035 | R183: =IF(H183>0, rate1(1,$L$52,$L$51,$L$54,L183,$L$53,$L$50,P183),"") -> 2797.128437 | S183: 1.39420748 | T183: 0.3277028719 | U183: 9.545824335 | V183: 9.545824335 | W183: 0.005482616067 | X183: 73707.97967 | Y183: 189.2806677 | Z183: =IF(H183>0, rate1(1,$L$52,$L$51,$L$54,U183,$L$53,$L$50,Y183),"") -> 2798.152129 | AA183: 1.398385375 | AB183: -0.0137620917 | AC183: 0.3277028719 | AD183: -0.06103089632 | AE183: -0.02480143767 | AF183: 105.2433868 | AG183: 73.22112938 | AH183: 9.526627704 | AI183: 117.1568912 | AJ183: 4.824160539 | AK183: 609.6031853 | AL183: 86.24910524
B184: 105.2433868 | C184: 73.22112938 | D184: 9.526627704 | E184: =IF(H184>0,IF(AND(C184<$B$6,C184>$H$12),bb2wang($B$6,$H$12,C184,$H$8,$H$9,I184,$H$10,$H$11,$K$10,$K$11,$H$13),E183),"") -> 320.5367871 | F184: 320.5367871 | G184: 77755.43449 | H184: 0.02 | I184: 25.6178059 | J184: 5000 | K184: -1 | L184: 9.506627704 | M184: 9.516627704 | N184: -0.1289339982 | O184: 16.80117927 | P184: 188.3769624 | Q184: 72987.98327 | R184: =IF(H184>0, rate1(1,$L$52,$L$51,$L$54,L184,$L$53,$L$50,P184),"") -> 2795.8124 | S184: 1.553830247 | T184: 0.2328041831 | U184: 9.526627704 | V184: 9.526627704 | W184: 0.005460587182 | X184: 73234.08924 | Y184: 188.7730606 | Z184: =IF(H184>0, rate1(1,$L$52,$L$51,$L$54,U184,$L$53,$L$50,Y184),"") -> 2796.840427 | AA184: 1.558496497 | AB184: -0.009777298896 | AC184: 0.2328041831 | AD184: -0.08590910924 | AE184: -0.08877038281 | AF184: 104.8816486 | AG184: 72.9883252 | AH184: 9.507429415 | AI184: 83.26888568 | AJ184: 4.847290785 | AK184: 618.7680666 | AL184: 86.8348897
B185: 104.8816486 | C185: 72.9883252 | D185: 9.507429415 | E185: =IF(H185>0,IF(AND(C185<$B$6,C185>$H$12),bb2wang($B$6,$H$12,C185,$H$8,$H$9,I185,$H$10,$H$11,$K$10,$K$11,$H$13),E184),"") -> 320.5367871 | F185: 320.5367871 | G185: 77285.31139 | H185: 0.02 | I185: 25.5146587 | J185: 5000 | K185: -1 | L185: 9.487429415 | M185: 9.497429415 | N185: -0.1286850073 | O185: 14.9859054 | P185: 187.8699202 | Q185: 72516.94958 | R185: =IF(H185>0, rate1(1,$L$52,$L$51,$L$54,L185,$L$53,$L$50,P185),"") -> 2794.490666 | S185: 1.731625119 | T185: 0.1758892689 | U185: 9.507429415 | V185: 9.507429415 | W185: 0.005438600746 | X185: 72762.0641 | Y185: 188.2657512 | Z185: =IF(H185>0, rate1(1,$L$52,$L$51,$L$54,U185,$L$53,$L$50,Y185),"") -> 2795.523055 | AA185: 1.736836532 | AB185: -0.007381013978 | AC185: 0.1758892689 | AD185: -0.1137079034 | AE185: -0.1360373847 | AF185: 104.5770743 | AG185: 72.81243593 | AH185: 9.488229467 | AI185: 62.94144083 | AJ185: 4.864774518 | AK185: 625.242675 | AL185: 87.25123412
B186: 104.5770743 | C186: 72.81243593 | D186: 9.488229467 | E186: =IF(H186>0,IF(AND(C186<$B$6,C186>$H$12),bb2wang($B$6,$H$12,C186,$H$8,$H$9,I186,$H$10,$H$11,$K$10,$K$11,$H$13),E185),"") -> 320.5367871 | F186: 320.5367871 | G186: 76817.04673 | H186: 0.02 | I186: 25.41171069 | J186: 5000 | K186: -1 | L186: 9.468229467 | M186: 9.478229467 | N186: -0.1284359504 | O186: 13.54866687 | P186: 187.3631766 | Q186: 72047.77591 | R186: =IF(H186>0, rate1(1,$L$52,$L$51,$L$54,L186,$L$53,$L$50,P186),"") -> 2793.163201 | S186: 1.903827968 | T186: 0.1421022085 | U186: 9.488229467 | V186: 9.488229467 | W186: 0.005416656768 | X186: 72291.90092 | Y186: 187.75874 | Z186: =IF(H186>0, rate1(1,$L$52,$L$51,$L$54,U186,$L$53,$L$50,Y186),"") -> 2794.199978 | AA186: 1.909570053 | AB186: -0.005955183716 | AC186: 0.1421022085 | AD186: -0.1407437661 | AE186: -0.1700414293 | AF186: 104.3065361 | AG186: 72.67033372 | AH186: 9.469027862 | AI186: 50.875011 | AJ186: 4.878906466 | AK186: 630.1071238 | AL186: 87.56594133
B187: 104.3065361 | C187: 72.67033372 | D187: 9.469027862 | E187: =IF(H187>0,IF(AND(C187<$B$6,C187>$H$12),bb2wang($B$6,$H$12,C187,$H$8,$H$9,I187,$H$10,$H$11,$K$10,$K$11,$H$13),E186),"") -> 320.5367871 | F187: 320.5367871 | G187: 76350.63714 | H187: 0.02 | I187: 25.30896193 | J187: 5000 | K187: -1 | L187: 9.449027862 | M187: 9.459027862 | N187: -0.1281868277 | O187: 12.33854887 | P187: 186.8567323 | Q187: 71580.45893 | R187: =IF(H187>0, rate1(1,$L$52,$L$51,$L$54,L187,$L$53,$L$50,P187),"") -> 2791.829968 | S187: 2.077980311 | T187: 0.1189138859 | U187: 9.469027862 | V187: 9.469027862 | W187: 0.005394755261 | X187: 71823.59633 | Y187: 187.2520277 | Z187: =IF(H187>0, rate1(1,$L$52,$L$51,$L$54,U187,$L$53,$L$50,Y187),"") -> 2792.87116 | AA187: 2.084261279 | AB187: -0.004975512238 | AC187: 0.1189138859 | AD187: -0.1681889364 | AE187: -0.2102948508 | AF187: 104.0594354 | AG187: 72.55141984 | AH187: 9.449824598 | AI187: 42.5935273 | AJ187: 4.890738001 | AK187: 634.0151919 | AL187: 87.82031638
B188: 104.0594354 | C188: 72.55141984 | D188: 9.449824598 | E188: =IF(H188>0,IF(AND(C188<$B$6,C188>$H$12),bb2wang($B$6,$H$12,C188,$H$8,$H$9,I188,$H$10,$H$11,$K$10,$K$11,$H$13),E187),"") -> 320.5367871 | F188: 320.5367871 | G188: 75886.07927 | H188: 0.02 | I188: 25.20641247 | J188: 5000 | K188: -1 | L188: 9.429824598 | M188: 9.439824598 | N188: -0.1279376391 | O188: 11.26366133 | P188: 186.3505876 | Q188: 71114.99526 | R188: =IF(H188>0, rate1(1,$L$52,$L$51,$L$54,L188,$L$53,$L$50,P188),"") -> 2790.490932 | S188: 2.262564591 | T188: 0.1013315596 | U188: 9.449824598 | V188: 9.449824598 | W188: 0.005372896235 | X188: 71357.14697 | Y188: 186.7456147 | Z188: =IF(H188>0, rate1(1,$L$52,$L$51,$L$54,U188,$L$53,$L$50,Y188),"") -> 2791.536566 | AA188: 2.269418407 | AB188: -0.00423256525 | AC188: 0.1013315596 | AD188: -0.1973718759 | AE188: -0.2650037951 | AF188: 103.8301662 | AG188: 72.45008828 | AH188: 9.430619675 | AI188: 36.31316569 | AJ188: 4.900824992 | AK188: 637.2672349 | AL188: 88.03328402
B189: 103.8301662 | C189: 72.45008828 | D189: 9.430619675 | E189: =IF(H189>0,IF(AND(C189<$B$6,C189>$H$12),bb2wang($B$6,$H$12,C189,$H$8,$H$9,I189,$H$10,$H$11,$K$10,$K$11,$H$13),E188),"") -> 320.5367871 | F189: 320.5367871 | G189: 75423.36976 | H189: 0.02 | I189: 25.10406236 | J189: 5000 | K189: -1 | L189: 9.410619675 | M189: 9.420619675 | N189: -0.1276883846 | O189: 10.28189417 | P189: 185.8447433 | Q189: 70651.38156 | R189: =IF(H189>0, rate1(1,$L$52,$L$51,$L$54,L189,$L$53,$L$50,P189),"") -> 2789.146058 | S189: 2.46363447 | T189: 0.08724062404 | U189: 9.430619675 | V189: 9.430619675 | W189: 0.005351079702 | X189: 70892.5495 | Y189: 186.2395016 | Z189: =IF(H189>0, rate1(1,$L$52,$L$51,$L$54,U189,$L$53,$L$50,Y189),"") -> 2790.196161 | AA189: 2.471113703 | AB189: -0.003637434477 | AC189: 0.08724062404 | AD189: -0.2292509965 | AE189: -0.338110532 | AF189: 103.6152372 | AG189: 72.36284765 | AH189: 9.411413093 | AI189: 31.27861439 | AJ189: 4.909513496 | AK189: 640.0228986 | AL189: 88.21484985
B190: 103.6152372 | C190: 72.36284765 | D190: 9.411413093 | E190: =IF(H190>0,IF(AND(C190<$B$6,C190>$H$12),bb2wang($B$6,$H$12,C190,$H$8,$H$9,I190,$H$10,$H$11,$K$10,$K$11,$H$13),E189),"") -> 320.5367871 | F190: 320.5367871 | G190: 74962.50524 | H190: =dv(S189) -> 0.02 | I190: 25.00191165 | J190: =$B$7 -> 5000 | K190: -1 | L190: 9.391413093 | M190: 9.401413093 | N190: -0.1274390641 | O190: =IF(wh(B189,$F$51,$F$52,$F$53)>0,wh(B189,$F$51,$F$52,$F$53),O189) -> 9.370974217 | P190: 185.3391998 | Q190: 70189.61445 | R190: =IF(H190>0, rate1(1,$L$52,$L$51,$L$54,L190,$L$53,$L$50,P190),"") -> 2787.79531 | S190: 2.686749834 | T190: 0.07555303196 | U190: =L190-K190*H190 -> 9.411413093 | V190: 9.411413093 | W190: 0.005329305673 | X190: 70429.80053 | Y190: 185.7336889 | Z190: =IF(H190>0, rate1(1,$L$52,$L$51,$L$54,U190,$L$53,$L$50,Y190),"") -> 2788.849909 | AA190: 2.694924319 | AB190: -0.00314427353 | AC190: 0.07555303196 | AD190: -0.2647147239 | AE190: -0.4356893049 | AF190: 103.4122451 | AG190: 72.28729462 | AH190: 9.392204852 | AI190: 27.10135557 | AJ190: 4.91704165 | AK190: 642.3820371 | AL190: 88.37124292
B191: 103.4122451 | C191: 72.28729462 | D191: 9.392204852 | E191: =IF(H191>0,IF(AND(C191<$B$6,C191>$H$12),bb2wang($B$6,$H$12,C191,$H$8,$H$9,I191,$H$10,$H$11,$K$10,$K$11,$H$13),E190),"") -> 320.5367871 | F191: 320.5367871 | G191: 74503.48235 | H191: 0.02 | I191: 24.8999604 | J191: 5000 | K191: -1 | L191: 9.372204852 | M191: 9.382204852 | N191: -0.1271896778 | O191: 8.517029932 | P191: 184.8339577 | Q191: 69729.69057 | R191: =IF(H191>0, rate1(1,$L$52,$L$51,$L$54,L191,$L$53,$L$50,P191),"") -> 2786.438651 | S191: 2.93819137 | T191: 0.06562286867 | U191: 9.392204852 | V191: 9.392204852 | W191: 0.005307574159 | X191: 69968.89672 | Y191: 185.2281773 | Z191: =IF(H191>0, rate1(1,$L$52,$L$51,$L$54,U191,$L$53,$L$50,Y191),"") -> 2787.497774 | AA191: 2.947150561 | AB191: -0.002725816003 | AC191: 0.06562286867 | AD191: -0.304771803 | AE191: -0.5674775769 | AF191: 103.2194326 | AG191: 72.22167175 | AH191: 9.372994952 | AI191: 23.55080334 | AJ191: 4.92358354 | AK191: 644.4136227 | AL191: 88.5067497
B192: =IF(H192>0, AF191,"") -> 103.2194326 | C192: =IF(H192>0, AG191,"") -> 72.22167175 | D192: =IF(H192>0, AH191,"") -> 9.372994952 | E192: =IF(H192>0,IF(AND(C192<$B$6,C192>$H$12),bb2wang($B$6,$H$12,C192,$H$8,$H$9,I192,$H$10,$H$11,$K$10,$K$11,$H$13),E191),"") -> 320.5367871 | F192: =IF(H192>0, (E192+E191)/2,"") -> 320.5367871 | G192: =IF(H192>0, F192*$S$53*$C$55*(B192-C192+N192)^1.5,"") -> 74046.29772 | H192: 0.02 | I192: =IF(H192>0, (B192-C192)*B$19,"") -> 24.79820866 | J192: 5000 | K192: =IF(H192>0, IF((1-S191-0.015)>0,1,-1),"") -> -1 | L192: =IF(H192>0, D192+K192*H192,"") -> 9.352994952 | M192: =IF(H192>0, (D192+L192)/2,"") -> 9.362994952 | N192: =IF(H192>0, 2*($P$53*M192/$S$52/$S$51)^2-(B192-C192)*2,"") -> -0.1269402254 | O192: 7.710512742 | P192: =IF(H192>0, $C$54*$L$55*$L$55*M192*M192/(($B$19*(B192-C192))^0.333)*1000,"") -> 184.3290175 | Q192: =IF(H192>0, M192/$S$54*(B192-C192+N192/2)*E192-J192,"") -> 69271.60656 | R192: =IF(H192>0, rate1(1,$L$52,$L$51,$L$54,L192,$L$53,$L$50,P192),"") -> 2785.076044 | S192: =IF(H192>0, Q192/O192/R192,"") -> 3.225781472 | T192: =IF(H192>0, N192/(1-S192),"") -> 0.05703175582 | U192: 9.372994952 | V192: =IF(H192>0, (D192+U192)/2,"") -> 9.372994952 | W192: =IF(H192>0, 2*($P$53*V192/$S$52/$S$51)^2-(B192-C192)*2,"") -> 0.005285885172 | X192: =IF(H192>0, V192/$S$54*(B192-C192+W192/2)*F192-J192,"") -> 69509.83469 | Y192: =IF(H192>0, $C$54*$L$55*$L$55*V192*V192/(($B$19*(B192-C192))^0.333)*1000,"") -> 184.7229672 | Z192: =IF(H192>0, rate1(1,$L$52,$L$51,$L$54,U192,$L$53,$L$50,Y192),"") -> 2786.139718 | AA192: =IF(H192>0, X192/O192/Z192,"") -> 3.235639325 | AB192: =IF(H192>0, W192/(1-AA192),"") -> -0.002364372962 | AC192: =IF(H192>0, delta_z(N192,S192,H192,AE191,AB192),"") -> 0.05703175582 | AD192: =IF(H192>0, H192/AC192*K192,"") -> -0.3506818212 | AE192: =IF(H192>0, (AD192-AD191)/(AC192+AC191)*2,"") -> -0.7486063973 | AF192: =IF(H192>0, B192-(AC192-N192),"") -> 103.0354606 | AG192: =IF(H192>0, C192-AC192,"") -> 72.16464 | AH192: =IF(H192>0, $S$54*$S$53*$C$55*SQRT(AF192-AG192),"") -> 9.353783391 | AI192: =IF(H192>0, AC192/R192*1000000,"") -> 20.47762967 | AJ192: =IF(H192>0, AJ191+AI192/3600,"") -> 4.92927177 | AK192: =IF(H192>0, AK191+AI191*G191/1000000,"") -> 646.1682395 | AL192: =IF(H192>0, AL191+AI191*J191/1000000,"") -> 88.62450372
B193: 103.0354606 | C193: 72.16464 | D193: 9.353783391 | E193: =IF(H193>0,IF(AND(C193<$B$6,C193>$H$12),bb2wang($B$6,$H$12,C193,$H$8,$H$9,I193,$H$10,$H$11,$K$10,$K$11,$H$13),E192),"") -> 320.5367871 | F193: 320.5367871 | G193: 73590.94799 | H193: 0.02 | I193: 24.69665648 | J193: 5000 | K193: -1 | L193: 9.333783391 | M193: 9.343783391 | N193: -0.1266907071 | O193: 6.944440386 | P193: 183.8243798 | Q193: 68815.35905 | R193: =IF(H193>0, rate1(1,$L$52,$L$51,$L$54,L193,$L$53,$L$50,P193),"") -> 2783.707453 | S193: 3.559791272 | T193: 0.04949259282 | U193: 9.353783391 | V193: 9.353783391 | W193: 0.005264238723 | X193: 69052.61109 | Y193: 184.2180592 | Z193: =IF(H193>0, rate1(1,$L$52,$L$51,$L$54,U193,$L$53,$L$50,Y193),"") -> 2784.775707 | AA193: 3.570693964 | AB193: -0.002047788962 | AC193: 0.04949259282 | AD193: -0.4041008737 | AE193: -1.002945395 | AF193: 102.8592773 | AG193: 72.1151474 | AH193: 9.334570171 | AI193: 17.77938007 | AJ193: 4.934210487 | AK193: 647.6845322 | AL193: 88.72689186
B194: 102.8592773 | C194: 72.1151474 | D194: 9.334570171 | E194: =IF(H194>0,IF(AND(C194<$B$6,C194>$H$12),bb2wang($B$6,$H$12,C194,$H$8,$H$9,I194,$H$10,$H$11,$K$10,$K$11,$H$13),E193),"") -> 320.5367871 | F194: 320.5367871 | G194: 73137.42978 | H194: 0.02 | I194: 24.59530391 | J194: 5000 | K194: -1 | L194: 9.314570171 | M194: 9.324570171 | N194: -0.1264411229 | O194: 6.213492884 | P194: 183.3200452 | Q194: 68360.94468 | R194: =IF(H194>0, rate1(1,$L$52,$L$51,$L$54,L194,$L$53,$L$50,P194),"") -> 2782.33284 | S194: 3.954241307 | T194: 0.04279986289 | U194: 9.334570171 | V194: 9.334570171 | W194: 0.005242634823 | X194: 68597.22253 | Y194: 183.7134539 | Z194: =IF(H194>0, rate1(1,$L$52,$L$51,$L$54,U194,$L$53,$L$50,Y194),"") -> 2783.405702 | AA194: 3.966379034 | AB194: -0.001767351631 | AC194: 0.04279986289 | AD194: -0.4672912166 | AE194: -1.369350125 | AF194: 102.6900363 | AG194: 72.07234754 | AH194: 9.315355291 | AI194: 15.3827257 | AJ194: 4.938483466 | AK194: 648.9929336 | AL194: 88.81578876
B195: 102.6900363 | C195: 72.07234754 | D195: 9.315355291 | E195: =IF(H195>0,IF(AND(C195<$B$6,C195>$H$12),bb2wang($B$6,$H$12,C195,$H$8,$H$9,I195,$H$10,$H$11,$K$10,$K$11,$H$13),E194),"") -> 320.5367871 | F195: 320.5367871 | G195: 72685.73973 | H195: 0.02 | I195: 24.49415101 | J195: 5000 | K195: -1 | L195: 9.295355291 | M195: 9.305355291 | N195: -0.1261914726 | O195: 5.513490949 | P195: 182.8160143 | Q195: 67908.36006 | R195: =IF(H195>0, rate1(1,$L$52,$L$51,$L$54,L195,$L$53,$L$50,P195),"") -> 2780.952168 | S195: 4.428973254 | T195: 0.03680153307 | U195: 9.315355291 | V195: 9.315355291 | W195: 0.005221073483 | X195: 68143.66566 | Y195: 183.2091518 | Z195: =IF(H195>0, rate1(1,$L$52,$L$51,$L$54,U195,$L$53,$L$50,Y195),"") -> 2782.029666 | AA195: 4.442598535 | AB195: -0.001516608292 | AC195: 0.03680153307 | AD195: -0.5434556207 | AE195: -1.913644936 | AF195: 102.5270433 | AG195: 72.03554601 | AH195: 9.29613875 | AI195: 13.233429 | AJ195: 4.942159419 | AK195: 650.1179866 | AL195: 88.89270239
B196: 102.5270433 | C196: 72.03554601 | D196: 9.29613875 | E196: =IF(H196>0,IF(AND(C196<$B$6,C196>$H$12),bb2wang($B$6,$H$12,C196,$H$8,$H$9,I196,$H$10,$H$11,$K$10,$K$11,$H$13),E195),"") -> 320.5367871 | F196: 320.5367871 | G196: 72235.87445 | H196: 0.02 | I196: 24.39319783 | J196: 5000 | K196: -1 | L196: 9.27613875 | M196: 9.28613875 | N196: -0.1259417563 | O196: 4.84107184 | P196: 182.3122874 | Q196: 67457.60183 | R196: =IF(H196>0, rate1(1,$L$52,$L$51,$L$54,L196,$L$53,$L$50,P196),"") -> 2779.565398 | S196: 5.013170478 | T196: 0.03138210974 | U196: 9.29613875 | V196: 9.29613875 | W196: 0.005199554715 | X196: 67691.93709 | Y196: 182.7051535 | Z196: =IF(H196>0, rate1(1,$L$52,$L$51,$L$54,U196,$L$53,$L$50,Y196),"") -> 2780.647562 | AA196: 5.028627518 | AB196: -0.00129065164 | AC196: 0.03138210974 | AD196: -0.6373057823 | AE196: -2.752864402 | AF196: 102.3697194 | AG196: 72.0041639 | AH196: 9.276920548 | AI196: 11.29029371 | AJ196: 4.945295611 | AK196: 651.0798682 | AL196: 88.95886954
B197: 102.3697194 | C197: 72.0041639 | D197: 9.276920548 | E197: =IF(H197>0,IF(AND(C197<$B$6,C197>$H$12),bb2wang($B$6,$H$12,C197,$H$8,$H$9,I197,$H$10,$H$11,$K$10,$K$11,$H$13),E196),"") -> 320.5367871 | F197: 320.5367871 | G197: 71787.83057 | H197: 0.02 | I197: 24.29244443 | J197: 5000 | K197: -1 | L197: 9.256920548 | M197: 9.266920548 | N197: -0.1256919741 | O197: 4.193476867 | P197: 181.8088654 | Q197: 67008.66661 | R197: =IF(H197>0, rate1(1,$L$52,$L$51,$L$54,L197,$L$53,$L$50,P197),"") -> 2778.172494 | S197: 5.751717106 | T197: 0.02645190597 | U197: 9.276920548 | V197: 9.276920548 | W197: 0.005178078529 | X197: 67242.03345 | Y197: 182.2014596 | Z197: =IF(H197>0, rate1(1,$L$52,$L$51,$L$54,U197,$L$53,$L$50,Y197),"") -> 2779.259352 | AA197: 5.769491144 | AB197: -0.001085666872 | AC197: 0.02645190597 | AD197: -0.7560891841 | AE197: -4.107734881 | AF197: 102.2175756 | AG197: 71.97771199 | AH197: 9.257700686 | AI197: 9.521333188 | AJ197: 4.947940426 | AK197: 651.8954324 | AL197: 89.01532101
B198: 102.2175756 | C198: 71.97771199 | D198: 9.257700686 | E198: =IF(H198>0,IF(AND(C198<$B$6,C198>$H$12),bb2wang($B$6,$H$12,C198,$H$8,$H$9,I198,$H$10,$H$11,$K$10,$K$11,$H$13),E197),"") -> 320.5367871 | F198: 320.5367871 | G198: 71341.60471 | H198: 0.02 | I198: 24.19189085 | J198: 5000 | K198: -1 | L198: 9.237700686 | M198: 9.247700686 | N198: -0.1254421257 | O198: 3.568406212 | P198: 181.3057486 | Q198: 66561.55102 | R198: =IF(H198>0, rate1(1,$L$52,$L$51,$L$54,L198,$L$53,$L$50,P198),"") -> 2776.773415 | S198: 6.717515914 | T198: 0.02193996967 | U198: 9.257700686 | V198: 9.257700686 | W198: 0.005156644938 | X198: 66793.95137 | Y198: 181.6980705 | Z198: =IF(H198>0, rate1(1,$L$52,$L$51,$L$54,U198,$L$53,$L$50,Y198),"") -> 2777.864997 | AA198: 6.738321278 | AB198: -0.0008986330127 | AC198: 0.02193996967 | AD198: -0.9115782885 | AE198: -6.426248304 | AF198: 102.0701935 | AG198: 71.95577202 | AH198: 9.238479162 | AI198: 7.901245938 | AJ198: 4.950135217 | AK198: 652.5789483 | AL198: 89.06292767
B199: 102.0701935 | C199: 71.95577202 | D199: 9.238479162 | E199: =IF(H199>0,IF(AND(C199<$B$6,C199>$H$12),bb2wang($B$6,$H$12,C199,$H$8,$H$9,I199,$H$10,$H$11,$K$10,$K$11,$H$13),E198),"") -> 320.5367871 | F199: 320.5367871 | G199: 70897.1935 | H199: 0.02 | I199: 24.09153715 | J199: 5000 | K199: -1 | L199: 9.218479162 | M199: 9.228479162 | N199: -0.1251922113 | O199: 2.963916396 | P199: 180.8029378 | Q199: 66116.25169 | R199: =IF(H199>0, rate1(1,$L$52,$L$51,$L$54,L199,$L$53,$L$50,P199),"") -> 2775.368124 | S199: 8.037512827 | T199: 0.01778926937 | U199: 9.238479162 | V199: 9.238479162 | W199: 0.005135253952 | X199: 66347.68747 | Y199: 181.194987 | Z199: =IF(H199>0, rate1(1,$L$52,$L$51,$L$54,U199,$L$53,$L$50,Y199),"") -> 2776.464459 | AA199: 8.062462775 | AB199: -0.0007271194363 | AC199: 0.01778926937 | AD199: -1.124273268 | AE199: -10.70722644 | AF199: 101.927212 | AG199: 71.93798275 | AH199: 9.219255977 | AI199: 6.409697225 | AJ199: 4.951915688 | AK199: 653.1426359 | AL199: 89.1024339
B200: 101.927212 | C200: 71.93798275 | D200: 9.219255977 | E200: =IF(H200>0,IF(AND(C200<$B$6,C200>$H$12),bb2wang($B$6,$H$12,C200,$H$8,$H$9,I200,$H$10,$H$11,$K$10,$K$11,$H$13),E199),"") -> 320.5367871 | F200: 320.5367871 | G200: 70454.59355 | H200: 0.02 | I200: 23.99138338 | J200: 5000 | K200: -1 | L200: 9.199255977 | M200: 9.209255977 | N200: -0.1249422309 | O200: 2.378345845 | P200: 180.3004333 | Q200: 65672.76524 | R200: =IF(H200>0, rate1(1,$L$52,$L$51,$L$54,L200,$L$53,$L$50,P200),"") -> 2773.956582 | S200: 9.954297967 | T200: 0.01395332514 | U200: 9.219255977 | V200: 9.219255977 | W200: 0.005113905582 | X200: 65903.23837 | Y200: 180.6922094 | Z200: =IF(H200>0, rate1(1,$L$52,$L$51,$L$54,U200,$L$53,$L$50,Y200),"") -> 2775.057699 | AA200: 9.985268116 | AB200: -0.0005691433484 | AC200: 0.01395332514 | AD200: -1.433350101 | AE200: -19.47394904 | AF200: 101.7883164 | AG200: 71.92402943 | AH200: 9.200031131 | AI200: 5.030116631 | AJ200: 4.953312943 | AK200: 653.5970654 | AL200: 89.13448239
B201: 101.7883164 | C201: 71.92402943 | D201: 9.200031131 | E201: =IF(H201>0,IF(AND(C201<$B$6,C201>$H$12),bb2wang($B$6,$H$12,C201,$H$8,$H$9,I201,$H$10,$H$11,$K$10,$K$11,$H$13),E200),"") -> 320.5367871 | F201: 320.5367871 | G201: 70013.80148 | H201: 0.02 | I201: 23.8914296 | J201: 5000 | K201: -1 | L201: 9.180031131 | M201: 9.190031131 | N201: -0.1246921844 | O201: 1.810259578 | P201: 179.7982359 | Q201: 65231.08828 | R201: =IF(H201>0, rate1(1,$L$52,$L$51,$L$54,L201,$L$53,$L$50,P201),"") -> 2772.538749 | S201: 12.99679131 | T201: 0.01039379457 | U201: 9.200031131 | V201: 9.200031131 | W201: 0.00509259984 | X201: 65460.60068 | Y201: 180.1897385 | Z201: =IF(H201>0, rate1(1,$L$52,$L$51,$L$54,U201,$L$53,$L$50,Y201),"") -> 2773.644678 | AA201: 13.03731947 | AB201: -0.0004230675984 | AC201: 0.01039379457 | AD201: -1.924225062 | AE201: -40.32304165 | AF201: 101.6532304 | AG201: 71.91363563 | AH201: 9.180804622 | AI201: 3.748836539 | AJ201: 4.954354286 | AK201: 653.9514602 | AL201: 89.15963297
B202: 101.6532304 | C202: 71.91363563 | D202: 9.180804622 | E202: =IF(H202>0,IF(AND(C202<$B$6,C202>$H$12),bb2wang($B$6,$H$12,C202,$H$8,$H$9,I202,$H$10,$H$11,$K$10,$K$11,$H$13),E201),"") -> 320.5367871 | F202: 320.5367871 | G202: 69574.8139 | H202: 0.02 | I202: 23.79167585 | J202: 5000 | K202: -1 | L202: 9.160804622 | M202: 9.170804622 | N202: -0.1244420717 | O202: 1.258407285 | P202: 179.2963461 | Q202: 64791.21742 | R202: =IF(H202>0, rate1(1,$L$52,$L$51,$L$54,L202,$L$53,$L$50,P202),"") -> 2771.114584 | S202: 18.57977423 | T202: 0.007078707047 | U202: 9.180804622 | V202: 9.180804622 | W202: 0.005071336738 | X202: 65019.77102 | Y202: 179.6875748 | Z202: =IF(H202>0, rate1(1,$L$52,$L$51,$L$54,U202,$L$53,$L$50,Y202),"") -> 2772.225357 | AA202: 18.63784434 | AB202: -0.0002875258813 | AC202: 0.007078707047 | AD202: -2.825374728 | AE202: -103.1506175 | AF202: 101.5217097 | AG202: 71.90655693 | AH202: 9.161576452 | AI202: 2.554462052 | AJ202: 4.955063859 | AK202: 654.2139305 | AL202: 89.17837715
B203: 101.5217097 | C203: 71.90655693 | D203: 9.161576452 | E203: =IF(H203>0,IF(AND(C203<$B$6,C203>$H$12),bb2wang($B$6,$H$12,C203,$H$8,$H$9,I203,$H$10,$H$11,$K$10,$K$11,$H$13),E202),"") -> 320.5367871 | F203: 320.5367871 | G203: 69137.62742 | H203: 0.02 | I203: 23.69212219 | J203: 5000 | K203: -1 | L203: 9.141576452 | M203: 9.151576452 | N203: -0.124191893 | O203: 0.7216909977 | P203: 178.7947644 | Q203: 64353.14929 | R203: =IF(H203>0, rate1(1,$L$52,$L$51,$L$54,L203,$L$53,$L$50,P203),"") -> 2769.68405 | S203: 32.19498946 | T203: 0.003981148742 | U203: 9.161576452 | V203: 9.161576452 | W203: 0.005050116286 | X203: 64580.74601 | Y203: 179.1857188 | Z203: =IF(H203>0, rate1(1,$L$52,$L$51,$L$54,U203,$L$53,$L$50,Y203),"") -> 2770.799695 | AA203: 32.29584399 | AB203: -0.0001613669945 | AC203: 0.003981148742 | AD203: -5.023675652 | AE203: -397.5279544 | AF203: 101.3935366 | AG203: 71.90257578 | AH203: 9.142346619 | AI203: 1.437401765 | AJ203: 4.955463137 | AK203: 654.3916568 | AL203: 89.19114946
B204: 101.3935366 | C204: 71.90257578 | D204: 9.142346619 | E204: =IF(H204>0,IF(AND(C204<$B$6,C204>$H$12),bb2wang($B$6,$H$12,C204,$H$8,$H$9,I204,$H$10,$H$11,$K$10,$K$11,$H$13),E203),"") -> 320.5367871 | F204: 320.5367871 | G204: 68702.23866 | H204: 0.02 | I204: 23.59276868 | J204: 5000 | K204: -1 | L204: 9.122346619 | M204: 9.132346619 | N204: -0.1239416482 | O204: 0.19913977 | P204: 178.2934915 | Q204: 63916.88049 | R204: =IF(H204>0, rate1(1,$L$52,$L$51,$L$54,L204,$L$53,$L$50,P204),"") -> 2768.247104 | S204: 115.9451844 | T204: 0.001078267427 | U204: 9.142346619 | V204: 9.142346619 | W204: 0.005028938495 | X204: 64143.52226 | Y204: 178.6841712 | Z204: =IF(H204>0, rate1(1,$L$52,$L$51,$L$54,U204,$L$53,$L$50,Y204),"") -> 2769.367652 | AA204: 116.309232 | AB204: -4.361262674e-05 | AC204: 0.001078267427 | AD204: -18.5482743 | AE204: -5346.308031 | AF204: 101.2685167 | AG204: 71.90149751 | AH204: 9.123115124 | AI204: 0.3895127084 | AJ204: 4.955571335 | AK204: 654.4910353 | AL204: 89.19833647
B205: 101.2685167 | C205: 71.90149751 | D205: 9.123115124 | E205: =IF(H205>0,IF(AND(C205<$B$6,C205>$H$12),bb2wang($B$6,$H$12,C205,$H$8,$H$9,I205,$H$10,$H$11,$K$10,$K$11,$H$13),E204),"") -> 320.5367871 | F205: 320.5367871 | G205: 68268.64423 | H205: 0.02 | I205: 23.49361536 | J205: 5000 | K205: -1 | L205: 9.103115124 | M205: 9.113115124 | N205: -0.1236913372 | O205: 0.19913977 | P205: 177.7925279 | Q205: 63482.40764 | R205: =IF(H205>0, rate1(1,$L$52,$L$51,$L$54,L205,$L$53,$L$50,P205),"") -> 2766.803706 | S205: 115.2171265 | T205: 0.001082949125 | U205: 9.123115124 | V205: 9.123115124 | W205: 0.005007803378 | X205: 63708.09638 | Y205: 178.1829324 | Z205: =IF(H205>0, rate1(1,$L$52,$L$51,$L$54,U205,$L$53,$L$50,Y205),"") -> 2767.929189 | AA205: 115.5797236 | AB205: -4.370584269e-05 | AC205: 0.001082949125 | AD205: -18.46808824 | AE205: 74.20455728 | AF205: 101.1437424 | AG205: 71.90041456 | AH205: 9.103881965 | AI205: 0.3914080073 | AJ205: 4.95568006 | AK205: 654.5177957 | AL205: 89.20028404
B206: 101.1437424 | C206: 71.90041456 | D206: 9.103881965 | E206: =IF(H206>0,IF(AND(C206<$B$6,C206>$H$12),bb2wang($B$6,$H$12,C206,$H$8,$H$9,I206,$H$10,$H$11,$K$10,$K$11,$H$13),E205),"") -> 320.5367871 | F206: 320.5367871 | G206: 67836.84072 | H206: 0.02 | I206: 23.39466229 | J206: 5000 | K206: -1 | L206: 9.083881965 | M206: 9.093881965 | N206: -0.12344096 | O206: 0.19913977 | P206: 177.2918742 | Q206: 63049.72734 | R206: =IF(H206>0, rate1(1,$L$52,$L$51,$L$54,L206,$L$53,$L$50,P206),"") -> 2765.353815 | S206: 114.4918324 | T206: 0.00108766382 | U206: 9.103881965 | V206: 9.103881965 | W206: 0.004986710944 | X206: 63274.46497 | Y206: 177.6820032 | Z206: =IF(H206>0, rate1(1,$L$52,$L$51,$L$54,U206,$L$53,$L$50,Y206),"") -> 2766.484264 | AA206: 114.8529822 | AB206: -4.379956369e-05 | AC206: 0.00108766382 | AD206: -18.38803464 | AE206: 73.76128409 | AF206: 101.0192138 | AG206: 71.8993269 | AH206: 9.084647144 | AI206: 0.3933181404 | AJ206: 4.955789315 | AK206: 654.5445166 | AL206: 89.20224108
B207: 101.0192138 | C207: 71.8993269 | D207: 9.084647144 | E207: =IF(H207>0,IF(AND(C207<$B$6,C207>$H$12),bb2wang($B$6,$H$12,C207,$H$8,$H$9,I207,$H$10,$H$11,$K$10,$K$11,$H$13),E206),"") -> 320.5367871 | F207: 320.5367871 | G207: 67406.82476 | H207: 0.02 | I207: 23.29590952 | J207: 5000 | K207: -1 | L207: 9.064647144 | M207: 9.074647144 | N207: -0.1231905167 | O207: 0.19913977 | P207: 176.791531 | Q207: 62618.83619 | R207: =IF(H207>0, rate1(1,$L$52,$L$51,$L$54,L207,$L$53,$L$50,P207),"") -> 2763.89739 | S207: 113.7692971 | T207: 0.001092411852 | U207: 9.084647144 | V207: 9.084647144 | W207: 0.004965661206 | X207: 62842.62465 | Y207: 177.181384 | Z207: =IF(H207>0, rate1(1,$L$52,$L$51,$L$54,U207,$L$53,$L$50,Y207),"") -> 2765.032836 | AA207: 114.1290024 | AB207: -4.389379472e-05 | AC207: 0.001092411852 | AD207: -18.30811333 | AE207: 73.31975476 | AF207: 100.8949309 | AG207: 71.89823449 | AH207: 9.06541066 | AI207: 0.3952432736 | AJ207: 4.955899105 | AK207: 654.571198 | AL207: 89.20420767
B208: 100.8949309 | C208: 71.89823449 | D208: 9.06541066 | E208: =IF(H208>0,IF(AND(C208<$B$6,C208>$H$12),bb2wang($B$6,$H$12,C208,$H$8,$H$9,I208,$H$10,$H$11,$K$10,$K$11,$H$13),E207),"") -> 320.5367871 | F208: 320.5367871 | G208: 66978.59293 | H208: 0.02 | I208: 23.19735711 | J208: 5000 | K208: -1 | L208: 9.04541066 | M208: 9.05541066 | N208: -0.1229400072 | O208: 0.19913977 | P208: 176.2914988 | Q208: 62189.73081 | R208: =IF(H208>0, rate1(1,$L$52,$L$51,$L$54,L208,$L$53,$L$50,P208),"") -> 2762.43439 | S208: 113.0495151 | T208: 0.001097193567 | U208: 9.06541066 | V208: 9.06541066 | W208: 0.004944654175 | X208: 62412.57202 | Y208: 176.6810755 | Z208: =IF(H208>0, rate1(1,$L$52,$L$51,$L$54,U208,$L$53,$L$50,Y208),"") -> 2763.574864 | AA208: 113.407779 | AB208: -4.398854083e-05 | AC208: 0.001097193567 | AD208: -18.22832415 | AE208: 72.87996556 | AF208: 100.7708937 | AG208: 71.89713729 | AH208: 9.046172512 | AI208: 0.3971835753 | AJ208: 4.956009433 | AK208: 654.5978401 | AL208: 89.20618388
B209: =IF(H209>0, AF208,"") -> 100.7708937 | C209: =IF(H209>0, AG208,"") -> 71.89713729 | D209: =IF(H209>0, AH208,"") -> 9.046172512 | E209: =IF(H209>0,IF(AND(C209<$B$6,C209>$H$12),bb2wang($B$6,$H$12,C209,$H$8,$H$9,I209,$H$10,$H$11,$K$10,$K$11,$H$13),E208),"") -> 320.5367871 | F209: =IF(H209>0, (E209+E208)/2,"") -> 320.5367871 | G209: =IF(H209>0, F209*$S$53*$C$55*(B209-C209+N209)^1.5,"") -> 66552.14184 | H209: =dv(S208) -> 0.02 | I209: =IF(H209>0, (B209-C209)*B$19,"") -> 23.0990051 | J209: 5000 | K209: =IF(H209>0, IF((1-S208-0.015)>0,1,-1),"") -> -1 | L209: =IF(H209>0, D209+K209*H209,"") -> 9.026172512 | M209: =IF(H209>0, (D209+L209)/2,"") -> 9.036172512 | N209: =IF(H209>0, 2*($P$53*M209/$S$52/$S$51)^2-(B209-C209)*2,"") -> -0.1226894315 | O209: 0.19913977 | P209: =IF(H209>0, $C$54*$L$55*$L$55*M209*M209/(($B$19*(B209-C209))^0.333)*1000,"") -> 175.7917784 | Q209: =IF(H209>0, M209/$S$54*(B209-C209+N209/2)*E209-J209,"") -> 61762.40779 | R209: =IF(H209>0, rate1(1,$L$52,$L$51,$L$54,L209,$L$53,$L$50,P209),"") -> 2760.964771 | S209: =IF(H209>0, Q209/O209/R209,"") -> 112.3324813 | T209: =IF(H209>0, N209/(1-S209),"") -> 0.001102009315 | U209: =L209-K209*H209 -> 9.046172512 | V209: =IF(H209>0, (D209+U209)/2,"") -> 9.046172512 | W209: =IF(H209>0, 2*($P$53*V209/$S$52/$S$51)^2-(B209-C209)*2,"") -> 0.004923689862 | X209: =IF(H209>0, V209/$S$54*(B209-C209+W209/2)*F209-J209,"") -> 61984.30368 | Y209: =IF(H209>0, $C$54*$L$55*$L$55*V209*V209/(($B$19*(B209-C209))^0.333)*1000,"") -> 176.1810783 | Z209: =IF(H209>0, rate1(1,$L$52,$L$51,$L$54,U209,$L$53,$L$50,Y209),"") -> 2762.110306 | AA209: =IF(H209>0, X209/O209/Z209,"") -> 112.6893068 | AB209: =IF(H209>0, W209/(1-AA209),"") -> -4.408380715e-05 | AC209: =IF(H209>0, delta_z(N209,S209,H209,AE208,AB209),"") -> 0.001102009315 | AD209: =IF(H209>0, H209/AC209*K209,"") -> -18.14866692 | AE209: =IF(H209>0, (AD209-AD208)/(AC209+AC208)*2,"") -> 72.44191278 | AF209: =IF(H209>0, B209-(AC209-N209),"") -> 100.6471022 | AG209: =IF(H209>0, C209-AC209,"") -> 71.89603528 | AH209: =IF(H209>0, $S$54*$S$53*$C$55*SQRT(AF209-AG209),"") -> 9.0269327 | AI209: =IF(H209>0, AC209/R209*1000000,"") -> 0.3991392164 | AJ209: =IF(H209>0, AJ208+AI209/3600,"") -> 4.956120305 | AK209: =IF(H209>0, AK208+AI208*G208/1000000,"") -> 654.6244429 | AL209: =IF(H209>0, AL208+AI208*J208/1000000,"") -> 89.2081698
B210: 100.6471022 | C210: 71.89603528 | D210: 9.0269327 | E210: =IF(H210>0,IF(AND(C210<$B$6,C210>$H$12),bb2wang($B$6,$H$12,C210,$H$8,$H$9,I210,$H$10,$H$11,$K$10,$K$11,$H$13),E209),"") -> 320.5367871 | F210: 320.5367871 | G210: 66127.4681 | H210: 0.02 | I210: 23.00085356 | J210: 5000 | K210: -1 | L210: 9.0069327 | M210: 9.0169327 | N210: -0.1224387896 | O210: 0.19913977 | P210: 175.2923701 | Q210: 61336.86374 | R210: =IF(H210>0, rate1(1,$L$52,$L$51,$L$54,L210,$L$53,$L$50,P210),"") -> 2759.488492 | S210: 111.6181905 | T210: 0.001106859451 | U210: 9.0269327 | V210: 9.0269327 | W210: 0.004902768278 | X210: 61557.81624 | Y210: 175.6813928 | Z210: =IF(H210>0, rate1(1,$L$52,$L$51,$L$54,U210,$L$53,$L$50,Y210),"") -> 2760.639119 | AA210: 111.9735806 | AB210: -4.41795989e-05 | AC210: 0.001106859451 | AD210: -18.06914147 | AE210: 72.00559269 | AF210: 100.5235566 | AG210: 71.89492842 | AH210: 9.007691224 | AI210: 0.4011103703 | AJ210: 4.956231725 | AK210: 654.6510065 | AL210: 89.2101655
B211: 100.5235566 | C211: 71.89492842 | D211: 9.007691224 | E211: =IF(H211>0,IF(AND(C211<$B$6,C211>$H$12),bb2wang($B$6,$H$12,C211,$H$8,$H$9,I211,$H$10,$H$11,$K$10,$K$11,$H$13),E210),"") -> 320.5367871 | F211: 320.5367871 | G211: 65704.56829 | H211: 0.02 | I211: 22.90290252 | J211: 5000 | K211: -1 | L211: 8.987691224 | M211: 8.997691224 | N211: -0.1221880814 | O211: 0.19913977 | P211: 174.7932747 | Q211: 60913.09525 | R211: =IF(H211>0, rate1(1,$L$52,$L$51,$L$54,L211,$L$53,$L$50,P211),"") -> 2758.00551 | S211: 110.9066373 | T211: 0.001111744335 | U211: 9.007691224 | V211: 9.007691224 | W211: 0.004881889435 | X211: 61133.10628 | Y211: 175.1820198 | Z211: =IF(H211>0, rate1(1,$L$52,$L$51,$L$54,U211,$L$53,$L$50,Y211),"") -> 2759.161262 | AA211: 111.2605951 | AB211: -4.427592135e-05 | AC211: 0.001111744335 | AD211: -17.98974762 | AE211: 71.57100159 | AF211: 100.4002568 | AG211: 71.89381668 | AH211: 8.988448084 | AI211: 0.4030972132 | AJ211: 4.956343696 | AK211: 654.6775309 | AL211: 89.21217105
B212: 100.4002568 | C212: 71.89381668 | D212: 8.988448084 | E212: =IF(H212>0,IF(AND(C212<$B$6,C212>$H$12),bb2wang($B$6,$H$12,C212,$H$8,$H$9,I212,$H$10,$H$11,$K$10,$K$11,$H$13),E211),"") -> 320.5367871 | F212: 320.5367871 | G212: 65283.43902 | H212: 0.02 | I212: 22.80515206 | J212: 5000 | K212: -1 | L212: 8.968448084 | M212: 8.978448084 | N212: -0.121937307 | O212: 0.19913977 | P212: 174.2944928 | Q212: 60491.09892 | R212: =IF(H212>0, rate1(1,$L$52,$L$51,$L$54,L212,$L$53,$L$50,P212),"") -> 2756.515781 | S212: 110.1978166 | T212: 0.001116664332 | U212: 8.988448084 | V212: 8.988448084 | W212: 0.004861053344 | X212: 60710.17042 | Y212: 174.6829598 | Z212: =IF(H212>0, rate1(1,$L$52,$L$51,$L$54,U212,$L$53,$L$50,Y212),"") -> 2757.676692 | AA212: 110.550345 | AB212: -4.437277986e-05 | AC212: 0.001116664332 | AD212: -17.9104852 | AE212: 71.13813573 | AF212: 100.2772028 | AG212: 71.89270002 | AH212: 8.969203279 | AI212: 0.4050999236 | AJ212: 4.956456224 | AK212: 654.7040163 | AL212: 89.21418654
B213: 100.2772028 | C213: 71.89270002 | D213: 8.969203279 | E213: =IF(H213>0,IF(AND(C213<$B$6,C213>$H$12),bb2wang($B$6,$H$12,C213,$H$8,$H$9,I213,$H$10,$H$11,$K$10,$K$11,$H$13),E212),"") -> 320.5367871 | F213: 320.5367871 | G213: 64864.07687 | H213: 0.02 | I213: 22.70760221 | J213: 5000 | K213: -1 | L213: 8.949203279 | M213: 8.959203279 | N213: -0.1216864664 | O213: 0.19913977 | P213: 173.7960248 | Q213: 60070.87135 | R213: =IF(H213>0, rate1(1,$L$52,$L$51,$L$54,L213,$L$53,$L$50,P213),"") -> 2755.019263 | S213: 109.4917231 | T213: 0.001121619814 | U213: 8.969203279 | V213: 8.969203279 | W213: 0.004840260017 | X213: 60289.00524 | Y213: 174.1842134 | Z213: =IF(H213>0, rate1(1,$L$52,$L$51,$L$54,U213,$L$53,$L$50,Y213),"") -> 2756.185364 | AA213: 109.8428252 | AB213: -4.447017988e-05 | AC213: 0.001121619814 | AD213: -17.83135403 | AE213: 70.70699139 | AF213: 100.1543947 | AG213: 71.8915784 | AH213: 8.94995681 | AI213: 0.4071186832 | AJ213: 4.956569313 | AK213: 654.7304626 | AL213: 89.21621203
B214: 100.1543947 | C214: 71.8915784 | D214: 8.94995681 | E214: =IF(H214>0,IF(AND(C214<$B$6,C214>$H$12),bb2wang($B$6,$H$12,C214,$H$8,$H$9,I214,$H$10,$H$11,$K$10,$K$11,$H$13),E213),"") -> 320.5367871 | F214: 320.5367871 | G214: 64446.47845 | H214: 0.02 | I214: 22.61025304 | J214: 5000 | K214: -1 | L214: 8.92995681 | M214: 8.93995681 | N214: -0.1214355595 | O214: 0.19913977 | P214: 173.2978715 | Q214: 59652.40912 | R214: =IF(H214>0, rate1(1,$L$52,$L$51,$L$54,L214,$L$53,$L$50,P214),"") -> 2753.515912 | S214: 108.7883516 | T214: 0.001126611157 | U214: 8.94995681 | V214: 8.94995681 | W214: 0.004819509463 | X214: 59869.60734 | Y214: 173.6857812 | Z214: =IF(H214>0, rate1(1,$L$52,$L$51,$L$54,U214,$L$53,$L$50,Y214),"") -> 2754.687237 | AA214: 109.1380304 | AB214: -4.456812692e-05 | AC214: 0.001126611157 | AD214: -17.75235393 | AE214: 70.27756485 | AF214: 100.0318325 | AG214: 71.89045178 | AH214: 8.930708675 | AI214: 0.4091536759 | AJ214: 4.956682966 | AK214: 654.7568699 | AL214: 89.21824763
B215: 100.0318325 | C215: 71.89045178 | D215: 8.930708675 | E215: =IF(H215>0,IF(AND(C215<$B$6,C215>$H$12),bb2wang($B$6,$H$12,C215,$H$8,$H$9,I215,$H$10,$H$11,$K$10,$K$11,$H$13),E214),"") -> 320.5367871 | F215: 320.5367871 | G215: 64030.64033 | H215: 0.02 | I215: 22.51310459 | J215: 5000 | K215: -1 | L215: 8.910708675 | M215: 8.920708675 | N215: -0.1211845863 | O215: 0.19913977 | P215: 172.8000334 | Q215: 59235.70884 | R215: =IF(H215>0, rate1(1,$L$52,$L$51,$L$54,L215,$L$53,$L$50,P215),"") -> 2752.005682 | S215: 108.0876967 | T215: 0.001131638741 | U215: 8.930708675 | V215: 8.930708675 | W215: 0.004798801696 | X215: 59451.9733 | Y215: 173.1876638 | Z215: =IF(H215>0, rate1(1,$L$52,$L$51,$L$54,U215,$L$53,$L$50,Y215),"") -> 2753.182265 | AA215: 108.4359552 | AB215: -4.46666266e-05 | AC215: 0.001131638741 | AD215: -17.67348472 | AE215: 69.84985236 | AF215: 99.9095163 | AG215: 71.88932015 | AH215: 8.911458876 | AI215: 0.4112050888 | AJ215: 4.95679719 | AK215: 654.7832385 | AL215: 89.2202934
B216: 99.9095163 | C216: 71.88932015 | D216: 8.911458876 | E216: =IF(H216>0,IF(AND(C216<$B$6,C216>$H$12),bb2wang($B$6,$H$12,C216,$H$8,$H$9,I216,$H$10,$H$11,$K$10,$K$11,$H$13),E215),"") -> 320.5367871 | F216: 320.5367871 | G216: 63616.55911 | H216: 0.02 | I216: 22.41615692 | J216: 5000 | K216: -1 | L216: 8.891458876 | M216: 8.901458876 | N216: -0.1209335468 | O216: 0.19913977 | P216: 172.3025111 | Q216: 58820.76708 | R216: =IF(H216>0, rate1(1,$L$52,$L$51,$L$54,L216,$L$53,$L$50,P216),"") -> 2750.488531 | S216: 107.3897532 | T216: 0.001136702954 | U216: 8.911458876 | V216: 8.911458876 | W216: 0.004778136725 | X216: 59036.09973 | Y216: 172.6898618 | Z216: =IF(H216>0, rate1(1,$L$52,$L$51,$L$54,U216,$L$53,$L$50,Y216),"") -> 2751.670405 | AA216: 107.7365945 | AB216: -4.476568459e-05 | AC216: 0.001136702954 | AD216: -17.59474621 | AE216: 69.42385019 | AF216: 99.78744605 | AG216: 71.88818344 | AH216: 8.89220741 | AI216: 0.4132731118 | AJ216: 4.956911988 | AK216: 654.8095682 | AL216: 89.22234942
B217: 99.78744605 | C217: 71.88818344 | D217: 8.89220741 | E217: =IF(H217>0,IF(AND(C217<$B$6,C217>$H$12),bb2wang($B$6,$H$12,C217,$H$8,$H$9,I217,$H$10,$H$11,$K$10,$K$11,$H$13),E216),"") -> 320.5367871 | F217: 320.5367871 | G217: 63204.23137 | H217: 0.02 | I217: 22.31941009 | J217: 5000 | K217: -1 | L217: 8.87220741 | M217: 8.88220741 | N217: -0.120682441 | O217: 0.19913977 | P217: 171.8053053 | Q217: 58407.58044 | R217: =IF(H217>0, rate1(1,$L$52,$L$51,$L$54,L217,$L$53,$L$50,P217),"") -> 2748.964412 | S217: 106.6945159 | T217: 0.001141804189 | U217: 8.89220741 | V217: 8.89220741 | W217: 0.004757514564 | X217: 58621.98321 | Y217: 172.1923758 | Z217: =IF(H217>0, rate1(1,$L$52,$L$51,$L$54,U217,$L$53,$L$50,Y217),"") -> 2750.151611 | AA217: 107.039943 | AB217: -4.486530669e-05 | AC217: 0.001141804189 | AD217: -17.51613822 | AE217: 68.9995546 | AF217: 99.66562181 | AG217: 71.88704164 | AH217: 8.872954279 | AI217: 0.4153579377 | AJ217: 4.957027365 | AK217: 654.8358592 | AL217: 89.22441579
B218: 99.66562181 | C218: 71.88704164 | D218: 8.872954279 | E218: =IF(H218>0,IF(AND(C218<$B$6,C218>$H$12),bb2wang($B$6,$H$12,C218,$H$8,$H$9,I218,$H$10,$H$11,$K$10,$K$11,$H$13),E217),"") -> 320.5367871 | F218: 320.5367871 | G218: 62793.6537 | H218: 0.02 | I218: 22.22286413 | J218: 5000 | K218: -1 | L218: 8.852954279 | M218: 8.862954279 | N218: -0.1204312688 | O218: 0.19913977 | P218: 171.3084165 | Q218: 57996.1455 | R218: =IF(H218>0, rate1(1,$L$52,$L$51,$L$54,L218,$L$53,$L$50,P218),"") -> 2747.433281 | S218: 106.0019793 | T218: 0.001146942844 | U218: 8.872954279 | V218: 8.872954279 | W218: 0.004736935221 | X218: 58209.62031 | Y218: 171.6952064 | Z218: =IF(H218>0, rate1(1,$L$52,$L$51,$L$54,U218,$L$53,$L$50,Y218),"") -> 2748.62584 | AA218: 106.3459953 | AB218: -4.496549875e-05 | AC218: 0.001146942844 | AD218: -17.43766057 | AE218: 68.57696184 | AF218: 99.54404359 | AG218: 71.8858947 | AH218: 8.853699483 | AI218: 0.4174597621 | AJ218: 4.957143326 | AK218: 654.8621116 | AL218: 89.22649258
B219: 99.54404359 | C219: 71.8858947 | D219: 8.853699483 | E219: =IF(H219>0,IF(AND(C219<$B$6,C219>$H$12),bb2wang($B$6,$H$12,C219,$H$8,$H$9,I219,$H$10,$H$11,$K$10,$K$11,$H$13),E218),"") -> 320.5367871 | F219: 320.5367871 | G219: 62384.82268 | H219: 0.02 | I219: 22.12651912 | J219: 5000 | K219: -1 | L219: 8.833699483 | M219: 8.843699483 | N219: -0.1201800303 | O219: 0.19913977 | P219: 170.8118453 | Q219: 57586.45884 | R219: =IF(H219>0, rate1(1,$L$52,$L$51,$L$54,L219,$L$53,$L$50,P219),"") -> 2745.895092 | S219: 105.3121384 | T219: 0.001152119323 | U219: 8.853699483 | V219: 8.853699483 | W219: 0.00471639871 | X219: 57799.00764 | Y219: 171.1983542 | Z219: =IF(H219>0, rate1(1,$L$52,$L$51,$L$54,U219,$L$53,$L$50,Y219),"") -> 2747.093045 | AA219: 105.6547463 | AB219: -4.506626673e-05 | AC219: 0.001152119323 | AD219: -17.35931305 | AE219: 68.15606816 | AF219: 99.42271144 | AG219: 71.88474258 | AH219: 8.834443019 | AI219: 0.4195787839 | AJ219: 4.957259876 | AK219: 654.8883254 | AL219: 89.22857988
B220: 99.42271144 | C220: 71.88474258 | D220: 8.834443019 | E220: =IF(H220>0,IF(AND(C220<$B$6,C220>$H$12),bb2wang($B$6,$H$12,C220,$H$8,$H$9,I220,$H$10,$H$11,$K$10,$K$11,$H$13),E219),"") -> 320.5367871 | F220: 320.5367871 | G220: 61977.7349 | H220: 0.02 | I220: 22.03037509 | J220: 5000 | K220: -1 | L220: 8.814443019 | M220: 8.824443019 | N220: -0.1199287254 | O220: 0.19913977 | P220: 170.3155924 | Q220: 57178.51705 | R220: =IF(H220>0, rate1(1,$L$52,$L$51,$L$54,L220,$L$53,$L$50,P220),"") -> 2744.349799 | S220: 104.6249877 | T220: 0.001157334038 | U220: 8.834443019 | V220: 8.834443019 | W220: 0.004695905042 | X220: 57390.14176 | Y220: 170.7018198 | Z220: =IF(H220>0, rate1(1,$L$52,$L$51,$L$54,U220,$L$53,$L$50,Y220),"") -> 2745.553181 | AA220: 104.9661905 | AB220: -4.516761667e-05 | AC220: 0.001157334038 | AD220: -17.28109548 | AE220: 67.73686981 | AF220: 99.30162539 | AG220: 71.88358524 | AH220: 8.81518489 | AI220: 0.4217152049 | AJ220: 4.957377019 | AK220: 654.9145007 | AL220: 89.23067777
B221: 99.30162539 | C221: 71.88358524 | D221: 8.81518489 | E221: =IF(H221>0,IF(AND(C221<$B$6,C221>$H$12),bb2wang($B$6,$H$12,C221,$H$8,$H$9,I221,$H$10,$H$11,$K$10,$K$11,$H$13),E220),"") -> 320.5367871 | F221: 320.5367871 | G221: 61572.38692 | H221: 0.02 | I221: 21.93443211 | J221: 5000 | K221: -1 | L221: 8.79518489 | M221: 8.80518489 | N221: -0.1196773542 | O221: 0.19913977 | P221: 169.8196583 | Q221: 56772.31671 | R221: =IF(H221>0, rate1(1,$L$52,$L$51,$L$54,L221,$L$53,$L$50,P221),"") -> 2742.797354 | S221: 103.9405221 | T221: 0.001162587403 | U221: 8.81518489 | V221: 8.81518489 | W221: 0.004675454227 | X221: 56983.01926 | Y221: 170.2056039 | Z221: =IF(H221>0, rate1(1,$L$52,$L$51,$L$54,U221,$L$53,$L$50,Y221),"") -> 2744.006201 | AA221: 104.2803228 | AB221: -4.526955472e-05 | AC221: 0.001162587403 | AD221: -17.20300766 | AE221: 67.31936305 | AF221: 99.18078544 | AG221: 71.88242265 | AH221: 8.795925093 | AI221: 0.4238692301 | AJ221: 4.957494761 | AK221: 654.9406377 | AL221: 89.23278635
... 779 more rows

Sheet W.H curve
A1: The Breach Evolution of Avalanche Lake Spreadsheet(V1.0)
A2: Copy Right：Chen ZuYu（Email：chenzuyu@cashq.ac.cn）
A3: Disclaimer: The author assumes No responsibility and makes no guarantees, expressed or implied, about its quality, reliability, or any other characteristic.
Z4: H | AA4: W (1000000m3)
Z5: 667 | AA5: 0
B6: water elevation | D6: Reservoir capacity | G6: W=p1(H-Hr)2+p2(H-Hr)+p3 | M6: p1 | N6: ='W.H curve'!G47 -> 1.986572892 | O6: W~H curve coefficient | Z6: 670 | AA6: 214
B7: H | D7: W (1000000m3) | M7: p2 | N7: =G46 -> -30.67899572 | O7: W~H curve coefficient | Z7: 680 | AA7: 1280
B8: h1 | C8: 107.86 | D8: W1 | E8: 149.8 | M8: p3 | N8: =G45 -> 187.1696608 | O8: W~H curve coefficient | Z8: 690 | AA8: 2345
B9: h2 | C9: 114.24 | D9: W2 | E9: 392.6 | Z9: 700 | AA9: 4302
B10: h3 | C10: 117.94 | D10: W3 | E10: 607.5 | Z10: 710 | AA10: 7130
B11: Elevations of dead Water Hr (m) | Z11: 720 | AA11: 11039
B12: 93.75 | Z12: 730 | AA12: 16000
Z13: 740 | AA13: 22395
Z14: 750 | AA14: 30190
Z15: 752 | AA15: 31611
B29: h | C29: h2 | D29: W | F29: SUMMARY OUTPUT
B30: =C8-$B$12 -> 14.11 | C30: =IF(B30<>"",B30^2,"") -> 199.0921 | D30: =E8 -> 149.8
B31: =C9-$B$12 -> 20.49 | C31: =IF(B31<>"",B31^2,"") -> 419.8401 | D31: =E9 -> 392.6 | F31: 回归统计
B32: =C10-$B$12 -> 24.19 | C32: =IF(B32<>"",B32^2,"") -> 585.1561 | D32: =E10 -> 607.5 | F32: Multiple R | G32: 1
F33: R Square | G33: 1
F34: Adjusted R Square | G34: 65535
F35: 标准误差 | G35: 0
F36: 观测值 | G36: 3
F38: 方差分析
G39: df | H39: SS | I39: MS | J39: F | K39: Significance F
F40: 回归分析 | G40: 2 | H40: 104874.38 | I40: 52437.19
F41: 残差 | G41: 0 | H41: 0 | I41: 65535
F42: 总计 | G42: 2 | H42: 104874.38
G44: Coefficients | H44: 标准误差 | I44: t Stat | J44: P-value | K44: Lower 95% | L44: Upper 95%
F45: Intercept | G45: 187.1696608 | H45: 0 | I45: 65535 | K45: 187.1696608 | L45: 187.1696608
F46: X Variable 1 | G46: -30.67899572 | H46: 0 | I46: 65535 | K46: -30.67899572 | L46: -30.67899572
F47: X Variable 2 | G47: 1.986572892 | H47: 0 | I47: 65535 | K47: 1.986572892 | L47: 1.986572892
F51: RESIDUAL OUTPUT
F53: 观测值 | G53: 预测 Y | H53: 残差 | I53: 标准残差
F54: 1 | G54: 149.8 | H54: -1.705302566e-13 | I54: -1.808309919e+148
F55: 2 | G55: 392.6 | H55: 0 | I55: 0
F56: 3 | G56: 607.5 | H56: 0 | I56: 0

Sheet erosion model
A1: The Breach Evolution of Avalanche Lake Spreadsheet(V1.0)
A2: Copy Right：Chen ZuYu（Email：chenzuyu@cashq.ac.cn）
A3: Disclaimer: The author assumes No responsibility and makes no guarantees, expressed or implied, about its quality, reliability, or any other characteristic.
B6: Vc | C6: 2.7 | D6: The incipient velocity,m/s
B7: a2 | C7: 1.1 | D7: Erosion coefficient
B8: b2 | C8: 0.0007 | D8: Erosion coefficient
B9: zc | C9: 0 | D9: Erosion coefficient
B17: Vc | C17: 2.6 | D17: The incipient velocity,m/s
B18: a2 | C18: 8 | D18: Erosion coefficient
B19: b2 | C19: 1.3 | D19: Erosion coefficient
B25: =tc(C54,H20,B22,B61,C61,B19) -> 
B29: 1 | C29: =B29/($C$7+$C$8*B29) -> 0.9085127646 | D29: =1/$C$8 -> 1428.571429 | E29: =B29/$C$7 -> 0.9090909091 | F29: =$C$18*B29^$C$19 -> 8
B30: 200 | C30: =B30/($C$7+$C$8*B30) -> 161.2903226 | D30: =1/$C$8 -> 1428.571429 | E30: =B30/$C$7 -> 181.8181818 | F30: =$C$18*B30^$C$19 -> 7842.038703
B31: 400 | C31: 289.8550725 | D31: 1428.571429 | E31: 363.6363636 | F31: 19309.36428
B32: 600 | C32: 394.7368421 | D32: 1428.571429 | E32: 545.4545455 | F32: 32710.45706
B33: 800 | C33: 481.9277108 | D33: 1428.571429 | E33: 727.2727273 | F33: 47545.23191
B34: 1000 | C34: 555.5555556 | D34: 1428.571429 | E34: 909.0909091 | F34: 63546.25878
B35: 1200 | C35: 618.556701 | D35: 1428.571429 | E35: 1090.909091 | F35: 80542.59293
B36: 1400 | C36: 673.0769231 | D36: 1428.571429 | E36: 1272.727273 | F36: 98413.89791
B37: 1600 | C37: 720.7207207 | D37: 1428.571429 | E37: 1454.545455 | F37: 117070.0933
B38: 1800 | C38: 762.7118644 | D38: 1428.571429 | E38: 1636.363636 | F38: 136440.7957
B39: 2000 | C39: 800 | D39: 1428.571429 | E39: 1818.181818 | F39: 156469.243
B40: 2200 | C40: 833.3333333 | D40: 1428.571429 | E40: 2000 | F40: 177108.5274
B41: 2400 | C41: 863.3093525 | D41: 1428.571429 | E41: 2181.818182 | F41: 198319.1266
B42: 2600 | C42: 890.4109589 | D42: 1428.571429 | E42: 2363.636364 | F42: 220067.2109
B43: 2800 | C43: 915.0326797 | D43: 1428.571429 | E43: 2545.454545 | F43: 242323.4412
B44: 3000 | C44: 937.5 | D44: 1428.571429 | E44: 2727.272727 | F44: 265062.0901
B45: 3200 | C45: 958.0838323 | D45: 1428.571429 | E45: 2909.090909 | F45: 288260.3827
B46: 3400 | C46: 977.0114943 | D46: 1428.571429 | E46: 3090.909091 | F46: 311897.9923
B47: 3600 | C47: 994.4751381 | D47: 1428.571429 | E47: 3272.727273 | F47: 335956.6469
B48: 3800 | C48: 1010.638298 | D48: 1428.571429 | E48: 3454.545455 | F48: 360419.8176
B49: 4000 | C49: 1025.641026 | D49: 1428.571429 | E49: 3636.363636 | F49: 385272.4687
B50: 4200 | C50: 1039.60396 | D50: 1428.571429 | E50: 3818.181818 | F50: 410500.8536
B51: 4400 | C51: 1052.631579 | D51: 1428.571429 | E51: 4000 | F51: 436092.3481
B52: 4600 | C52: 1064.814815 | D52: 1428.571429 | E52: 4181.818182 | F52: 462035.3115
B53: 4800 | C53: 1076.233184 | D53: 1428.571429 | E53: 4363.636364 | F53: 488318.9696
B54: 5000 | C54: 1086.956522 | D54: 1428.571429 | E54: 4545.454545 | F54: 514933.3174
B55: 5200 | C55: 1097.046414 | D55: 1428.571429 | E55: 4727.272727 | F55: 541869.0346

Sheet calculation2
A1: Dam Breach Analysis DB-IWHR 2014
A2: Copy Right：Chen ZuYu（Email：chenzuyu@cashq.ac.cn）
A3: Disclaimer: The author assumes No responsibility and makes no guarantees, expressed or implied, about its quality, reliability, or any other characteristic.
A6: Z0 | B6: 740 | C6: Elevations of channel bed,m
A7: Qin | B7: 80 | C7: Inflow flow,m3/s
A8: Hr | B8: 700 | C8: Elevations of dead Water,m | I8: Stage | J8: Bottom fh (m) | K8: Breach B (m) | L8: Center | N8: Toe of Slope
L9: x | M9: y | N9: x | O9: y
I10: 1 | J10: =B6 -> 740 | K10: 16 | L10: - | M10: - | N10: - | O10: -
A11: a1 | B11: 0.06313333333 | C11: W~H curve coefficient | I11: =IF(J11="","",I10+1) -> 2 | J11: 736.5 | K11: =K10 -> 16 | L11: - | M11: - | N11: - | O11: -
A12: b1 | B12: 1.963333333 | C12: W~H curve coefficient | I12: 3 | J12: 735.5 | K12: =IF(J12="","",K11+(-N12)*2) -> 22.6 | L12: 13.423 | M12: 778.3 | N12: -3.3 | O12: =IF(J12="","",J11) -> 736.5
A13: c1 | B13: 44 | C13: W~H curve coefficient | I13: 4 | J13: 733 | K13: =IF(J13="","",K12+(-N13)*2) -> 31.6 | L13: 6.003 | M13: 794.1 | N13: -4.5 | O13: =IF(J13="","",J12) -> 735.5
A14: Note: obtained by water storage capacity curve worksheet | I14: 5 | J14: 731 | K14: =IF(J14="","",K13+(-N14)*2) -> 43.8 | L14: -4.377 | M14: 788.6 | N14: -6.1 | O14: 733
I15: 6 | J15: 727 | K15: =IF(J15="","",K14+(-N15)*2) -> 62 | L15: -8.684 | M15: 814.6 | N15: -9.1 | O15: 731
I16: 7 | J16: 724 | K16: =IF(J16="","",K15+(-N16)*2) -> 88.2 | L16: -19.377 | M16: 826.6 | N16: -13.1 | O16: 727
A17: mq | B17: 0.36 | C17: Broad-crested weir flow coefficient
A18: mb | B18: 0.9 | C18: Lateral shrinkage coefficient | I18: =IF(J18="","",I17+1) ->  | K18: =IF(J18="","",$P$11-N18) -> 
A19: m | B19: 0.8 | C19: Ratio of tailwater
A22: Vc | B22: 2.6 | C22: The incipient velocity,m/s
A23: a2 | B23: 1.1 | C23: Erosion coefficient
A24: b2 | B24: 0.0007 | C24: Erosion coefficient
A25: zc | B25: 0 | C25: Erosion coefficient
I26: Do not modify the cells filling with pink
D29: 表 1
B30: Qp | C30: =MAX(G56:G329) -> 5006.807444 | D30: m3/s | E30: The peak flow
B31: tp | C31: =INDEX(AJ62:AJ208,MATCH(MAX(G62:G208),G62:G208,0)) -> 12.15245905 | D31: h | E31: The peak time
B32: Error | C32: =IF(Calculation!H13>0,err(Calculation!H13,B8,B11,B12),"") ->  | E32: error
D48: 图 1 | L48: 图 2
K50: Tc | L50: 30
B51: Z0 | C51: =B6 -> 740 | E51: Hr | F51: =B8 -> 700 | G51: Ho | H51: 742.5 | K51: Vc | L51: =B22 -> 2.6 | O51: mq | P51: =B17 -> 0.36 | R51: c2 | S51: =1-27.8*(P53-0.67)^3 -> 0.9389234 | T51: =(S54*S53*C55)^2 -> 2.834173567 | W51: Methods | X51: 5
B52: B | C52: =K10 -> 16 | E52: a1*2 | F52: =B11*2 -> 0.1262666667 | G52: H1 | H52: 704.5 | K52: a2 | L52: =B23 -> 1.1 | O52: mb | P52: =B18 -> 0.9 | R52: c1 | S52: =P51*P52*4.427 -> 1.434348
B53: Qin | C53: =B7 -> 80 | E53: b1 | F53: =B12 -> 1.963333333 | K53: b2 | L53: =B24 -> 0.0007 | M53: =1/L53 -> 1428.571429 | O53: m | P53: =B19 -> 0.8 | R53: c2*mq*mb | S53: =P51*P52*S51 -> 0.3042111816
B54: g | C54: 9.8 | E54: c1 | F54: =B13 -> 44 | K54: zc | L54: =B25 -> 0 | O54: s/dz | P54: =B26 -> 0 | R54: m-1 | S54: =1/P53 -> 1.25
B55: Sqrt(2g) | C55: =SQRT(2*C54) -> 4.427188724 | E55: Dq | F55: 271.6790164 | G55: 57.33418997 | H55: =F55-G55 -> 214.3448264 | K55: n | L55: 0.025 | R55: mmqmb | S55: =S53*S54 -> 0.380263977
U56: -7.9
A57: Symbols | B57: Ho | C57: zo | D57: Vo | E57: B | F57: B平均 | G57: Q | H57: dV | I57: h | J57: Qin | K57: Index | L57: V1 | M57: Va1 | N57: s1 | O57: E1 | P57: Tau1 | Q57: A1 | R57: D1 | S57: A/DE_1 | T57: dz1 | U57: V2 | V57: Va2 | W57: s2 | X57: A2 | Y57: Tau2 | Z57: D2 | AA57: A/DE_2 | AB57: dz2 | AC57: dz | AD57: dv/dz | AE57: d2z/dz2 | AF57: H1 | AG57: z1 | AH57: V1 | AI57: dt | AJ57: T | AK57: SumQout | AL57: SumQin
A58: Unit | B58: m | C58: m | D58: m/s | E58: m | F58: m | G58: m3 | H58: m/s | I58: m | L58: m/s | M58: m/s
A59: The formula | D59: eq. (22) | G59: eq.(21) | N59: eq.(24) | AC59: eq.(21) | AI59: eq.(21)
A60: Initial value | L60: =(1-$P$54)*O61*R61+C53 -> 2376.021677 | M60: =M61*(B61-C61+N61/2)/$S$54 -> 5.194124458 | N60: =L60/M60 -> 457.4441172 | P60: =((1-$P$54)*O61*R61+C53)/(M61*(B61-C61+N61/2)/$S$54) -> 457.4441172
B61: =(D61/$C$55/$S$54/$S$53)^2+C61 -> 742.385175 | C61: =B6 -> 740 | D61: =$L$51 -> 2.6 | E61: =K10 -> 16 | F61: =E61 -> 16 | G61: =F61*$S$53*$C$55*(B61-C61+N61)^1.5 -> 86.89713128 | H61: 0.08 | I61: =(B61-C61)*B$19 -> 1.908140017 | J61: =B$7 -> 80 | K61: 1 | L61: =D61+H61*K61 -> 2.68 | M61: =(D61+L61)/2 -> 2.64 | N61: =2*($P$53*M61/$S$52/$S$51)^2-(B61-C61)*2 -> 0.1483284207 | O61: =wh(B61,$F$51,$F$52,$F$53) -> 7.315168099 | P61: =$C$54*$L$55*$L$55*M61*M61/(($B$19*(B61-C61))^0.333)*1000 -> 34.4247454 | Q61: =M61/$S$54*(B61-C61+N61/2)*E61-$C$53 -> 3.105991334 | R61: =rate1(1,$L$52,$L$51,$L$54,L61,$L$53,$L$50,P61) -> 313.8713487 | S61: =Q61/O61/R61 -> 0.00135277091 | T61: =N61/(1-S61) -> 0.1485293469 | U61: =L61-K61*H61 -> 2.6 | V61: =(D61+U61)/2 -> 2.6 | W61: =2*($P$53*V61/$S$52/$S$51)^2-(B61-C61)*2 -> 0.0004067313556 | X61: =V61/$S$54*(B61-C61+W61/2)*F61-$C$53 -> -0.6146072638 | Y61: =$C$54*$L$55*$L$55*V61*V61/(($B$19*(B61-C61))^0.333)*1000 -> 33.38947413 | Z61: =rate1(1,$L$52,$L$51,$L$54,U61,$L$53,$L$50,Y61) -> 253.4635036 | AA61: =X61/O61/Z61 -> -0.0003314804689 | AB61: -1e-05 | AC61: =delta_z(N61,S61,H61,AE61,AB61) -> 0.1485293469 | AD61: =H61/AC61*K61 -> 0.5386140966 | AE61: =AD61 -> 0.5386140966 | AF61: =B61-(AC61-N61) -> 742.3849741 | AG61: =C61-AC61 -> 739.8514707 | AH61: =$S$54*$S$53*$C$55*SQRT(AF61-AG61) -> 2.679624692 | AI61: =AC61/R61*1000000 -> 473.2172831 | AJ61: =AI61/3600 -> 0.1314492453
B62: =AF61 -> 742.3849741 | C62: 739.8514707 | D62: 2.679624692 | E62: =CalBreachWidth(C62,B62,I62,E61) -> 16 | F62: =(E62+E61)/2 -> 16 | G62: =F62*$S$53*$C$55*(B62-C62+N62)^1.5 -> 94.87848245 | H62: =dv(S61) -> 0.08 | I62: =(B62-C62)*B$19 -> 2.026802754 | J62: =B$7 -> 80 | K62: =IF((1-S61-0.015)>0,1,-1) -> 1 | L62: =D62+K62*H62 -> 2.759624692 | M62: 2.719624692 | N62: =2*($P$53*M62/$S$52/$S$51)^2-(B62-C62)*2 -> 0.1528492178 | O62: =wh(B62,$F$51,$F$52,$F$53) -> 7.315142729 | P62: =$C$54*$L$55*$L$55*M62*M62/(($B$19*(B62-C62))^0.333)*1000 -> 35.80600099 | Q62: =M62/$S$54*(B62-C62+N62/2)*E62-$C$53 -> 10.85471709 | R62: =rate1(1,$L$52,$L$51,$L$54,L62,$L$53,$L$50,P62) -> 385.4171297 | S62: 0.003850035125 | T62: 0.153439967 | U62: =D62-K62*H62 -> 2.599624692 | V62: 2.639624692 | W62: =2*($P$53*V62/$S$52/$S$51)^2-(B62-C62)*2 -> -0.1497268213 | X62: =V62/$S$54*(B62-C62+W62/2)*F62-$C$53 -> 3.070552787 | Y62: =$C$54*$L$55*$L$55*V62*V62/(($B$19*(B62-C62))^0.333)*1000 -> 33.73045758 | Z62: =rate1(1,$L$52,$L$51,$L$54,U62,$L$53,$L$50,Y62) -> 274.0702221 | AA62: 0.001531552583 | AB62: =W62/(1-AA62) -> -0.1499564876 | AC62: =delta_z(N62,S62,H62,AE61,AB62) -> 0.153439967 | AD62: 0.5213765457 | AE62: =(AD62-AD61)/(AC62+AC61)*2 -> -0.1141675667 | AF62: 742.3843833 | AG62: 739.6980307 | AH62: =$S$54*$S$53*$C$55*SQRT(AF62-AG62) -> 2.759273401 | AI62: 398.1140308 | AJ62: =AJ61+AI62/3600 -> 0.2420364761 | AK62: =AK61+AI62*G61/1000000 -> 0.0345949672 | AL62: =AL61+AI62*J62/1000000 -> 0.03184912247
B63: 742.3843833 | C63: 739.6980307 | D63: 2.759273401 | E63: =CalBreachWidth(C63,B63,I63,E62) -> 16 | F63: 16 | G63: 103.3366885 | H63: 0.08 | I63: 2.149082128 | J63: =IF(H63>0, $B$7,"") -> 80 | K63: 1 | L63: 2.839273401 | M63: 2.799273401 | N63: 0.1573721418 | O63: 7.315068137 | P63: 37.20115937 | Q63: 19.07327198 | R63: 448.9273713 | S63: 0.005808055271 | T63: 0.1582915076 | U63: 2.679273401 | V63: 2.719273401 | W63: -0.1541976162 | X63: 10.81951484 | Y63: 35.10521111 | Z63: 350.3042744 | AA63: 0.004222250295 | AB63: -0.1548514377 | AC63: 0.1582915076 | AD63: 0.5053966648 | AE63: -0.1025233718 | AF63: 742.383464 | AG63: 739.5397392 | AH63: 2.838945168 | AI63: 352.5993684 | AJ63: 0.3399807451 | AK63: =AK62+AI63*G62/1000000 -> 0.06804906019 | AL63: =AL62+AI63*J63/1000000 -> 0.06005707194
B64: 742.383464 | C64: 739.5397392 | D64: 2.838945168 | E64: 16 | F64: 16 | G64: 112.2857696 | H64: 0.08 | I64: 2.274979842 | J64: =IF(H64>0, $B$7,"") -> 80 | K64: 1 | L64: 2.918945168 | M64: 2.878945168 | N64: 0.1618971388 | O64: 7.314952052 | P64: 38.60996028 | Q64: 27.77567066 | R64: 505.6659622 | S64: 0.007509125267 | T64: 0.1631220427 | U64: 2.758945168 | V64: 2.798945168 | W64: -0.1586689415 | X64: 19.03842509 | Y64: 36.49399004 | Z64: 417.7329537 | AA64: 0.006230469853 | AB64: -0.1596637215 | AC64: 0.1631220427 | AD64: 0.4904303471 | AE64: -0.09312810667 | AF64: 742.3822391 | AG64: 739.3766171 | AH64: 2.918639111 | AI64: 322.5885364 | AJ64: 0.4295886719 | AK64: 0.1013842913 | AL64: 0.08586415485
B65: 742.3822391 | C65: 739.3766171 | D65: 2.918639111 | E65: 16 | F65: 16 | G65: 121.739756 | H65: 0.08 | I65: 2.404497553 | J65: 80 | K65: 1 | L65: 2.998639111 | M65: 2.958639111 | N65: 0.1664241595 | O65: 7.314797387 | P65: 40.03215559 | Q65: 36.97593779 | R65: 556.6458941 | S65: 0.009081088045 | T65: 0.1679493221 | U65: 2.838639111 | V65: 2.878639111 | W65: -0.1631407473 | X65: 27.7413018 | Y65: 37.89652875 | Z65: 477.779171 | AA65: 0.007937748296 | AB65: -0.1644460789 | AC65: 0.1679493221 | AD65: 0.4763341645 | AE65: -0.08515494933 | AF65: 742.3807139 | AG65: 739.2086678 | AH65: 2.998354417 | AI65: 301.7166279 | AJ65: 0.5133988463 | AK65: 0.135262775 | AL65: 0.1100014851
B66: 742.3807139 | C66: 739.2086678 | D66: 2.998354417 | E66: 16 | F66: 16 | G66: 131.7126876 | H66: 0.08 | I66: 2.53763688 | J66: 80 | K66: 1 | L66: 3.078354417 | M66: 3.038354417 | N66: 0.1709531583 | O66: 7.31460481 | P66: 41.46750837 | Q66: 46.68810781 | R66: 602.688504 | S66: 0.01059064713 | T66: 0.1727830426 | U66: 2.918354417 | V66: 2.958354417 | W66: -0.1676129872 | X66: 36.94217321 | Y66: 39.31257411 | Z66: 531.5759704 | AA66: 0.009500932495 | AB66: -0.1692207421 | AC66: 0.1727830426 | AD66: 0.4630083995 | AE66: -0.0782183692 | AF66: 742.378884 | AG66: 739.0358848 | AH66: 3.078090339 | AI66: 286.6871384 | AJ66: 0.5930341625 | AK66: 0.1701639973 | AL66: 0.1329364562
B67: 742.378884 | C67: 739.0358848 | D67: 3.078090339 | E67: 16 | F67: 16 | G67: 142.218614 | H67: 0.08 | I67: 2.674399407 | J67: 80 | K67: =IF((1-S66-0.015)>0,1,-1) -> 1 | L67: 3.158090339 | M67: 3.118090339 | N67: 0.1754840934 | O67: 7.314373757 | P67: 42.91579215 | Q67: 56.92622489 | R67: 644.4666946 | S67: 0.01207632403 | T67: 0.1776292012 | U67: 2.998090339 | V67: 3.038090339 | W67: -0.1720856188 | X67: 46.65507741 | Y67: 40.74188451 | Z67: 580.0366858 | AA67: 0.01099679941 | AB67: -0.1739990515 | AC67: 0.1776292012 | AD67: 0.4503763992 | AE67: -0.0720979394 | AF67: 742.3767389 | AG67: 738.8582556 | AH67: 3.157846183 | AI67: 275.6220029 | AJ67: 0.66959583 | AK67: 0.2064669121 | AL67: 0.1549862164
B68: 742.3767389 | C68: 738.8582556 | D68: 3.157846183 | E68: 16 | F68: 16 | G68: 153.2715943 | H68: 0.08 | I68: 2.814786682 | J68: 80 | K68: 1 | L68: 3.237846183 | M68: 3.197846183 | N68: 0.1800169258 | O68: 7.314102901 | P68: 44.37679019 | Q68: 67.70434273 | R68: 682.5369676 | S68: 0.01356217305 | T68: 0.1824919127 | U68: 3.077846183 | V68: 3.117846183 | W68: -0.1765586025 | X68: 56.89406215 | Y68: 42.18422911 | Z68: 623.9056701 | AA68: 0.01246771724 | AB68: -0.1787876767 | AC68: 0.1824919127 | AD68: 0.4383755905 | AE68: -0.06664873666 | AF68: 742.3742639 | AG68: 738.6757637 | AH68: 3.237621307 | AI68: 267.3729357 | AJ68: 0.7438660899 | AK68: 0.2444923204 | AL68: 0.1763760512
B69: 742.3742639 | C69: 738.6757637 | D69: 3.237621307 | E69: 16 | F69: 16 | G69: 164.8856968 | H69: 0.08 | I69: 2.958800222 | J69: 80 | K69: 1 | L69: 3.317621307 | M69: 3.277621307 | N69: 0.1845516198 | O69: 7.313790393 | P69: 45.8502948 | Q69: 79.03652447 | R69: 717.3635105 | S69: 0.01506419895 | T69: 0.1873742629 | U69: 3.157621307 | V69: 3.197621307 | W69: -0.1810319018 | X69: 67.67318475 | Y69: 43.63938708 | Z69: 663.7955945 | AA69: 0.01393926067 | AB69: -0.1835910249 | AC69: 0.1873742629 | AD69: 0.4269529803 | AE69: -0.0617661789 | AF69: 742.3714413 | AG69: 738.4883894 | AH69: 3.317415115 | AI69: 261.1984861 | AJ69: 0.8164212249 | AK69: 0.2845266288 | AL69: 0.1972719301
B70: 742.3714413 | C70: 738.4883894 | D70: 3.317415115 | E70: 16 | F70: 16 | G70: 177.0749992 | H70: 0.08 | I70: 3.106441518 | J70: 80 | K70: 1 | L70: 3.397415115 | M70: 3.357415115 | N70: 0.1890881419 | O70: 7.313433987 | P70: 47.3361068 | Q70: 90.9368426 | R70: 749.3365425 | S70: 0.01659363807 | T70: 0.1922787458 | U70: 3.237415115 | V70: 3.277415115 | W70: -0.1855054827 | X70: 79.00651196 | Y70: 45.1071469 | Z70: 700.2152917 | AA70: 0.01542801143 | AB70: -0.1884123099 | AC70: 0.1922787458 | AD70: 0.4160626265 | AE70: -0.0573700385 | AF70: 742.3682507 | AG70: 738.2961106 | AH70: 3.397227055 | AI70: 256.5986508 | AJ70: 0.8876986279 | AK70: 0.3268360761 | AL70: 0.2177998222
B71: 742.3682507 | C71: 738.2961106 | D71: 3.397227055 | E71: 16 | F71: 16 | G71: 189.8535885 | H71: 0.08 | I71: 3.257712032 | J71: 80 | K71: 1 | L71: 3.477227055 | M71: 3.437227055 | N71: 0.1936264613 | O71: 7.31303112 | P71: 48.83403495 | Q71: 103.4193788 | R71: 778.7864561 | S71: 0.01815875685 | T71: 0.1972075044 | U71: 3.317227055 | V71: 3.357227055 | W71: -0.1899793136 | X71: 90.90811989 | Y71: 46.58730578 | Z71: 733.5908239 | AA71: 0.01694538202 | AB71: -0.1932540778 | AC71: 0.1972075044 | AD71: 0.4056640758 | AE71: -0.05339624028 | AF71: 742.3646696 | AG71: 738.0989031 | AH71: 3.477056609 | AI71: 253.2241063 | AJ71: 0.9580386575 | AK71: 0.3716757346 | AL71: 0.2380577507
B72: 742.3646696 | C72: 738.0989031 | D72: 3.477056609 | E72: 16 | F72: 16 | G72: 203.2355607 | H72: 0.08 | I72: 3.412613201 | J72: 80 | K72: 1 | L72: 3.557056609 | M72: 3.517056609 | N72: 0.198166549 | O72: 7.312578954 | P72: 50.34389547 | Q72: 116.498224 | R72: 805.9948356 | S72: 0.0197658947 | T72: 0.2021624711 | U72: 3.397056609 | V72: 3.437056609 | W72: -0.1944533651 | X72: 103.3920938 | Y72: 48.0796691 | Z72: 764.2816255 | AA72: 0.01849964283 | AB72: -0.1981184864 | AC72: 0.2021624711 | AD72: 0.3957213203 | AE72: -0.04979220286 | AF72: 742.3606737 | AG72: 737.8967407 | AH72: 3.556903296 | AI72: 250.8235316 | AJ72: 1.027711861 | AK72: 0.4192954821 | AL72: 0.2581236332
B73: 742.3606737 | C73: 737.8967407 | D73: 3.556903296 | E73: 16 | F73: =(E73+E72)/2 -> 16 | G73: 217.2350206 | H73: 0.08 | I73: 3.57114644 | J73: 80 | K73: 1 | L73: 3.636903296 | M73: 3.596903296 | N73: 0.2027083783 | O73: 7.312074402 | P73: 51.86551159 | Q73: 130.187478 | R73: 831.2031296 | S73: 0.02142009745 | T73: 0.2071454541 | U73: 3.476903296 | V73: 3.516903296 | W73: -0.1989276098 | X73: 116.4725283 | Y73: 49.58404989 | Z73: 792.5930118 | AA73: 0.02009706616 | AB73: -0.2030074642 | AC73: 0.2071454541 | AD73: 0.3862020547 | AE73: -0.04651395691 | AF73: 742.3562366 | AG73: 737.6895952 | AH73: 3.636766666 | AI73: 249.2115907 | AJ73: 1.096937303 | AK73: 0.4699441395 | AL73: 0.2780605605
B74: 742.3562366 | C74: 737.6895952 | D74: 3.636766666 | E74: 16 | F74: 16 | G74: 231.8660824 | H74: 0.08 | I74: 3.733313142 | J74: 80 | K74: 1 | L74: 3.716766666 | M74: 3.676766666 | N74: 0.2072519239 | O74: 7.311514147 | P74: 53.39871311 | Q74: 144.5012496 | R74: 854.6195387 | S74: 0.02312551752 | T74: 0.2121581919 | U74: 3.556766666 | V74: 3.596766666 | W74: -0.2034020219 | X74: 130.1635267 | Y74: 51.10026834 | Z74: 818.7859736 | AA74: 0.0217426056 | AB74: -0.2079228054 | AC74: 0.2121581919 | AD74: 0.37707712 | AE74: -0.04352423268 | AF74: 742.3513304 | AG74: 737.477437 | AH74: 3.716646298 | AI74: 248.2487029 | AJ74: 1.165895276 | AK74: 0.5238724516 | AL74: 0.2979204567
B75: 742.3513304 | C75: 737.477437 | D75: 3.716646298 | E75: 16 | F75: 16 | G75: 247.1428686 | H75: 0.08 | I75: 3.899114682 | J75: 80 | K75: 1 | L75: 3.796646298 | M75: 3.756646298 | N75: 0.2117971625 | O75: 7.310894649 | P75: 54.94333604 | Q75: 159.4536567 | R75: 876.424534 | S75: 0.02488567535 | T75: 0.2172023907 | U75: 3.636646298 | V75: 3.676646298 | W75: -0.2078765773 | X75: 144.4792016 | Y75: 52.62815143 | Z75: 843.0849216 | AA75: 0.02344031725 | AB75: -0.2128662293 | AC75: 0.2172023907 | AD75: 0.3683200711 | AE75: -0.04079111699 | AF75: 742.3459252 | AG75: 737.2602346 | AH75: 3.796541798 | AI75: 247.8278303 | AJ75: 1.23473634 | AK75: 0.5813353197 | AL75: 0.3177466831
B76: 742.3459252 | C76: 737.2602346 | D76: 3.796541798 | E76: 16 | F76: 16 | G76: 263.079511 | H76: 0.08 | I76: 4.068552412 | J76: 80 | K76: 1 | L76: 3.876541798 | M76: 3.836541798 | N76: 0.2163440721 | O76: 7.310212149 | P76: 56.49922226 | Q76: 175.0588259 | R76: 896.7753124 | S76: 0.02670363521 | T76: 0.2222797494 | U76: 3.716541798 | V76: 3.756541798 | W76: -0.2123512535 | X76: 159.4336744 | Y76: 54.16753248 | Z76: 865.683862 | AA76: 0.02519363035 | AB76: -0.2178394193 | AC76: 0.2222797494 | AD76: 0.3599068301 | AE76: -0.03828706696 | AF76: 742.3399895 | AG76: 737.0379549 | AH76: 3.876452796 | AI76: 247.8655984 | AJ76: 1.303587895 | AK76: 0.6425935347 | AL76: 0.337575931
B77: 742.3399895 | C77: 737.0379549 | D77: 3.876452796 | E77: 16 | F77: 16 | G77: 279.6901497 | H77: 0.08 | I77: 4.241627669 | J77: 80 | K77: 1 | L77: 3.956452796 | M77: 3.916452796 | N77: 0.2208926319 | O77: 7.309462671 | P77: 58.06621916 | Q77: 191.3308923 | R77: 915.8094206 | S77: 0.02858212655 | T77: 0.2273919782 | U77: 3.796452796 | V77: 3.836452796 | W77: -0.2168260293 | X77: 175.0410752 | Y77: 55.71825081 | Z77: 886.7513646 | AA77: 0.02700552685 | AB77: -0.2228440503 | AC77: 0.2273919782 | AD77: 0.351815401 | AE77: -0.03598816016 | AF77: 742.3334901 | AG77: 736.8105629 | AH77: 3.956378942 | AI77: 248.2961772 | AJ77: 1.372559055 | AK77: 0.7079151716 | AL77: 0.3574396252
B78: 742.3334901 | C78: 736.8105629 | D78: 3.956378942 | E78: 16 | F78: 16 | G78: 296.9889338 | H78: 0.08 | I78: 4.418341775 | J78: 80 | K78: 1 | L78: 4.036378942 | M78: 3.996378942 | N78: 0.2254428227 | O78: 7.30864202 | P78: 59.64417938 | Q78: 208.2840001 | R78: 933.6477237 | S78: 0.03052362973 | T78: 0.2325408124 | U78: 3.876378942 | V78: 3.916378942 | W78: -0.2213008848 | X78: 191.315543 | Y78: 57.28015142 | Z78: 906.4345874 | AA78: 0.02887866384 | AB78: -0.2278818069 | AC78: 0.2325408124 | AD78: 0.3440256322 | AE78: -0.03387350898 | AF78: 742.3263921 | AG78: 736.5780221 | AH78: 4.036319911 | AI78: 249.066973 | AJ78: 1.441744325 | AK78: 0.7775767506 | AL78: 0.377364983
B79: 742.3263921 | C79: 736.5780221 | D79: 4.036319911 | E79: 16 | F79: 16 | G79: 314.9900208 | H79: 0.08 | I79: 4.598696033 | J79: 80 | K79: 1 | L79: 4.116319911 | M79: 4.076319911 | N79: 0.2299946263 | O79: 7.307745781 | P79: 61.23296047 | Q79: 225.932302 | R79: 950.3968514 | S79: 0.03253043776 | T79: 0.2377280229 | U79: 3.956319911 | V79: 3.996319911 | W79: -0.2257758012 | X79: 208.2712254 | Y79: 58.85308463 | Z79: 924.8625623 | AA79: 0.03081545905 | AB79: -0.2329543979 | AC79: 0.2377280229 | AD79: 0.3365190145 | AE79: -0.0319247935 | AF79: 742.3186587 | AG79: 736.3402941 | AH79: 4.116275394 | AI79: 250.1355329 | AJ79: 1.511226418 | AK79: 0.8518642358 | AL79: 0.3973758257
B80: 742.3186587 | C80: 736.3402941 | D80: 4.116275394 | E80: 16 | F80: 16 | G80: 333.7075768 | H80: 0.08 | I80: 4.782691734 | J80: 80 | K80: 1 | L80: 4.196275394 | M80: 4.156275394 | N80: 0.2345480255 | O80: 7.30676931 | P80: 62.8324247 | Q80: 244.2899591 | R80: 966.1512275 | S80: 0.03460470178 | T80: 0.2429554255 | U80: 4.036275394 | V80: 4.076275394 | W80: -0.2302507609 | X80: 225.9222788 | Y80: 60.43690585 | Z80: 942.1488936 | AA80: 0.03281815195 | AB80: -0.2380635672 | AC80: 0.2429554255 | AD80: 0.3292785079 | AE80: -0.0301258827 | AF80: 742.3102513 | AG80: 736.0973386 | AH80: 4.196245099 | AI80: 251.4672844 | AJ80: 1.581078441 | AK80: 0.931073921 | AL80: 0.4174932084
B81: 742.3102513 | C81: 736.0973386 | D81: 4.196245099 | E81: 16 | F81: 16 | G81: 353.1557765 | H81: 0.08 | I81: 4.970330154 | J81: 80 | K81: 1 | L81: 4.276245099 | M81: 4.236245099 | N81: 0.2391030041 | O81: 7.305707736 | P81: 64.44243878 | Q81: 263.3711412 | R81: 980.9947613 | S81: 0.036748465 | T81: 0.2482248877 | U81: 4.116245099 | V81: 4.156245099 | W81: -0.234725747 | X81: 244.282868 | Y81: 62.03147527 | Z81: 958.3939902 | AA81: 0.03488884836 | AB81: -0.2432111023 | AC81: 0.2482248877 | AD81: 0.3222883924 | AE81: -0.02846252335 | AF81: 742.3011295 | AG81: 735.8491138 | AH81: 4.276228753 | AI81: 253.0338565 | AJ81: 1.651365624 | AK81: 1.015513236 | AL81: 0.4377359169
B82: 742.3011295 | C82: 735.8491138 | D82: 4.276228753 | E82: 16 | F82: 16 | G82: 373.3488028 | H82: 0.08 | I82: 5.161612558 | J82: 80 | K82: 1 | L82: 4.356228753 | M82: 4.316228753 | N82: 0.243659547 | O82: 7.304555946 | P82: 66.06287365 | Q82: 283.1900267 | R82: 995.0022666 | S82: 0.03896368867 | T82: 0.2535383358 | U82: 4.196228753 | V82: 4.236228753 | W82: -0.239200744 | X82: 263.3671664 | Y82: 63.63665763 | Z82: 973.6869203 | AA82: 0.03702955349 | AB82: -0.2483988422 | AC82: 0.2535383358 | AD82: 0.3155341371 | AE82: -0.02692208174 | AF82: 742.2912507 | AG82: 735.5955754 | AH82: 4.356226095 | AI82: 254.8118173 | AJ82: 1.722146684 | AK82: 1.105501501 | AL82: 0.4581208623
B83: 742.2912507 | C83: 735.5955754 | D83: 4.356226095 | E83: 16 | F83: 16 | G83: 394.3008475 | H83: 0.08 | I83: 5.356540195 | J83: 80 | K83: 1 | L83: 4.436226095 | M83: 4.396226095 | N83: 0.2482176397 | O83: 7.303308584 | P83: 67.69360424 | Q83: 303.7608021 | R83: 1008.240657 | S83: 0.04125227208 | T83: 0.2588977606 | U83: 4.276226095 | V83: 4.316226095 | W83: -0.2436757367 | X83: 283.1893558 | Y83: 65.25232199 | Z83: 988.1069637 | AA83: 0.03924219708 | AB83: -0.2536286835 | AC83: 0.2588977606 | AD83: 0.3090022865 | AE83: -0.02549332739 | AF83: 742.2805705 | AG83: 735.3366777 | AH83: 4.436236881 | AI83: 256.7817106 | AJ83: 1.793474937 | AK83: 1.201370645 | AL83: 0.4786633992
B84: 742.2805705 | C84: 735.3366777 | D84: 4.436236881 | E84: 16 | F84: 16 | G84: 416.0261102 | H84: 0.08 | I84: 5.555114307 | J84: 80 | K84: 1 | L84: 4.516236881 | M84: 4.476236881 | N84: 0.2527772688 | O84: 7.301960041 | P84: 69.33450933 | Q84: 325.0976626 | R84: 1020.769958 | S84: 0.04361606839 | T84: 0.2643052235 | U84: 4.356236881 | V84: 4.396236881 | W84: -0.2481507113 | X84: 303.7636267 | Y84: 66.87834153 | Z84: 1001.724915 | AA84: 0.04152865271 | AB84: -0.2589025869 | AC84: 0.2643052235 | AD84: 0.3026803593 | AE84: -0.02416625063 | AF84: 742.2690426 | AG84: 735.0723724 | AH84: 4.516260878 | AI84: 258.9273141 | AJ84: 1.865399191 | AK84: 1.303465905 | AL84: 0.4993775843
B85: 742.2690426 | C85: 735.0723724 | D85: 4.516260878 | E85: 16 | F85: 16 | G85: 438.5387993 | H85: 0.08 | I85: 5.757336122 | J85: 80 | K85: 1 | L85: 4.596260878 | M85: 4.556260878 | N85: 0.2573384212 | O85: 7.300504445 | P85: 70.98547133 | Q85: 347.2148116 | R85: 1032.644166 | S85: 0.0460568973 | T85: 0.2697628616 | U85: 4.436260878 | V85: 4.476260878 | W85: -0.2526256541 | X85: 325.1041778 | Y85: 68.5145933 | Z85: 1014.604185 | AA85: 0.04389075299 | AB85: -0.2642225822 | AC85: 0.2697628616 | AD85: 0.2965567593 | AE85: -0.02293190779 | AF85: 742.2566182 | AG85: 734.8026096 | AH85: 4.596297866 | AI85: 261.2350609 | AJ85: 1.937964485 | AK85: 1.412146511 | AL85: 0.5202763892
B86: 742.2566182 | C86: 734.8026096 | D86: 4.596297866 | E86: 16 | F86: 16 | G86: 461.8531313 | H86: 0.08 | I86: 5.963206859 | J86: 80 | K86: 1 | L86: 4.676297866 | M86: 4.636297866 | N86: 0.2619010848 | O86: 7.298935652 | P86: 72.6463761 | Q86: 370.1264609 | R86: 1043.911987 | S86: 0.04857655538 | T86: 0.2752728938 | U86: 4.516297866 | V86: 4.556297866 | W86: -0.2571005526 | X86: 347.2252161 | Y86: 70.16095808 | Z86: 1026.801735 | AA86: 0.04633030169 | AB86: -0.2695907746 | AC86: 0.2752728938 | AD86: 0.2906206961 | AE86: -0.02178228909 | AF86: 742.2432463 | AG86: 734.5273367 | AH86: 4.676347635 | AI86: 263.6935846 | AJ86: 2.011212703 | AK86: 1.527786379 | AL86: 0.5413718759
B87: 742.2432463 | C87: 734.5273367 | D87: 4.676347635 | E87: 16 | F87: 16 | G87: 485.9833309 | H87: 0.08 | I87: 6.172727727 | J87: 80 | K87: 1 | L87: 4.756347635 | M87: 4.716347635 | N87: 0.2664652481 | O87: 7.297247238 | P87: 74.31711283 | Q87: 393.8468306 | R87: 1054.617462 | S87: 0.05117682467 | T87: 0.2808376261 | U87: 4.596347635 | V87: 4.636347635 | W87: -0.2615753947 | X87: 370.140957 | Y87: 71.81732021 | Z87: 1038.368874 | AA87: 0.04884908365 | AB87: -0.2750093494 | AC87: 0.2808376261 | AD87: 0.2848621145 | AE87: -0.02071020544 | AF87: 742.228874 | AG87: 734.2464991 | AH87: 4.756409987 | AI87: 266.2933586 | AJ87: 2.085183081 | AK87: 1.650774801 | AL87: 0.5626753446
B88: 742.228874 | C88: 734.2464991 | D88: 4.756409987 | E88: 16 | F88: 16 | G88: 510.9436312 | H88: 0.08 | I88: 6.385899925 | J88: 80 | K88: 1 | L88: 4.836409987 | M88: 4.796409987 | N88: 0.2710309002 | O88: 7.295432486 | P88: 75.99757386 | Q88: 418.3901489 | R88: 1064.800514 | S88: 0.05385947993 | T88: 0.2864594576 | U88: 4.676409987 | V88: 4.716409987 | W88: -0.2660501689 | X88: 393.8656242 | Y88: 73.48356736 | Z88: 1049.35194 | AA88: 0.05144887299 | AB88: -0.2804805786 | AC88: 0.2864594576 | AD88: 0.2792716312 | AE88: -0.01970919098 | AF88: 742.2134454 | AG88: 733.9600396 | AH88: 4.836484733 | AI88: 269.026408 | AJ88: 2.159912639 | AK88: 1.78151715 | AL88: 0.5841974573
B89: 742.2134454 | C89: 733.9600396 | D89: 4.836484733 | E89: 16 | F89: 16 | G89: 536.7482733 | H89: 0.08 | I89: 6.602724646 | J89: 80 | K89: 1 | L89: 4.916484733 | M89: 4.876484733 | N89: 0.2755980305 | O89: 7.293484374 | P89: 77.68765454 | Q89: 443.7706523 | R89: 1074.497413 | S89: 0.05662629497 | T89: 0.2921408866 | U89: 4.756484733 | V89: 4.796484733 | W89: -0.2705248644 | X89: 418.4134497 | Y89: 75.15959047 | Z89: 1059.792882 | AA89: 0.05413144012 | AB89: -0.2860068257 | AC89: 0.2921408866 | AD89: 0.2738404779 | AE89: -0.01877341882 | AF89: 742.1969026 | AG89: 733.6678987 | AH89: 4.916571695 | AI89: 271.8860772 | AJ89: 2.235436549 | AK89: 1.92043561 | AL89: 0.6059483434
B90: 742.1969026 | C90: 733.6678987 | D90: 4.916571695 | E90: 16 | F90: 16 | G90: 563.4115067 | H90: 0.08 | I90: 6.82320307 | J90: 80 | K90: 1 | L90: 4.996571695 | M90: 4.956571695 | N90: 0.2801666294 | O90: 7.291395562 | P90: 79.38725311 | Q90: 470.0025856 | R90: 1083.741183 | S90: 0.05947904819 | T90: 0.2978845169 | U90: 4.836571695 | V90: 4.876571695 | W90: -0.2749994706 | X90: 443.7986737 | Y90: 76.84528353 | Z90: 1069.72977 | AA90: 0.05689855777 | AB90: -0.2915905525 | AC90: 0.2978845169 | AD90: 0.2685604503 | AE90: -0.01789762807 | AF90: 742.1791847 | AG90: 733.3700142 | AH90: 4.9966707 | AI90: 274.8668422 | AJ90: 2.31178845 | AK90: 2.067969913 | AL90: 0.6279376908
B91: 742.1791847 | C91: 733.3700142 | D91: 4.9966707 | E91: 16 | F91: 16 | G91: 590.947589 | H91: 0.08 | I91: 7.047336373 | J91: 80 | K91: 1 | L91: 5.0766707 | M91: 5.0366707 | N91: 0.2847366872 | O91: 7.289158384 | P91: 81.09627057 | Q91: 497.1002016 | R91: 1092.561959 | S91: =Q91/O91/R91 -> 0.06241952756 | T91: 0.3036930648 | U91: 4.9166707 | V91: 4.9566707 | W91: -0.2794739778 | X91: 470.0355444 | Y91: 78.54054347 | Z91: 1079.197228 | AA91: 0.05975200638 | AB91: -0.2972343251 | AC91: 0.3036930648 | AD91: 0.263423862 | AE91: -0.01707706034 | AF91: 742.1602283 | AG91: 733.0663211 | AH91: 5.076781587 | AI91: 277.9641579 | AJ91: 2.389000716 | AK91: 2.224578118 | AL91: 0.6501748235
B92: 742.1602283 | C92: 733.0663211 | D92: 5.076781587 | E92: 16 | F92: 16 | G92: 619.3707857 | H92: 0.08 | I92: 7.275125723 | J92: 80 | K92: 1 | L92: 5.156781587 | M92: 5.116781587 | N92: 0.2893081952 | O92: 7.286764825 | P92: 82.81461058 | Q92: 525.0777613 | R92: 1100.987288 | S92: 0.06544953525 | T92: 0.3095693663 | U92: 4.996781587 | V92: 5.036781587 | W92: -0.2839483764 | X92: 497.1383184 | Y92: 80.24527005 | Z92: 1088.226814 | AA92: 0.06269357898 | AB92: -0.3029408207 | AC92: 0.3095693663 | AD92: 0.2584235028 | AE92: -0.0163074043 | AF92: 742.1399671 | AG92: 732.7567518 | AH92: 5.156904199 | AI92: 281.174333 | AJ92: 2.467104697 | AK92: 2.390737412 | AL92: 0.6726687701
B93: =AF92 -> 742.1399671 | C93: =AG92 -> 732.7567518 | D93: =AH92 -> 5.156904199 | E93: 16 | F93: 16 | G93: 648.6953707 | H93: 0.08 | I93: 7.506572279 | J93: 80 | K93: 1 | L93: 5.236904199 | M93: 5.196904199 | N93: 0.2938811447 | O93: 7.284206514 | P93: 84.5421793 | Q93: 553.9495338 | R93: 1109.042406 | S93: 0.06857089197 | T93: 0.3155163846 | U93: 5.076904199 | V93: 5.116904199 | W93: -0.2884226576 | X93: 525.1212604 | Y93: 81.95936571 | Z93: 1096.847351 | AA93: 0.0657250857 | AB93: -0.3087128351 | AC93: 0.3155163846 | AD93: 0.2535526011 | AE93: -0.01558474728 | AF93: 742.1183319 | AG93: 732.4412354 | AH93: 5.237038389 | AI93: 284.4944277 | AJ93: 2.546130927 | AK93: 2.566944949 | AL93: 0.6954283243
B94: =AF93 -> 742.1183319 | C94: 732.4412354 | D94: 5.237038389 | E94: 16 | F94: 16 | G94: 678.9356257 | H94: 0.08 | I94: 7.741677195 | J94: 80 | K94: 1 | L94: 5.317038389 | M94: 5.277038389 | N94: 0.2984555277 | O94: 7.281474705 | P94: 86.27888534 | Q94: 583.7297963 | R94: 1116.75047 | S94: 0.07178544106 | T94: 0.3215372188 | U94: 5.157038389 | V94: 5.197038389 | W94: -0.2928968125 | X94: 553.998643 | Y94: 83.68273547 | Z94: 1105.085215 | AA94: 0.06884835802 | AB94: -0.3145532901 | AC94: =delta_z(N94,S94,H94,AE93,AB94) -> 0.3215372188 | AD94: 0.2488047894 | AE94: -0.01490553274 | AF94: 742.0952502 | AG94: 732.1196982 | AH94: 5.317184016 | AI94: 287.92217 | AJ94: 2.626109307 | AK94: 2.753718728 | AL94: 0.7184620979
B95: 742.0952502 | C95: 732.1196982 | D95: 5.317184016 | E95: 16 | F95: 16 | G95: 710.1058407 | H95: =dv(S94) -> 0.08 | I95: 7.980441617 | J95: 80 | K95: 1 | L95: 5.397184016 | M95: 5.357184016 | N95: 0.3030313365 | O95: 7.278560257 | P95: 88.02463964 | Q95: 614.432834 | R95: 1124.132769 | S95: 0.07509505259 | T95: 0.3276351125 | U95: 5.237184016 | V95: 5.277184016 | W95: -0.2973708332 | X95: 583.7847472 | Y95: 85.41528685 | Z95: 1112.964589 | AA95: 0.07206525295 | AB95: -0.3204652419 | AC95: 0.3276351125 | AD95: 0.2441740734 | AE95: -0.01426652294 | AF95: 742.0706464 | AG95: 731.7920631 | AH95: 5.397340944 | AI95: 291.4558863 | AJ95: 2.707069276 | AK95: 2.951598513 | AL95: 0.7417785688
B96: 742.0706464 | C96: 731.7920631 | D96: 5.397340944 | E96: 16 | F96: 16 | G96: 742.2203134 | H96: 0.08 | I96: 8.222866686 | J96: 80 | K96: 1 | L96: 5.477340944 | M96: 5.437340944 | N96: 0.3076085635 | O96: 7.27545362 | P96: 89.77935538 | Q96: 646.0729402 | R96: 1131.208906 | S96: 0.07850162733 | T96: 0.3338134637 | U96: 5.317340944 | V96: 5.357340944 | W96: -0.3018447116 | X96: 614.4938618 | Y96: 87.15692972 | Z96: 1120.507683 | AA96: 0.075377657 | AB96: -0.3264518902 | AC96: 0.3338134637 | AD96: 0.2396548034 | AE96: -0.01366476604 | AF96: 742.0444415 | AG96: 731.4582496 | AH96: 5.477509043 | AI96: 295.0944446 | AJ96: 2.789039955 | AK96: 3.161146801 | AL96: 0.7653861244
B97: 742.0444415 | C97: 731.4582496 | D97: 5.477509043 | E97: 16 | F97: 16 | G97: 775.2933499 | H97: 0.08 | I97: 8.468953537 | J97: 80 | K97: 1 | L97: 5.557509043 | M97: 5.517509043 | N97: 0.3121872019 | O97: 7.272144815 | P97: 91.54294788 | Q97: 678.6644162 | R97: 1137.99696 | S97: 0.08200710075 | T97: 0.3400758352 | U97: 5.397509043 | V97: 5.437509043 | W97: -0.3063184402 | X97: 646.1402837 | Y97: 88.90757622 | Z97: 1127.734931 | AA97: 0.07878749031 | AB97: -0.3325165876 | AC97: 0.3400758352 | AD97: 0.2352416483 | AE97: -0.01309756703 | AF97: 742.0165529 | AG97: 731.1181738 | AH97: 5.557688192 | AI97: 298.8372088 | AJ97: 2.872050291 | AK97: 3.382949848 | AL97: 0.7892931011
B98: 742.0165529 | C98: 731.1181738 | D98: 5.557688192 | E98: 16 | F98: 16 | G98: 809.3392641 | H98: 0.08 | I98: 8.718703299 | J98: 80 | K98: 1 | L98: 5.637688192 | M98: 5.597688192 | N98: 0.3167672448 | O98: 7.26862341 | P98: 93.31533453 | Q98: 712.2215714 | R98: 1144.513635 | S98: 0.08561344716 | T98: 0.346425966 | U98: 5.477688192 | V98: 5.517688192 | W98: -0.3107920118 | X98: 678.738318 | Y98: 90.66714069 | Z98: 1134.665166 | AA98: 0.08229671068 | AB98: -0.3386628505 | AC98: 0.346425966 | AD98: 0.2309295719 | AE98: -0.012562462 | AF98: 741.9868942 | AG98: 730.7717478 | AH98: 5.63787827 | AI98: 302.6840009 | AJ98: 2.95612918 | AK98: 3.617618741 | AL98: 0.8135078212
B99: 741.9868942 | C99: 730.7717478 | D99: 5.63787827 | E99: 16 | F99: 16 | G99: 844.3723777 | H99: 0.08 | I99: 8.972117095 | J99: 80 | K99: 1 | L99: 5.71787827 | M99: 5.67787827 | N99: 0.3213486859 | O99: 7.264878502 | P99: 95.09643472 | Q99: 746.7587228 | R99: 1150.77438 | S99: 0.08932268392 | T99: 0.3528677833 | U99: 5.55787827 | V99: 5.59787827 | W99: -0.3152654196 | X99: 712.3022775 | Y99: 92.43553959 | Z99: 1141.315769 | AA99: 0.08590731778 | AB99: -0.3448943698 | AC99: 0.3528677833 | AD99: 0.2267138112 | AE99: -0.01205719539 | AF99: 741.9553751 | AG99: 730.41888 | AH99: 5.718079165 | AI99: 306.6350705 | AJ99: 3.041305588 | AK99: 3.865790544 | AL99: 0.8380386268
B100: 741.9553751 | C100: 730.41888 | D100: 5.718079165 | E100: 16 | F100: 16 | G100: 880.4070207 | H100: 0.08 | I100: 9.229196043 | J100: 80 | K100: 1 | L100: 5.798079165 | M100: 5.758079165 | N100: 0.3259315188 | O100: 7.260898691 | P100: 96.88616972 | Q100: 782.2901959 | R100: 1156.793513 | S100: 0.09313687577 | T100: 0.3594054165 | U100: 5.638079165 | V100: 5.678079165 | W100: -0.3197386567 | X100: 746.8464833 | Y100: 94.21269138 | Z100: 1147.702811 | AA100: 0.08962135751 | AB100: -0.351215024 | AC100: 0.3594054165 | AD100: 0.2225898563 | AE100: -0.01157969971 | AF100: 741.9219012 | AG100: 730.0594746 | AH100: 5.798290768 | AI100: 310.6910718 | AJ100: 3.127608664 | AK100: 4.128129503 | AL100: 0.8628939125
B101: 741.9219012 | C101: 730.0594746 | D101: 5.798290768 | E101: 16 | F101: 16 | G101: 917.4575307 | H101: 0.08 | I101: 9.489941258 | J101: 80 | K101: 1 | L101: 5.878290768 | M101: 5.838290768 | N101: 0.3305157379 | O101: 7.256672053 | P101: 98.68446268 | Q101: 818.8303238 | R101: 1162.584314 | S101: 0.09705813947 | T101: 0.3660432109 | U101: 5.718290768 | V101: 5.758290768 | W101: -0.324211717 | X101: 782.3852641 | Y101: 95.99851646 | Z101: 1153.841166 | AA101: 0.09344092651 | AB101: -0.357628892 | AC101: 0.3660432109 | AD101: 0.218553432 | AE101: -0.01112807753 | AF101: 741.8863737 | AG101: 729.6934314 | AH101: 5.878512976 | AI101: 314.8530447 | AJ101: 3.215067843 | AK101: 4.405328334 | AL101: 0.8880821561
B102: 741.8863737 | C102: 729.6934314 | D102: 5.878512976 | E102: 16 | F102: 16 | G102: 955.5382534 | H102: 0.08 | I102: 9.754353849 | J102: 80 | K102: 1 | L102: 5.958512976 | M102: 5.918512976 | N102: 0.3351013373 | O102: 7.252186117 | P102: 100.4912385 | Q102: 856.3934475 | R102: 1168.15912 | S102: 0.1010886486 | T102: 0.3727857444 | U102: 5.798512976 | V102: 5.838512976 | W102: -0.3286845942 | X102: 818.9329569 | Y102: 97.79293713 | Z102: 1159.744627 | AA102: 0.09736817695 | AB102: -0.3641402683 | AC102: 0.3727857444 | AD102: 0.2146004808 | AE102: -0.01070058541 | AF102: 741.8486893 | AG102: 729.3206456 | AH102: 5.958745686 | AI102: 319.1224022 | AJ102: 3.303712955 | AK102: 4.698109585 | AL102: 0.9136119483
B103: 741.8486893 | C103: 729.3206456 | D103: 5.958745686 | E103: 16 | F103: 16 | G103: 984.870466 | H103: 0.06 | I103: 10.02243492 | J103: 80 | K103: 1 | L103: 6.018745686 | M103: 5.988745686 | N103: 0.2550885992 | O103: 7.247427833 | P103: 101.9656154 | Q103: 890.126051 | R103: 1172.53807 | S103: 0.1047467748 | T103: 0.2849345772 | U103: 5.898745686 | V103: 5.928745686 | W103: -0.2495455965 | X103: 861.2587334 | Y103: 99.93270563 | Z103: 1166.460883 | AA103: 0.1018778004 | AB103: -0.2778526091 | AC103: 0.2849345772 | AD103: 0.210574654 | AE103: -0.01224175899 | AF103: 741.8188433 | AG103: 729.0357111 | AH103: 6.019104213 | AI103: 243.0066746 | AJ103: 3.371214809 | AK103: 4.930311758 | AL103: 0.9330524823
B104: 741.8188433 | C104: 729.0357111 | D104: 6.019104213 | E104: 16 | F104: 16 | G104: 1014.800214 | H104: 0.06 | I104: 10.2265058 | J104: 80 | K104: 1 | L104: 6.079104213 | M104: 6.049104213 | N104: 0.2576879192 | O104: 7.243659281 | P104: 103.3353811 | Q104: 919.7553877 | R104: 1176.476385 | S104: 0.1079272501 | T104: 0.2888642426 | U104: 5.959104213 | V104: 5.989104213 | W104: -0.2520579187 | X104: 890.3002959 | Y104: 101.2956166 | Z104: 1170.566547 | AA104: 0.1049983308 | AB104: -0.2816284342 | AC104: 0.2888642426 | AD104: 0.2077100283 | AE104: -0.009984773785 | AF104: 741.787667 | AG104: 728.7468468 | AH104: 6.079469369 | AI104: 245.5333963 | AJ104: 3.43941853 | AK104: 5.172130349 | AL104: 0.952695154
B105: 741.787667 | C105: 728.7468468 | D105: 6.079469369 | E105: 16 | F105: 16 | G105: 1045.333641 | H105: 0.06 | I105: 10.43265613 | J105: 80 | K105: 1 | L105: 6.139469369 | M105: 6.109469369 | N105: 0.2602879633 | O105: 7.23972275 | P105: 104.7098596 | Q105: 949.9853059 | R105: 1180.308318 | S105: 0.1111730409 | T105: 0.2928443614 | U105: 6.019469369 | V105: 6.049469369 | W105: -0.2545700784 | X105: 919.9364506 | Y105: 102.6632853 | Z105: 1174.559247 | AA105: 0.1081834841 | AB105: -0.2854511818 | AC105: 0.2928443614 | AD105: 0.2048869908 | AE105: -0.009706019298 | AF105: 741.7551106 | AG105: 728.4540024 | AH105: 6.139841128 | AI105: 248.1083603 | AJ105: 3.508337519 | AK105: 5.423910766 | AL105: 0.9725438228
B106: 741.7551106 | C106: 728.4540024 | D106: 6.139841128 | E106: 16 | F106: 16 | G106: 1076.476893 | H106: 0.06 | I106: 10.6408865 | J106: 80 | K106: 1 | L106: 6.199841128 | M106: 6.169841128 | N106: 0.2628887303 | O106: 7.235611963 | P106: 106.0890216 | Q106: 980.8219499 | R106: 1184.037977 | S106: 0.1144851812 | T106: 0.2968767147 | U106: 6.079841128 | V106: 6.109841128 | W106: -0.2570820743 | X106: 950.1733399 | Y106: 104.0356817 | Z106: 1178.443431 | AA106: 0.1114342855 | AB106: -0.289322523 | AC106: 0.2968767147 | AD106: 0.2021040958 | AE106: -0.009438004303 | AF106: 741.7211226 | AG106: 728.1571257 | AH106: 6.200219461 | AI106: 250.7324262 | AJ106: 3.577985415 | AK106: 5.686009806 | AL106: 0.9926024169
B107: 741.7211226 | C107: 728.1571257 | D107: 6.200219461 | E107: 16 | F107: 16 | G107: 1108.23612 | H107: 0.06 | I107: 10.85119749 | J107: 80 | K107: 1 | L107: 6.260219461 | M107: 6.230219461 | N107: 0.2654902191 | O107: 7.231320413 | P107: 107.4728386 | Q107: 1012.271467 | R107: 1187.669268 | S107: 0.1178647316 | T107: 0.3009631614 | U107: 6.140219461 | V107: 6.170219461 | W107: -0.2595939051 | X107: 981.0171099 | Y107: 105.4127764 | Z107: 1182.223318 | AA107: 0.1147517866 | AB107: -0.2932442011 | AC107: 0.3009631614 | AD107: 0.1993599473 | AE107: -0.009180212236 | AF107: 741.6856497 | AG107: 727.8561626 | AH107: 6.260604342 | AI107: 253.4065413 | AJ107: 3.648376121 | AK107: 5.958796092 | AL107: 1.01287494
B108: 741.6856497 | C108: 727.8561626 | D108: 6.260604342 | E108: 16 | F108: 16 | G108: 1140.617473 | H108: 0.06 | I108: 11.06358966 | J108: 80 | K108: 1 | L108: 6.320604342 | M108: 6.290604342 | N108: 0.2680924289 | O108: 7.226841363 | P108: 108.8612823 | Q108: 1044.340009 | R108: 1191.205901 | S108: 0.1213127809 | T108: 0.3051056429 | U108: 6.200604342 | V108: 6.230604342 | W108: -0.2621055696 | X108: 1012.47391 | Y108: 106.7945406 | Z108: 1185.902913 | AA108: 0.1181370667 | AB108: -0.2972180366 | AC108: 0.3051056429 | AD108: 0.1966531967 | AE108: -0.00893215631 | AF108: 741.6486364 | AG108: 727.5510569 | AH108: 6.320995745 | AI108: 256.1317423 | AJ108: 3.719523827 | AK108: 6.24265054 | AL108: 1.03336548
B109: 741.6486364 | C109: 727.5510569 | D109: 6.320995745 | E109: 16 | F109: 16 | G109: 1173.627109 | H109: 0.06 | I109: 11.27806361 | J109: 80 | K109: 1 | L109: 6.380995745 | M109: 6.350995745 | N109: 0.2706953585 | O109: 7.222167828 | P109: 110.254325 | Q109: 1077.033728 | R109: 1194.651406 | S109: 0.1248304479 | T109: 0.3093061886 | U109: 6.260995745 | V109: 6.290995745 | W109: -0.2646170664 | X109: 1044.549892 | Y109: 108.1809458 | Z109: 1189.486022 | AA109: 0.1215912349 | AB109: -0.3012459312 | AC109: 0.3093061886 | AD109: 0.1939825397 | AE109: -0.008693377554 | AF109: 741.6100256 | AG109: 727.2417507 | AH109: 6.381393643 | AI109: 258.9091571 | AJ109: 3.791443037 | AK109: 6.537966849 | AL109: 1.054078212
B110: 741.6100256 | C110: 727.2417507 | D110: 6.381393643 | E110: 16 | F110: 16 | G110: 1207.271187 | H110: 0.06 | I110: 11.49461989 | J110: 80 | K110: 1 | L110: 6.441393643 | M110: 6.411393643 | N110: 0.2732990071 | O110: 7.217292567 | P110: 111.6519394 | Q110: 1110.358783 | R110: 1198.009141 | S110: 0.1284188835 | T110: 0.313566921 | U110: 6.321393643 | V110: 6.351393643 | W110: -0.2671283945 | X110: 1077.251211 | Y110: 109.5719641 | Z110: 1192.976265 | AA110: 0.1251154312 | AB110: -0.3053298733 | AC110: 0.313566921 | AD110: 0.1913467141 | AE110: -0.008463442993 | AF110: 741.5697577 | AG110: 726.9281838 | AH110: 6.441798014 | AI110: 261.7400071 | AJ110: 3.864148595 | AK110: 6.845152017 | AL110: 1.075017413
B111: 741.5697577 | C111: 726.9281838 | D111: 6.441798014 | E111: 16 | F111: 16 | G111: 1241.55587 | H111: 0.06 | I111: 11.7132591 | J111: 80 | K111: 1 | L111: 6.501798014 | M111: 6.471798014 | N111: 0.2759033737 | O111: 7.212208072 | P111: 113.0540985 | Q111: 1144.321333 | R111: 1201.282304 | S111: 0.1320792723 | T111: 0.3178900617 | U111: 6.381798014 | V111: 6.411798014 | W111: -0.2696395527 | X111: 1110.584027 | Y111: 110.9675679 | Z111: 1196.377084 | AA111: 0.1287108296 | AB111: -0.3094719432 | AC111: 0.3178900617 | AD111: 0.1887444976 | AE111: -0.008241943966 | AF111: 741.527771 | AG111: 726.6102938 | AH111: 6.502208833 | AI111: 264.6256094 | AJ111: 3.937655709 | AK111: 7.164626891 | AL111: 1.096187461
B112: 741.527771 | C112: 726.6102938 | D112: 6.502208833 | E112: 16 | F112: 16 | G112: 1276.487322 | H112: 0.06 | I112: 11.9339818 | J112: 80 | K112: 1 | L112: 6.562208833 | M112: 6.532208833 | N112: 0.2785084575 | O112: 7.206906552 | P112: 114.4607759 | Q112: 1178.927544 | R112: 1204.473941 | S112: 0.135812835 | T112: 0.3222779379 | U112: 6.442208833 | V112: 6.472208833 | W112: -0.2721505397 | X112: 1144.554502 | Y112: 112.3677301 | Z112: 1199.691757 | AA112: 0.1323786391 | AB112: -0.3136743192 | AC112: 0.3222779379 | AD112: 0.186174705 | AE112: -0.008028494571 | AF112: 741.4840015 | AG112: 726.2880158 | AH112: 6.562626076 | AI112: 267.5673809 | AJ112: 4.011979981 | AK112: 7.496826743 | AL112: 1.117592852
B113: 741.4840015 | C113: 726.2880158 | D113: 6.562626076 | E113: 16 | F113: 16 | G113: 1312.071713 | H113: 0.06 | I113: 12.15678856 | J113: 80 | K113: 1 | L113: 6.622626076 | M113: 6.592626076 | N113: 0.2811142575 | O113: 7.201379926 | P113: 115.8719456 | Q113: 1214.18358 | R113: 1207.586958 | S113: 0.1396208308 | T113: 0.3267329889 | U113: 6.502626076 | V113: 6.532626076 | W113: -0.2746613546 | X113: 1179.1688 | Y113: 113.7724242 | Z113: 1202.923404 | AA113: 0.1361201068 | AB113: -0.3179392839 | AC113: 0.3267329889 | AD113: 0.1836361863 | AE113: -0.007822730221 | AF113: 741.4383828 | AG113: 725.9612828 | AH113: 6.623049721 | AI113: 270.5668414 | AJ113: 4.087137437 | AK113: 7.842201886 | AL113: 1.139238199
B114: 741.4383828 | C114: 725.9612828 | D114: 6.623049721 | E114: 16 | F114: 16 | G114: 1348.315215 | H114: 0.06 | I114: 12.38167997 | J114: 80 | K114: 1 | L114: 6.683049721 | M114: 6.653049721 | N114: 0.283720773 | O114: 7.195619801 | P114: 117.287582 | Q114: 1250.095613 | R114: 1210.624122 | S114: 0.1435045594 | T114: 0.3312577739 | U114: 6.563049721 | V114: 6.593049721 | W114: -0.2771719962 | X114: 1214.433091 | Y114: 115.1816238 | Z114: 1206.074999 | AA114: 0.1399365199 | AB114: -0.3222692308 | AC114: 0.3312577739 | AD114: 0.1811278247 | AE114: -0.007624306307 | AF114: 741.3908458 | AG114: 725.6300251 | AH114: 6.683479747 | AI114: 273.6256182 | AJ114: 4.163144553 | AK114: 8.201218319 | AL114: 1.161128249
B115: 741.3908458 | C115: 725.6300251 | D115: 6.683479747 | E115: 16 | F115: 16 | G115: 1385.224003 | H115: 0.06 | I115: 12.60865659 | J115: 80 | K115: 1 | L115: 6.743479747 | M115: 6.713479747 | N115: 0.2863280031 | O115: 7.189617462 | P115: 118.7076598 | Q115: 1286.669817 | R115: 1213.588079 | S115: 0.1474653642 | T115: 0.3358549801 | U115: 6.623479747 | V115: 6.653479747 | W115: -0.2796824635 | X115: 1250.353546 | Y115: 116.5953031 | Z115: 1209.14938 | AA115: 0.143829208 | AB115: -0.3266666722 | AC115: 0.3358549801 | AD115: 0.1786485345 | AE115: -0.007432896955 | AF115: 741.3413188 | AG115: 725.2941701 | AH115: 6.743916131 | AI115: 276.7454508 | AJ115: 4.24001829 | AK115: 8.574358421 | AL115: 1.183267885
B116: 741.3413188 | C116: 725.2941701 | D116: 6.743916131 | E116: 16 | F116: 16 | G116: 1422.804256 | H116: 0.06 | I116: 12.83771899 | J116: 80 | K116: 1 | L116: 6.803916131 | M116: 6.773916131 | N116: 0.2889359471 | O116: 7.183363856 | P116: 120.1321541 | Q116: 1323.912367 | R116: 1216.481351 | S116: 0.1515046345 | T116: 0.3405274311 | U116: 6.683916131 | V116: 6.713916131 | W116: -0.2821927554 | X116: 1286.93634 | Y116: 118.0134367 | Z116: 1212.149251 | AA116: 0.1477995466 | AB116: -0.331134247 | AC116: 0.3405274311 | AD116: 0.1761972591 | AE116: -0.007248193877 | AF116: 741.2897273 | AG116: 724.9536426 | AH116: 6.804358854 | AI116: 279.9281967 | AJ116: 4.317776122 | AK116: 8.962121679 | AL116: 1.205662141
B117: 741.2897273 | C117: 724.9536426 | D117: 6.804358854 | E117: 16 | F117: 16 | G117: 1461.062154 | H117: 0.06 | I117: 13.06886775 | J117: 80 | K117: 1 | L117: 6.864358854 | M117: 6.834358854 | N117: 0.2915446041 | O117: 7.176849571 | P117: 121.5610405 | Q117: 1361.829443 | R117: 1219.30635 | S117: 0.1556238089 | T117: 0.3452780967 | U117: 6.744358854 | V117: 6.774358854 | W117: -0.284702871 | X117: 1324.187651 | Y117: 119.4359995 | Z117: 1215.077195 | AA117: 0.1518489594 | AB117: -0.3356747294 | AC117: 0.3452780967 | AD117: 0.173772969 | AE117: -0.0070699053 | AF117: 741.2359938 | AG117: 724.6083646 | AH117: 6.864807894 | AI117: 283.1758374 | AJ117: 4.396436077 | AK117: 9.365025465 | AL117: 1.228316207
B118: 741.2359938 | C118: 724.6083646 | D118: 6.864807894 | E118: 16 | F118: 16 | G118: 1500.003884 | H118: 0.06 | I118: 13.30210343 | J118: 80 | K118: 1 | L118: 6.924807894 | M118: 6.894807894 | N118: 0.2941539736 | O118: 7.170064822 | P118: 122.9942948 | Q118: 1400.427229 | R118: 1222.065378 | S118: 0.1598243783 | T118: 0.3501101031 | U118: 6.804807894 | V118: 6.834807894 | W118: -0.2872128093 | X118: 1362.113661 | Y118: 120.8629669 | Z118: 1217.935678 | AA118: 0.1559789217 | AB118: -0.3402910386 | AC118: 0.3501101031 | AD118: 0.1713746603 | AE118: -0.006897754969 | AF118: 741.1800377 | AG118: 724.2582544 | AH118: 6.925263232 | AI118: 286.4904852 | AJ118: 4.476016767 | AK118: 9.783605871 | AL118: 1.251235446
B119: 741.1800377 | C119: 724.2582544 | D119: 6.925263232 | E119: 16 | F119: 16 | G119: 1539.635634 | H119: 0.06 | I119: 13.53742661 | J119: 80 | K119: 1 | L119: 6.985263232 | M119: 6.955263232 | N119: 0.2967640546 | O119: 7.162999428 | P119: 124.4318932 | Q119: 1439.711911 | R119: 1224.76064 | S119: 0.1641078894 | T119: 0.3550267443 | U119: 6.865263232 | V119: 6.895263232 | W119: -0.2897225693 | X119: 1400.720554 | Y119: 122.2943146 | Z119: 1220.727058 | AA119: 0.1601909637 | AB119: -0.344986249 | AC119: 0.3550267443 | AD119: 0.1690013526 | AE119: -0.006731481227 | AF119: 741.121775 | AG119: 723.9032277 | AH119: 6.98572485 | AI119: 289.8743907 | AJ119: 4.556537431 | AK119: 10.21841858 | AL119: 1.274425398
B120: 741.121775 | C120: 723.9032277 | D120: 6.98572485 | E120: 16 | F120: 16 | G120: 1579.963594 | H120: 0.06 | I120: 13.77483785 | J120: 80 | K120: 1 | L120: 7.04572485 | M120: 7.01572485 | N120: 0.2993748467 | O120: 7.155642793 | P120: 125.8738124 | Q120: 1479.689678 | R120: 1227.394242 | S120: 0.1684759484 | T120: 0.3600314941 | U120: 6.92572485 | V120: 6.95572485 | W120: -0.2922321501 | X120: 1440.014518 | Y120: 123.7300186 | Z120: 1223.453586 | AA120: 0.1644866743 | AB120: -0.3497636018 | AC120: 0.3600314941 | AD120: 0.1666520873 | AE120: -0.006570836154 | AF120: 741.0611184 | AG120: 723.5431962 | AH120: 7.046192727 | AI120: 293.3299519 | AJ120: 4.638017974 | AK120: 10.67003983 | AL120: 1.297891794
B121: 741.0611184 | C121: 723.5431962 | D121: 7.046192727 | E121: 16 | F121: 16 | G121: 1620.993959 | H121: 0.06 | I121: 14.01433773 | J121: 80 | K121: 1 | L121: 7.106192727 | M121: 7.076192727 | N121: 0.301986349 | O121: 7.14798388 | P121: 127.3200293 | Q121: 1520.366723 | R121: 1229.968203 | S121: 0.1729302251 | T121: 0.3651280196 | U121: 6.986192727 | V121: 7.016192727 | W121: -0.2947415508 | X121: 1480.001745 | Y121: 125.1700554 | Z121: 1226.117418 | AA121: 0.168867705 | AB121: -0.3546265169 | AC121: 0.3651280196 | AD121: 0.1643259262 | AE121: -0.006415584765 | AF121: 740.9979767 | AG121: 723.1780682 | AH121: 7.106666847 | AI121: 296.8597228 | AJ121: 4.720479008 | AK121: 11.13906738 | AL121: 1.321640572
B122: 740.9979767 | C122: 723.1780682 | D122: 7.106666847 | E122: 16 | F122: 16 | G122: 1662.732928 | H122: 0.06 | I122: 14.25592681 | J122: 80 | K122: 1 | L122: 7.166666847 | M122: 7.136666847 | N122: 0.304598561 | O122: 7.140011192 | P122: 128.770521 | Q122: 1561.749242 | R122: 1232.484452 | S122: 0.177472457 | T122: 0.3703201961 | U122: 7.046666847 | V122: 7.076666847 | W122: -0.2972507705 | X122: 1520.688428 | Y122: 126.6144016 | Z122: 1228.720615 | AA122: 0.173335774 | AB122: -0.3595786066 | AC122: 0.3703201961 | AD122: 0.1620219492 | AE122: -0.006265504265 | AF122: 740.9322551 | AG122: 722.807748 | AH122: 7.167147192 | AI122: 300.4664241 | AJ122: 4.803941903 | AK122: 11.62612164 | AL122: 1.345677885
B123: 740.9322551 | C123: 722.807748 | D123: 7.167147192 | E123: 16 | F123: 16 | G123: 1705.186701 | H123: 0.06 | I123: 14.49960566 | J123: 80 | K123: 1 | L123: 7.227147192 | M123: 7.197147192 | N123: 0.307211482 | O123: 7.13171274 | P123: 130.2252653 | Q123: 1603.843435 | R123: 1234.944841 | S123: 0.1821044542 | T123: 0.3756121226 | U123: 7.107147192 | V123: 7.137147192 | W123: -0.2997598084 | X123: 1562.080766 | Y123: 128.0630345 | Z123: 1231.26515 | AA123: 0.1778926709 | AB123: -0.3646236905 | AC123: 0.3756121226 | AD123: 0.1597392533 | AE123: -0.006120383359 | AF123: 740.8638544 | AG123: 722.4321359 | AH123: 7.227633744 | AI123: 304.1529549 | AJ123: 4.888428835 | AK123: 12.13184677 | AL123: 1.370010122
B124: 740.8638544 | C124: 722.4321359 | D124: 7.227633744 | E124: 16 | F124: 16 | G124: 1748.361482 | H124: 0.06 | I124: 14.74537485 | J124: 80 | K124: 1 | L124: 7.287633744 | M124: 7.257633744 | N124: 0.3098251114 | O124: 7.123076019 | P124: 131.6842399 | Q124: 1646.655503 | R124: 1237.351143 | S124: 0.1868281041 | T124: 0.3810081398 | U124: 7.167633744 | V124: 7.197633744 | W124: -0.3022686634 | X124: 1604.184958 | Y124: 129.5159313 | Z124: 1233.752915 | AA124: 0.1825402617 | AB124: -0.3697658114 | AC124: 0.3810081398 | AD124: 0.1574769506 | AE124: -0.005980021604 | AF124: 740.7926714 | AG124: 722.0511277 | AH124: 7.288126486 | AI124: 307.922405 | AJ124: 4.973962836 | AK124: 12.65691196 | AL124: 1.394643914
B125: 740.7926714 | C125: 722.0511277 | D125: 7.288126486 | E125: 16 | F125: 16 | G125: 1792.26348 | H125: 0.06 | I125: 14.99323493 | J125: 80 | K125: 1 | L125: 7.348126486 | M125: =(D125+L125)/2 -> 7.318126486 | N125: 0.3124394486 | O125: 7.114087975 | P125: 133.1474231 | Q125: 1690.191652 | R125: 1239.705058 | S125: =Q125/O125/R125 -> 0.1916453772 | T125: =N125/(1-S125) -> 0.3865128494 | U125: 7.228126486 | V125: =(D125+U125)/2 -> 7.258126486 | W125: -0.304777335 | X125: 1647.00721 | Y125: 130.97307 | Z125: 1236.18572 | AA125: =X125/O125/Z125 -> 0.187280494 | AB125: -0.3750092532 | AC125: 0.3865128494 | AD125: =H125/AC125*K125 -> 0.1552341664 | AE125: -0.005844228807 | AF125: =B125-(AC125-N125) -> 740.718598 | AG125: =C125-AC125 -> 721.6646149 | AH125: 7.348625402 | AI125: =AC125/R125*1000000 -> 311.7780693 | AJ125: 5.060567856 | AK125: 13.20201273 | AL125: 1.41958616
B126: =AF125 -> 740.718598 | C126: 721.6646149 | D126: 7.348625402 | E126: 16 | F126: =(E126+E125)/2 -> 16 | G126: =F126*$S$53*$C$55*(B126-C126+N126)^1.5 -> 1836.898904 | H126: 0.06 | I126: =(B126-C126)*B$19 -> 15.24318649 | J126: 80 | K126: =IF((1-S125-0.015)>0,1,-1) -> 1 | L126: =D126+K126*H126 -> 7.408625402 | M126: 7.378625402 | N126: =2*($P$53*M126/$S$52/$S$51)^2-(B126-C126)*2 -> 0.3150544931 | O126: =wh(B126,$F$51,$F$52,$F$53) -> 7.104734974 | P126: =$C$54*$L$55*$L$55*M126*M126/(($B$19*(B126-C126))^0.333)*1000 -> 134.6147935 | Q126: =M126/$S$54*(B126-C126+N126/2)*E126-$C$53 -> 1734.458091 | R126: =rate1(1,$L$52,$L$51,$L$54,L126,$L$53,$L$50,P126) -> 1242.008216 | S126: 0.1965583328 | T126: 0.3921311353 | U126: =D126-K126*H126 -> 7.288625402 | V126: 7.318625402 | W126: =2*($P$53*V126/$S$52/$S$51)^2-(B126-C126)*2 -> -0.3072858221 | X126: =V126/$S$54*(B126-C126+W126/2)*F126-$C$53 -> 1690.553727 | Y126: =$C$54*$L$55*$L$55*V126*V126/(($B$19*(B126-C126))^0.333)*1000 -> 132.4344284 | Z126: =rate1(1,$L$52,$L$51,$L$54,U126,$L$53,$L$50,Y126) -> 1238.565301 | AA126: 0.1921154031 | AB126: =W126/(1-AA126) -> -0.3803585602 | AC126: =delta_z(N126,S126,H126,AE125,AB126) -> 0.3921311353 | AD126: 0.1530100382 | AE126: =(AD126-AD125)/(AC126+AC125)*2 -> -0.005712824468 | AF126: 740.6415214 | AG126: 721.2724837 | AH126: =$S$54*$S$53*$C$55*SQRT(AF126-AG126) -> 7.409130476 | AI126: 315.7234632 | AJ126: =AJ125+AI126/3600 -> 5.148268818 | AK126: 13.76787236 | AL126: 1.444844037
B127: 740.6415214 | C127: 721.2724837 | D127: 7.409130476 | E127: =CalBreachWidth(C127,B127,I127,E126) -> 16 | F127: 16 | G127: 1882.273968 | H127: =dv(S126) -> 0.06 | I127: 15.49523009 | J127: 80 | K127: 1 | L127: 7.469130476 | M127: 7.439130476 | N127: 0.3176702442 | O127: 7.095002763 | P127: 136.0863297 | Q127: 1779.461033 | R127: 1244.262183 | S127: 0.2015691255 | T127: 0.3978681867 | U127: 7.349130476 | V127: 7.379130476 | W127: -0.3097941241 | X127: 1734.830721 | Y127: 133.899985 | Z127: 1240.893324 | AA127: 0.197047118 | AB127: -0.3858185593 | AC127: 0.3978681867 | AD127: 0.1508037134 | AE127: -0.005585637252 | AF127: 740.5613234 | AG127: 720.8746156 | AH127: 7.469641693 | AI127: 319.7623397 | AJ127: 5.23709169 | AK127: =AK126+AI127*G126/1000000 -> 14.35524346 | AL127: =AL126+AI127*J127/1000000 -> 1.470425024
B128: 740.5613234 | C128: 720.8746156 | D128: 7.469641693 | E128: 16 | F128: 16 | G128: 1928.394891 | H128: 0.06 | I128: 15.74936628 | J128: =IF(H128>0, $B$7,"") -> 80 | K128: 1 | L128: 7.529641693 | M128: 7.499641693 | N128: 0.3202867015 | O128: 7.084876436 | P128: 137.5620109 | Q128: 1825.206691 | R128: 1246.46846 | S128: 0.206680012 | T128: 0.4037295245 | U128: 7.409641693 | V128: 7.439641693 | W128: -0.3123022401 | X128: 1779.844405 | Y128: 135.3697184 | Z128: 1243.171385 | AA128: 0.2020778684 | AB128: -0.3913943827 | AC128: 0.4037295245 | AD128: 0.1486143479 | AE128: -0.005462504512 | AF128: 740.4778806 | AG128: 720.470886 | AH128: 7.530159037 | AI128: 323.8987087 | AJ128: 5.327063553 | AK128: 14.96490956 | AL128: 1.496336921
B129: 740.4778806 | C129: 720.470886 | D129: 7.530159037 | E129: 16 | F129: 16 | G129: 1975.267892 | H129: 0.06 | I129: 16.00559564 | J129: 80 | K129: 1 | L129: 7.590159037 | M129: 7.560159037 | N129: 0.3229038645 | O129: 7.074340389 | P129: 139.0418165 | Q129: 1871.701286 | R129: 1248.62849 | S129: 0.2118933592 | T129: 0.4097210298 | U129: 7.470159037 | V129: 7.500159037 | W129: -0.3148101694 | X129: 1825.600997 | Y129: 136.8436076 | Z129: 1245.401018 | AA129: 0.2072099926 | AB129: -0.3970914952 | AC129: 0.4097210298 | AD129: 0.1464411041 | AE129: -0.005343271827 | AF129: 740.3910634 | AG129: 720.061165 | AH129: 7.590682494 | AI129: 328.1368582 | AJ129: 5.418212681 | AK129: 15.597687 | AL129: 1.522587869
B130: 740.3910634 | C130: 720.061165 | D130: 7.590682494 | E130: 16 | F130: 16 | G130: 2022.899194 | H130: 0.06 | I130: 16.26391874 | J130: 80 | K130: 1 | L130: 7.650682494 | M130: 7.620682494 | N130: 0.3255217325 | O130: 7.063378275 | P130: 140.5257262 | Q130: 1918.951038 | R130: 1250.74366 | S130: 0.2172116519 | T130: 0.4158489754 | U130: 7.530682494 | V130: 7.560682494 | W130: -0.3173179113 | X130: 1872.106715 | Y130: 138.3216319 | Z130: 1247.583695 | AA130: 0.2124459447 | AB130: -0.4029157226 | AC130: 0.4158489754 | AD130: 0.1442831498 | AE130: -0.005227792592 | AF130: 740.3007362 | AG130: 719.645316 | AH130: 7.651212049 | AI130: 332.4813778 | AJ130: 5.510568619 | AK130: 16.25442679 | AL130: 1.54918638
B131: 740.3007362 | C131: 719.645316 | D131: 7.651212049 | E131: 16 | F131: 16 | G131: 2071.295025 | H131: 0.06 | I131: 16.52433612 | J131: 80 | K131: 1 | L131: 7.711212049 | M131: 7.681212049 | N131: 0.3281403052 | O131: 7.051972955 | P131: 142.0137198 | Q131: 1966.962173 | R131: 1252.815301 | S131: 0.2226375022 | T131: 0.4221200613 | U131: 7.591212049 | V131: 7.621212049 | W131: -0.319825465 | X131: 1919.367784 | Y131: 139.8037707 | Z131: 1249.720829 | AA131: 0.2177883048 | AB131: -0.4088732845 | AC131: 0.4221200613 | AD131: 0.1421396553 | AE131: -0.005115927618 | AF131: 740.2067564 | AG131: 719.223196 | AH131: 7.711747687 | AI131: 336.9371852 | AJ131: 5.604162282 | AK131: 16.93601676 | AL131: 1.576141354
B132: 740.2067564 | C132: 719.223196 | D132: 7.711747687 | E132: 16 | F132: 16 | G132: 2120.461615 | H132: 0.06 | I132: 16.78684837 | J132: 80 | K132: 1 | L132: 7.771747687 | M132: 7.741747687 | N132: 0.330759582 | O132: 7.040106445 | P132: 143.5057776 | Q132: 2015.740919 | R132: 1254.844694 | S132: 0.2281736593 | T132: 0.4285414537 | U132: 7.651747687 | V132: 7.681747687 | W132: -0.3223328297 | X132: 1967.390429 | Y132: 141.2900038 | Z132: 1251.81378 | AA132: 0.2232397877 | AB132: -0.4149708296 | AC132: 0.4285414537 | AD132: 0.1400097925 | AE132: -0.005007544776 | AF132: 740.1089746 | AG132: 718.7946545 | AH132: 7.772289396 | AI132: 341.5095554 | AJ132: 5.699026047 | AK132: 17.6433838 | AL132: 1.603462119
B133: 740.1089746 | C133: 718.7946545 | D133: 7.772289396 | E133: 16 | F133: 16 | G133: 2170.405196 | H133: 0.06 | I133: 17.05145603 | J133: 80 | K133: 1 | L133: 7.832289396 | M133: 7.802289396 | N133: 0.3333795625 | O133: 7.027759854 | P133: 145.0018801 | Q133: 2065.293506 | R133: 1256.833071 | S133: 0.2338230208 | T133: 0.4351208292 | U133: 7.712289396 | V133: 7.742289396 | W133: -0.3248400048 | X133: 2016.180882 | Y133: 142.7803114 | Z133: 1253.863853 | AA133: 0.2288032542 | AB133: -0.4212154766 | AC133: 0.4351208292 | AD133: 0.1378927323 | AE133: -0.004902518657 | AF133: 740.0072333 | AG133: 718.3595337 | AH133: 7.832837162 | AI133: 346.2041533 | AJ133: 5.795193867 | AK133: 18.37749642 | AL133: 1.631158451
B134: 740.0072333 | C134: 718.3595337 | D134: 7.832837162 | E134: 16 | F134: 16 | G134: 2221.132005 | H134: 0.06 | I134: 17.31815968 | J134: 80 | K134: 1 | L134: 7.892837162 | M134: 7.862837162 | N134: 0.3360002463 | O134: 7.014913323 | P134: 146.5020079 | Q134: 2115.62617 | R134: 1258.781617 | S134: 0.2395886439 | T134: 0.4418664235 | U134: 7.772837162 | V134: 7.802837162 | W134: -0.3273469896 | X134: 2065.745373 | Y134: 144.2746738 | Z134: 1255.872303 | AA134: 0.234481723 | AB134: -0.4276148585 | AC134: 0.4418664235 | AD134: 0.1357876426 | AE134: -0.004800730262 | AF134: 739.9013671 | AG134: 717.9176673 | AH134: 7.893390971 | AI134: 351.0270706 | AJ134: 5.892701387 | AK134: 19.13936739 | AL134: 1.659240617
B135: 739.9013671 | C135: 717.9176673 | D135: 7.893390971 | E135: 16 | F135: 16 | G135: 2272.648282 | H135: 0.06 | I135: 17.58695988 | J135: 80 | K135: 1 | L135: 7.953390971 | M135: 7.923390971 | N135: 0.3386216328 | O135: 7.001545954 | P135: 148.006142 | Q135: 2166.745148 | R135: 1260.691472 | S135: 0.2454737595 | T135: 0.4487870861 | U135: 7.833390971 | V135: 7.863390971 | W135: -0.3298537835 | X135: 2116.090141 | Y135: 145.7730715 | Z135: 1257.84034 | AA135: 0.2402783834 | AB135: -0.4341771726 | AC135: 0.4487870861 | AD135: 0.1336936865 | AE135: -0.004702066717 | AF135: 739.7912017 | AG135: 717.4688802 | AH135: 7.953950811 | AI135: 355.9848671 | AJ135: 5.991586072 | AK135: 19.93005678 | AL135: 1.687719406
B136: 739.7912017 | C136: 717.4688802 | D136: 7.953950811 | E136: 16 | F136: 16 | G136: 2324.96027 | H136: 0.06 | I136: 17.85785719 | J136: 80 | K136: 1 | L136: 8.013950811 | M136: 7.983950811 | N136: 0.3412437218 | O136: 6.987635729 | P136: 149.5142636 | Q136: 2218.656681 | R136: 1262.563735 | S136: 0.2514817862 | T136: 0.4558923423 | U136: 7.893950811 | V136: 7.923950811 | W136: -0.3323603857 | X136: 2167.221424 | Y136: 147.2754854 | Z136: 1259.769126 | AA136: 0.2461966095 | AB136: -0.4409112374 | AC136: 0.4558923423 | AD136: 0.1316100194 | AE136: -0.004606421007 | AF136: 739.676553 | AG136: 717.0129878 | AH136: 8.014516669 | AI136: 361.0846168 | AJ136: 6.091887355 | AK136: 20.75067511 | AL136: 1.716606175
B137: 739.676553 | C137: 717.0129878 | D137: 8.014516669 | E137: 16 | F137: 16 | G137: 2360.502556 | H137: 0.04 | I137: 18.13085216 | J137: 80 | K137: 1 | L137: 8.054516669 | M137: 8.034516669 | N137: 0.230391428 | O137: 6.97315943 | P137: 150.6511111 | Q137: 2262.609079 | R137: 1263.947704 | S137: 0.2567147517 | T137: 0.3099636762 | U137: 7.974516669 | V137: 7.994516669 | W137: -0.2220974442 | X137: 2227.794802 | Y137: 149.154806 | Z137: 1262.121286 | AA137: 0.2531305137 | AB137: -0.2973711582 | AC137: 0.3099636762 | AD137: 0.129047379 | AE137: -0.006692224848 | AF137: 739.5969808 | AG137: 716.7030242 | AH137: 8.055150323 | AI137: 245.2345736 | AJ137: 6.160008069 | AK137: 21.32083575 | AL137: 1.736224941
B138: 739.5969808 | C138: 716.7030242 | D138: 8.055150323 | E138: 16 | F138: 16 | G138: 2396.408535 | H138: 0.04 | I138: 18.3151653 | J138: 80 | K138: 1 | L138: 8.095150323 | M138: 8.075150323 | N138: 0.2315777763 | O138: 6.963112108 | P138: 151.6670759 | Q138: 2298.331571 | R138: 1265.165131 | S138: 0.2608927924 | T138: 0.3133209552 | U138: 8.015150323 | V138: 8.035150323 | W138: -0.2232052176 | X138: 2263.163383 | Y138: 150.1682413 | Z138: 1263.362699 | AA138: 0.2572672297 | AB138: -0.3005188764 | AC138: 0.3133209552 | AD138: 0.1276646178 | AE138: -0.004437013624 | AF138: 739.5152376 | AG138: 716.3897032 | AH138: 8.095787691 | AI138: 247.6522214 | AJ138: 6.228800353 | AK138: 21.90541945 | AL138: 1.756037119
B139: 739.5152376 | C139: 716.3897032 | D139: 8.095787691 | E139: 16 | F139: 16 | G139: 2432.680124 | H139: 0.04 | I139: 18.50042753 | J139: 80 | K139: 1 | L139: 8.135787691 | M139: 8.115787691 | N139: 0.2327644317 | O139: 6.952790669 | P139: 152.6848407 | Q139: 2334.418699 | R139: 1266.366795 | S139: 0.2651307405 | T139: 0.3167426432 | U139: 8.055787691 | V139: 8.075787691 | W139: -0.2243128935 | X139: 2298.894777 | Y139: 151.1834847 | Z139: 1264.587899 | AA139: 0.2614634082 | AB139: -0.3037261741 | AC139: 0.3167426432 | AD139: 0.1262854903 | AE139: -0.004377740651 | AF139: 739.4312594 | AG139: 716.0729606 | AH139: 8.136428771 | AI139: 250.1191949 | AJ139: 6.298277907 | AK139: 22.50480723 | AL139: 1.776046655
B140: 739.4312594 | C140: 716.0729606 | D140: 8.136428771 | E140: 16 | F140: 16 | G140: 2469.31924 | H140: 0.04 | I140: 18.68663907 | J140: 80 | K140: 1 | L140: 8.176428771 | M140: 8.156428771 | N140: 0.2339513942 | O140: 6.94218702 | P140: 153.7044001 | Q140: 2370.872379 | R140: 1267.552986 | S140: 0.2694298722 | T140: 0.3202312623 | U140: 8.096428771 | V140: 8.116428771 | W140: -0.2254204718 | X140: 2334.990901 | Y140: 152.200531 | Z140: 1265.797188 | AA140: 0.2657203139 | AB140: -0.3069953808 | AC140: 0.3202312623 | AD140: 0.1249097284 | AE140: -0.004319680566 | AF140: 739.3449795 | AG140: 715.7527293 | AH140: 8.17707356 | AI140: 252.6373775 | AJ140: 6.368454957 | AK140: 23.11939315 | AL140: 1.796257645
B141: 739.3449795 | C141: 715.7527293 | D141: 8.17707356 | E141: 16 | F141: 16 | G141: 2506.327799 | H141: 0.04 | I141: 18.87380019 | J141: 80 | K141: 1 | L141: 8.21707356 | M141: 8.19707356 | N141: 0.2351386639 | O141: 6.931292749 | P141: 154.7257489 | Q141: 2407.694529 | R141: 1268.723991 | S141: 0.2737915191 | T141: 0.3237894765 | U141: 8.13707356 | V141: 8.15707356 | W141: -0.2265279525 | X141: 2371.45367 | Y141: 153.2193748 | Z141: 1266.990862 | AA141: 0.2700392667 | AB141: -0.3103289563 | AC141: 0.3237894765 | AD141: 0.12353706 | AE141: -0.004262807992 | AF141: 739.2563287 | AG141: 715.4289398 | AH141: 8.217722056 | AI141: 255.2087599 | AJ141: 6.439346279 | AK141: 23.74958505 | AL141: 1.816674346
B142: 739.2563287 | C142: 715.4289398 | D142: 8.217722056 | E142: 16 | F142: 16 | G142: 2543.70772 | H142: 0.04 | I142: 19.06191112 | J142: 80 | K142: 1 | L142: 8.257722056 | M142: 8.237722056 | N142: 0.2363262407 | O142: 6.920099106 | P142: 155.7488819 | Q142: 2444.887066 | R142: 1269.880089 | S142: 0.2782170715 | T142: 0.3274201028 | U142: 8.177722056 | V142: 8.197722056 | W142: -0.2276353354 | X142: 2408.285003 | Y142: 154.2400109 | Z142: 1268.169211 | AA142: 0.2744216442 | AB142: -0.3137295008 | AC142: 0.3274201028 | AD142: 0.1221672086 | AE142: -0.004207098533 | AF142: 739.1652349 | AG142: 715.1015197 | AH142: 8.258374257 | AI142: 257.835449 | AJ142: 6.510967237 | AK142: 24.39580521 | AL142: 1.837301182
B143: 739.1652349 | C143: 715.1015197 | D143: 8.258374257 | E143: 16 | F143: 16 | G143: 2581.460923 | H143: 0.04 | I143: 19.25097211 | J143: 80 | K143: 1 | L143: 8.298374257 | M143: 8.278374257 | N143: 0.2375141245 | O143: 6.908596988 | P143: 156.773794 | Q143: 2482.451908 | R143: 1271.021551 | S143: 0.2827079821 | T143: 0.3311261224 | U143: 8.218374257 | V143: 8.238374257 | W143: -0.2287426203 | X143: 2445.486818 | Y143: 155.2624341 | Z143: 1269.332516 | AA143: 0.2788688861 | AB143: -0.3171997656 | AC143: 0.3311261224 | AD143: 0.1207998925 | AE143: -0.004152528767 | AF143: 739.0716229 | AG143: 714.7703936 | AH143: 8.299030162 | AI143: 260.5196759 | AJ143: 6.583333814 | AK143: 25.05849112 | AL143: 1.858142756
B144: 739.0716229 | C144: 714.7703936 | D144: 8.299030162 | E144: 16 | F144: 16 | G144: 2619.589328 | H144: 0.04 | I144: 19.44098341 | J144: 80 | K144: 1 | L144: 8.339030162 | M144: 8.319030162 | N144: 0.2387023155 | O144: 6.896776913 | P144: 157.8004802 | Q144: 2520.390977 | R144: 1272.148642 | S144: 0.2872657699 | T144: 0.3349106938 | U144: 8.259030162 | V144: 8.279030162 | W144: -0.2298498072 | X144: 2483.061034 | Y144: 156.2866392 | Z144: 1270.481053 | AA144: 0.2833824977 | AB144: -0.3207426646 | AC144: 0.3349106938 | AD144: 0.1194348247 | AE144: -0.004099076226 | AF144: 738.9754145 | AG144: 714.4354829 | AH144: 8.339689768 | AI144: 263.2638064 | AJ144: 6.656462649 | AK144: 25.73809635 | AL144: 1.87920386
B145: 738.9754145 | C145: 714.4354829 | D145: 8.339689768 | E145: 16 | F145: 16 | G145: 2658.094857 | H145: 0.04 | I145: 19.63194526 | J145: 80 | K145: 1 | L145: 8.379689768 | M145: 8.359689768 | N145: 0.2398908136 | O145: 6.884629002 | P145: 158.8289352 | Q145: 2558.706193 | R145: 1273.261623 | S145: 0.2918920247 | T145: 0.3387771667 | U145: 8.299689768 | V145: 8.319689768 | W145: -0.230956896 | X145: 2521.009572 | Y145: 157.312621 | Z145: 1271.61509 | AA145: 0.2879640544 | AB145: -0.3243612874 | AC145: 0.3387771667 | AD145: 0.1180717118 | AE145: -0.004046719378 | AF145: 738.8765281 | AG145: 714.0967057 | AH145: 8.380353073 | AI145: 266.0703509 | AJ145: 6.730371079 | AK145: 26.4350914 | AL145: 1.900489488
B146: 738.8765281 | C146: 714.0967057 | D146: 8.380353073 | E146: 16 | F146: 16 | G146: 2696.979432 | H146: 0.04 | I146: 19.82385791 | J146: 80 | K146: 1 | L146: 8.420353073 | M146: 8.400353073 | N146: 0.2410796188 | O146: 6.872142951 | P146: 159.8591541 | Q146: 2597.399477 | R146: 1274.360746 | S146: 0.2965884118 | T146: 0.3427290975 | U146: 8.340353073 | V146: 8.360353073 | W146: -0.2320638865 | X146: 2559.334352 | Y146: 158.3403746 | Z146: 1272.73489 | AA146: 0.2926152062 | AB146: -0.328058913 | AC146: 0.3427290975 | AD146: 0.1167102539 | AE146: -0.003995437626 | AF146: 738.7748786 | AG146: 713.7539766 | AH146: 8.421020075 | AI146: 268.9419764 | AJ146: 6.805077184 | AK146: 27.14996468 | AL146: 1.922004846
B147: 738.7748786 | C147: 713.7539766 | D147: 8.421020075 | E147: 16 | F147: 16 | G147: 2736.244976 | H147: 0.04 | I147: 20.01672161 | J147: 80 | K147: 1 | L147: 8.461020075 | M147: 8.441020075 | N147: 0.2422687311 | O147: 6.859308011 | P147: 160.891132 | Q147: 2636.472752 | R147: 1275.446258 | S147: 0.3013566771 | T147: 0.3467702662 | U147: 8.381020075 | V147: 8.401020075 | W147: -0.2331707787 | X147: 2598.037298 | Y147: 159.3698948 | Z147: 1273.840709 | AA147: 0.2973376829 | AB147: -0.3318390257 | AC147: 0.3467702662 | AD147: 0.1153501436 | AE147: -0.003945211288 | AF147: 738.6703771 | AG147: 713.4072064 | AH147: 8.461690773 | AI147: 271.8815191 | AJ147: 6.880599828 | AK147: 27.88322355 | AL147: 1.943755368
B148: 738.6703771 | C148: 713.4072064 | D148: 8.461690773 | E148: 16 | F148: 16 | G148: 2775.893414 | H148: 0.04 | I148: 20.21053659 | J148: 80 | K148: 1 | L148: 8.501690773 | M148: 8.481690773 | N148: 0.2434581504 | O148: 6.84611295 | P148: 161.9248638 | Q148: 2675.927943 | R148: 1276.518402 | S148: 0.3061986523 | T148: 0.3509046952 | U148: 8.421690773 | V148: 8.441690773 | W148: -0.2342775725 | X148: 2637.120332 | Y148: 160.4011767 | Z148: 1274.932798 | AA148: 0.3021332996 | AB148: -0.3357053321 | AC148: 0.3509046952 | AD148: 0.1139910652 | AE148: -0.003896021598 | AF148: 738.5629306 | AG148: 713.0563017 | AH148: 8.502365165 | AI148: 274.891999 | AJ148: 6.956958717 | AK148: 28.6353954 | AL148: 1.965746728
B149: 738.5629306 | C149: 713.0563017 | D149: 8.502365165 | E149: 16 | F149: 16 | G149: 2815.92667 | H149: 0.04 | I149: 20.40530311 | J149: 80 | K149: 1 | L149: 8.542365165 | M149: 8.522365165 | N149: 0.2446478769 | O149: 6.832546033 | P149: 162.9603448 | Q149: 2715.766974 | R149: 1277.577412 | S149: 0.3111162614 | T149: 0.3551366699 | U149: 8.462365165 | V149: 8.482365165 | W149: -0.2353842676 | X149: 2676.585379 | Y149: 161.4342153 | Z149: 1276.011399 | AA149: 0.3070039623 | AB149: -0.3396617799 | AC149: 0.3551366699 | AD149: 0.1126326944 | AE149: -0.003847850699 | AF149: 738.4524418 | AG149: 712.701165 | AH149: 8.543043248 | AI149: 277.9766349 | AJ149: 7.034174449 | AK149: 29.40702891 | AL149: 1.987984859
B150: 738.4524418 | C150: 712.701165 | D150: 8.543043248 | E150: 16 | F150: 16 | G150: 2856.346672 | H150: 0.04 | I150: 20.60102141 | J150: 80 | K150: 1 | L150: 8.583043248 | M150: 8.563043248 | N150: 0.2458379104 | O150: 6.818594981 | P150: 163.99757 | Q150: 2755.99177 | R150: 1278.62352 | S150: 0.316111527 | T150: 0.3594707619 | U150: 8.503043248 | V150: 8.523043248 | W150: -0.2364908642 | X150: 2716.434364 | Y150: 162.4690056 | Z150: 1277.076753 | AA150: 0.3119516749 | AB150: -0.3437125788 | AC150: 0.3594707619 | AD150: 0.1112746967 | AE150: -0.00380068164 | AF150: 738.3388089 | AG150: 712.3416942 | AH150: 8.583725022 | AI150: 281.1388624 | AJ150: 7.112268577 | AK150: 30.19869533 | AL150: 2.010475968
B151: 738.3388089 | C151: 712.3416942 | D151: 8.583725022 | E151: 16 | F151: 16 | G151: 2897.155346 | H151: 0.04 | I151: 20.79769174 | J151: 80 | K151: 1 | L151: 8.623725022 | M151: 8.603725022 | N151: 0.2470282511 | O151: 6.80424694 | P151: 165.0365346 | Q151: 2796.604258 | R151: 1279.656951 | S151: 0.3211865775 | T151: 0.363911854 | U151: 8.543725022 | V151: 8.563725022 | W151: -0.2375973619 | X151: 2756.669213 | Y151: 163.5055429 | Z151: 1278.129093 | AA151: 0.316978546 | AB151: -0.3478622239 | AC151: 0.363911854 | AD151: 0.1099167273 | AE151: -0.00375449838 | AF151: 738.2219253 | AG151: 711.9777824 | AH151: 8.624410483 | AI151: 284.3823523 | AJ151: 7.191263675 | AK151: 31.01098991 | AL151: 2.033226556
B152: 738.2219253 | C152: 711.9777824 | D152: 8.624410483 | E152: 16 | F152: 16 | G152: 2938.354621 | H152: 0.04 | I152: 20.99531434 | J152: 80 | K152: 1 | L152: 8.664410483 | M152: 8.644410483 | N152: 0.2482188989 | O152: 6.789488437 | P152: 166.0772339 | Q152: 2837.606365 | R152: 1280.677925 | S152: 0.3263436547 | T152: 0.3684651686 | U152: 8.584410483 | V152: 8.604410483 | W152: -0.2387037608 | X152: 2797.291853 | Y152: 164.5438223 | Z152: 1279.168645 | AA152: 0.3220867966 | AB152: -0.352115521 | AC152: 0.3684651686 | AD152: 0.1085584294 | AE152: -0.00370928579 | AF152: 738.1016791 | AG152: 711.6093172 | AH152: 8.665099632 | AI152: 287.7110328 | AJ152: 7.271183406 | AK152: 31.84453347 | AL152: 2.056243438
B153: 738.1016791 | C153: 711.6093172 | D153: 8.665099632 | E153: 16 | F153: 16 | G153: 2979.946425 | H153: 0.04 | I153: 21.19388946 | J153: 80 | K153: 1 | L153: 8.705099632 | M153: 8.685099632 | N153: 0.2494098537 | O153: 6.774305341 | P153: 167.119663 | Q153: 2879.000021 | R153: 1281.686657 | S153: 0.3315851229 | T153: 0.3731362994 | U153: 8.625099632 | V153: 8.645099632 | W153: -0.2398100608 | X153: 2838.304212 | Y153: 165.5838389 | Z153: 1280.195633 | AA153: 0.3272787685 | AB153: -0.3564776159 | AC153: 0.3731362994 | AD153: 0.1071994337 | AE153: -0.00366502966 | AF153: 737.9779526 | AG153: 711.2361809 | AH153: 8.705792465 | AI153: 291.1291128 | AJ153: 7.352052604 | AK153: 32.69997404 | AL153: 2.079533767
B154: 737.9779526 | C154: 711.2361809 | D154: 8.705792465 | E154: 16 | F154: 16 | G154: 3021.932688 | H154: 0.04 | I154: 21.39341735 | J154: 80 | K154: 1 | L154: 8.745792465 | M154: 8.725792465 | N154: 0.2506011157 | O154: 6.758682816 | P154: 168.1638174 | Q154: 2920.787155 | R154: 1282.683358 | S154: 0.3369134776 | T154: 0.3779312461 | U154: 8.665792465 | V154: 8.685792465 | W154: -0.2409162616 | X154: 2879.70822 | Y154: 166.6255881 | Z154: 1281.210275 | AA154: 0.3325569341 | AB154: -0.3609540258 | AC154: 0.3779312461 | AD154: 0.1058393568 | AE154: -0.003621716712 | AF154: 737.8506225 | AG154: 710.8582497 | AH154: 8.746488981 | AI154: 294.6411083 | AJ154: 7.433897357 | AK154: 33.57798876 | AL154: 2.103105056
B155: 737.8506225 | C155: 710.8582497 | D155: 8.746488981 | E155: 16 | F155: 16 | G155: 3064.315342 | H155: 0.04 | I155: 21.59389824 | J155: 80 | K155: 1 | L155: 8.786488981 | M155: 8.766488981 | N155: 0.2517926848 | O155: 6.742605264 | P155: 169.2096923 | Q155: 2962.969697 | R155: 1283.668232 | S155: 0.3423313565 | T155: 0.382856454 | U155: 8.706488981 | V155: 8.726488981 | W155: -0.2420223633 | X155: 2921.505806 | Y155: 167.669065 | Z155: 1282.212782 | AA155: 0.3379239059 | AB155: -0.3655506754 | AC155: 0.382856454 | AD155: 0.1044777999 | AE155: -0.003579334613 | AF155: 737.7195587 | AG155: 710.4753932 | AH155: 8.787189179 | AI155: 298.2518726 | AJ155: 7.516745099 | AK155: 34.47928584 | AL155: 2.126965206
B156: 737.7195587 | C156: 710.4753932 | D156: 8.787189179 | E156: 16 | F156: 16 | G156: 3107.09632 | H156: 0.04 | I156: 21.79533239 | J156: 80 | K156: 1 | L156: 8.827189179 | M156: 8.807189179 | N156: 0.252984561 | O156: 6.726056279 | P156: 170.2572832 | Q156: 3005.549579 | R156: 1284.641482 | S156: 0.3478415503 | T156: 0.3879188579 | U156: 8.747189179 | V156: 8.767189179 | W156: -0.2431283658 | X156: 2963.698901 | Y156: 168.7142651 | Z156: 1283.203364 | AA156: 0.3433824483 | AB156: -0.3702739367 | AC156: 0.3879188579 | AD156: 0.1031143477 | AE156: -0.003537871992 | AF156: 737.5846244 | AG156: 710.0874744 | AH156: 8.827893057 | AI156: 301.9666291 | AJ156: 7.600624718 | AK156: 35.40460682 | AL156: 2.151122536
B157: 737.5846244 | C157: 710.0874744 | D157: 8.827893057 | E157: 16 | F157: 16 | G157: 3150.277552 | H157: 0.04 | I157: 21.99772004 | J157: 80 | K157: 1 | L157: 8.867893057 | M157: 8.847893057 | N157: 0.2541767443 | O157: 6.709018575 | P157: 171.3065853 | Q157: 3048.528733 | R157: 1285.603303 | S157: 0.3534470155 | T157: 0.3931259315 | U157: 8.787893057 | V157: 8.807893057 | W157: -0.2442342689 | X157: 3006.289437 | Y157: 169.7611836 | Z157: 1284.182222 | AA157: 0.3489354898 | AB157: -0.3751306745 | AC157: 0.3931259315 | AD157: 0.1017485665 | AE157: -0.003497318466 | AF157: 737.4456752 | AG157: 709.6943484 | AH157: 8.868600613 | AI157: 305.7910092 | AJ157: 7.685566665 | AK157: 36.35472894 | AL157: 2.175585817
B158: =AF157 -> 737.4456752 | C158: 709.6943484 | D158: 8.868600613 | E158: 16 | F158: 16 | G158: 3193.860975 | H158: 0.04 | I158: 22.20106143 | J158: 80 | K158: 1 | L158: 8.908600613 | M158: 8.888600613 | N158: 0.2553692348 | O158: 6.691473925 | P158: 172.3575942 | Q158: 3091.909093 | R158: 1286.553888 | S158: 0.3591508883 | T158: 0.3984857435 | U158: 8.828600613 | V158: 8.848600613 | W158: -0.2453400725 | X158: 3049.279348 | Y158: 170.809816 | Z158: 1285.149557 | AA158: 0.3545861364 | AB158: -0.3801282965 | AC158: =delta_z(N158,S158,H158,AE157,AB158) -> 0.3984857435 | AD158: 0.1003800027 | AE158: -0.003457664668 | AF158: 737.3025587 | AG158: 709.2958627 | AH158: 8.909311846 | AI158: 309.7310942 | AJ158: 7.77160308 | AK158: 37.33046785 | AL158: 2.200364304
B159: 737.3025587 | C159: 709.2958627 | D159: 8.909311846 | E159: 16 | F159: 16 | G159: 3237.848522 | H159: =dv(S158) -> 0.04 | I159: 22.40535682 | J159: 80 | K159: 1 | L159: 8.949311846 | M159: 8.929311846 | N159: 0.2565620324 | O159: 6.67340308 | P159: 173.4103054 | Q159: 3135.692592 | R159: 1287.493425 | S159: 0.3649564997 | T159: 0.4040070204 | U159: 8.869311846 | V159: 8.889311846 | W159: -0.2464457765 | X159: 3092.670567 | Y159: 171.8601577 | Z159: 1286.105562 | AA159: 0.3603376876 | AB159: -0.385274811 | AC159: 0.4040070204 | AD159: 0.09900818051 | AE159: -0.003418902279 | AF159: 737.1551137 | AG159: 708.8918557 | AH159: 8.950026754 | AI159: 313.7934629 | AJ159: 7.858767931 | AK159: 38.33268055 | AL159: 2.225467782
B160: 737.1551137 | C160: 708.8918557 | D160: 8.950026754 | E160: 16 | F160: 16 | G160: 3282.242129 | H160: 0.04 | I160: 22.61060644 | J160: 80 | K160: 1 | L160: 8.990026754 | M160: 8.970026754 | N160: 0.2577551371 | O160: 6.654785693 | P160: 174.4647143 | Q160: 3179.881167 | R160: 1288.422098 | S160: 0.3708673929 | T160: 0.409699218 | U160: 8.910026754 | V160: 8.930026754 | W160: -0.2475513809 | X160: 3136.465029 | Y160: 172.9122042 | Z160: 1287.050428 | AA160: 0.3661936524 | AB160: -0.3905788919 | AC160: 0.409699218 | AD160: 0.09763260032 | AE160: -0.003381024068 | AF160: 737.0031696 | AG160: 708.4821565 | AH160: 8.990745336 | AI160: 317.9852461 | AJ160: 7.947097166 | AK160: 39.36226861 | AL160: 2.250906601
B161: 737.0031696 | C161: 708.4821565 | D161: 8.990745336 | E161: 16 | F161: 16 | G161: 3327.043734 | H161: 0.04 | I161: 22.81681055 | J161: 80 | K161: 1 | L161: 9.030745336 | M161: 9.010745336 | N161: 0.258948549 | O161: 6.63560022 | P161: 175.5208165 | Q161: 3224.476753 | R161: 1289.340087 | S161: 0.3768873421 | T161: 0.4155726027 | U161: 8.950745336 | V161: 8.970745336 | W161: -0.2486568856 | X161: 3180.664669 | Y161: 173.9659509 | Z161: 1287.98434 | AA161: 0.3721577687 | AB161: -0.3960499521 | AC161: 0.4155726027 | AD161: 0.09625273596 | AE161: -0.003344023941 | AF161: 736.8465456 | AG161: 708.0665838 | AH161: 9.03146759 | AI161: 322.3141876 | AJ161: 8.036628885 | AK161: 40.42018181 | AL161: 2.276691736
B162: 736.8465456 | C162: 708.0665838 | D162: 9.03146759 | E162: 16 | F162: 16 | G162: 3372.255274 | H162: 0.04 | I162: 23.02396939 | J162: 80 | K162: 1 | L162: 9.07146759 | M162: 9.05146759 | N162: 0.2601422681 | O162: 6.615823823 | P162: 176.5786077 | Q162: 3269.481288 | R162: 1290.247568 | S162: 0.3830203735 | T162: 0.4216383442 | U162: 8.99146759 | V162: 9.01146759 | W162: -0.2497622904 | X162: 3225.271425 | Y162: 175.0213933 | Z162: 1288.90748 | AA162: 0.378234024 | AB162: -0.4016982274 | AC162: 0.4216383442 | AD162: 0.09486803217 | AE162: -0.003307896995 | AF162: 736.6850495 | AG162: 707.6449455 | AH162: 9.072193515 | AI162: 326.7887146 | AJ162: 8.127403528 | AK162: 41.50742216 | AL162: 2.302834833
B163: 736.6850495 | C163: 707.6449455 | D163: 9.072193515 | E163: 16 | F163: 16 | G163: 3417.878688 | H163: 0.04 | I163: 23.23208321 | J163: 80 | K163: 1 | L163: 9.112193515 | M163: 9.092193515 | N163: 0.2613362944 | O163: 6.595432252 | P163: 177.6380833 | Q163: 3314.89671 | R163: 1291.144713 | S163: 0.3892707894 | T163: 0.4279086211 | U163: 9.032193515 | V163: 9.052193515 | W163: -0.2508675953 | X163: 3270.287234 | Y163: 176.0785271 | Z163: 1289.820027 | AA163: 0.3844266788 | AB163: -0.407534873 | AC163: 0.4279086211 | AD163: 0.09347790166 | AE163: -0.003272639582 | AF163: 736.5184772 | AG163: 707.2170369 | AH163: 9.112923109 | AI163: 331.4180175 | AJ163: 8.219464088 | AK163: 42.62504831 | AL163: 2.329348275
B164: 736.5184772 | C164: 707.2170369 | D164: 9.112923109 | E164: 16 | F164: 16 | G164: 3463.915915 | H164: 0.04 | I164: 23.44115224 | J164: 80 | K164: 1 | L164: 9.152923109 | M164: 9.132923109 | N164: 0.2625306278 | O164: 6.574399719 | P164: 178.6992392 | Q164: 3360.724957 | R164: 1292.031691 | S164: 0.3956431944 | T164: 0.4343967428 | U164: 9.072923109 | V164: 9.092923109 | W164: -0.2519728001 | X164: 3315.714035 | Y164: 177.1373479 | Z164: 1290.722154 | AA164: 0.3907402931 | AB164: -0.4135720733 | AC164: 0.4343967428 | AD164: 0.09208172175 | AE164: -0.003238249383 | AF164: 736.3466111 | AG164: 706.7826401 | AH164: 9.153656371 | AI164: 336.2121424 | AJ164: 8.31285635 | AK164: 43.77418063 | AL164: 2.356245246
B165: 736.3466111 | C165: 706.7826401 | D165: 9.153656371 | E165: 16 | F165: 16 | G165: 3510.368897 | H165: 0.04 | I165: 23.65117675 | J165: 80 | K165: 1 | L165: 9.193656371 | M165: 9.173656371 | N165: 0.2637252685 | O165: 6.552698758 | P165: 179.7620708 | Q165: 3406.967972 | R165: 1292.908666 | S165: 0.4021425258 | T165: 0.4411172894 | U165: 9.113656371 | V165: 9.133656371 | W165: -0.2530779049 | X165: 3361.553768 | Y165: 178.1978513 | Z165: 1291.614032 | AA165: 0.3971797562 | AB165: -0.4198231686 | AC165: 0.4411172894 | AD165: 0.09067883068 | AE165: -0.003204725494 | AF165: 736.1692191 | AG165: 706.3415229 | AH165: 9.194393299 | AI165: 341.1820965 | AJ165: 8.407629155 | AK165: 44.95600672 | AL165: 2.383539814
B166: 736.1692191 | C166: 706.3415229 | D166: 9.194393299 | E166: 16 | F166: 16 | G166: 3557.239575 | H166: 0.04 | I166: 23.86215696 | J166: 80 | K166: 1 | L166: 9.234393299 | M166: 9.214393299 | N166: 0.2649202164 | O166: 6.530300059 | P166: 180.8265741 | Q166: 3453.627693 | R166: 1293.775802 | S166: 0.4087740869 | T166: 0.4480862738 | U166: 9.154393299 | V166: 9.174393299 | W166: -0.2541829094 | X166: 3407.808373 | Y166: 179.2600329 | Z166: 1292.495827 | AA166: 0.4037503195 | AB166: -0.4263028018 | AC166: 0.4480862738 | AD166: 0.08926852336 | AE166: -0.003172068525 | AF166: 735.986053 | AG166: 705.8934366 | AH166: 9.235133893 | AI166: 346.3399711 | AJ166: 8.503834702 | AK166: 46.17178779 | AL166: 2.411247012
B167: 735.986053 | C167: 705.8934366 | D167: 9.235133893 | E167: 16 | F167: 16 | G167: 3604.529892 | H167: 0.04 | I167: 24.07409313 | J167: 80 | K167: 1 | L167: 9.275133893 | M167: 9.255133893 | N167: 0.2661154715 | O167: 6.507172291 | P167: 181.8927447 | Q167: 3500.706064 | R167: 1294.633255 | S167: 0.4155435856 | T167: 0.4553213292 | U167: 9.195133893 | V167: 9.215133893 | W167: -0.2552878136 | X167: 3454.479792 | Y167: 180.3238884 | Z167: 1293.367704 | AA167: 0.4104576351 | AB167: -0.4330270881 | AC167: 0.4553213292 | AD167: 0.08785004663 | AE167: -0.003140280715 | AF167: 735.7968471 | AG167: 705.4381152 | AH167: 9.27587815 | AI167: 351.6990836 | AJ167: 8.601528892 | AK167: 47.42286569 | AL167: 2.439382938
B168: 735.7968471 | C168: 705.4381152 | D168: 9.27587815 | E168: 16 | F168: 16 | G168: 3652.241791 | H168: 0.04 | I168: 24.28698551 | J168: 80 | K168: 1 | L168: 9.31587815 | M168: 9.29587815 | N168: 0.2673110338 | O168: 6.483281898 | P168: 182.9605783 | Q168: 3548.205028 | R168: 1295.48118 | S168: 0.4224571777 | T168: 0.4628419288 | U168: 9.23587815 | V168: 9.25587815 | W168: -0.2563926174 | X168: 3501.569968 | Y168: 181.3894137 | Z168: 1294.229821 | AA168: 0.4173077986 | AB168: -0.4400138131 | AC168: 0.4628419288 | AD168: 0.08642259379 | AE168: -0.003109366066 | AF168: 735.6013162 | AG168: 704.9752733 | AH168: 9.316626069 | AI168: 357.2741433 | AJ168: 8.70077171 | AK168: 48.71067101 | AL168: 2.46796487
B169: 735.6013162 | C169: 704.9752733 | D169: 9.316626069 | E169: 16 | F169: 16 | G169: 3700.377217 | H169: 0.04 | I169: 24.50083434 | J169: 80 | K169: 1 | L169: 9.356626069 | M169: 9.336626069 | N169: 0.2685069035 | O169: 6.458592864 | P169: 184.0300709 | Q169: 3596.126528 | R169: 1296.319729 | S169: 0.4295215168 | T169: 0.470669642 | U169: 9.276626069 | V169: 9.296626069 | W169: -0.2574973207 | X169: 3549.080843 | Y169: 182.4566044 | Z169: 1295.082336 | AA169: 0.4243073979 | AB169: -0.447282664 | AC169: 0.470669642 | AD169: 0.08498529846 | AE169: -0.003079330494 | AF169: 735.3991535 | AG169: 704.5046037 | AH169: 9.35737765 | AI169: 363.0814461 | AJ169: 8.801627667 | AK169: 50.03673225 | AL169: 2.497011385
B170: 735.3991535 | C170: 704.5046037 | D170: 9.35737765 | E170: 16 | F170: 16 | G170: 3748.938115 | H170: 0.04 | I170: 24.71563986 | J170: 80 | K170: 1 | L170: 9.39737765 | M170: 9.37737765 | N170: 0.2697030803 | O170: 6.433066449 | P170: 185.1012183 | Q170: 3644.47251 | R170: 1297.149051 | S170: 0.4367438106 | T170: 0.4788284362 | U170: 9.31737765 | V170: 9.33737765 | W170: -0.2586019235 | X170: 3597.014363 | Y170: 183.5254563 | Z170: 1295.9254 | AA170: 0.4314635699 | AB170: -0.4548555022 | AC170: 0.4788284362 | AD170: 0.08353722749 | AE170: -0.003050182006 | AF170: 735.1900281 | AG170: 704.0257752 | AH170: 9.398132891 | AI170: 369.1391021 | AJ170: 8.904166306 | AK170: 51.40268617 | AL170: 2.526542514
B171: 735.1900281 | C171: 704.0257752 | D171: 9.398132891 | E171: 16 | F171: 16 | G171: 3797.926433 | H171: 0.04 | I171: 24.93140232 | J171: 80 | K171: 1 | L171: 9.438132891 | M171: 9.418132891 | N171: 0.2708995645 | O171: 6.406660887 | P171: 186.1740163 | Q171: 3693.24492 | R171: 1297.969291 | S171: 0.4441318866 | T171: 0.4873450338 | U171: 9.358132891 | V171: 9.378132891 | W171: -0.2597064255 | X171: 3645.372474 | Y171: 184.5959654 | Z171: 1296.759166 | AA171: 0.4387840645 | AB171: -0.4627566844 | AC171: 0.4873450338 | AD171: 0.08207737275 | AE171: -0.003021930909 | AF171: 734.9735827 | AG171: 703.5384302 | AH171: 9.438891789 | AI171: 375.4673065 | AJ171: 9.00846278 | AK171: 52.81028987 | AL171: 2.556579898
B172: 734.9735827 | C172: 703.5384302 | D172: 9.438891789 | E172: 16 | F172: 16 | G172: 3847.344117 | H172: 0.04 | I172: 25.14812198 | J172: 80 | K172: 1 | L172: 9.478891789 | M172: 9.458891789 | N172: 0.272096356 | O172: 6.379331039 | P172: 187.2484608 | Q172: 3742.445704 | R172: 1298.780592 | S172: 0.4516942672 | T172: 0.4962493364 | U172: 9.398891789 | V172: 9.418891789 | W172: -0.2608108269 | X172: 3694.15712 | Y172: 185.6681273 | Z172: 1297.583778 | AA172: 0.4462773197 | AB172: -0.4710134443 | AC172: 0.4962493364 | AD172: 0.0806046418 | AE172: -0.002994590045 | AF172: 734.7494297 | AG172: 703.0421809 | AH172: 9.479654346 | AI172: 382.0886603 | AJ172: 9.114598519 | AK172: 54.26143449 | AL172: 2.587146991
B173: 734.7494297 | C173: 703.0421809 | D173: 9.479654346 | E173: 16 | F173: 16 | G173: 3897.193116 | H173: 0.04 | I173: 25.36579906 | J173: 80 | K173: 1 | L173: 9.519654346 | M173: 9.499654346 | N173: 0.2732934548 | O173: 6.35102799 | P173: 188.3245478 | Q173: 3792.07681 | R173: 1299.583092 | S173: 0.4594402572 | T173: 0.5055749312 | U173: 9.439654346 | V173: 9.459654346 | W173: -0.2619151274 | X173: 3743.370251 | Y173: 186.7419381 | Z173: 1298.399382 | AA173: 0.4539525477 | AB173: -0.479656349 | AC173: 0.5055749312 | AD173: 0.07911784689 | AE173: -0.002968175074 | AF173: 734.5171482 | AG173: 702.5366059 | AH173: 9.520420558 | AI173: 389.028554 | AJ173: 9.222662007 | AK173: 55.75816121 | AL173: 2.618269275
B174: 734.5171482 | C174: 702.5366059 | D174: 9.520420558 | E174: 16 | F174: 16 | G174: 3947.47538 | H174: 0.04 | I174: 25.58443383 | J174: 80 | K174: 1 | L174: 9.560420558 | M174: 9.540420558 | N174: 0.274490861 | O174: 6.321698582 | P174: 189.4022733 | Q174: 3842.140188 | R174: 1300.376929 | S174: 0.4673800451 | T174: 0.5153597015 | U174: 9.480420558 | V174: 9.500420558 | W174: -0.2630193269 | X174: 3793.013814 | Y174: 187.8173937 | Z174: 1299.206118 | AA174: 0.4618198358 | AB174: -0.4887198459 | AC174: 0.5153597015 | AD174: 0.07761569227 | AE174: -0.002942704794 | AF174: 734.2762794 | AG174: 702.0212462 | AH174: 9.561190425 | AI174: 396.3156296 | AJ174: 9.332749682 | AK174: 57.30267975 | AL174: 2.649974526
B175: 734.2762794 | C175: 702.0212462 | D175: 9.561190425 | E175: 16 | F175: 16 | G175: 3998.192858 | H175: 0.04 | I175: 25.80402651 | J175: 80 | K175: 1 | L175: 9.601190425 | M175: 9.581190425 | N175: 0.2756885745 | O175: 6.291284876 | P175: 190.4816332 | Q175: 3892.637786 | R175: 1301.162237 | S175: 0.4755248231 | T175: 0.5256465637 | U175: 9.521190425 | V175: 9.541190425 | W175: -0.2641234255 | X175: 3843.089759 | Y175: 188.8944899 | Z175: 1300.004124 | AA175: 0.4698902642 | AB175: -0.4982429253 | AC175: 0.5256465637 | AD175: 0.07609675923 | AE175: -0.002918201524 | AF175: 734.0263214 | AG175: 701.4955997 | AH175: 9.601963946 | AI175: 403.9823388 | AJ175: 9.444966998 | AK175: 58.89739009 | AL175: 2.682293113
B176: 734.0263214 | C176: 701.4955997 | D176: 9.601963946 | E176: 16 | F176: 16 | G176: 4049.347503 | H176: 0.04 | I176: 26.02457737 | J176: 80 | K176: 1 | L176: 9.641963946 | M176: 9.621963946 | N176: 0.2768865954 | O176: 6.259723514 | P176: 191.5626235 | Q176: 3943.571557 | R176: 1301.939146 | S176: 0.4838869268 | T176: 0.536484367 | U176: 9.561963946 | V176: 9.581963946 | W176: -0.2652274229 | X176: 3893.600036 | Y176: 189.9732229 | Z176: 1300.793536 | AA176: 0.4781760452 | AB176: -0.5082699261 | AC176: 0.536484367 | AD176: 0.07455948852 | AE176: -0.002894691552 | AF176: 733.7667236 | AG176: 700.9591153 | AH176: 9.642741119 | AI176: 412.0656242 | AJ176: 9.559429671 | AK176: 60.54490792 | AL176: 2.715258363
B177: 733.7667236 | C177: 700.9591153 | D177: 9.642741119 | E177: 16 | F177: 16 | G177: 4100.941267 | H177: 0.04 | I177: 26.24608665 | J177: 80 | K177: 1 | L177: 9.682741119 | M177: 9.662741119 | N177: 0.2780849237 | O177: 6.226944969 | P177: 192.6452404 | Q177: 3994.943452 | R177: 1302.707786 | S177: 0.4924800017 | T177: 0.5479289972 | U177: 9.602741119 | V177: 9.622741119 | W177: -0.2663313192 | X177: 3944.546596 | Y177: 191.0535885 | Z177: 1301.574486 | AA177: 0.4866906874 | AB177: -0.5188515241 | AC177: 0.5479289972 | AD177: 0.07300215942 | AE177: -0.002872205658 | AF177: 733.4968795 | AG177: 700.4111863 | AH177: 9.683521943 | AI177: 420.6077548 | AJ177: 9.676265159 | AK177: 62.24809488 | AL177: 2.748906983
B178: 733.4968795 | C178: 700.4111863 | D178: 9.683521943 | E178: 16 | F178: 16 | G178: 4152.976102 | H178: 0.04 | I178: 26.46855459 | J178: 80 | K178: 1 | L178: 9.723521943 | M178: 9.703521943 | N178: 0.2792835594 | O178: 6.192872657 | P178: 193.7294799 | Q178: 4046.755423 | R178: 1303.468283 | S178: 0.5013192019 | T178: 0.560044743 | U178: 9.643521943 | V178: 9.663521943 | W178: -0.2674351142 | X178: 3995.931392 | Y178: 192.1355829 | Z178: 1302.347104 | AA178: 0.4954491923 | AB178: -0.5300459539 | AC178: 0.560044743 | AD178: 0.07142286487 | AE178: -0.00285077974 | AF178: 733.2161184 | AG178: 699.8511416 | AH178: 9.724306418 | AI178: 429.6573614 | AJ178: 9.795614426 | AK178: 64.01009449 | AL178: 2.783279572
B179: 733.2161184 | C179: 699.8511416 | D179: 9.724306418 | E179: 16 | F179: 16 | G179: 4179.706637 | H179: 0.02 | I179: 26.69198144 | J179: 80 | K179: 1 | L179: 9.744306418 | M179: 9.734306418 | N179: 0.143015455 | O179: 6.157421879 | P179: 194.4156885 | Q179: 4086.156619 | R179: 1303.944866 | S179: 0.5089286144 | T179: 0.2912314975 | U179: 9.704306418 | V179: 9.714306418 | W179: -0.1314952002 | X179: 4060.530123 | Y179: 193.6176205 | Z179: 1303.390249 | AA179: 0.5059520485 | AB179: -0.2661587803 | AC179: 0.2912314975 | AD179: 0.06867389061 | AE179: -0.006458477584 | AF179: 733.0679023 | AG179: 699.5599101 | AH179: 9.745125239 | AI179: 223.3464813 | AJ179: 9.857655115 | AK179: 64.93764709 | AL179: 2.80114729
B180: 733.0679023 | C180: 699.5599101 | D180: 9.745125239 | E180: 16 | F180: 16 | G180: 4206.553948 | H180: 0.02 | I180: 26.8063938 | J180: 80 | K180: 1 | L180: 9.765125239 | M180: 9.755125239 | N180: 0.1433336933 | O180: 6.138707133 | P180: 194.9702761 | Q180: 4112.944384 | R180: 1304.32739 | S180: 0.513676039 | T180: 0.2947288327 | U180: 9.725125239 | V180: 9.735125239 | W180: -0.1317646632 | X180: 4087.208042 | Y180: 194.1716379 | Z180: 1303.775785 | AA180: 0.5106777299 | AB180: -0.269279923 | AC180: 0.2947288327 | AD180: 0.06785898691 | AE180: -0.002781429617 | AF180: 732.9165072 | AG180: 699.2651812 | AH180: 9.765945857 | AI180: 225.962312 | AJ180: 9.920422424 | AK180: 65.88210326 | AL180: 2.819224275
B181: 732.9165072 | C181: 699.2651812 | D181: 9.765945857 | E181: 16 | F181: 16 | G181: 4233.518311 | H181: 0.02 | I181: 26.92106075 | J181: 80 | K181: 1 | L181: 9.785945857 | M181: 9.775945857 | N181: 0.1436520113 | O181: 6.119590973 | P181: 195.5253069 | Q181: 4139.849057 | R181: 1304.707877 | S181: 0.5185000789 | T181: 0.2983427516 | U181: 9.745945857 | V181: 9.755945857 | W181: -0.1320340973 | X181: 4114.002626 | Y181: 194.7260991 | Z181: 1304.15926 | AA181: 0.5154796677 | AB181: -0.272504761 | AC181: 0.2983427516 | AD181: 0.06703698982 | AE181: -0.002771999555 | AF181: 732.7618164 | AG181: 698.9668385 | AH181: 9.786768273 | AI181: 228.666322 | AJ181: 9.983940847 | AK181: 66.84400048 | AL181: 2.837517581
B182: 732.7618164 | C182: 698.9668385 | D182: 9.786768273 | E182: 16 | F182: 16 | G182: 4260.599999 | H182: 0.02 | I182: 27.03598236 | J182: 80 | K182: 1 | L182: 9.806768273 | M182: 9.796768273 | N182: 0.143970409 | O182: 6.100058689 | P182: 196.0807804 | Q182: 4166.870914 | R182: 1305.086341 | S182: 0.5234037004 | T182: 0.3020804171 | U182: 9.766768273 | V182: 9.776768273 | W182: -0.1323035025 | X182: 4140.914149 | Y182: 195.2810039 | Z182: 1304.540689 | AA182: 0.5203608132 | AB182: -0.275839644 | AC182: 0.3020804171 | AD182: 0.0662075357 | AE182: -0.00276289844 | AF182: 732.6037064 | AG182: 698.6647581 | AH182: 9.807592485 | AI182: 231.4639327 | AJ182: 10.04823638 | AK182: 67.82390728 | AL182: 2.856034696
B183: 732.6037064 | C183: 698.6647581 | D183: 9.807592485 | E183: 16 | F183: 16 | G183: 4287.799287 | H183: 0.02 | I183: 27.15115869 | J183: 80 | K183: 1 | L183: 9.827592485 | M183: 9.817592485 | N183: 0.1442888863 | O183: 6.080094665 | P183: 196.6366962 | Q183: 4194.010229 | R183: 1305.462798 | S183: 0.5283900658 | T183: 0.305949633 | U183: 9.787592485 | V183: 9.797592485 | W183: -0.1325728788 | X183: 4167.942885 | Y183: 195.8363517 | Z183: 1304.920089 | AA183: 0.5253243127 | AB183: -0.2792914875 | AC183: 0.305949633 | AD183: 0.06537023695 | AE183: -0.002754136105 | AF183: 732.4420457 | AG183: 698.3588084 | AH183: 9.828418494 | AI183: 234.3610506 | AJ183: 10.11333668 | AK183: 68.82242597 | AL183: 2.87478358
B184: 732.4420457 | C184: 698.3588084 | D184: 9.828418494 | E184: 16 | F184: 16 | G184: 4315.116451 | H184: 0.02 | I184: 27.2665898 | J184: 80 | K184: 1 | L184: 9.848418494 | M184: 9.838418494 | N184: 0.1446074432 | O184: 6.059682302 | P184: 197.1930538 | Q184: 4221.267277 | R184: 1305.837264 | S184: 0.5334625518 | T184: 0.3099589193 | U184: 9.808418494 | V184: 9.818418494 | W184: -0.1328422261 | X184: 4195.089109 | Y184: 196.392142 | Z184: 1305.297473 | AA184: 0.5303735255 | AB184: -0.2828678393 | AC184: 0.3099589193 | AD184: 0.06452467974 | AE184: -0.002745723213 | AF184: 732.2766942 | AG184: 698.0488495 | AH184: 9.849246301 | AI184: 237.3641249 | AJ184: 10.17927115 | AK184: 69.8401957 | AL184: 2.89377271
B185: 732.2766942 | C185: 698.0488495 | D185: 9.849246301 | E185: 16 | F185: 16 | G185: 4342.551764 | H185: 0.02 | I185: 27.38227575 | J185: 80 | K185: 1 | L185: 9.869246301 | M185: 9.859246301 | N185: 0.1449260799 | O185: 6.038803922 | P185: 197.7498527 | Q185: 4248.642331 | R185: 1306.209752 | S185: 0.53862477 | T185: 0.3141175999 | U185: 9.829246301 | V185: 9.839246301 | W185: -0.1331115445 | X185: 4222.353096 | Y185: 196.9483745 | Z185: 1305.672859 | AA185: 0.5355120448 | AB185: -0.2865769564 | AC185: 0.3141175999 | AD185: 0.06367042154 | AE185: -0.002737671338 | AF185: 732.1075027 | AG185: 697.7347319 | AH185: 9.870075904 | AI185: 240.4802134 | AJ185: 10.24607121 | AK185: 70.87789582 | AL185: 2.913011127
B186: 732.1075027 | C186: 697.7347319 | D186: 9.870075904 | E186: 16 | F186: 16 | G186: 4370.105502 | H186: 0.02 | I186: 27.49821662 | J186: 80 | K186: 1 | L186: 9.890075904 | M186: 9.880075904 | N186: 0.1452447963 | O186: 6.017440673 | P186: 198.3070925 | Q186: 4276.135668 | R186: 1306.580278 | S186: 0.5438805897 | T186: 0.3184359029 | U186: 9.850075904 | V186: 9.860075904 | W186: -0.1333808339 | X186: 4249.735121 | Y186: 197.5050485 | Z186: 1306.046261 | AA186: 0.5407437202 | AB186: -0.2904278934 | AC186: 0.3184359029 | AD186: 0.06280698821 | AE186: -0.00272999305 | AF186: 731.9343116 | AG186: 697.416296 | AH186: 9.890907305 | AI186: 243.7170591 | AJ186: 10.3137704 | AK186: 71.93624977 | AL186: 2.932508492
B187: 731.9343116 | C187: 697.416296 | D187: 9.890907305 | E187: 16 | F187: 16 | G187: 4397.77794 | H187: 0.02 | I187: 27.61441246 | J187: 80 | K187: 1 | L187: 9.910907305 | M187: 9.900907305 | N187: 0.1455635923 | O187: 5.995572409 | P187: 198.8647728 | Q187: 4303.747563 | R187: 1306.948858 | S187: 0.549234164 | T187: 0.3229250771 | U187: 9.870907305 | V187: 9.880907305 | W187: -0.1336500943 | X187: 4277.235457 | Y187: 198.0621638 | Z187: 1306.417694 | AA187: 0.5460726835 | AB187: -0.2944306047 | AC187: 0.3229250771 | AD187: 0.06193387079 | AE187: -0.002722702018 | AF187: 731.7569501 | AG187: 697.0933709 | AH187: 9.911740503 | AI187: 247.0831779 | AJ187: 10.38240461 | AK187: 73.01602932 | AL187: 2.952275146
B188: 731.7569501 | C188: 697.0933709 | D188: 9.911740503 | E188: 16 | F188: 16 | G188: 4425.569353 | H188: 0.02 | I188: 27.73086333 | J188: 80 | K188: 1 | L188: 9.931740503 | M188: 9.921740503 | N188: 0.1458824681 | O188: 5.973177566 | P188: 199.4228931 | Q188: 4331.478289 | R188: 1307.315505 | S188: 0.5546899593 | T188: 0.3275975272 | U188: 9.891740503 | V188: 9.901740503 | W188: -0.1339193257 | X188: 4304.854382 | Y188: 198.6197199 | Z188: 1306.787173 | AA188: 0.5515033782 | AB188: -0.2985960634 | AC188: 0.3275975272 | AD188: 0.06105052188 | AE188: -0.002715813119 | AF188: 731.575235 | AG188: 696.7657734 | AH188: 9.932575499 | AI188: 250.5879613 | AJ188: 10.45201238 | AK188: 74.11805953 | AL188: 2.972322183
B189: 731.575235 | C189: 696.7657734 | D189: 9.932575499 | E189: 16 | F189: 16 | G189: 4453.480017 | H189: 0.02 | I189: 27.8475693 | J189: 80 | K189: 1 | L189: 9.952575499 | M189: =(D189+L189)/2 -> 9.942575499 | N189: 0.1462014237 | O189: 5.950233011 | P189: 199.9814529 | Q189: 4359.328124 | R189: 1307.680234 | S189: =Q189/O189/R189 -> 0.5602527886 | T189: =N189/(1-S189) -> 0.3324669717 | U189: 9.912575499 | V189: =(D189+U189)/2 -> 9.922575499 | W189: -0.1341885281 | X189: 4332.592169 | Y189: 199.1777162 | Z189: 1307.154713 | AA189: =X189/O189/Z189 -> 0.5570405927 | AB189: -0.3029363998 | AC189: 0.3324669717 | AD189: =H189/AC189*K189 -> 0.06015635146 | AE189: -0.002709342564 | AF189: =B189-(AC189-N189) -> 731.3889695 | AG189: =C189-AC189 -> 696.4333064 | AH189: 9.953412292 | AI189: =AC189/R189*1000000 -> 254.2417963 | AJ189: 10.5226351 | AK189: 75.24322423 | AL189: 2.992661526
B190: =AF189 -> 731.3889695 | C190: 696.4333064 | D190: 9.953412292 | E190: 16 | F190: =(E190+E189)/2 -> 16 | G190: =F190*$S$53*$C$55*(B190-C190+N190)^1.5 -> 4481.510206 | H190: 0.02 | I190: =(B190-C190)*B$19 -> 27.96453044 | J190: 80 | K190: =IF((1-S189-0.015)>0,1,-1) -> 1 | L190: =D190+K190*H190 -> 9.973412292 | M190: 9.963412292 | N190: =2*($P$53*M190/$S$52/$S$51)^2-(B190-C190)*2 -> 0.146520459 | O190: =wh(B190,$F$51,$F$52,$F$53) -> 5.926713881 | P190: =$C$54*$L$55*$L$55*M190*M190/(($B$19*(B190-C190))^0.333)*1000 -> 200.5404519 | Q190: =M190/$S$54*(B190-C190+N190/2)*E190-$C$53 -> 4387.297342 | R190: =rate1(1,$L$52,$L$51,$L$54,L190,$L$53,$L$50,P190) -> 1308.04306 | S190: 0.5659278495 | T190: 0.3375486283 | U190: =D190-K190*H190 -> 9.933412292 | V190: 9.943412292 | W190: =2*($P$53*V190/$S$52/$S$51)^2-(B190-C190)*2 -> -0.1344577015 | X190: =V190/$S$54*(B190-C190+W190/2)*F190-$C$53 -> 4360.449094 | Y190: =$C$54*$L$55*$L$55*V190*V190/(($B$19*(B190-C190))^0.333)*1000 -> 199.7361524 | Z190: =rate1(1,$L$52,$L$51,$L$54,U190,$L$53,$L$50,Y190) -> 1307.520328 | AA190: 0.5626894978 | AB190: =W190/(1-AA190) -> -0.3074650639 | AC190: =delta_z(N190,S190,H190,AE189,AB190) -> 0.3375486283 | AD190: 0.05925072218 | AE190: =(AD190-AD189)/(AC190+AC189)*2 -> -0.002703308045 | AF190: 731.1979413 | AG190: 696.0957578 | AH190: =$S$54*$S$53*$C$55*SQRT(AF190-AG190) -> 9.974250882 | AI190: 258.0562052 | AJ190: =AJ189+AI190/3600 -> 10.59431738 | AK190: 76.39247238 | AL190: 3.013306023
B191: 731.1979413 | C191: 696.0957578 | D191: 9.974250882 | E191: =CalBreachWidth(C191,B191,I191,E190) -> 16 | F191: 16 | G191: 4509.660198 | H191: =dv(S190) -> 0.02 | I191: 28.08174681 | J191: 80 | K191: 1 | L191: 9.994250882 | M191: 9.984250882 | N191: 0.1468395741 | O191: 5.902593391 | P191: 201.0998895 | Q191: 4415.386218 | R191: 1308.403997 | S191: 0.5717207678 | T191: 0.3428594316 | U191: 9.954250882 | V191: 9.964250882 | W191: -0.1347268459 | X191: 4388.425433 | Y191: 200.295028 | Z191: 1307.884033 | AA191: 0.5684556904 | AB191: -0.3121970163 | AC191: 0.3428594316 | AD191: 0.05833294394 | AE191: -0.002697728893 | AF191: 731.0019215 | AG191: 695.7528984 | AH191: 9.99509127 | AI191: 262.0440111 | AJ191: 10.66710738 | AK191: =AK190+AI191*G190/1000000 -> 77.56682529 | AL191: =AL190+AI191*J191/1000000 -> 3.034269544
B192: 731.0019215 | C192: 695.7528984 | D192: 9.99509127 | E192: 16 | F192: 16 | G192: 4537.930266 | H192: 0.02 | I192: 28.19921847 | J192: =IF(H192>0, $B$7,"") -> 80 | K192: 1 | L192: 10.01509127 | M192: 10.00509127 | N192: 0.147158769 | O192: 5.877842617 | P192: 201.6597654 | Q192: 4443.595029 | R192: 1308.763059 | S192: 0.5776376477 | T192: 0.348418291 | U192: 9.97509127 | V192: 9.98509127 | W192: -0.1349959612 | X192: 4416.521462 | Y192: 200.8543426 | Z192: 1308.245842 | AA192: 0.5743452434 | AB192: -0.3171489548 | AC192: 0.348418291 | AD192: 0.05740226766 | AE192: -0.002692626264 | AF192: 730.8006619 | AG192: 695.4044801 | AH192: 10.01593346 | AI192: 266.2195335 | AJ192: 10.74105725 | AK192: 78.76738493 | AL192: 3.055567106
B193: 730.8006619 | C193: 695.4044801 | D193: 10.01593346 | E193: 16 | F193: 16 | G193: 4566.320689 | H193: 0.02 | I193: 28.31694548 | J193: 80 | K193: 1 | L193: 10.03593346 | M193: 10.02593346 | N193: 0.1474780437 | O193: 5.852430248 | P193: 202.2200791 | Q193: 4471.92405 | R193: 1309.120259 | S193: 0.5836851293 | T193: 0.3542463987 | U193: 9.995933456 | V193: 10.00593346 | W193: -0.1352650474 | X193: 4444.737456 | Y193: 201.4140957 | Z193: 1308.60577 | AA193: 0.5803647625 | AB193: -0.3223395829 | AC193: 0.3542463987 | AD193: 0.05645787811 | AE193: -0.002688023351 | AF193: 730.5938936 | AG193: 695.0502337 | AH193: 10.03677744 | AI193: 270.598821 | AJ193: 10.81622359 | AK193: 79.99534351 | AL193: 3.077215012
B194: 730.5938936 | C194: 695.0502337 | D194: 10.03677744 | E194: 16 | F194: 16 | G194: 4594.83174 | H194: 0.02 | I194: 28.43492792 | J194: 80 | K194: 1 | L194: 10.05677744 | M194: 10.04677744 | N194: 0.1477973982 | O194: 5.826322297 | P194: 202.7808301 | Q194: 4500.373557 | R194: 1309.475613 | S194: 0.5898704557 | T194: 0.3603675965 | U194: 10.01677744 | V194: 10.02677744 | W194: -0.1355341046 | X194: 4473.07369 | Y194: 201.9742869 | Z194: 1308.963829 | AA194: 0.5865214534 | AB194: -0.3277899319 | AC194: 0.3603675965 | AD194: 0.05549888556 | AE194: -0.002683945623 | AF194: 730.3813234 | AG194: 694.6898661 | AH194: 10.05762322 | AI194: 275.1999297 | AJ194: 10.89266802 | AK194: 81.25199464 | AL194: 3.099231007
B195: 730.3813234 | C195: 694.6898661 | D195: 10.05762322 | E195: 16 | F195: 16 | G195: 4623.463697 | H195: 0.02 | I195: 28.55316584 | J195: 80 | K195: 1 | L195: 10.07762322 | M195: 10.06762322 | N195: 0.1481168325 | O195: 5.799481767 | P195: 203.3420181 | Q195: 4528.943827 | R195: 1309.829133 | S195: 0.5962015506 | T195: 0.3668088194 | U195: 10.03762322 | V195: 10.04762322 | W195: -0.1358031327 | X195: 4501.530442 | Y195: 202.5349158 | Z195: 1309.320035 | AA195: 0.592823199 | AB195: -0.3335237479 | AC195: 0.3668088194 | AD195: 0.05452431606 | AE195: -0.002680421102 | AF195: 730.1626314 | AG195: 694.3230573 | AH195: 10.0784708 | AI195: 280.0432593 | AJ195: 10.97045781 | AK195: 82.5387463 | AL195: 3.121634467
B196: 730.1626314 | C196: 694.3230573 | D196: 10.0784708 | E196: 16 | F196: 16 | G196: 4652.216836 | H196: 0.02 | I196: 28.6716593 | J196: 80 | K196: 1 | L196: 10.0984708 | M196: 10.0884708 | N196: 0.1484363467 | O196: 5.771868258 | P196: 203.9036425 | Q196: 4557.635135 | R196: 1310.180832 | S196: 0.6026871101 | T196: 0.3736006317 | U196: 10.0584708 | V196: 10.0684708 | W196: -0.1360721317 | X196: 4530.107987 | Y196: 203.0959819 | Z196: 1309.674401 | AA196: 0.5992786503 | AB196: -0.3395679612 | AC196: 0.3736006317 | AD196: 0.05353310006 | AE196: -0.002677480684 | AF196: 729.9374671 | AG196: 693.9494566 | AH196: 10.09932018 | AI196: 285.1519596 | AJ196: 11.04966669 | AK196: 83.85713603 | AL196: 3.144446624
B197: 729.9374671 | C197: 693.9494566 | D197: 10.09932018 | E197: 16 | F197: 16 | G197: 4681.091433 | H197: 0.02 | I197: 28.79040838 | J197: 80 | K197: 1 | L197: 10.11932018 | M197: 10.10932018 | N197: 0.1487559407 | O197: 5.743437515 | P197: 204.4657031 | Q197: 4586.447759 | R197: 1310.530725 | S197: 0.6093367096 | T197: 0.3807778831 | U197: 10.07932018 | V197: 10.08932018 | W197: -0.1363411016 | X197: 4558.806601 | Y197: 203.6574847 | Z197: 1310.02694 | AA197: 0.6058973332 | AB197: -0.3459532582 | AC197: 0.3807778831 | AD197: 0.05252405901 | AE197: -0.002675158499 | AF197: 729.7054452 | AG197: 693.5686788 | AH197: 10.12017135 | AI197: 290.5524271 | AJ197: 11.1303757 | AK197: 85.20884892 | AL197: 3.167690818
B198: 729.7054452 | C198: 693.5686788 | D198: 10.12017135 | E198: 16 | F198: 16 | G198: 4710.087766 | H198: 0.02 | I198: 28.90941313 | J198: 80 | K198: 1 | L198: 10.14017135 | M198: 10.13017135 | N198: 0.1490756146 | O198: 5.714140877 | P198: 205.0281992 | Q198: 4615.381973 | R198: 1310.878825 | S198: 0.6161609314 | T198: 0.3883805136 | U198: 10.10017135 | V198: 10.11017135 | W198: -0.1366100424 | X198: 4587.626561 | Y198: 204.2194239 | Z198: 1310.377667 | AA198: 0.6126897748 | AB198: -0.352714784 | AC198: 0.3883805136 | AD198: 0.05149588946 | AE198: -0.002673492345 | AF198: 729.4661403 | AG198: 693.1802982 | AH198: 10.14102432 | AI198: 296.2749158 | AJ198: 11.21267429 | AK198: 86.59573889 | AL198: 3.191392811
B199: 729.4661403 | C199: 693.1802982 | D199: 10.14102432 | E199: 16 | F199: 16 | G199: 4739.206109 | H199: 0.02 | I199: 29.02867363 | J199: 80 | K199: 1 | L199: 10.16102432 | M199: 10.15102432 | N199: 0.1493953684 | O199: 5.683924645 | P199: 205.5911306 | Q199: 4644.438056 | R199: 1311.225145 | S199: 0.6231715159 | T199: 0.3964545535 | U199: 10.12102432 | V199: 10.13102432 | W199: -0.1368789541 | X199: 4616.568144 | Y199: 204.7817991 | Z199: 1310.726594 | AA199: 0.6196676549 | AB199: -0.3598930142 | AC199: 0.3964545535 | AD199: 0.05044714412 | AE199: -0.002672524172 | AF199: 729.2190811 | AG199: 692.7838437 | AH199: 10.1618791 | AI199: 302.3542944 | AJ199: 11.29666159 | AK199: 88.01985416 | AL199: 3.215581155
B200: 729.2190811 | C200: 692.7838437 | D200: 10.1618791 | E200: 16 | F200: 16 | G200: 4768.446741 | H200: 0.02 | I200: 29.14818992 | J200: 80 | K200: 1 | L200: 10.1818791 | M200: 10.1718791 | N200: 0.1497152021 | O200: 5.652729306 | P200: 206.1544967 | Q200: 4673.616283 | R200: 1311.569698 | S200: 0.6303815441 | T200: 0.4050533726 | U200: 10.1418791 | V200: 10.1518791 | W200: -0.1371478366 | X200: 4645.631626 | Y200: 205.3446097 | Z200: 1311.073735 | AA200: 0.6268439863 | AB200: -0.3675348421 | AC200: 0.4050533726 | AD200: 0.04937620904 | AE200: -0.002672300654 | AF200: 728.9637429 | AG200: 692.3787903 | AH200: 10.18273567 | AI200: 308.8309933 | AJ200: 11.38244798 | AK200: 89.48346789 | AL200: 3.240287634
B201: 728.9637429 | C201: 692.3787903 | D201: 10.18273567 | E201: 16 | F201: 16 | G201: 4797.809939 | H201: 0.02 | I201: 29.26796208 | J201: 80 | K201: 1 | L201: 10.20273567 | M201: 10.19273567 | N201: 0.1500351158 | O201: 5.620488606 | P201: 206.7182972 | Q201: 4702.916932 | R201: 1311.912497 | S201: 0.6378056574 | T201: 0.4142392581 | U201: 10.16273567 | V201: 10.17273567 | W201: -0.1374166899 | X201: 4674.817284 | Y201: 205.9078554 | Z201: 1311.419102 | AA201: 0.6342333341 | AB201: -0.3756949518 | AC201: 0.4142392581 | AD201: 0.04828127612 | AE201: -0.002672873859 | AF201: 728.6995388 | AG201: 691.9645511 | AH201: 10.20359403 | AI201: 315.7522008 | AJ201: 11.47015692 | AK201: 90.98911544 | AL201: 3.265547811
B202: 728.6995388 | C202: 691.9645511 | D202: 10.20359403 | E202: 16 | F202: 16 | G202: 4827.295979 | H202: 0.02 | I202: 29.38799017 | J202: 80 | K202: 1 | L202: 10.22359403 | M202: 10.21359403 | N202: 0.1503551094 | O202: 5.58712843 | P202: 207.2825317 | Q202: 4732.34028 | R202: 1312.253554 | S202: 0.645460326 | T202: 0.4240854279 | U202: 10.18359403 | V202: 10.19359403 | W202: -0.1376855141 | X202: 4704.125395 | Y202: 206.4715357 | Z202: 1311.76271 | AA202: 0.6418520826 | AB202: -0.3844375673 | AC202: 0.4240854279 | AD202: 0.04716030942 | AE202: -0.002674302012 | AF202: 728.4258085 | AG202: 691.5404656 | AH202: 10.2244542 | AI202: 323.1733887 | AJ202: 11.55992731 | AK202: 92.53963994 | AL202: 3.291401682
B203: 728.4258085 | C203: 691.5404656 | D203: 10.2244542 | E203: 16 | F203: 16 | G203: 4856.905138 | H203: 0.02 | I203: 29.50827426 | J203: 80 | K203: 1 | L203: 10.2444542 | M203: 10.2344542 | N203: 0.1506751829 | O203: 5.552565415 | P203: 207.8471996 | Q203: 4761.886604 | R203: 1312.592883 | S203: 0.6533641791 | T203: 0.4346786275 | U203: 10.2044542 | V203: 10.2144542 | W203: -0.1379543091 | X203: 4733.556236 | Y203: 207.0356502 | Z203: 1312.10457 | AA203: 0.6497187638 | AB203: -0.3938387068 | AC203: 0.4346786275 | AD203: 0.04601100384 | AE203: -0.002676650401 | AF203: 728.141805 | AG203: 691.105787 | AH203: 10.24531616 | AI203: 331.1602807 | AJ203: 11.65191627 | AK203: 94.13824863 | AL203: 3.317894504
B204: 728.141805 | C204: 691.105787 | D204: 10.24531616 | E204: 16 | F204: 16 | G204: 4886.637695 | H204: 0.02 | I204: 29.62881441 | J204: 80 | K204: 1 | L204: 10.26531616 | M204: 10.25531616 | N204: 0.1509953364 | O204: 5.516705246 | P204: 208.4123006 | Q204: 4791.55618 | R204: 1312.930495 | S204: 0.6615384147 | T204: 0.446122523 | U204: 10.22531616 | V204: 10.23531616 | W204: -0.1382230749 | X204: 4763.110084 | Y204: 207.6001986 | Z204: 1312.444695 | AA204: 0.6578544649 | AB204: -0.4039891236 | AC204: 0.446122523 | AD204: 0.04483073364 | AE204: -0.002679992415 | AF204: 727.8466778 | AG204: 690.6596645 | AH204: 10.26617993 | AI204: 339.7914243 | AJ204: 11.74630278 | AK204: 95.78858334 | AL204: 3.345077818
B205: 727.8466778 | C205: 690.6596645 | D205: 10.26617993 | E205: 16 | F205: 16 | G205: 4916.493926 | H205: 0.02 | I205: 29.74961068 | J205: 80 | K205: 1 | L205: 10.28617993 | M205: 10.27617993 | N205: 0.1513155698 | O205: 5.47944052 | P205: 208.9778343 | Q205: 4821.349287 | R205: 1313.266404 | S205: 0.6700073147 | T205: 0.4585421937 | U205: 10.24617993 | V205: 10.25617993 | W205: -0.1384918114 | X205: 4792.787217 | Y205: 208.1651802 | Z205: 1312.783099 | AA205: 0.6662833406 | AB205: -0.4149981954 | AC205: 0.4585421937 | AD205: 0.0436164878 | AE205: -0.002684410734 | AF205: 727.5394512 | AG205: 690.2011223 | AH205: 10.28704549 | AI205: 349.161596 | AJ205: 11.84329211 | AK205: 97.49480956 | AL205: 3.373010746
B206: 727.5394512 | C206: 690.2011223 | D206: 10.28704549 | E206: 16 | F206: 16 | G206: 4946.47411 | H206: 0.02 | I206: 29.87066313 | J206: 80 | K206: 1 | L206: 10.30704549 | M206: 10.29704549 | N206: 0.1516358833 | O206: 5.440648039 | P206: 209.5438002 | Q206: 4851.266203 | R206: 1313.600622 | S206: 0.6787988985 | T206: 0.4720901721 | U206: 10.26704549 | V206: 10.27704549 | W206: -0.1387605188 | X206: 4822.587912 | Y206: 208.7305949 | Z206: 1313.119792 | AA206: 0.6750332634 | AB206: -0.4269991454 | AC206: 0.4720901721 | AD206: 0.04236478788 | AE206: -0.0026899987 | AF206: 727.2189969 | AG206: 689.7290321 | AH206: 10.30791285 | AI206: 359.3863798 | AJ206: 11.94312166 | AK206: 99.26173051 | AL206: 3.401761656
B207: 727.2189969 | C207: 689.7290321 | D207: 10.30791285 | E207: 16 | F207: 16 | G207: 4976.578523 | H207: 0.02 | I207: 29.99197184 | J207: 80 | K207: 1 | L207: 10.32791285 | M207: 10.31791285 | N207: 0.1519562768 | O207: 5.400185344 | P207: 210.1101979 | Q207: 4881.307204 | R207: 1313.933161 | S207: 0.687945765 | T207: 0.4869547011 | U207: 10.28791285 | V207: 10.29791285 | W207: -0.1390291969 | X207: 4852.512447 | Y207: 209.296442 | Z207: 1313.454789 | AA207: 0.6841366611 | AB207: -0.4401561682 | AC207: 0.4869547011 | AD207: 0.04107158213 | AE207: -0.002696861811 | AF207: 726.8839985 | AG207: 689.2420774 | AH207: 10.32878201 | AI207: 370.6084264 | AJ207: 12.04606845 | AK207: 101.0949355 | AL207: 3.43141033
B208: 726.8839985 | C208: 689.2420774 | D208: 10.32878201 | E208: 16 | F208: 16 | G208: 5006.807444 | H208: 0.02 | I208: 30.11353686 | J208: 80 | K208: 1 | L208: 10.34878201 | M208: 10.33878201 | N208: 0.1522767502 | O208: 5.357886209 | P208: 210.6770271 | Q208: 4911.472568 | R208: 1314.264032 | S208: 0.6974861917 | T208: 0.5033712382 | U208: 10.30878201 | V208: 10.31878201 | W208: -0.1392978458 | X208: 4882.561099 | Y208: 209.8627213 | Z208: 1313.788101 | AA208: 0.6936316101 | AB208: -0.4546743411 | AC208: 0.5033712382 | AD208: 0.03973210721 | AE208: -0.00270511933 | AF208: 726.532904 | AG208: 688.7387062 | AH208: 10.34965296 | AI208: 383.0061736 | AJ208: 12.15245905 | AK208: 103.0009958 | AL208: 3.462050824

Sheet User Manual
A1: Dam Breach Analysis DB-IWHR 2014
A2: Copy Right：Chen ZuYu（Email：chenzuyu@cashq.ac.cn）
A3: Disclaimer: The author assumes No responsibility and makes no guarantees, expressed or implied, about its quality, reliability, or any other characteristic.
